Workbook

Sheet Sheet_Descriptions (hidden)
A1: 1. Stuurvariabelen
A2: Inrichten en instellen van het instrument
A3: Toelichting
A4: · % levering Zzp componenten in relatie tot norm bandbreedte zzp’s.
A5: · Verdeling benodigde / aanwezige deskundigheidsmix over de verschillende zzp’s
A6: · Levering mix producten AWBZ, WMO, ZvW, en relatie met deskundigheidmix en productiviteit (norm budget of zorgverkoop).
A7: · Parameters bruto netto berekening en productiviteit.
A8: · Keuze % omvang vaste personele capaciteit (afspraken over contracturen).
A9: · Keuze % omvang aandeel van contracten vanaf 28 uur per week.
A10: · Conversietabel FWG indeling naar deskundigheidniveau (organisatie specifiek)
A11: · Normen gemiddeld aantal opkomsten per week per contractklasse en deskundigheidsniveau.
A12: · Doel % bandbreedte over- onderschrijding bezettingseis / basis dienstenpatroon ten opzichte van de gevraagde zorg / norm.
A16: 2. Monitoring
A17: Monitoring van resultaten en stand van zaken afstemming (zorg)vraag en personele inzet
A18: Toelichting
A19: · Relatie tussen (zorg)vraag, aanwezige vaste contracturen, actuele uren en benodigde uren bezettingseis.
A20: · Actueel % over- onderschrijding actuele uren in de bezettingseis ten opzichte van de benodigde uren in de bezettingseis.
A21: · Verdeling contracten naar contractklasse: norm versus aanwezig.
A22: · Verdeling lengte diensten van de bezettingseis naar het deskundigheidniveau.
A23: · Vergelijking deskundigheidmix: benodigd volgens de norm, de bezettingseis en aanwezig.
A24: · Benodigde opkomsten per deskundigheidniveau en contractklasse: benodigd versus aanwezig.
A25: . In roosterperiode: diensten bezettingseis vs ingeplande diensten in roostermodule
A26: . In roosterperiode: aantal in te plannen contracturen vs ingeplande contracturen
A31: 3a. Zzp berekening
A32: Invoeren van Zzp’s en VPT’s en instelmogelijkheden voor organisatie specifieke vertaling van componenten van de Zzp en VPT
A33: Toelichting
A34: · Invoer van het aantal Zzp’s of VPT’s met of zonder Dagbesteding en Behandeling op o.a. team, cluster, locatie en concernniveau.
A35: · Mogelijkheid om de functies als PV organisatiespecifiek te maken als normen voor geplande en ongeplande zorg.
A36: · Mogelijkheid scherminhoud aan de gecontracteerde Zzp’s / VPT’s aan te passen of het dichtvouwen van detailinformatie.
A46: 3b. Zzv berekening
A47: Invoeren van uren AWBZ functiegerichte indicaties / Wmo / 1e lijn producten / Kraamzorg / Jeugdgezondheidzorg
A48: Toelichting
A49: · Invoer van het aantal uren AWBZ functiegerichte indicaties / Wmo / ZvW producten / private producten.
A50: · Optie om de aantallen uren om te zetten in de benodigde formatie en verdeling naar deskundigheid in fte’s of in uren.
A51: · Mogelijkheid om periode resultaten te extrapoleren op jaarbasis en de realisatie te vergelijken met de norm (begroting of zorgverkoop).
A52: · Automatische berekening van de benodigde formatie en verdeling naar deskundigheid in fte’s of in uren volgens de realisatie.
A61: 4. Formatie
A62: De automatische formatieberekening en selectiemogelijkheden naar productsoorten
A63: Toelichting
A64: · Automatische berekening van:
A65: - de benodigde formatie en formatieopbouw op basis van de (zorg)vraag;
A66: - de beschikbare formatie op basis van de begroting;
A67: - de benodigde formatie op basis van de bezettingseis;
A68: · Selectiemogelijkheden naar productsoorten en naar onderdelen van Zzp’s
A76: 5. Formatie Correctie
A77: Correctie op automatische formatieberekening op basis van organisatorische keuzes (vormgeving processen)
A78: Toelichting
A79: · Mogelijkheid om de berekende formatie te corrigeren voor keuzes bij de vormgeving van processen, o.a. bij kleinschalige wonen.
A80: Deze correcties werken door in de beschikbare uren voor het basis dienstenpatroon / route bestand.
A92: 6a. Bezettingseis
A93: Het vormgeven van de bezettingseis (het basis dienstenpatroon of routebestand)
A94: Toelichting
A95: · Het bepalen van diensten naar de volgende kenmerken:
A96: - het minimaal benodigde deskundigheidniveau;
A97: -het kenmerk van de diensten (actieve dienst of een bijzondere dienst);
A98: -het toevoegen van compensatie-uren voor bijzondere diensten;
A99: -de verdeling van diensten over meerdere teams;
A100: -het begin- en eindtijdstip;
A101: -een eventuele onbetaalde pauze in de dienst
A102: -het aantal diensten per dag over de dagen van de week.
A103: · Het automatisch tellen van het aantal diensten en uren per dag en per week.
A104: · Het continu toetsen van de (concept) bezettingseis aan de norm volgens de berekende (gecorrigeerde) beschikbare formatie.
A107: 6b.Bezettingseis Grafiek
A108: Het beoordelen van de (concept) bezettingseis aan de hand van een grafische weergave
A109: Toelichting
A110: · Grafische weergave van de ingevoerde (concept) bezettingseis per dag naar deskundigheidniveau en spreiding over de dag.
A111: · Presentatie in uren en een % van de inzet van arbeidsuren naar deskundigheidniveau.
A122: 7a. Scenario
A123: Het opstellen van scenario’s voor spreiding van de arbeidscapaciteit over het jaar
A124: Toelichting
A125: · Opstellen van jaarplanningen voor de verdeling van de arbeidscapaciteit naar componenten als verlof, roosteruren, scholing of (zorg)vraag.
A126: · Keuze om de planning (FTE of uren) op week-, maand-, periode- of kwartaalbasis weer te geven.
A127: · Automatische invoer van gegevens vanuit de schermen Formatie (Correctie) en Formatiemix
A137: 7b. Schenario Visueel
A138: De grafische weergave van het gekozen scenario voor de jaarplanning
A139: Toelichting
A140: · Visueel overzicht van de spreiding van componenten van de arbeidscapaciteit (o.a. verlof en scholing) over het jaar.
A141: · Weergave van de aanwezige contracturen in relatie tot de spreiding van de arbeidscapaciteit ter ondersteuning van flex vragen.
A152: 8. Formatiemix
A153: Vergelijken van de benodigde en aanwezige formatiemix
A154: Toelichting
A155: · Het berekenen van ruimte voor contracten vanaf 28 uur en toetsing aan het benodigde aantal medewerkers voor het rooster.
A156: · Vergelijking contractenmix met de gestelde norm op punten als afgesproken contracturen, deskundigheidmix, aantal opkomsten.
A157: · Beoordelen van vacatures en invullen van vacatureruimte.
A167: 9a. Vakantie Planning
A168: De ondersteuning van het proces van de vakantieplanning
A169: Toelichting
A170: · Invoer op weekbasis van vakantieaanvragen en automatische tellingen van aantal verlofuren, aantal medewerkers naar deskundigheid.
A171: · Automatische berekening van de noodzaak tot vervanging per week.
A172: · Invoer van de vervanging van vakantieopnames per deskundigheidniveau en per soort vervanging.
A182: 9b. Vakantie Planning Grafiek
A183: De grafische weergave van de vakantieplanning
A184: Toelichting
A185: · Visueel overzicht van:
A186: - de spreiding van de verlofopname per week en per deskundigheid over het jaar;
A187: - de (per saldo) te vervangen uren van de verlofopnamen.
A197: 10. Roostermodule
A198: De ondersteuning bij het opstellen en wijzigen van (individuele) basisroosters
A199: Toelichting
A200: · De ondersteuning bij het opstellen, toetsen en wijzingen van (individuele) basis roosters.
A201: · Het selecteren van de roosterperiode: 4 weken, 6 weken of kalendermaand met een automatische koppeling aan het kalenderjaar.
A202: · Het vastleggen van individuele afspraken over het arbeidspatroon en inzetbaarheid.
A203: · Het checken op punten als contracturen, aantal opkomsten/roostervrije dagen, toetsen aan bezettingseis.
A224: 11. Inlezen personele gegevens
A225: Inlezen van de gegevens van het aanwezige personeel (naam, contracturen per week, FWG schaal)
A226: Toelichting
A229: · Deze gegevens kunnen met kopiëren en plakken uit een Excel bestand ingelezen worden. Een handmatige invoer per medewerker kan ook.

Sheet Voorblad
U28: 1 | V28: 1. Stuurvariabelen
U29: 2 | V29: 2. Monitoring
U30: 3 | V30: 3a. Zzp berekening
U31: 4 | V31: 3b. Zzv berekening
U32: 5 | V32: 4. Formatie
U33: 6 | V33: 5. Formatie Correctie
U34: 7 | V34: 6a. Bezettingseis
U35: 8 | V35: 6b.Bezettingseis Grafiek
U36: 9 | V36: 7a. Scenario
U37: 10 | V37: 7b. Schenario Visueel
U38: 11 | V38: 8. Formatiemix
V39: 9a. Vakantie Planning
V40: 9b. Vakantie Planning Grafiek
V41: 10. Roostermodule
V42: 11. Inlezen personele gegevens
B54: Aanvullende informatie per tabblad | J54: 1. Stuurvariabelen
A56: 0 | B56: =IF(OFFSET(Sheet_Descriptions!$A$1,MATCH($J$54,Sheet_Descriptions!A:A,0)+A56,0)=0,"",OFFSET(Sheet_Descriptions!$A$1,MATCH($J$54,Sheet_Descriptions!A:A,0)+A56,0)) -> Inrichten en instellen van het instrument
A57: 1 | B57: =IF(OFFSET(Sheet_Descriptions!$A$1,MATCH($J$54,Sheet_Descriptions!A:A,0)+A57,0)=0,"",OFFSET(Sheet_Descriptions!$A$1,MATCH($J$54,Sheet_Descriptions!A:A,0)+A57,0)) -> Toelichting
A58: 2 | B58: =IF(OFFSET(Sheet_Descriptions!$A$1,MATCH($J$54,Sheet_Descriptions!A:A,0)+A58,0)=0,"",OFFSET(Sheet_Descriptions!$A$1,MATCH($J$54,Sheet_Descriptions!A:A,0)+A58,0)) -> · % levering Zzp componenten in relatie tot norm bandbreedte zzp’s.
A59: 3 | B59: =IF(OFFSET(Sheet_Descriptions!$A$1,MATCH($J$54,Sheet_Descriptions!A:A,0)+A59,0)=0,"",OFFSET(Sheet_Descriptions!$A$1,MATCH($J$54,Sheet_Descriptions!A:A,0)+A59,0)) -> · Verdeling benodigde / aanwezige deskundigheidsmix over de verschillende zzp’s
A60: 4 | B60: =IF(OFFSET(Sheet_Descriptions!$A$1,MATCH($J$54,Sheet_Descriptions!A:A,0)+A60,0)=0,"",OFFSET(Sheet_Descriptions!$A$1,MATCH($J$54,Sheet_Descriptions!A:A,0)+A60,0)) -> · Levering mix producten AWBZ, WMO, ZvW, en relatie met deskundigheidmix en productiviteit (norm budget of zorgverkoop).
A61: 5 | B61: =IF(OFFSET(Sheet_Descriptions!$A$1,MATCH($J$54,Sheet_Descriptions!A:A,0)+A61,0)=0,"",OFFSET(Sheet_Descriptions!$A$1,MATCH($J$54,Sheet_Descriptions!A:A,0)+A61,0)) -> · Parameters bruto netto berekening en productiviteit.
A62: 6 | B62: =IF(OFFSET(Sheet_Descriptions!$A$1,MATCH($J$54,Sheet_Descriptions!A:A,0)+A62,0)=0,"",OFFSET(Sheet_Descriptions!$A$1,MATCH($J$54,Sheet_Descriptions!A:A,0)+A62,0)) -> · Keuze % omvang vaste personele capaciteit (afspraken over contracturen).
A63: 7 | B63: =IF(OFFSET(Sheet_Descriptions!$A$1,MATCH($J$54,Sheet_Descriptions!A:A,0)+A63,0)=0,"",OFFSET(Sheet_Descriptions!$A$1,MATCH($J$54,Sheet_Descriptions!A:A,0)+A63,0)) -> · Keuze % omvang aandeel van contracten vanaf 28 uur per week.
A64: 8 | B64: =IF(OFFSET(Sheet_Descriptions!$A$1,MATCH($J$54,Sheet_Descriptions!A:A,0)+A64,0)=0,"",OFFSET(Sheet_Descriptions!$A$1,MATCH($J$54,Sheet_Descriptions!A:A,0)+A64,0)) -> · Conversietabel FWG indeling naar deskundigheidniveau (organisatie specifiek)
A65: 9 | B65: =IF(OFFSET(Sheet_Descriptions!$A$1,MATCH($J$54,Sheet_Descriptions!A:A,0)+A65,0)=0,"",OFFSET(Sheet_Descriptions!$A$1,MATCH($J$54,Sheet_Descriptions!A:A,0)+A65,0)) -> · Normen gemiddeld aantal opkomsten per week per contractklasse en deskundigheidsniveau.
A66: 10 | B66: =IF(OFFSET(Sheet_Descriptions!$A$1,MATCH($J$54,Sheet_Descriptions!A:A,0)+A66,0)=0,"",OFFSET(Sheet_Descriptions!$A$1,MATCH($J$54,Sheet_Descriptions!A:A,0)+A66,0)) -> · Doel % bandbreedte over- onderschrijding bezettingseis / basis dienstenpatroon ten opzichte van de gevraagde zorg / norm.
A67: 11 | B67: =IF(OFFSET(Sheet_Descriptions!$A$1,MATCH($J$54,Sheet_Descriptions!A:A,0)+A67,0)=0,"",OFFSET(Sheet_Descriptions!$A$1,MATCH($J$54,Sheet_Descriptions!A:A,0)+A67,0)) -> 

Sheet 1. Stuurvariabelen
B3: Organisatie / Afdeling | C3: Organisatie XX / Afdeling YYY / Team ZZZ
B5: Deskundigheid
B6: Welke deskundigheidsniveaus kent uw organisatie?
B9: Deskundigheid
B10: Niveau 1 | C10: Niveau 1
B11: Niveau 2 | C11: Niveau 2
B12: Niveau 3 | C12: Niveau 3
B13: Niveau 4 | C13: Niveau 4
B14: Niveau 5 | C14: Niveau 5
B15: Niveau 6 | C15: Niveau 6
B16: Niveau 7 | C16: Niveau 7
B17: Niveau 8 | C17: Niveau 8
B19: Rubriek % zorglevering
B20: Een percentage van 100% is gelijk aan zorglevering op basis van het midden van de bandbreedte; een percentage van circa 90% is gelijk aan zorglevering op basis van de onderkant van de bandbreedte.
B23: Grondslag | C23: (Woon)zorg | D23: Dagbesteding | E23: Behandeling
B24: VV | C24: 1 | D24: 1 | E24: 1
B25: GGZ B-gr | C25: 1 | D25: 1 | E25: 1
B26: GGZ C-gr | C26: 1 | D26: 1 | E26: 1
B27: VG | C27: 1 | D27: 1 | E27: 1
B28: LG | C28: 1 | D28: 1 | E28: 1
B29: SGLVG | C29: 1 | D29: 1 | E29: 1
B30: LG | C30: 1 | D30: 1 | E30: 1
B31: ZG aud | C31: 1 | D31: 1 | E31: 1
B32: ZG vis | C32: 1 | D32: 1 | E32: 1
B35: Urenlevering per product
B36: Verdeel de urenlevering per product (het norm %) en de deskundigheidmix in een percentage (Afronden in hele getallen); gebruik de norm van de begroting of een andere grondslag.
B37: Voer per productsoort / per regel het productiviteit percentage in (= het percentage (directe) cliënturen per FTE op jaarbasis)
E39: Deskundigheidsmix | M39: Productiviteit
C40: Type product | D40: Norm % | E40: =LEVEL1 -> Niveau 1 | F40: =LEVEL2 -> Niveau 2 | G40: =LEVEL3 -> Niveau 3 | H40: =LEVEL4 -> Niveau 4 | I40: =LEVEL5 -> Niveau 5 | J40: =LEVEL6 -> Niveau 6 | K40: =LEVEL7 -> Niveau 7 | L40: =LEVEL8 -> Niveau 8 | M40: %
B41: Persoonlijke | C41: PV | E41: =IF(ISERROR(IF(C41<>"",1-SUM(F41:L41),0)),0,IF(C41<>"",1-SUM(F41:L41),0)) -> 1
B42: Verzorging | C42: PVE | E42: =IF(ISERROR(IF(C42<>"",1-SUM(F42:L42),0)),0,IF(C42<>"",1-SUM(F42:L42),0)) -> 1
C43: PVS | E43: =IF(ISERROR(IF(C43<>"",1-SUM(F43:L43),0)),0,IF(C43<>"",1-SUM(F43:L43),0)) -> 1
C44: pvn | E44: =IF(ISERROR(IF(C44<>"",1-SUM(F44:L44),0)),0,IF(C44<>"",1-SUM(F44:L44),0)) -> 1
E45: =IF(ISERROR(IF(C45<>"",1-SUM(F45:L45),0)),0,IF(C45<>"",1-SUM(F45:L45),0)) -> 0
C46: Totaal PV | D46: =SUM(D41:D45) -> 0
B47: Verpleging | C47: VP | E47: =IF(ISERROR(IF(C47<>"",1-SUM(F47:L47),0)),0,IF(C47<>"",1-SUM(F47:L47),0)) -> 1
C48: VPE | E48: =IF(ISERROR(IF(C48<>"",1-SUM(F48:L48),0)),0,IF(C48<>"",1-SUM(F48:L48),0)) -> 1
C49: VPS | E49: =IF(ISERROR(IF(C49<>"",1-SUM(F49:L49),0)),0,IF(C49<>"",1-SUM(F49:L49),0)) -> 1
E50: =IF(ISERROR(IF(C50<>"",1-SUM(F50:L50),0)),0,IF(C50<>"",1-SUM(F50:L50),0)) -> 0
E51: =IF(ISERROR(IF(C51<>"",1-SUM(F51:L51),0)),0,IF(C51<>"",1-SUM(F51:L51),0)) -> 0
C52: Totaal VP | D52: =SUM(D47:D51) -> 0
B53: Begeleiding | C53: BG | E53: =IF(ISERROR(IF(C53<>"",1-SUM(F53:L53),0)),0,IF(C53<>"",1-SUM(F53:L53),0)) -> 1
C54: BGE | E54: =IF(ISERROR(IF(C54<>"",1-SUM(F54:L54),0)),0,IF(C54<>"",1-SUM(F54:L54),0)) -> 1
C55: BGNAH | E55: =IF(ISERROR(IF(C55<>"",1-SUM(F55:L55),0)),0,IF(C55<>"",1-SUM(F55:L55),0)) -> 1
E56: =IF(ISERROR(IF(C56<>"",1-SUM(F56:L56),0)),0,IF(C56<>"",1-SUM(F56:L56),0)) -> 0
E57: =IF(ISERROR(IF(C57<>"",1-SUM(F57:L57),0)),0,IF(C57<>"",1-SUM(F57:L57),0)) -> 0
C58: Totaal BG | D58: =SUM(D53:D57) -> 0
B59: Behandeling | C59: BH | E59: =IF(ISERROR(IF(C59<>"",1-SUM(F59:L59),0)),0,IF(C59<>"",1-SUM(F59:L59),0)) -> 1
C60: DA PG | E60: =IF(ISERROR(IF(C60<>"",1-SUM(F60:L60),0)),0,IF(C60<>"",1-SUM(F60:L60),0)) -> 1
E61: =IF(ISERROR(IF(C61<>"",1-SUM(F61:L61),0)),0,IF(C61<>"",1-SUM(F61:L61),0)) -> 0
E62: =IF(ISERROR(IF(C62<>"",1-SUM(F62:L62),0)),0,IF(C62<>"",1-SUM(F62:L62),0)) -> 0
E63: =IF(ISERROR(IF(C63<>"",1-SUM(F63:L63),0)),0,IF(C63<>"",1-SUM(F63:L63),0)) -> 0
C64: Totaal BH | D64: =SUM(D59:D63) -> 0
B65: Huishoudelijke | C65: HH1 | E65: =IF(ISERROR(IF(C65<>"",1-SUM(F65:L65),0)),0,IF(C65<>"",1-SUM(F65:L65),0)) -> 1
B66: Hulp | C66: HH2 | E66: =IF(ISERROR(IF(C66<>"",1-SUM(F66:L66),0)),0,IF(C66<>"",1-SUM(F66:L66),0)) -> 1
E67: =IF(ISERROR(IF(C67<>"",1-SUM(F67:L67),0)),0,IF(C67<>"",1-SUM(F67:L67),0)) -> 0
E68: =IF(ISERROR(IF(C68<>"",1-SUM(F68:L68),0)),0,IF(C68<>"",1-SUM(F68:L68),0)) -> 0
E69: =IF(ISERROR(IF(C69<>"",1-SUM(F69:L69),0)),0,IF(C69<>"",1-SUM(F69:L69),0)) -> 0
C70: Totaal WMO | D70: =SUM(D65:D69) -> 0
B72: ZZP levering en deskundigheidsmix
B73: Vul hier de norm voor de benodigde deskundigheidsmix per (combinatie van) Zzp in. Als er geen ondescheid gemaakt kan worden naar zzp, vul dan op alle regels dezelfde % in.
E76: Deskundigheidsmix
E77: =LEVEL1 -> Niveau 1 | F77: =LEVEL2 -> Niveau 2 | G77: =LEVEL3 -> Niveau 3 | H77: =LEVEL4 -> Niveau 4 | I77: =LEVEL5 -> Niveau 5 | J77: =LEVEL6 -> Niveau 6 | K77: =LEVEL7 -> Niveau 7 | L77: =LEVEL8 -> Niveau 8
B78: Zzp 1,2 | E78: =IF(B78<>"",1-SUM(F78:L78),0) -> 1
B79: Zzp 3 | E79: 1
B80: Zzp 4 | E80: 1
B81: Zzp 6,8 | E81: 1
B82: Zzp 5,7 | E82: 1
B83: Zzp 9/10 | E83: 1
B85: Vul het aantal uren in voor een FTE op jaarbasis
B89: budget | C89: jaaruren per bfte | D89: Aandeel bfte
B90: bruto | C90: 1872 | D90: =C90/$C$90 -> 1 | E90: totaal beschikbaar aan bruto contracturen
B91: verlof | D91: 0 | E91: basis vakantie + leeftijdstoeslag + compensatie feestdagen
B92: ziekte | D92: 0 | E92: ziekteverzuim
B93: overig | D93: 0 | E93: overig verzuim
B94: netto | C94: =C90-C91-C92-C93 -> 1872 | D94: 1 | E94: totaal beschikbaar voor werkzaamheden
B95: ontwikkelen | D95: 0 | E95: totaal beschikbaar voor scholing, projecten e.d.
B96: uren in rooster | C96: =C94-C95 -> 1872 | D96: 1 | E96: totaal beschikbaar voor het rooster
B97: logistiek | D97: 0 | E97: totaal beschikbaar voor lopen, overleg e.d.
B98: cliënturen | C98: =C96-C97 -> 1872 | D98: 1 | E98: totaal beschikbaar aan cliënturen (direct / indirect)
B100: Vul het % in van de toegestane bruto formatie voor vaste contracturen (urengarantie)
H101: Hoog | I101: Gangbaar | J101: Risicomijdend
C102: Overwegingen | H102: > 85% | I102: ca 80% | J102: < 70%
C103: Schommelingen in de zorglevering | H103: Laag | I103: Beperkt | J103: Hoog
C104: Wachtlijst / Zorgvraag in omgeving | H104: Hoog | I104: Redelijk | J104: Laag / Beperkt
C105: Arbeidmarkt | H105: Krap | I105: Redelijk | J105: Ruim
C106: Eisen aan binding werkproces / Clienten en samenwerking tussen functies | H106: Hoog | I106: Redelijk | J106: Laag / Beperkt
B111: Contracturen vanaf 28 uur per week
B112: Vul het % in van de ruimte voor uren in vaste contracturen vanaf 28 uur per week (de grotere contracten).
B113: Toelichting: het gekozen % wordt berekend over het aantal diensten van 7 uur of langer.
B118: FWG / Deskundigheid input
B119: Er wordt op de tabbladen gebruik gemaakt van het deskundigheidniveau. Om personele gegevens uit het PI systeem digitaal te kunnen inlezen kan met de volgende tabel een koppeling
B120: worden gemaakt tussen de FWG groep van de functie, en het deskundigheidniveau.
B122: FWG Groep | C122: Deskundigheids-niveau
B123: 10 | C123: Niveau 1
B124: 15
B125: 20
B126: 25
B127: 30
B128: 35
B129: 40
B130: 45
B131: 50
B132: 55
B133: 60
B134: 65
B135: 70
B137: Opkomsten per week
B138: Voer het gemiddeld aantal opkomsten per week in per deskundigheidniveau en per contractklasse
B140: Voorbeeld:
B141: 1. Contractklasse vanaf 22 tot 28 uur:
B142: De aanwezige, gemiddelde contractomvang is 24 uur; de medewerkers gaan gemiddeld 3 tot 4 keer per week naar hun werk: keuze is gemiddeld 3,5 opkomsten per week
B144: 2. Contractklasse vanaf 16 tot 22 uur:
B145: De aanwezige, gemiddelde contractomvang is 18 uur; de medewerkers gaan gemiddeld 3,5 tot tot 4 keer per week naar hun werk: keuze is gemiddeld 3,7 opkomsten per week
C148: =LEVEL8 -> Niveau 8 | D148: =LEVEL7 -> Niveau 7 | E148: =LEVEL6 -> Niveau 6 | F148: =LEVEL5 -> Niveau 5 | G148: =LEVEL4 -> Niveau 4 | H148: =LEVEL3 -> Niveau 3 | I148: =LEVEL2 -> Niveau 2 | J148: =LEVEL1 -> Niveau 1
B149: 28 t/m 36 uren
B150: Van 22 tot 28 uren
B151: Van 16 tot 22 uren
B152: Tot 16 uren
B154: Doel % maximaal over- en onderschrijding aantal uren bezettingseis
B158: Maximum:

Sheet 2. Monitoring
C3: Norm | D3: Aanwezig
B4: Bruto formatie in uren | C4: ='8. Formatie Mix'!C22 -> 0
B5: Norm vaste contracturen | C5: =SUM(C6:C9) -> 0 | D5: =SUM(D6:D9) -> 0
B6: 28 - 36 | C6: ='8. Formatie Mix'!C16 -> 0 | D6: ='8. Formatie Mix'!G16 -> 0
B7: 22 - 28 | C7: ='8. Formatie Mix'!C17 -> 0 | D7: ='8. Formatie Mix'!G17 -> 0
B8: 16 - 22 | C8: ='8. Formatie Mix'!C18 -> 0 | D8: ='8. Formatie Mix'!G18 -> 0
B9: tot 16 | C9: ='8. Formatie Mix'!C19 -> 0 | D9: ='8. Formatie Mix'!G19 -> 0
C30: vanaf 7 uur | D30: 4 tot 7 uur | E30: tot 4 uur | F30: Totaal
B31: Totaal uren bezettingseis | C31: =SUM(C32:C39) -> 0 | D31: =SUM(D32:D39) -> 0 | E31: =SUM(E32:E39) -> 0 | F31: =SUM(F32:F39) -> 0
B32: =LEVEL1 -> Niveau 1 | C32: =SUMIF('6a. Bezettingseis'!$K$6:$K$55,C$30&$B32,'6a. Bezettingseis'!$AK$6:$AK$55)*24 -> 0 | D32: =SUMIF('6a. Bezettingseis'!$K$6:$K$55,D$30&$B32,'6a. Bezettingseis'!$AK$6:$AK$55)*24 -> 0 | E32: =SUMIF('6a. Bezettingseis'!$K$6:$K$55,E$30&$B32,'6a. Bezettingseis'!$AK$6:$AK$55)*24 -> 0 | F32: =SUM('2. Monitoring'!$C32:$E32) -> 0
B33: =LEVEL2 -> Niveau 2 | C33: =SUMIF('6a. Bezettingseis'!$K$6:$K$55,C$30&$B33,'6a. Bezettingseis'!$AK$6:$AK$55)*24 -> 0 | D33: =SUMIF('6a. Bezettingseis'!$K$6:$K$55,D$30&$B33,'6a. Bezettingseis'!$AK$6:$AK$55)*24 -> 0 | E33: =SUMIF('6a. Bezettingseis'!$K$6:$K$55,E$30&$B33,'6a. Bezettingseis'!$AK$6:$AK$55)*24 -> 0 | F33: =SUM('2. Monitoring'!$C33:$E33) -> 0
B34: =LEVEL3 -> Niveau 3 | C34: =SUMIF('6a. Bezettingseis'!$K$6:$K$55,C$30&$B34,'6a. Bezettingseis'!$AK$6:$AK$55)*24 -> 0 | D34: =SUMIF('6a. Bezettingseis'!$K$6:$K$55,D$30&$B34,'6a. Bezettingseis'!$AK$6:$AK$55)*24 -> 0 | E34: =SUMIF('6a. Bezettingseis'!$K$6:$K$55,E$30&$B34,'6a. Bezettingseis'!$AK$6:$AK$55)*24 -> 0 | F34: =SUM('2. Monitoring'!$C34:$E34) -> 0
B35: =LEVEL4 -> Niveau 4 | C35: =SUMIF('6a. Bezettingseis'!$K$6:$K$55,C$30&$B35,'6a. Bezettingseis'!$AK$6:$AK$55)*24 -> 0 | D35: =SUMIF('6a. Bezettingseis'!$K$6:$K$55,D$30&$B35,'6a. Bezettingseis'!$AK$6:$AK$55)*24 -> 0 | E35: =SUMIF('6a. Bezettingseis'!$K$6:$K$55,E$30&$B35,'6a. Bezettingseis'!$AK$6:$AK$55)*24 -> 0 | F35: =SUM('2. Monitoring'!$C35:$E35) -> 0
B36: =LEVEL5 -> Niveau 5 | C36: =SUMIF('6a. Bezettingseis'!$K$6:$K$55,C$30&$B36,'6a. Bezettingseis'!$AK$6:$AK$55)*24 -> 0 | D36: =SUMIF('6a. Bezettingseis'!$K$6:$K$55,D$30&$B36,'6a. Bezettingseis'!$AK$6:$AK$55)*24 -> 0 | E36: =SUMIF('6a. Bezettingseis'!$K$6:$K$55,E$30&$B36,'6a. Bezettingseis'!$AK$6:$AK$55)*24 -> 0 | F36: =SUM('2. Monitoring'!$C36:$E36) -> 0
B37: =LEVEL6 -> Niveau 6 | C37: =SUMIF('6a. Bezettingseis'!$K$6:$K$55,C$30&$B37,'6a. Bezettingseis'!$AK$6:$AK$55)*24 -> 0 | D37: =SUMIF('6a. Bezettingseis'!$K$6:$K$55,D$30&$B37,'6a. Bezettingseis'!$AK$6:$AK$55)*24 -> 0 | E37: =SUMIF('6a. Bezettingseis'!$K$6:$K$55,E$30&$B37,'6a. Bezettingseis'!$AK$6:$AK$55)*24 -> 0 | F37: =SUM('2. Monitoring'!$C37:$E37) -> 0
B38: =LEVEL7 -> Niveau 7 | C38: =SUMIF('6a. Bezettingseis'!$K$6:$K$55,C$30&$B38,'6a. Bezettingseis'!$AK$6:$AK$55)*24 -> 0 | D38: =SUMIF('6a. Bezettingseis'!$K$6:$K$55,D$30&$B38,'6a. Bezettingseis'!$AK$6:$AK$55)*24 -> 0 | E38: =SUMIF('6a. Bezettingseis'!$K$6:$K$55,E$30&$B38,'6a. Bezettingseis'!$AK$6:$AK$55)*24 -> 0 | F38: =SUM('2. Monitoring'!$C38:$E38) -> 0
B39: =LEVEL8 -> Niveau 8 | C39: =SUMIF('6a. Bezettingseis'!$K$6:$K$55,C$30&$B39,'6a. Bezettingseis'!$AK$6:$AK$55)*24 -> 0 | D39: =SUMIF('6a. Bezettingseis'!$K$6:$K$55,D$30&$B39,'6a. Bezettingseis'!$AK$6:$AK$55)*24 -> 0 | E39: =SUMIF('6a. Bezettingseis'!$K$6:$K$55,E$30&$B39,'6a. Bezettingseis'!$AK$6:$AK$55)*24 -> 0 | F39: =SUM('2. Monitoring'!$C39:$E39) -> 0
C61: Bezettingseis | D61: Aanwezig | E61: Norm
B62: Totaal | C62: =SUM(C63:C70) -> 0 | D62: =SUM(D63:D70) -> 0 | E62: =SUM(E63:E70) -> 0
B63: =LEVEL1 -> Niveau 1 | C63: ='8. Formatie Mix'!$C27 -> 0 | D63: ='8. Formatie Mix'!K27+'8. Formatie Mix'!O27+'8. Formatie Mix'!S27+'8. Formatie Mix'!W27 -> 0 | E63: ='4. Formatie'!B$20*1872/(365/7) -> 0
B64: =LEVEL2 -> Niveau 2 | C64: ='8. Formatie Mix'!$C28 -> 0 | D64: ='8. Formatie Mix'!K28+'8. Formatie Mix'!O28+'8. Formatie Mix'!S28+'8. Formatie Mix'!W28 -> 0 | E64: ='4. Formatie'!C$20*1872/(365/7) -> 0
B65: =LEVEL3 -> Niveau 3 | C65: ='8. Formatie Mix'!$C29 -> 0 | D65: ='8. Formatie Mix'!K29+'8. Formatie Mix'!O29+'8. Formatie Mix'!S29+'8. Formatie Mix'!W29 -> 0 | E65: ='4. Formatie'!D$20*1872/(365/7) -> 0
B66: =LEVEL4 -> Niveau 4 | C66: ='8. Formatie Mix'!$C30 -> 0 | D66: ='8. Formatie Mix'!K30+'8. Formatie Mix'!O30+'8. Formatie Mix'!S30+'8. Formatie Mix'!W30 -> 0 | E66: ='4. Formatie'!E$20*1872/(365/7) -> 0
B67: =LEVEL5 -> Niveau 5 | C67: ='8. Formatie Mix'!$C31 -> 0 | D67: ='8. Formatie Mix'!K31+'8. Formatie Mix'!O31+'8. Formatie Mix'!S31+'8. Formatie Mix'!W31 -> 0 | E67: ='4. Formatie'!F$20*1872/(365/7) -> 0
B68: =LEVEL6 -> Niveau 6 | C68: ='8. Formatie Mix'!$C32 -> 0 | D68: ='8. Formatie Mix'!K32+'8. Formatie Mix'!O32+'8. Formatie Mix'!S32+'8. Formatie Mix'!W32 -> 0 | E68: ='4. Formatie'!G$20*1872/(365/7) -> 0
B69: =LEVEL7 -> Niveau 7 | C69: ='8. Formatie Mix'!$C33 -> 0 | D69: ='8. Formatie Mix'!K33+'8. Formatie Mix'!O33+'8. Formatie Mix'!S33+'8. Formatie Mix'!W33 -> 0 | E69: ='4. Formatie'!H$20*1872/(365/7) -> 0
B70: =LEVEL8 -> Niveau 8 | C70: ='8. Formatie Mix'!$C34 -> 0 | D70: ='8. Formatie Mix'!K34+'8. Formatie Mix'!O34+'8. Formatie Mix'!S34+'8. Formatie Mix'!W34 -> 0 | E70: ='4. Formatie'!I$20*1872/(365/7) -> 0
C93: uren per week
B94: benodigde uren bezettingseis | C94: =RUPWcor -> 0
B95: actuele uren bezettingseis | C95: ='6a. Bezettingseis'!AK56*24 -> 0
B96: aanwezige vaste contracturen | C96: ='8. Formatie Mix'!G20 -> 0
B97: Verschil tussen actuele en benodigde uren bezettingseis | C97: =C94-C95 -> 0
E119: =LEVEL1 -> Niveau 1 | G119: =LEVEL2 -> Niveau 2 | I119: =LEVEL3 -> Niveau 3 | K119: =LEVEL4 -> Niveau 4 | M119: =LEVEL5 -> Niveau 5 | O119: =LEVEL6 -> Niveau 6 | Q119: =LEVEL7 -> Niveau 7 | S119: =LEVEL8 -> Niveau 8 | U119: Totaal
B120: Opkomsten nodig | E120: ='8. Formatie Mix'!$D27 -> 0 | G120: ='8. Formatie Mix'!$D28 -> 0 | I120: ='8. Formatie Mix'!$D29 -> 0 | K120: ='8. Formatie Mix'!$D30 -> 0 | M120: ='8. Formatie Mix'!$D31 -> 0 | O120: ='8. Formatie Mix'!$D32 -> 0 | Q120: ='8. Formatie Mix'!$D33 -> 0 | S120: ='8. Formatie Mix'!$D34 -> 0 | U120: =SUM(E120:S120) -> 0
B121: vanaf 28 uur | D121: ='8. Formatie Mix'!$L27 -> 0 | F121: ='8. Formatie Mix'!$L28 -> 0 | H121: ='8. Formatie Mix'!$L29 -> 0 | J121: ='8. Formatie Mix'!$L30 -> 0 | L121: ='8. Formatie Mix'!$L31 -> 0 | N121: ='8. Formatie Mix'!$L32 -> 0 | P121: ='8. Formatie Mix'!$L33 -> 0 | R121: ='8. Formatie Mix'!$L34 -> 0 | T121: =SUM(D121:R121) -> 0
B122: vanaf 22 uur | D122: ='8. Formatie Mix'!$P27 -> 0 | F122: ='8. Formatie Mix'!$P28 -> 0 | H122: ='8. Formatie Mix'!$P29 -> 0 | J122: ='8. Formatie Mix'!$P30 -> 0 | L122: ='8. Formatie Mix'!$P31 -> 0 | N122: ='8. Formatie Mix'!$P32 -> 0 | P122: ='8. Formatie Mix'!$P33 -> 0 | R122: ='8. Formatie Mix'!$P34 -> 0 | T122: =SUM(D122:R122) -> 0
B123: vanaf 16 uur | D123: ='8. Formatie Mix'!$T27 -> 0 | F123: ='8. Formatie Mix'!$T28 -> 0 | H123: ='8. Formatie Mix'!$T29 -> 0 | J123: ='8. Formatie Mix'!$T30 -> 0 | L123: ='8. Formatie Mix'!$T31 -> 0 | N123: ='8. Formatie Mix'!$T32 -> 0 | P123: ='8. Formatie Mix'!$T33 -> 0 | R123: ='8. Formatie Mix'!$T34 -> 0 | T123: =SUM(D123:R123) -> 0
B124: tot 16 uur | D124: ='8. Formatie Mix'!$X27 -> 0 | F124: ='8. Formatie Mix'!$X28 -> 0 | H124: ='8. Formatie Mix'!$X29 -> 0 | J124: ='8. Formatie Mix'!$X30 -> 0 | L124: ='8. Formatie Mix'!$X31 -> 0 | N124: ='8. Formatie Mix'!$X32 -> 0 | P124: ='8. Formatie Mix'!$X33 -> 0 | R124: ='8. Formatie Mix'!$X34 -> 0 | T124: =SUM(D124:R124) -> 0
B126: Benodigde / Beschikbare opkomsten per niveau
D144: Average
B145: Bezettingseis | C145: ='6a. Bezettingseis'!AI59 -> 0
C146: =-'1. Stuurvariabelen'!C158 -> 0 | D146: 0
C147: =C146 -> 0 | D147: 5
C149: ='1. Stuurvariabelen'!C158 -> 0 | D149: 0
C150: ='1. Stuurvariabelen'!C158 -> 0 | D150: 5
B175: Bezettingseis | C175: ='6a. Bezettingseis'!AH56*IFERROR(LEFT('10. Roostermodule'!I2,1)*1,52/12) -> 0
B176: Roostermodule | C176: =SUM('10. Roostermodule'!AY163:CV163) -> 0
B195: Roosteruren | C195: ='10. Roostermodule'!A162*IFERROR(LEFT('10. Roostermodule'!I2,1)*1,52/12) -> 0
B196: Ingeplande uren | C196: ='10. Roostermodule'!CW163 -> 0
B215: Gemiddelde dienstlengte | C215: =IFERROR('6a. Bezettingseis'!AL56/'6a. Bezettingseis'!AH56,0) -> 0
B216: Gemiddelde opkomstlengte | C216: =IFERROR('8. Formatie Mix'!AA35/'8. Formatie Mix'!AB35,0) -> 0

Sheet 3a. Zzp berekening
F2: Norm Woonzorg | K2: Woonzorg | Q2: Norm Dag- besteding | R2: Dag- besteding | T2: Norm Behandeling | U2: Behandeling | W2: Totaal Excl Behandeling | X2: Totaal Incl Behandeling
B3: ZZP | C3: Aantal | D3: Aantal DB | E3: Aantal BH | F3: OB | G3: PV | H3: VP | I3: AB | J3: Totaal | K3: OB | L3: PV | M3: VP | N3: AB | O3: Totaal | Q3: DB | R3: DB | T3: BH | U3: BH
B4: Correctie % --> | O4: ='1. Stuurvariabelen'!C24 -> 1 | R4: ='1. Stuurvariabelen'!D24 -> 1 | U4: ='1. Stuurvariabelen'!E24 -> 1
B5: 1 VV | F5: 2.99 | G5: 1.01 | J5: =SUM(F5:I5) -> 4 | K5: =F5/24*$C5 -> 0 | L5: =G5/24*$C5 -> 0 | M5: =H5/24*$C5 -> 0 | N5: =I5/24*$C5 -> 0 | O5: =J5/24*O4*$C5 -> 0 | Q5: 0.05 | R5: =Q5/24*R4*$D5 -> 0 | U5: =T5/24*U4*$E5 -> 0 | W5: =O5+R5 -> 0 | X5: =W5+U5 -> 0
B6: 2 VV | F6: 2.85 | G6: 2.85 | H6: 0.48 | J6: 6.18 | K6: 0 | L6: 0 | M6: =H6/24*$C6 -> 0 | N6: 0 | O6: =J6/24*O4*$C6 -> 0 | Q6: 0.48 | R6: =Q6/24*R4*$D6 -> 0 | U6: =T6/24*U4*$E6 -> 0 | W6: =O6+R6 -> 0 | X6: 0
B7: 3 VV | F7: 2.62 | G7: 4.84 | H7: 1.28 | J7: 8.74 | K7: 0 | L7: 0 | M7: 0 | N7: 0 | O7: =J7/24*O4*$C7 -> 0 | Q7: 0.19 | R7: =Q7/24*R4*$D7 -> 0 | T7: 1.43 | U7: =T7/24*U4*$E7 -> 0 | W7: 0 | X7: 0
B8: 4 VV | F8: 4.8 | G8: 4.28 | H8: 0.52 | J8: 9.6 | K8: 0 | L8: 0 | M8: 0 | N8: 0 | O8: =J8/24*O4*$C8 -> 0 | Q8: 1.31 | R8: =Q8/24*R4*$D8 -> 0 | T8: 1.43 | U8: =T8/24*U4*$E8 -> 0 | W8: 0 | X8: 0
B9: 5 VV | F9: 9.15 | G9: 5.9 | H9: 0.55 | J9: 15.6 | K9: 0 | L9: 0 | M9: 0 | N9: 0 | O9: =J9/24*O4*$C9 -> 0 | Q9: 1.05 | R9: =Q9/24*R4*$D9 -> 0 | T9: 1.5 | U9: =T9/24*U4*$E9 -> 0 | W9: 0 | X9: 0
B10: 6 VV | F10: 5.3 | G10: 8.23 | H10: 2.87 | J10: 16.4 | K10: 0 | L10: 0 | M10: 0 | N10: 0 | O10: =J10/24*O4*$C10 -> 0 | Q10: 0.31 | R10: =Q10/24*R4*$D10 -> 0 | T10: 1.5 | U10: =T10/24*U4*$E10 -> 0 | W10: 0 | X10: 0
B11: 7 VV | F11: 10.6 | G11: 6.28 | H11: 2.12 | J11: 19 | K11: 0 | L11: 0 | M11: 0 | N11: 0 | O11: =J11/24*O4*$C11 -> 0 | Q11: 1.49 | R11: =Q11/24*R4*$D11 -> 0 | T11: 2 | U11: =T11/24*U4*$E11 -> 0 | W11: 0 | X11: 0
B12: 8 VV | F12: 10.67 | G12: 10.67 | H12: 2.76 | J12: 24.1 | K12: 0 | L12: 0 | M12: 0 | N12: 0 | O12: =J12/24*O4*$C12 -> 0 | Q12: 0.92 | R12: =Q12/24*R4*$D12 -> 0 | T12: 2 | U12: =T12/24*U4*$E12 -> 0 | W12: 0 | X12: 0
B13: 9 VV | F13: 5.08 | G13: 7.87 | H13: 2.75 | J13: 15.7 | K13: 0 | L13: 0 | M13: 0 | N13: 0 | O13: =J13/24*O4*$C13 -> 0 | Q13: 0.4 | R13: =Q13/24*R4*$D13 -> 0 | T13: 4 | U13: =T13/24*U4*$E13 -> 0 | W13: 0 | X13: 0
B14: 10 VV | F14: 2.75 | G14: 13.47 | H14: 10.68 | J14: 26.9 | K14: 0 | L14: 0 | M14: 0 | N14: 0 | O14: =J14/24*O4*$C14 -> 0 | Q14: 0.78 | R14: =Q14/24*R4*$D14 -> 0 | T14: 2 | U14: =T14/24*U4*$E14 -> 0 | W14: 0 | X14: 0
B15: Subtotaal | C15: =SUM(C5:C14) -> 0 | D15: 0 | E15: 0 | F15: 56.81 | G15: 65.4 | H15: 24.01 | I15: 0 | J15: 146.22 | K15: =SUM(K5:K14) -> 0 | L15: =SUM(L5:L14) -> 0 | M15: =SUM(M5:M14) -> 0 | N15: =SUM(N5:N14) -> 0 | O15: =SUM(O5:O14) -> 0 | Q15: =SUM(Q5:Q14) -> 6.98 | R15: =SUM(R5:R14) -> 0 | T15: =SUM(T5:T14) -> 15.86 | U15: =SUM(U5:U14) -> 0 | W15: 0 | X15: 0
B17: Correctie % --> | O17: ='1. Stuurvariabelen'!C25 -> 1 | R17: ='1. Stuurvariabelen'!D25 -> 1 | U17: ='1. Stuurvariabelen'!E25 -> 1
B18: 1 GGZ B-gr. | F18: 3.71 | G18: 0.88 | J18: =SUM(F18:I18) -> 4.59 | K18: =F18/24*$C18 -> 0 | L18: 0 | M18: 0 | N18: 0 | O18: =J18/24*O$17*$C18 -> 0 | Q18: 3.03 | R18: =Q18/24*R$17*$D18 -> 0 | T18: 1.1 | U18: =T18/24*U$17*$E18 -> 0 | W18: 0 | X18: =W18+U18 -> 0
B19: 2 GGZ B-gr. | F19: 8.3 | G19: 0.98 | J19: 9.28 | K19: 0 | L19: 0 | M19: 0 | N19: 0 | O19: =J19/24*O$17*$C19 -> 0 | Q19: 2.76 | R19: 0 | T19: 1.1 | U19: 0 | W19: 0 | X19: 0
B20: 3 GGZ B-gr. | F20: 7.91 | G20: 2.76 | J20: 10.67 | K20: 0 | L20: 0 | M20: 0 | N20: 0 | O20: 0 | Q20: 3.1 | R20: 0 | T20: 1.1 | U20: 0 | W20: 0 | X20: 0
B21: 4 GGZ B-gr. | F21: 8.8 | G21: 3.07 | H21: 1.46 | J21: 13.33 | K21: 0 | L21: 0 | M21: 0 | N21: 0 | O21: 0 | Q21: 3.27 | R21: 0 | T21: 0.92 | U21: 0 | W21: 0 | X21: 0
B22: 5 GGZ B-gr. | F22: 10.69 | G22: 2.76 | H22: 1.35 | J22: 14.8 | K22: 0 | L22: 0 | M22: 0 | N22: 0 | O22: 0 | Q22: 3.33 | R22: 0 | T22: 0.92 | U22: 0 | W22: 0 | X22: 0
B23: 6 GGZ B-gr. | F23: 7.37 | G23: 7.37 | H23: 4.74 | J23: 19.48 | K23: 0 | L23: 0 | M23: 0 | N23: 0 | O23: 0 | Q23: 3.41 | R23: 0 | T23: 2.3 | U23: 0 | W23: 0 | X23: 0
B24: 7 GGZ B-gr. | F24: 22.82 | G24: 2.75 | H24: 2.75 | J24: 28.32 | K24: 0 | L24: 0 | M24: 0 | N24: 0 | O24: 0 | Q24: 5.35 | R24: 0 | T24: 2.3 | U24: 0 | W24: 0 | X24: 0
B25: Subtotaal | C25: =SUM(C18:C24) -> 0 | D25: =SUM(D18:D24) -> 0 | E25: =SUM(E18:E24) -> 0 | F25: 69.6 | G25: 20.57 | H25: 10.3 | I25: 0 | J25: 100.47 | K25: 0 | L25: 0 | M25: 0 | N25: 0 | O25: 0 | Q25: =SUM(Q18:Q24) -> 24.25 | R25: =SUM(R18:R24) -> 0 | T25: =SUM(T18:T24) -> 9.74 | U25: =SUM(U18:U24) -> 0 | W25: =O25+R25 -> 0 | X25: 0
B27: Correctie % --> | O27: ='1. Stuurvariabelen'!C26 -> 1 | R27: ='1. Stuurvariabelen'!D26 -> 1 | U27: ='1. Stuurvariabelen'!E26 -> 1
B28: 1 GGZ C-gr. | F28: 3.71 | G28: 0.88 | J28: 4.59 | K28: =F28/24*$C28 -> 0 | L28: 0 | M28: 0 | N28: 0 | O28: =J28/24*O$27*$C28 -> 0 | Q28: 3.03 | R28: =Q28/24*R$27*$D28 -> 0 | T28: 1.1 | U28: =T28/24*U$27*$E28 -> 0 | W28: 0 | X28: =W28+U28 -> 0
B29: 2 GGZ C-gr. | F29: 8.3 | G29: 0.98 | J29: 9.28 | K29: 0 | L29: 0 | M29: 0 | N29: 0 | O29: 0 | Q29: 2.76 | R29: 0 | T29: 0.06 | U29: 0 | W29: 0 | X29: 0
B30: 3 GGZ C-gr. | F30: 7.91 | G30: 2.76 | J30: 10.67 | K30: 0 | L30: 0 | M30: 0 | N30: 0 | O30: 0 | Q30: 3.1 | R30: 0 | T30: 0.06 | U30: 0 | W30: 0 | X30: 0
B31: 4 GGZ C-gr. | F31: 8.8 | G31: 3.07 | H31: 1.46 | J31: 13.33 | K31: 0 | L31: 0 | M31: 0 | N31: 0 | O31: 0 | Q31: 3.27 | R31: 0 | T31: 0.09 | U31: 0 | W31: 0 | X31: 0
B32: 5 GGZ C-gr. | F32: 10.69 | G32: 2.76 | H32: 1.35 | J32: 14.8 | K32: 0 | L32: 0 | M32: 0 | N32: 0 | O32: 0 | Q32: 3.33 | R32: 0 | T32: 0.09 | U32: 0 | W32: 0 | X32: 0
B33: 6 GGZ C-gr. | F33: 7.37 | G33: 7.37 | H33: 4.74 | J33: 19.48 | K33: 0 | L33: 0 | M33: 0 | N33: 0 | O33: 0 | Q33: 3.41 | R33: 0 | T33: 0.09 | U33: 0 | W33: 0 | X33: 0
B34: Subtotaal | C34: =SUM(C28:C33) -> 0 | D34: =SUM(D28:D33) -> 0 | E34: =SUM(E28:E33) -> 0 | F34: 46.78 | G34: 17.82 | H34: 7.55 | I34: 0 | J34: 72.15 | K34: 0 | L34: 0 | M34: 0 | N34: 0 | O34: =SUM(O28:O33) -> 0 | Q34: =SUM(Q28:Q33) -> 18.9 | R34: =SUM(R28:R33) -> 0 | T34: =SUM(T28:T33) -> 1.49 | U34: =SUM(U28:U33) -> 0 | W34: =O34+R34 -> 0 | X34: 0
B36: Correctie % --> | O36: ='1. Stuurvariabelen'!C27 -> 1 | R36: ='1. Stuurvariabelen'!D27 -> 1 | U36: ='1. Stuurvariabelen'!E27 -> 1
B37: 1 VG | F37: 5.93 | J37: 5.93 | K37: =F37/24*$C37 -> 0 | L37: 0 | M37: 0 | N37: 0 | O37: =J37/24*O$36*$C37 -> 0 | Q37: 3.03 | R37: =Q37/24*R$36*$D37 -> 0 | T37: 1.1 | U37: =T37/24*U$36*$E37 -> 0 | W37: 0 | X37: =W37+U37 -> 0
B38: 2 VG | F38: 8.59 | J38: 8.59 | K38: 0 | L38: 0 | M38: 0 | N38: 0 | O38: =J38/24*O$36*$C38 -> 0 | Q38: 5.17 | R38: 0 | U38: 0 | W38: 0 | X38: 0
B39: 3 VG | F39: 10.01 | G39: 0.87 | J39: 10.88 | K39: 0 | L39: 0 | M39: 0 | N39: 0 | O39: 0 | Q39: 5.17 | R39: 0 | T39: 0.72 | U39: 0 | W39: 0 | X39: 0
B40: 4 VG | F40: 10.01 | G40: 2.58 | H40: 0.44 | J40: 13.03 | K40: 0 | L40: 0 | M40: 0 | N40: 0 | O40: 0 | Q40: 5.17 | R40: 0 | T40: 0.85 | U40: 0 | W40: 0 | X40: 0
B41: 5 VG | F41: 10.43 | G41: 4.97 | H41: 1.32 | J41: 16.72 | K41: 0 | L41: 0 | M41: 0 | N41: 0 | O41: 0 | Q41: 6.76 | R41: 0 | T41: 1.24 | U41: 0 | W41: 0 | X41: 0
B42: 6 VG | F42: 13.49 | G42: 0.93 | I42: 0.93 | J42: 15.35 | K42: 0 | L42: 0 | M42: 0 | N42: 0 | O42: 0 | Q42: 6.76 | R42: 0 | T42: 1.31 | U42: 0 | W42: 0 | X42: 0
B43: 7 VG | F43: 11.14 | G43: 4.03 | H43: 2.07 | I43: 3.89 | J43: 21.13 | K43: 0 | L43: 0 | M43: 0 | N43: 0 | O43: 0 | Q43: 10.91 | R43: 0 | T43: 1.7 | U43: 0 | W43: 0 | X43: 0
B44: 8 VG | F44: 8.13 | G44: 10.49 | H44: 2.4 | J44: 21.02 | K44: 0 | L44: 0 | M44: 0 | N44: 0 | O44: 0 | Q44: 6.76 | R44: 0 | T44: 1.24 | U44: 0 | W44: 0 | X44: 0
B45: Subtotaal | C45: =SUM(C37:C44) -> 0 | D45: =SUM(D37:D44) -> 0 | E45: =SUM(E37:E44) -> 0 | F45: 77.73 | G45: 23.87 | H45: 6.23 | I45: 4.82 | J45: 112.65 | K45: 0 | L45: 0 | M45: 0 | N45: 0 | O45: 0 | Q45: =SUM(Q37:Q44) -> 49.73 | R45: =SUM(R37:R44) -> 0 | T45: =SUM(T37:T44) -> 8.16 | U45: =SUM(U37:U44) -> 0 | W45: =O45+R45 -> 0 | X45: 0
B47: Correctie % --> | O47: ='1. Stuurvariabelen'!C28 -> 1 | R47: ='1. Stuurvariabelen'!D28 -> 1 | U47: ='1. Stuurvariabelen'!E28 -> 1
B48: 1 LVG | F48: 9.85 | G48: 0.86 | I48: 0.86 | J48: 11.57 | K48: =F48/24*$C48 -> 0 | L48: 0 | M48: 0 | N48: 0 | O48: =J48/24*O$47*$C48 -> 0 | Q48: 3.03 | R48: =Q48/24*R$47*$D48 -> 0 | T48: 1.1 | U48: =T48/24*U$47*$E48 -> 0 | W48: 0 | X48: =W48+U48 -> 0
B49: 2 LVG | F49: 9.82 | G49: 0.86 | I49: 4.67 | J49: 15.35 | K49: 0 | L49: 0 | M49: 0 | N49: 0 | O49: =J49/24*O$47*$C49 -> 0 | Q49: 0.59 | R49: =Q49/24*R$47*$D49 -> 0 | T49: 3.14 | U49: =T49/24*U$47*$E49 -> 0 | W49: 0 | X49: 0
B50: 3 LVG | F50: 12.43 | G50: 2.54 | I50: 4.68 | J50: 19.65 | K50: 0 | L50: 0 | M50: 0 | N50: 0 | O50: =J50/24*O$47*$C50 -> 0 | Q50: 0.29 | R50: =Q50/24*R$47*$D50 -> 0 | T50: 4.49 | U50: =T50/24*U$47*$E50 -> 0 | W50: 0 | X50: 0
B51: 4 LVG | F51: 12.95 | G51: 2.64 | I51: 7.56 | J51: 23.15 | K51: 0 | L51: 0 | M51: 0 | N51: 0 | O51: =J51/24*O$47*$C51 -> 0 | Q51: 2.3 | R51: =Q51/24*R$47*$D51 -> 0 | T51: 4.49 | U51: =T51/24*U$47*$E51 -> 0 | W51: 0 | X51: 0
B52: 5 LVG | F52: 13.05 | G52: 3.96 | I52: 6.14 | J52: 23.15 | K52: 0 | L52: 0 | M52: 0 | N52: 0 | O52: =J52/24*O$47*$C52 -> 0 | Q52: 2.3 | R52: =Q52/24*R$47*$D52 -> 0 | T52: 4.49 | U52: =T52/24*U$47*$E52 -> 0 | W52: 0 | X52: 0
B53: Subtotaal | C53: =SUM(C48:C52) -> 0 | D53: =SUM(D48:D52) -> 0 | E53: =SUM(E48:E52) -> 0 | F53: 58.1 | G53: 10.86 | H53: 0 | I53: 23.91 | J53: 92.87 | K53: 0 | L53: 0 | M53: 0 | N53: 0 | O53: 0 | Q53: =SUM(Q48:Q52) -> 8.51 | R53: =SUM(R48:R52) -> 0 | T53: =SUM(T48:T52) -> 17.71 | U53: =SUM(U48:U52) -> 0 | W53: =O53+R53 -> 0 | X53: 0
B55: Correctie % --> | O55: ='1. Stuurvariabelen'!C29 -> 1 | R55: ='1. Stuurvariabelen'!D30 -> 1 | U55: ='1. Stuurvariabelen'!E30 -> 1
B56: 1 SGLVG | F56: 21.02 | G56: 2.76 | I56: 7.92 | J56: 31.7 | K56: =F56/24*$C56 -> 0 | L56: =G56/24*$C56 -> 0 | M56: =H56/24*$C56 -> 0 | N56: =I56/24*$C56 -> 0 | O56: =J56/24*O55*$C56 -> 0 | Q56: 3.03 | R56: =Q56/24*R55*$D56 -> 0 | T56: 1.1 | U56: =T56/24*U55*$E56 -> 0 | W56: 0 | X56: =W56+U56 -> 0
B57: Subtotaal | C57: =SUM(C56) -> 0 | D57: =SUM(D56) -> 0 | E57: =SUM(E56) -> 0 | F57: =SUM(F56:F56) -> 21.02 | G57: =SUM(G56:G56) -> 2.76 | H57: =SUM(H56:H56) -> 0 | I57: =SUM(I56:I56) -> 7.92 | J57: =SUM(J56:J56) -> 31.7 | K57: =SUM(K56) -> 0 | L57: =SUM(L56:L56) -> 0 | M57: =SUM(M56:M56) -> 0 | N57: =SUM(N56:N56) -> 0 | O57: =SUM(O56:O56) -> 0 | Q57: =SUM(Q56:Q56) -> 3.03 | R57: =SUM(R56:R56) -> 0 | T57: =SUM(T56:T56) -> 1.1 | U57: =SUM(U56:U56) -> 0 | W57: =O57+R57 -> 0 | X57: =W57+U57 -> 0
B59: Correctie % --> | O59: ='1. Stuurvariabelen'!C30 -> 1 | R59: ='1. Stuurvariabelen'!D30 -> 1 | U59: ='1. Stuurvariabelen'!E30 -> 1
B60: 1 LG | F60: 5.9 | G60: 3.2 | H60: 0.54 | J60: 9.64 | K60: =F60/24*$C60 -> 0 | L60: 0 | M60: 0 | N60: 0 | O60: =J60/24*O$59*$C60 -> 0 | Q60: 3.03 | R60: =Q60/24*R$59*$D60 -> 0 | T60: 1.1 | U60: =T60/24*U$59*$E60 -> 0 | W60: 0 | X60: =W60+U60 -> 0
B61: 2 LG | F61: 8.39 | G61: 5.41 | H61: 0.5 | J61: 14.3 | K61: 0 | L61: 0 | M61: 0 | N61: 0 | O61: =J61/24*O$59*$C61 -> 0 | Q61: 5.3 | R61: 0 | U61: 0 | W61: 0 | X61: 0
B62: 3 LG | F62: 4.57 | G62: 7.09 | H62: 0.42 | J62: 12.08 | K62: 0 | L62: 0 | M62: 0 | N62: 0 | O62: 0 | Q62: 5.82 | R62: 0 | T62: 1.89 | U62: 0 | W62: 0 | X62: 0
B63: 4 LG | F63: 7.12 | G63: 7.12 | H63: 0.41 | J63: 14.65 | K63: 0 | L63: 0 | M63: 0 | N63: 0 | O63: 0 | Q63: 5.3 | R63: 0 | T63: 1.93 | U63: 0 | W63: 0 | X63: 0
B64: 5 LG | F64: 2.66 | G64: 13.05 | H64: 2.66 | J64: 18.37 | K64: 0 | L64: 0 | M64: 0 | N64: 0 | O64: 0 | Q64: 5.82 | R64: 0 | T64: 2.31 | U64: 0 | W64: 0 | X64: 0
B65: 6 LG | F65: 4.91 | G65: 13.01 | H65: 2.65 | J65: 20.57 | K65: 0 | L65: 0 | M65: 0 | N65: 0 | O65: 0 | Q65: 5.3 | R65: 0 | T65: 2.71 | U65: 0 | W65: 0 | X65: 0
B66: 7 LG | F66: 10.34 | G66: 10.34 | H66: 2.66 | J66: 23.34 | K66: 0 | L66: 0 | M66: 0 | N66: 0 | O66: 0 | Q66: 4.44 | R66: 0 | T66: 2.45 | U66: 0 | W66: 0 | X66: 0
B67: Subtotaal | C67: =SUM(C60:C66) -> 0 | D67: =SUM(D60:D66) -> 0 | E67: =SUM(E60:E66) -> 0 | F67: 43.89 | G67: 59.22 | H67: 9.84 | I67: 0 | J67: 112.95 | K67: 0 | L67: 0 | M67: 0 | N67: 0 | O67: 0 | Q67: =SUM(Q60:Q66) -> 35.01 | R67: =SUM(R60:R66) -> 0 | T67: =SUM(T60:T66) -> 12.39 | U67: =SUM(U60:U66) -> 0 | W67: =O67+R67 -> 0 | X67: 0
B69: Correctie % --> | O69: ='1. Stuurvariabelen'!C31 -> 1 | R69: ='1. Stuurvariabelen'!D31 -> 1 | U69: ='1. Stuurvariabelen'!E31 -> 1
B70: 1 ZG aud | F70: 7.34 | G70: 0.64 | I70: 3.48 | J70: 11.46 | K70: =F70/24*$C70 -> 0 | L70: 0 | M70: 0 | N70: 0 | O70: =J70/24*O$69*$C70 -> 0 | Q70: 3.03 | R70: =Q70/24*R$69*$D70 -> 0 | T70: 1.1 | U70: =T70/24*U$69*$E70 -> 0 | W70: 0 | X70: =W70+U70 -> 0
B71: 2 ZG aud | F71: 14.39 | G71: 5.41 | H71: 1.89 | I71: 5.41 | J71: 27.1 | K71: 0 | L71: 0 | M71: 0 | N71: 0 | O71: =J71/24*O$69*$C71 -> 0 | Q71: 9.23 | R71: =Q71/24*R$69*$D71 -> 0 | T71: 1.71 | U71: =T71/24*U$69*$E71 -> 0 | W71: 0 | X71: =W71+U71 -> 0
B72: 3 ZG aud | F72: 14.4 | G72: 9.27 | H72: 3.49 | I72: 5.42 | J72: 32.58 | K72: 0 | L72: 0 | M72: 0 | N72: 0 | O72: =J72/24*O$69*$C72 -> 0 | Q72: 10.59 | R72: =Q72/24*R$69*$D72 -> 0 | T72: 1.71 | U72: =T72/24*U$69*$E72 -> 0 | W72: 0 | X72: =W72+U72 -> 0
B73: 4 ZG aud | F73: 11.23 | G73: 3.27 | I73: 4.55 | J73: 19.05 | K73: 0 | L73: 0 | M73: 0 | N73: 0 | O73: =J73/24*O$69*$C73 -> 0 | Q73: 7.2 | R73: =Q73/24*R$69*$D73 -> 0 | T73: 1.71 | U73: =T73/24*U$69*$E73 -> 0 | W73: 0 | X73: =W73+U73 -> 0
B74: Subtotaal | C74: =SUM(C70:C73) -> 0 | D74: =SUM(D70:D73) -> 0 | E74: =SUM(E70:E73) -> 0 | F74: 47.36 | G74: 18.59 | H74: 5.38 | I74: 18.86 | J74: 90.19 | K74: 0 | L74: 0 | M74: 0 | N74: 0 | O74: 0 | Q74: =SUM(Q70:Q73) -> 30.05 | R74: =SUM(R70:R73) -> 0 | T74: =SUM(T70:T73) -> 6.23 | U74: =SUM(U70:U73) -> 0 | W74: =O74+R74 -> 0 | X74: =W74+U74 -> 0
B76: Correctie % --> | O76: ='1. Stuurvariabelen'!C32 -> 1 | R76: ='1. Stuurvariabelen'!D32 -> 1 | U76: ='1. Stuurvariabelen'!E32 -> 1
B77: 1 ZG vis | F77: 2.64 | G77: 0.9 | I77: 2.64 | J77: 6.18 | K77: =F77/24*$C77 -> 0 | L77: 0 | M77: 0 | N77: 0 | O77: =J77/24*O$76*$C77 -> 0 | Q77: 3.03 | R77: =Q77/24*R$76*$D77 -> 0 | T77: 1.1 | U77: =T77/24*U$76*$E77 -> 0 | W77: 0 | X77: =W77+U77 -> 0
B78: 2 ZG vis | F78: 6.81 | G78: 2.38 | I78: 2.38 | J78: 11.57 | K78: 0 | L78: 0 | M78: 0 | N78: 0 | O78: =J78/24*O$76*$C78 -> 0 | Q78: 5 | R78: =Q78/24*R$76*$D78 -> 0 | U78: =T78/24*U$76*$E78 -> 0 | W78: 0 | X78: 0
B79: 3 ZG vis | F79: 8.22 | G79: 3.91 | H79: 1.04 | I79: 2.12 | J79: 15.29 | K79: 0 | L79: 0 | M79: 0 | N79: 0 | O79: =J79/24*O$76*$C79 -> 0 | Q79: 5 | R79: =Q79/24*R$76*$D79 -> 0 | T79: 1.03 | U79: =T79/24*U$76*$E79 -> 0 | W79: 0 | X79: 0
B80: 4 ZG vis | F80: 10.41 | G80: 6.09 | H80: 2.12 | I80: 2.12 | J80: 20.74 | K80: 0 | L80: 0 | M80: 0 | N80: 0 | O80: =J80/24*O$76*$C80 -> 0 | Q80: 6.75 | R80: =Q80/24*R$76*$D80 -> 0 | T80: 1.31 | U80: =T80/24*U$76*$E80 -> 0 | W80: 0 | X80: 0
B81: 5 ZG vis | F81: 12.92 | G81: 6.08 | H81: 2.12 | I81: 2.12 | J81: 23.24 | K81: 0 | L81: 0 | M81: 0 | N81: 0 | O81: =J81/24*O$76*$C81 -> 0 | Q81: 6.75 | R81: =Q81/24*R$76*$D81 -> 0 | T81: 1.62 | U81: =T81/24*U$76*$E81 -> 0 | W81: 0 | X81: 0
B82: Subtotaal | C82: =SUM(C77:C81) -> 0 | D82: =SUM(D77:D81) -> 0 | E82: =SUM(E77:E81) -> 0 | F82: 41 | G82: 19.36 | H82: 5.28 | I82: 11.38 | J82: 77.02 | K82: 0 | L82: 0 | M82: 0 | N82: 0 | O82: 0 | Q82: =SUM(Q77:Q81) -> 26.53 | R82: =SUM(R77:R81) -> 0 | T82: =SUM(T77:T81) -> 5.06 | U82: =SUM(U77:U81) -> 0 | W82: =O82+R82 -> 0 | X82: 0
B84: TOTAAL | C84: =SUM(C5:C82)/2 -> 0 | D84: =SUM(D5:D82)/2 -> 0 | E84: =SUM(E5:E82)/2 -> 0 | F84: =SUM(F5:F82)/2 -> 462.29 | G84: =SUM(G5:G82)/2 -> 238.45 | H84: 68.59 | I84: 66.89 | J84: 836.22 | K84: 0 | L84: 0 | M84: 0 | N84: 0 | O84: =O82+O74+O67+O57+O53+O45+O34+O25+O15 -> 0 | Q84: 202.99 | R84: =R82+R74+R67+R57+R53+R45+R34+R25+R15 -> 0 | T84: 77.74 | U84: =U82+U74+U67+U57+U53+U45+U34+U25+U15 -> 0 | W84: 0 | X84: 0
O85: =CU_1-K84 -> 0
D87: Deskundigheidsmix
C88: Aantal | D88: 1 | E88: 2 | F88: 2+ | G88: 3 | H88: 3-IG | I88: 4 | J88: 5 | K88: 6
B90: Zzp 1,2 | C90: =C5+C6+C18+C19+C28+C29+C37+C38+C48+C49+C56+C60+C61+C70+C71+C77+C78 -> 0 | D90: ='1. Stuurvariabelen'!E78*$C90 -> 0 | E90: ='1. Stuurvariabelen'!F78*$C90 -> 0 | F90: ='1. Stuurvariabelen'!G78*$C90 -> 0 | G90: ='1. Stuurvariabelen'!H78*$C90 -> 0 | H90: ='1. Stuurvariabelen'!I78*$C90 -> 0 | I90: ='1. Stuurvariabelen'!J78*$C90 -> 0 | J90: ='1. Stuurvariabelen'!K78*$C90 -> 0 | K90: ='1. Stuurvariabelen'!L78*$C90 -> 0
B91: Zzp 3 | C91: =C7+C20+C30+C39+C50+C62+C72+C79 -> 0 | D91: ='1. Stuurvariabelen'!E79*$C91 -> 0 | E91: ='1. Stuurvariabelen'!F79*$C91 -> 0 | F91: ='1. Stuurvariabelen'!G79*$C91 -> 0 | G91: ='1. Stuurvariabelen'!H79*$C91 -> 0 | H91: ='1. Stuurvariabelen'!I79*$C91 -> 0 | I91: ='1. Stuurvariabelen'!J79*$C91 -> 0 | J91: ='1. Stuurvariabelen'!K79*$C91 -> 0 | K91: ='1. Stuurvariabelen'!L79*$C91 -> 0
B92: Zzp 4 | C92: =C8+C21+C31+C40+C51+C63+C73+C80 -> 0 | D92: ='1. Stuurvariabelen'!E80*$C92 -> 0 | E92: ='1. Stuurvariabelen'!F80*$C92 -> 0 | F92: ='1. Stuurvariabelen'!G80*$C92 -> 0 | G92: ='1. Stuurvariabelen'!H80*$C92 -> 0 | H92: ='1. Stuurvariabelen'!I80*$C92 -> 0 | I92: ='1. Stuurvariabelen'!J80*$C92 -> 0 | J92: ='1. Stuurvariabelen'!K80*$C92 -> 0 | K92: ='1. Stuurvariabelen'!L80*$C92 -> 0
B93: Zzp 6,8 | C93: =C10+C12+C23+C33+C42+C44+C65 -> 0 | D93: ='1. Stuurvariabelen'!E81*$C93 -> 0 | E93: ='1. Stuurvariabelen'!F81*$C93 -> 0 | F93: ='1. Stuurvariabelen'!G81*$C93 -> 0 | G93: ='1. Stuurvariabelen'!H81*$C93 -> 0 | H93: ='1. Stuurvariabelen'!I81*$C93 -> 0 | I93: ='1. Stuurvariabelen'!J81*$C93 -> 0 | J93: ='1. Stuurvariabelen'!K81*$C93 -> 0 | K93: ='1. Stuurvariabelen'!L81*$C93 -> 0
B94: Zzp 5,7 | C94: =C9+C11+C22+C24+C32+C41+C43+C52+C64+C66+C81 -> 0 | D94: ='1. Stuurvariabelen'!E82*$C94 -> 0 | E94: ='1. Stuurvariabelen'!F82*$C94 -> 0 | F94: ='1. Stuurvariabelen'!G82*$C94 -> 0 | G94: ='1. Stuurvariabelen'!H82*$C94 -> 0 | H94: ='1. Stuurvariabelen'!I82*$C94 -> 0 | I94: ='1. Stuurvariabelen'!J82*$C94 -> 0 | J94: ='1. Stuurvariabelen'!K82*$C94 -> 0 | K94: ='1. Stuurvariabelen'!L82*$C94 -> 0
B95: Zzp 9/10 | C95: =C13+C14 -> 0 | D95: ='1. Stuurvariabelen'!E83*$C95 -> 0 | E95: ='1. Stuurvariabelen'!F83*$C95 -> 0 | F95: ='1. Stuurvariabelen'!G83*$C95 -> 0 | G95: ='1. Stuurvariabelen'!H83*$C95 -> 0 | H95: ='1. Stuurvariabelen'!I83*$C95 -> 0 | I95: ='1. Stuurvariabelen'!J83*$C95 -> 0 | J95: ='1. Stuurvariabelen'!K83*$C95 -> 0 | K95: ='1. Stuurvariabelen'!L83*$C95 -> 0
C96: =SUM(C90:C95) -> 0 | D96: =SUM(D90:D95) -> 0 | E96: =SUM(E90:E95) -> 0 | F96: 0 | G96: 0 | H96: 0 | I96: 0 | J96: 0 | K96: 0

Sheet 3b. Zzv berekening
K2: Verdeling per: | M2: Op basis van uren verdeling:
B3: Periode: | C3: december | K3: FTE | L3: =IF(K3="FTE",1872,1) -> 1872 | M3: Werkelijk
B5: Type product | C5: ="Werkelijk uren t/m "&C3 -> Werkelijk uren t/m december | D5: Uren op jaarbasis | E5: Uren per week | F5: % Werkelijke uren | G5: Norm % | H5: Verdeling volgens norm % | I5: ="Verdeling volgens norm % t/m "&C3 -> Verdeling volgens norm % t/m december | K5: =LEVEL1 -> Niveau 1 | L5: =LEVEL2 -> Niveau 2 | M5: =LEVEL3 -> Niveau 3 | N5: =LEVEL4 -> Niveau 4 | O5: =LEVEL5 -> Niveau 5 | P5: =LEVEL6 -> Niveau 6 | Q5: =LEVEL7 -> Niveau 7 | R5: =LEVEL8 -> Niveau 8 | S5: Totaal | U5: Pro- ductiviteits factor
B6: =IF('1. Stuurvariabelen'!C41="","",'1. Stuurvariabelen'!C41) -> PV | D6: =IF(ISERROR(C6/INDEX(monthdata,MATCH($C$3,month,0),2)*12),"",C6/INDEX(monthdata,MATCH($C$3,month,0),2)*12) -> 0 | E6: =D6/365*7 -> 0 | F6: =IF(ISERROR(D6/$D$11),0,D6/$D$11) -> 0 | G6: =IF('1. Stuurvariabelen'!D41="","",'1. Stuurvariabelen'!D41) ->  | H6: =IF(ISERROR($D$11*G6),"",$D$11*G6) ->  | I6: =IF(ISERROR(H6/12*INDEX(monthdata,MATCH($C$3,month,0),2)),"",H6/12*INDEX(monthdata,MATCH($C$3,month,0),2)) ->  | K6: =IF(ISERROR(IF($M$3="Werkelijk",$D6,$H6)/IF($U6<>"",$U6,Standaard_Productiviteit)*'1. Stuurvariabelen'!E41/$L$3),0,IF($M$3="Werkelijk",$D6,$H6)/IF($U6<>"",$U6,Standaard_Productiviteit)*'1. Stuurvariabelen'!E41/$L$3) -> 0 | L6: =IF(ISERROR(IF($M$3="Werkelijk",$D6,$H6)/IF($U6<>"",$U6,Standaard_Productiviteit)*'1. Stuurvariabelen'!F41/$L$3),0,IF($M$3="Werkelijk",$D6,$H6)/IF($U6<>"",$U6,Standaard_Productiviteit)*'1. Stuurvariabelen'!F41/$L$3) -> 0 | M6: =IF(ISERROR(IF($M$3="Werkelijk",$D6,$H6)/IF($U6<>"",$U6,Standaard_Productiviteit)*'1. Stuurvariabelen'!G41/$L$3),0,IF($M$3="Werkelijk",$D6,$H6)/IF($U6<>"",$U6,Standaard_Productiviteit)*'1. Stuurvariabelen'!G41/$L$3) -> 0 | N6: =IF(ISERROR(IF($M$3="Werkelijk",$D6,$H6)/IF($U6<>"",$U6,Standaard_Productiviteit)*'1. Stuurvariabelen'!H41/$L$3),0,IF($M$3="Werkelijk",$D6,$H6)/IF($U6<>"",$U6,Standaard_Productiviteit)*'1. Stuurvariabelen'!H41/$L$3) -> 0 | O6: =IF(ISERROR(IF($M$3="Werkelijk",$D6,$H6)/IF($U6<>"",$U6,Standaard_Productiviteit)*'1. Stuurvariabelen'!I41/$L$3),0,IF($M$3="Werkelijk",$D6,$H6)/IF($U6<>"",$U6,Standaard_Productiviteit)*'1. Stuurvariabelen'!I41/$L$3) -> 0 | P6: =IF(ISERROR(IF($M$3="Werkelijk",$D6,$H6)/IF($U6<>"",$U6,Standaard_Productiviteit)*'1. Stuurvariabelen'!J41/$L$3),0,IF($M$3="Werkelijk",$D6,$H6)/IF($U6<>"",$U6,Standaard_Productiviteit)*'1. Stuurvariabelen'!J41/$L$3) -> 0 | Q6: =IF(ISERROR(IF($M$3="Werkelijk",$D6,$H6)/IF($U6<>"",$U6,Standaard_Productiviteit)*'1. Stuurvariabelen'!K41/$L$3),0,IF($M$3="Werkelijk",$D6,$H6)/IF($U6<>"",$U6,Standaard_Productiviteit)*'1. Stuurvariabelen'!K41/$L$3) -> 0 | R6: =IF(ISERROR(IF($M$3="Werkelijk",$D6,$H6)/IF($U6<>"",$U6,Standaard_Productiviteit)*'1. Stuurvariabelen'!L41/$L$3),0,IF($M$3="Werkelijk",$D6,$H6)/IF($U6<>"",$U6,Standaard_Productiviteit)*'1. Stuurvariabelen'!L41/$L$3) -> 0 | S6: =SUM(K6:R6) -> 0 | U6: =IF($U$4="",IF('1. Stuurvariabelen'!M41="","",'1. Stuurvariabelen'!M41),Standaard_Productiviteit) -> 
B7: =IF('1. Stuurvariabelen'!C42="","",'1. Stuurvariabelen'!C42) -> PVE | D7: =IF(ISERROR(C7/INDEX(monthdata,MATCH($C$3,month,0),2)*12),"",C7/INDEX(monthdata,MATCH($C$3,month,0),2)*12) -> 0 | E7: 0 | F7: =IF(ISERROR(D7/$D$11),0,D7/$D$11) -> 0 | G7: =IF('1. Stuurvariabelen'!D42="","",'1. Stuurvariabelen'!D42) ->  | H7: =IF(ISERROR($D$11*G7),"",$D$11*G7) ->  | I7: =IF(ISERROR(H7/12*INDEX(monthdata,MATCH($C$3,month,0),2)),"",H7/12*INDEX(monthdata,MATCH($C$3,month,0),2)) ->  | K7: =IF(ISERROR(IF($M$3="Werkelijk",$D7,$H7)/IF($U7<>"",$U7,Standaard_Productiviteit)*'1. Stuurvariabelen'!E42/$L$3),0,IF($M$3="Werkelijk",$D7,$H7)/IF($U7<>"",$U7,Standaard_Productiviteit)*'1. Stuurvariabelen'!E42/$L$3) -> 0 | L7: =IF(ISERROR(IF($M$3="Werkelijk",$D7,$H7)/IF($U7<>"",$U7,Standaard_Productiviteit)*'1. Stuurvariabelen'!F42/$L$3),0,IF($M$3="Werkelijk",$D7,$H7)/IF($U7<>"",$U7,Standaard_Productiviteit)*'1. Stuurvariabelen'!F42/$L$3) -> 0 | M7: =IF(ISERROR(IF($M$3="Werkelijk",$D7,$H7)/IF($U7<>"",$U7,Standaard_Productiviteit)*'1. Stuurvariabelen'!G42/$L$3),0,IF($M$3="Werkelijk",$D7,$H7)/IF($U7<>"",$U7,Standaard_Productiviteit)*'1. Stuurvariabelen'!G42/$L$3) -> 0 | N7: =IF(ISERROR(IF($M$3="Werkelijk",$D7,$H7)/IF($U7<>"",$U7,Standaard_Productiviteit)*'1. Stuurvariabelen'!H42/$L$3),0,IF($M$3="Werkelijk",$D7,$H7)/IF($U7<>"",$U7,Standaard_Productiviteit)*'1. Stuurvariabelen'!H42/$L$3) -> 0 | O7: =IF(ISERROR(IF($M$3="Werkelijk",$D7,$H7)/IF($U7<>"",$U7,Standaard_Productiviteit)*'1. Stuurvariabelen'!I42/$L$3),0,IF($M$3="Werkelijk",$D7,$H7)/IF($U7<>"",$U7,Standaard_Productiviteit)*'1. Stuurvariabelen'!I42/$L$3) -> 0 | P7: =IF(ISERROR(IF($M$3="Werkelijk",$D7,$H7)/IF($U7<>"",$U7,Standaard_Productiviteit)*'1. Stuurvariabelen'!J42/$L$3),0,IF($M$3="Werkelijk",$D7,$H7)/IF($U7<>"",$U7,Standaard_Productiviteit)*'1. Stuurvariabelen'!J42/$L$3) -> 0 | Q7: =IF(ISERROR(IF($M$3="Werkelijk",$D7,$H7)/IF($U7<>"",$U7,Standaard_Productiviteit)*'1. Stuurvariabelen'!K42/$L$3),0,IF($M$3="Werkelijk",$D7,$H7)/IF($U7<>"",$U7,Standaard_Productiviteit)*'1. Stuurvariabelen'!K42/$L$3) -> 0 | R7: =IF(ISERROR(IF($M$3="Werkelijk",$D7,$H7)/IF($U7<>"",$U7,Standaard_Productiviteit)*'1. Stuurvariabelen'!L42/$L$3),0,IF($M$3="Werkelijk",$D7,$H7)/IF($U7<>"",$U7,Standaard_Productiviteit)*'1. Stuurvariabelen'!L42/$L$3) -> 0 | S7: =SUM(K7:R7) -> 0 | U7: =IF($U$4="",IF('1. Stuurvariabelen'!M42="","",'1. Stuurvariabelen'!M42),Standaard_Productiviteit) -> 
B8: =IF('1. Stuurvariabelen'!C43="","",'1. Stuurvariabelen'!C43) -> PVS | D8: =IF(ISERROR(C8/INDEX(monthdata,MATCH($C$3,month,0),2)*12),"",C8/INDEX(monthdata,MATCH($C$3,month,0),2)*12) -> 0 | E8: 0 | F8: =IF(ISERROR(D8/$D$11),0,D8/$D$11) -> 0 | G8: =IF('1. Stuurvariabelen'!D43="","",'1. Stuurvariabelen'!D43) ->  | H8: =IF(ISERROR($D$11*G8),"",$D$11*G8) ->  | I8: =IF(ISERROR(H8/12*INDEX(monthdata,MATCH($C$3,month,0),2)),"",H8/12*INDEX(monthdata,MATCH($C$3,month,0),2)) ->  | K8: =IF(ISERROR(IF($M$3="Werkelijk",$D8,$H8)/IF($U8<>"",$U8,Standaard_Productiviteit)*'1. Stuurvariabelen'!E43/$L$3),0,IF($M$3="Werkelijk",$D8,$H8)/IF($U8<>"",$U8,Standaard_Productiviteit)*'1. Stuurvariabelen'!E43/$L$3) -> 0 | L8: =IF(ISERROR(IF($M$3="Werkelijk",$D8,$H8)/IF($U8<>"",$U8,Standaard_Productiviteit)*'1. Stuurvariabelen'!F43/$L$3),0,IF($M$3="Werkelijk",$D8,$H8)/IF($U8<>"",$U8,Standaard_Productiviteit)*'1. Stuurvariabelen'!F43/$L$3) -> 0 | M8: =IF(ISERROR(IF($M$3="Werkelijk",$D8,$H8)/IF($U8<>"",$U8,Standaard_Productiviteit)*'1. Stuurvariabelen'!G43/$L$3),0,IF($M$3="Werkelijk",$D8,$H8)/IF($U8<>"",$U8,Standaard_Productiviteit)*'1. Stuurvariabelen'!G43/$L$3) -> 0 | N8: =IF(ISERROR(IF($M$3="Werkelijk",$D8,$H8)/IF($U8<>"",$U8,Standaard_Productiviteit)*'1. Stuurvariabelen'!H43/$L$3),0,IF($M$3="Werkelijk",$D8,$H8)/IF($U8<>"",$U8,Standaard_Productiviteit)*'1. Stuurvariabelen'!H43/$L$3) -> 0 | O8: =IF(ISERROR(IF($M$3="Werkelijk",$D8,$H8)/IF($U8<>"",$U8,Standaard_Productiviteit)*'1. Stuurvariabelen'!I43/$L$3),0,IF($M$3="Werkelijk",$D8,$H8)/IF($U8<>"",$U8,Standaard_Productiviteit)*'1. Stuurvariabelen'!I43/$L$3) -> 0 | P8: =IF(ISERROR(IF($M$3="Werkelijk",$D8,$H8)/IF($U8<>"",$U8,Standaard_Productiviteit)*'1. Stuurvariabelen'!J43/$L$3),0,IF($M$3="Werkelijk",$D8,$H8)/IF($U8<>"",$U8,Standaard_Productiviteit)*'1. Stuurvariabelen'!J43/$L$3) -> 0 | Q8: =IF(ISERROR(IF($M$3="Werkelijk",$D8,$H8)/IF($U8<>"",$U8,Standaard_Productiviteit)*'1. Stuurvariabelen'!K43/$L$3),0,IF($M$3="Werkelijk",$D8,$H8)/IF($U8<>"",$U8,Standaard_Productiviteit)*'1. Stuurvariabelen'!K43/$L$3) -> 0 | R8: =IF(ISERROR(IF($M$3="Werkelijk",$D8,$H8)/IF($U8<>"",$U8,Standaard_Productiviteit)*'1. Stuurvariabelen'!L43/$L$3),0,IF($M$3="Werkelijk",$D8,$H8)/IF($U8<>"",$U8,Standaard_Productiviteit)*'1. Stuurvariabelen'!L43/$L$3) -> 0 | S8: =SUM(K8:R8) -> 0 | U8: =IF($U$4="",IF('1. Stuurvariabelen'!M43="","",'1. Stuurvariabelen'!M43),Standaard_Productiviteit) -> 
B9: =IF('1. Stuurvariabelen'!C44="","",'1. Stuurvariabelen'!C44) -> pvn | D9: =IF(ISERROR(C9/INDEX(monthdata,MATCH($C$3,month,0),2)*12),"",C9/INDEX(monthdata,MATCH($C$3,month,0),2)*12) -> 0 | E9: 0 | F9: =IF(ISERROR(D9/$D$11),0,D9/$D$11) -> 0 | G9: =IF('1. Stuurvariabelen'!D44="","",'1. Stuurvariabelen'!D44) ->  | H9: =IF(ISERROR($D$11*G9),"",$D$11*G9) ->  | I9: =IF(ISERROR(H9/12*INDEX(monthdata,MATCH($C$3,month,0),2)),"",H9/12*INDEX(monthdata,MATCH($C$3,month,0),2)) ->  | K9: =IF(ISERROR(IF($M$3="Werkelijk",$D9,$H9)/IF($U9<>"",$U9,Standaard_Productiviteit)*'1. Stuurvariabelen'!E44/$L$3),0,IF($M$3="Werkelijk",$D9,$H9)/IF($U9<>"",$U9,Standaard_Productiviteit)*'1. Stuurvariabelen'!E44/$L$3) -> 0 | L9: =IF(ISERROR(IF($M$3="Werkelijk",$D9,$H9)/IF($U9<>"",$U9,Standaard_Productiviteit)*'1. Stuurvariabelen'!F44/$L$3),0,IF($M$3="Werkelijk",$D9,$H9)/IF($U9<>"",$U9,Standaard_Productiviteit)*'1. Stuurvariabelen'!F44/$L$3) -> 0 | M9: =IF(ISERROR(IF($M$3="Werkelijk",$D9,$H9)/IF($U9<>"",$U9,Standaard_Productiviteit)*'1. Stuurvariabelen'!G44/$L$3),0,IF($M$3="Werkelijk",$D9,$H9)/IF($U9<>"",$U9,Standaard_Productiviteit)*'1. Stuurvariabelen'!G44/$L$3) -> 0 | N9: =IF(ISERROR(IF($M$3="Werkelijk",$D9,$H9)/IF($U9<>"",$U9,Standaard_Productiviteit)*'1. Stuurvariabelen'!H44/$L$3),0,IF($M$3="Werkelijk",$D9,$H9)/IF($U9<>"",$U9,Standaard_Productiviteit)*'1. Stuurvariabelen'!H44/$L$3) -> 0 | O9: =IF(ISERROR(IF($M$3="Werkelijk",$D9,$H9)/IF($U9<>"",$U9,Standaard_Productiviteit)*'1. Stuurvariabelen'!I44/$L$3),0,IF($M$3="Werkelijk",$D9,$H9)/IF($U9<>"",$U9,Standaard_Productiviteit)*'1. Stuurvariabelen'!I44/$L$3) -> 0 | P9: =IF(ISERROR(IF($M$3="Werkelijk",$D9,$H9)/IF($U9<>"",$U9,Standaard_Productiviteit)*'1. Stuurvariabelen'!J44/$L$3),0,IF($M$3="Werkelijk",$D9,$H9)/IF($U9<>"",$U9,Standaard_Productiviteit)*'1. Stuurvariabelen'!J44/$L$3) -> 0 | Q9: =IF(ISERROR(IF($M$3="Werkelijk",$D9,$H9)/IF($U9<>"",$U9,Standaard_Productiviteit)*'1. Stuurvariabelen'!K44/$L$3),0,IF($M$3="Werkelijk",$D9,$H9)/IF($U9<>"",$U9,Standaard_Productiviteit)*'1. Stuurvariabelen'!K44/$L$3) -> 0 | R9: =IF(ISERROR(IF($M$3="Werkelijk",$D9,$H9)/IF($U9<>"",$U9,Standaard_Productiviteit)*'1. Stuurvariabelen'!L44/$L$3),0,IF($M$3="Werkelijk",$D9,$H9)/IF($U9<>"",$U9,Standaard_Productiviteit)*'1. Stuurvariabelen'!L44/$L$3) -> 0 | S9: =SUM(K9:R9) -> 0 | U9: =IF($U$4="",IF('1. Stuurvariabelen'!M44="","",'1. Stuurvariabelen'!M44),Standaard_Productiviteit) -> 
B10: =IF('1. Stuurvariabelen'!C45="","",'1. Stuurvariabelen'!C45) ->  | D10: =IF(ISERROR(C10/INDEX(monthdata,MATCH($C$3,month,0),2)*12),"",C10/INDEX(monthdata,MATCH($C$3,month,0),2)*12) -> 0 | E10: 0 | F10: =IF(ISERROR(D10/$D$11),0,D10/$D$11) -> 0 | G10: =IF('1. Stuurvariabelen'!D45="","",'1. Stuurvariabelen'!D45) ->  | H10: =IF(ISERROR($D$11*G10),"",$D$11*G10) ->  | I10: =IF(ISERROR(H10/12*INDEX(monthdata,MATCH($C$3,month,0),2)),"",H10/12*INDEX(monthdata,MATCH($C$3,month,0),2)) ->  | K10: =IF(ISERROR(IF($M$3="Werkelijk",$D10,$H10)/IF($U10<>"",$U10,Standaard_Productiviteit)*'1. Stuurvariabelen'!E45/$L$3),0,IF($M$3="Werkelijk",$D10,$H10)/IF($U10<>"",$U10,Standaard_Productiviteit)*'1. Stuurvariabelen'!E45/$L$3) -> 0 | L10: =IF(ISERROR(IF($M$3="Werkelijk",$D10,$H10)/IF($U10<>"",$U10,Standaard_Productiviteit)*'1. Stuurvariabelen'!F45/$L$3),0,IF($M$3="Werkelijk",$D10,$H10)/IF($U10<>"",$U10,Standaard_Productiviteit)*'1. Stuurvariabelen'!F45/$L$3) -> 0 | M10: =IF(ISERROR(IF($M$3="Werkelijk",$D10,$H10)/IF($U10<>"",$U10,Standaard_Productiviteit)*'1. Stuurvariabelen'!G45/$L$3),0,IF($M$3="Werkelijk",$D10,$H10)/IF($U10<>"",$U10,Standaard_Productiviteit)*'1. Stuurvariabelen'!G45/$L$3) -> 0 | N10: =IF(ISERROR(IF($M$3="Werkelijk",$D10,$H10)/IF($U10<>"",$U10,Standaard_Productiviteit)*'1. Stuurvariabelen'!H45/$L$3),0,IF($M$3="Werkelijk",$D10,$H10)/IF($U10<>"",$U10,Standaard_Productiviteit)*'1. Stuurvariabelen'!H45/$L$3) -> 0 | O10: =IF(ISERROR(IF($M$3="Werkelijk",$D10,$H10)/IF($U10<>"",$U10,Standaard_Productiviteit)*'1. Stuurvariabelen'!I45/$L$3),0,IF($M$3="Werkelijk",$D10,$H10)/IF($U10<>"",$U10,Standaard_Productiviteit)*'1. Stuurvariabelen'!I45/$L$3) -> 0 | P10: =IF(ISERROR(IF($M$3="Werkelijk",$D10,$H10)/IF($U10<>"",$U10,Standaard_Productiviteit)*'1. Stuurvariabelen'!J45/$L$3),0,IF($M$3="Werkelijk",$D10,$H10)/IF($U10<>"",$U10,Standaard_Productiviteit)*'1. Stuurvariabelen'!J45/$L$3) -> 0 | Q10: =IF(ISERROR(IF($M$3="Werkelijk",$D10,$H10)/IF($U10<>"",$U10,Standaard_Productiviteit)*'1. Stuurvariabelen'!K45/$L$3),0,IF($M$3="Werkelijk",$D10,$H10)/IF($U10<>"",$U10,Standaard_Productiviteit)*'1. Stuurvariabelen'!K45/$L$3) -> 0 | R10: =IF(ISERROR(IF($M$3="Werkelijk",$D10,$H10)/IF($U10<>"",$U10,Standaard_Productiviteit)*'1. Stuurvariabelen'!L45/$L$3),0,IF($M$3="Werkelijk",$D10,$H10)/IF($U10<>"",$U10,Standaard_Productiviteit)*'1. Stuurvariabelen'!L45/$L$3) -> 0 | S10: =SUM(K10:R10) -> 0 | U10: =IF($U$4="",IF('1. Stuurvariabelen'!M45="","",'1. Stuurvariabelen'!M45),Standaard_Productiviteit) -> 
B11: =IF('1. Stuurvariabelen'!C46="","",'1. Stuurvariabelen'!C46) -> Totaal PV | C11: =SUM(C6:C10) -> 0 | D11: =SUM(D6:D8) -> 0 | E11: 0 | F11: =IF(C11>1,1,0) -> 0 | G11: =IF('1. Stuurvariabelen'!D46="","",'1. Stuurvariabelen'!D46) -> 0 | H11: =SUM(H6:H10) -> 0 | I11: =SUM(I6:I10) -> 0 | K11: =SUM(K6:K10) -> 0 | L11: 0 | M11: 0 | N11: 0 | O11: 0 | P11: 0 | Q11: 0 | R11: 0 | S11: 0
B12: =IF('1. Stuurvariabelen'!C47="","",'1. Stuurvariabelen'!C47) -> VP | D12: =IF(ISERROR(C12/INDEX(monthdata,MATCH($C$3,month,0),2)*12),"",C12/INDEX(monthdata,MATCH($C$3,month,0),2)*12) -> 0 | E12: 0 | F12: =IF(ISERROR(D12/$D$17),0,D12/$D$17) -> 0 | G12: =IF('1. Stuurvariabelen'!D47="","",'1. Stuurvariabelen'!D47) ->  | H12: =IF(ISERROR(D17*G12),"",D17*G12) ->  | I12: =IF(ISERROR(H12/12*INDEX(monthdata,MATCH($C$3,month,0),2)),"",H12/12*INDEX(monthdata,MATCH($C$3,month,0),2)) ->  | K12: =IF(ISERROR(IF($M$3="Werkelijk",$D12,$H12)/IF($U12<>"",$U12,Standaard_Productiviteit)*'1. Stuurvariabelen'!E47/$L$3),0,IF($M$3="Werkelijk",$D12,$H12)/IF($U12<>"",$U12,Standaard_Productiviteit)*'1. Stuurvariabelen'!E47/$L$3) -> 0 | L12: =IF(ISERROR(IF($M$3="Werkelijk",$D12,$H12)/IF($U12<>"",$U12,Standaard_Productiviteit)*'1. Stuurvariabelen'!F47/$L$3),0,IF($M$3="Werkelijk",$D12,$H12)/IF($U12<>"",$U12,Standaard_Productiviteit)*'1. Stuurvariabelen'!F47/$L$3) -> 0 | M12: =IF(ISERROR(IF($M$3="Werkelijk",$D12,$H12)/IF($U12<>"",$U12,Standaard_Productiviteit)*'1. Stuurvariabelen'!G47/$L$3),0,IF($M$3="Werkelijk",$D12,$H12)/IF($U12<>"",$U12,Standaard_Productiviteit)*'1. Stuurvariabelen'!G47/$L$3) -> 0 | N12: =IF(ISERROR(IF($M$3="Werkelijk",$D12,$H12)/IF($U12<>"",$U12,Standaard_Productiviteit)*'1. Stuurvariabelen'!H47/$L$3),0,IF($M$3="Werkelijk",$D12,$H12)/IF($U12<>"",$U12,Standaard_Productiviteit)*'1. Stuurvariabelen'!H47/$L$3) -> 0 | O12: =IF(ISERROR(IF($M$3="Werkelijk",$D12,$H12)/IF($U12<>"",$U12,Standaard_Productiviteit)*'1. Stuurvariabelen'!I47/$L$3),0,IF($M$3="Werkelijk",$D12,$H12)/IF($U12<>"",$U12,Standaard_Productiviteit)*'1. Stuurvariabelen'!I47/$L$3) -> 0 | P12: =IF(ISERROR(IF($M$3="Werkelijk",$D12,$H12)/IF($U12<>"",$U12,Standaard_Productiviteit)*'1. Stuurvariabelen'!J47/$L$3),0,IF($M$3="Werkelijk",$D12,$H12)/IF($U12<>"",$U12,Standaard_Productiviteit)*'1. Stuurvariabelen'!J47/$L$3) -> 0 | Q12: =IF(ISERROR(IF($M$3="Werkelijk",$D12,$H12)/IF($U12<>"",$U12,Standaard_Productiviteit)*'1. Stuurvariabelen'!K47/$L$3),0,IF($M$3="Werkelijk",$D12,$H12)/IF($U12<>"",$U12,Standaard_Productiviteit)*'1. Stuurvariabelen'!K47/$L$3) -> 0 | R12: =IF(ISERROR(IF($M$3="Werkelijk",$D12,$H12)/IF($U12<>"",$U12,Standaard_Productiviteit)*'1. Stuurvariabelen'!L47/$L$3),0,IF($M$3="Werkelijk",$D12,$H12)/IF($U12<>"",$U12,Standaard_Productiviteit)*'1. Stuurvariabelen'!L47/$L$3) -> 0 | S12: =SUM(K12:R12) -> 0 | U12: =IF($U$4="",IF('1. Stuurvariabelen'!M47="","",'1. Stuurvariabelen'!M47),Standaard_Productiviteit) -> 
B13: =IF('1. Stuurvariabelen'!C48="","",'1. Stuurvariabelen'!C48) -> VPE | D13: =IF(ISERROR(C13/INDEX(monthdata,MATCH($C$3,month,0),2)*12),"",C13/INDEX(monthdata,MATCH($C$3,month,0),2)*12) -> 0 | E13: 0 | F13: =IF(ISERROR(D13/$D$17),0,D13/$D$17) -> 0 | G13: =IF('1. Stuurvariabelen'!D48="","",'1. Stuurvariabelen'!D48) ->  | H13: =IF(ISERROR(D17*G13),"",D17*G13) ->  | I13: =IF(ISERROR(H13/12*INDEX(monthdata,MATCH($C$3,month,0),2)),"",H13/12*INDEX(monthdata,MATCH($C$3,month,0),2)) ->  | K13: =IF(ISERROR(IF($M$3="Werkelijk",$D13,$H13)/IF($U13<>"",$U13,Standaard_Productiviteit)*'1. Stuurvariabelen'!E48/$L$3),0,IF($M$3="Werkelijk",$D13,$H13)/IF($U13<>"",$U13,Standaard_Productiviteit)*'1. Stuurvariabelen'!E48/$L$3) -> 0 | L13: =IF(ISERROR(IF($M$3="Werkelijk",$D13,$H13)/IF($U13<>"",$U13,Standaard_Productiviteit)*'1. Stuurvariabelen'!F48/$L$3),0,IF($M$3="Werkelijk",$D13,$H13)/IF($U13<>"",$U13,Standaard_Productiviteit)*'1. Stuurvariabelen'!F48/$L$3) -> 0 | M13: =IF(ISERROR(IF($M$3="Werkelijk",$D13,$H13)/IF($U13<>"",$U13,Standaard_Productiviteit)*'1. Stuurvariabelen'!G48/$L$3),0,IF($M$3="Werkelijk",$D13,$H13)/IF($U13<>"",$U13,Standaard_Productiviteit)*'1. Stuurvariabelen'!G48/$L$3) -> 0 | N13: =IF(ISERROR(IF($M$3="Werkelijk",$D13,$H13)/IF($U13<>"",$U13,Standaard_Productiviteit)*'1. Stuurvariabelen'!H48/$L$3),0,IF($M$3="Werkelijk",$D13,$H13)/IF($U13<>"",$U13,Standaard_Productiviteit)*'1. Stuurvariabelen'!H48/$L$3) -> 0 | O13: =IF(ISERROR(IF($M$3="Werkelijk",$D13,$H13)/IF($U13<>"",$U13,Standaard_Productiviteit)*'1. Stuurvariabelen'!I48/$L$3),0,IF($M$3="Werkelijk",$D13,$H13)/IF($U13<>"",$U13,Standaard_Productiviteit)*'1. Stuurvariabelen'!I48/$L$3) -> 0 | P13: =IF(ISERROR(IF($M$3="Werkelijk",$D13,$H13)/IF($U13<>"",$U13,Standaard_Productiviteit)*'1. Stuurvariabelen'!J48/$L$3),0,IF($M$3="Werkelijk",$D13,$H13)/IF($U13<>"",$U13,Standaard_Productiviteit)*'1. Stuurvariabelen'!J48/$L$3) -> 0 | Q13: =IF(ISERROR(IF($M$3="Werkelijk",$D13,$H13)/IF($U13<>"",$U13,Standaard_Productiviteit)*'1. Stuurvariabelen'!K48/$L$3),0,IF($M$3="Werkelijk",$D13,$H13)/IF($U13<>"",$U13,Standaard_Productiviteit)*'1. Stuurvariabelen'!K48/$L$3) -> 0 | R13: =IF(ISERROR(IF($M$3="Werkelijk",$D13,$H13)/IF($U13<>"",$U13,Standaard_Productiviteit)*'1. Stuurvariabelen'!L48/$L$3),0,IF($M$3="Werkelijk",$D13,$H13)/IF($U13<>"",$U13,Standaard_Productiviteit)*'1. Stuurvariabelen'!L48/$L$3) -> 0 | S13: =SUM(K13:R13) -> 0 | U13: =IF($U$4="",IF('1. Stuurvariabelen'!M48="","",'1. Stuurvariabelen'!M48),Standaard_Productiviteit) -> 
B14: =IF('1. Stuurvariabelen'!C49="","",'1. Stuurvariabelen'!C49) -> VPS | D14: =IF(ISERROR(C14/INDEX(monthdata,MATCH($C$3,month,0),2)*12),"",C14/INDEX(monthdata,MATCH($C$3,month,0),2)*12) -> 0 | E14: 0 | F14: =IF(ISERROR(D14/$D$17),0,D14/$D$17) -> 0 | G14: =IF('1. Stuurvariabelen'!D49="","",'1. Stuurvariabelen'!D49) ->  | H14: =IF(ISERROR(D17*G14),"",D17*G14) ->  | I14: =IF(ISERROR(H14/12*INDEX(monthdata,MATCH($C$3,month,0),2)),"",H14/12*INDEX(monthdata,MATCH($C$3,month,0),2)) ->  | K14: =IF(ISERROR(IF($M$3="Werkelijk",$D14,$H14)/IF($U14<>"",$U14,Standaard_Productiviteit)*'1. Stuurvariabelen'!E49/$L$3),0,IF($M$3="Werkelijk",$D14,$H14)/IF($U14<>"",$U14,Standaard_Productiviteit)*'1. Stuurvariabelen'!E49/$L$3) -> 0 | L14: =IF(ISERROR(IF($M$3="Werkelijk",$D14,$H14)/IF($U14<>"",$U14,Standaard_Productiviteit)*'1. Stuurvariabelen'!F49/$L$3),0,IF($M$3="Werkelijk",$D14,$H14)/IF($U14<>"",$U14,Standaard_Productiviteit)*'1. Stuurvariabelen'!F49/$L$3) -> 0 | M14: =IF(ISERROR(IF($M$3="Werkelijk",$D14,$H14)/IF($U14<>"",$U14,Standaard_Productiviteit)*'1. Stuurvariabelen'!G49/$L$3),0,IF($M$3="Werkelijk",$D14,$H14)/IF($U14<>"",$U14,Standaard_Productiviteit)*'1. Stuurvariabelen'!G49/$L$3) -> 0 | N14: =IF(ISERROR(IF($M$3="Werkelijk",$D14,$H14)/IF($U14<>"",$U14,Standaard_Productiviteit)*'1. Stuurvariabelen'!H49/$L$3),0,IF($M$3="Werkelijk",$D14,$H14)/IF($U14<>"",$U14,Standaard_Productiviteit)*'1. Stuurvariabelen'!H49/$L$3) -> 0 | O14: =IF(ISERROR(IF($M$3="Werkelijk",$D14,$H14)/IF($U14<>"",$U14,Standaard_Productiviteit)*'1. Stuurvariabelen'!I49/$L$3),0,IF($M$3="Werkelijk",$D14,$H14)/IF($U14<>"",$U14,Standaard_Productiviteit)*'1. Stuurvariabelen'!I49/$L$3) -> 0 | P14: =IF(ISERROR(IF($M$3="Werkelijk",$D14,$H14)/IF($U14<>"",$U14,Standaard_Productiviteit)*'1. Stuurvariabelen'!J49/$L$3),0,IF($M$3="Werkelijk",$D14,$H14)/IF($U14<>"",$U14,Standaard_Productiviteit)*'1. Stuurvariabelen'!J49/$L$3) -> 0 | Q14: =IF(ISERROR(IF($M$3="Werkelijk",$D14,$H14)/IF($U14<>"",$U14,Standaard_Productiviteit)*'1. Stuurvariabelen'!K49/$L$3),0,IF($M$3="Werkelijk",$D14,$H14)/IF($U14<>"",$U14,Standaard_Productiviteit)*'1. Stuurvariabelen'!K49/$L$3) -> 0 | R14: =IF(ISERROR(IF($M$3="Werkelijk",$D14,$H14)/IF($U14<>"",$U14,Standaard_Productiviteit)*'1. Stuurvariabelen'!L49/$L$3),0,IF($M$3="Werkelijk",$D14,$H14)/IF($U14<>"",$U14,Standaard_Productiviteit)*'1. Stuurvariabelen'!L49/$L$3) -> 0 | S14: =SUM(K14:R14) -> 0 | U14: =IF($U$4="",IF('1. Stuurvariabelen'!M49="","",'1. Stuurvariabelen'!M49),Standaard_Productiviteit) -> 
B15: =IF('1. Stuurvariabelen'!C50="","",'1. Stuurvariabelen'!C50) ->  | D15: =IF(ISERROR(C15/INDEX(monthdata,MATCH($C$3,month,0),2)*12),"",C15/INDEX(monthdata,MATCH($C$3,month,0),2)*12) -> 0 | E15: 0 | F15: =IF(ISERROR(D15/$D$17),0,D15/$D$17) -> 0 | G15: =IF('1. Stuurvariabelen'!D50="","",'1. Stuurvariabelen'!D50) ->  | H15: =IF(ISERROR(D17*G15),"",D17*G15) ->  | I15: =IF(ISERROR(H15/12*INDEX(monthdata,MATCH($C$3,month,0),2)),"",H15/12*INDEX(monthdata,MATCH($C$3,month,0),2)) ->  | K15: =IF(ISERROR(IF($M$3="Werkelijk",$D15,$H15)/IF($U15<>"",$U15,Standaard_Productiviteit)*'1. Stuurvariabelen'!E50/$L$3),0,IF($M$3="Werkelijk",$D15,$H15)/IF($U15<>"",$U15,Standaard_Productiviteit)*'1. Stuurvariabelen'!E50/$L$3) -> 0 | L15: =IF(ISERROR(IF($M$3="Werkelijk",$D15,$H15)/IF($U15<>"",$U15,Standaard_Productiviteit)*'1. Stuurvariabelen'!F50/$L$3),0,IF($M$3="Werkelijk",$D15,$H15)/IF($U15<>"",$U15,Standaard_Productiviteit)*'1. Stuurvariabelen'!F50/$L$3) -> 0 | M15: =IF(ISERROR(IF($M$3="Werkelijk",$D15,$H15)/IF($U15<>"",$U15,Standaard_Productiviteit)*'1. Stuurvariabelen'!G50/$L$3),0,IF($M$3="Werkelijk",$D15,$H15)/IF($U15<>"",$U15,Standaard_Productiviteit)*'1. Stuurvariabelen'!G50/$L$3) -> 0 | N15: =IF(ISERROR(IF($M$3="Werkelijk",$D15,$H15)/IF($U15<>"",$U15,Standaard_Productiviteit)*'1. Stuurvariabelen'!H50/$L$3),0,IF($M$3="Werkelijk",$D15,$H15)/IF($U15<>"",$U15,Standaard_Productiviteit)*'1. Stuurvariabelen'!H50/$L$3) -> 0 | O15: =IF(ISERROR(IF($M$3="Werkelijk",$D15,$H15)/IF($U15<>"",$U15,Standaard_Productiviteit)*'1. Stuurvariabelen'!I50/$L$3),0,IF($M$3="Werkelijk",$D15,$H15)/IF($U15<>"",$U15,Standaard_Productiviteit)*'1. Stuurvariabelen'!I50/$L$3) -> 0 | P15: =IF(ISERROR(IF($M$3="Werkelijk",$D15,$H15)/IF($U15<>"",$U15,Standaard_Productiviteit)*'1. Stuurvariabelen'!J50/$L$3),0,IF($M$3="Werkelijk",$D15,$H15)/IF($U15<>"",$U15,Standaard_Productiviteit)*'1. Stuurvariabelen'!J50/$L$3) -> 0 | Q15: =IF(ISERROR(IF($M$3="Werkelijk",$D15,$H15)/IF($U15<>"",$U15,Standaard_Productiviteit)*'1. Stuurvariabelen'!K50/$L$3),0,IF($M$3="Werkelijk",$D15,$H15)/IF($U15<>"",$U15,Standaard_Productiviteit)*'1. Stuurvariabelen'!K50/$L$3) -> 0 | R15: =IF(ISERROR(IF($M$3="Werkelijk",$D15,$H15)/IF($U15<>"",$U15,Standaard_Productiviteit)*'1. Stuurvariabelen'!L50/$L$3),0,IF($M$3="Werkelijk",$D15,$H15)/IF($U15<>"",$U15,Standaard_Productiviteit)*'1. Stuurvariabelen'!L50/$L$3) -> 0 | S15: =SUM(K15:R15) -> 0 | U15: =IF($U$4="",IF('1. Stuurvariabelen'!M50="","",'1. Stuurvariabelen'!M50),Standaard_Productiviteit) -> 
B16: =IF('1. Stuurvariabelen'!C51="","",'1. Stuurvariabelen'!C51) ->  | D16: =IF(ISERROR(C16/INDEX(monthdata,MATCH($C$3,month,0),2)*12),"",C16/INDEX(monthdata,MATCH($C$3,month,0),2)*12) -> 0 | E16: 0 | F16: =IF(ISERROR(D16/$D$17),0,D16/$D$17) -> 0 | G16: =IF('1. Stuurvariabelen'!D51="","",'1. Stuurvariabelen'!D51) ->  | H16: =IF(ISERROR(D17*G16),"",D17*G16) ->  | I16: =IF(ISERROR(H16/12*INDEX(monthdata,MATCH($C$3,month,0),2)),"",H16/12*INDEX(monthdata,MATCH($C$3,month,0),2)) ->  | K16: =IF(ISERROR(IF($M$3="Werkelijk",$D16,$H16)/IF($U16<>"",$U16,Standaard_Productiviteit)*'1. Stuurvariabelen'!E51/$L$3),0,IF($M$3="Werkelijk",$D16,$H16)/IF($U16<>"",$U16,Standaard_Productiviteit)*'1. Stuurvariabelen'!E51/$L$3) -> 0 | L16: =IF(ISERROR(IF($M$3="Werkelijk",$D16,$H16)/IF($U16<>"",$U16,Standaard_Productiviteit)*'1. Stuurvariabelen'!F51/$L$3),0,IF($M$3="Werkelijk",$D16,$H16)/IF($U16<>"",$U16,Standaard_Productiviteit)*'1. Stuurvariabelen'!F51/$L$3) -> 0 | M16: =IF(ISERROR(IF($M$3="Werkelijk",$D16,$H16)/IF($U16<>"",$U16,Standaard_Productiviteit)*'1. Stuurvariabelen'!G51/$L$3),0,IF($M$3="Werkelijk",$D16,$H16)/IF($U16<>"",$U16,Standaard_Productiviteit)*'1. Stuurvariabelen'!G51/$L$3) -> 0 | N16: =IF(ISERROR(IF($M$3="Werkelijk",$D16,$H16)/IF($U16<>"",$U16,Standaard_Productiviteit)*'1. Stuurvariabelen'!H51/$L$3),0,IF($M$3="Werkelijk",$D16,$H16)/IF($U16<>"",$U16,Standaard_Productiviteit)*'1. Stuurvariabelen'!H51/$L$3) -> 0 | O16: =IF(ISERROR(IF($M$3="Werkelijk",$D16,$H16)/IF($U16<>"",$U16,Standaard_Productiviteit)*'1. Stuurvariabelen'!I51/$L$3),0,IF($M$3="Werkelijk",$D16,$H16)/IF($U16<>"",$U16,Standaard_Productiviteit)*'1. Stuurvariabelen'!I51/$L$3) -> 0 | P16: =IF(ISERROR(IF($M$3="Werkelijk",$D16,$H16)/IF($U16<>"",$U16,Standaard_Productiviteit)*'1. Stuurvariabelen'!J51/$L$3),0,IF($M$3="Werkelijk",$D16,$H16)/IF($U16<>"",$U16,Standaard_Productiviteit)*'1. Stuurvariabelen'!J51/$L$3) -> 0 | Q16: =IF(ISERROR(IF($M$3="Werkelijk",$D16,$H16)/IF($U16<>"",$U16,Standaard_Productiviteit)*'1. Stuurvariabelen'!K51/$L$3),0,IF($M$3="Werkelijk",$D16,$H16)/IF($U16<>"",$U16,Standaard_Productiviteit)*'1. Stuurvariabelen'!K51/$L$3) -> 0 | R16: =IF(ISERROR(IF($M$3="Werkelijk",$D16,$H16)/IF($U16<>"",$U16,Standaard_Productiviteit)*'1. Stuurvariabelen'!L51/$L$3),0,IF($M$3="Werkelijk",$D16,$H16)/IF($U16<>"",$U16,Standaard_Productiviteit)*'1. Stuurvariabelen'!L51/$L$3) -> 0 | S16: =SUM(K16:R16) -> 0 | U16: =IF($U$4="",IF('1. Stuurvariabelen'!M51="","",'1. Stuurvariabelen'!M51),Standaard_Productiviteit) -> 
B17: =IF('1. Stuurvariabelen'!C52="","",'1. Stuurvariabelen'!C52) -> Totaal VP | C17: =SUM(C12:C16) -> 0 | D17: =SUM(D12:D16) -> 0 | E17: 0 | F17: =IF(C17>1,1,0) -> 0 | G17: =IF('1. Stuurvariabelen'!D52="","",'1. Stuurvariabelen'!D52) -> 0 | H17: =SUM(H12:H16) -> 0 | I17: =SUM(I12:I16) -> 0 | K17: =SUM(K12:K16) -> 0 | L17: 0 | M17: 0 | N17: 0 | O17: 0 | P17: 0 | Q17: 0 | R17: 0 | S17: 0
B18: =IF('1. Stuurvariabelen'!C53="","",'1. Stuurvariabelen'!C53) -> BG | D18: =IF(ISERROR(C18/INDEX(monthdata,MATCH($C$3,month,0),2)*12),"",C18/INDEX(monthdata,MATCH($C$3,month,0),2)*12) -> 0 | E18: 0 | F18: =IF(ISERROR(D18/$D$23),0,D18/$D$23) -> 0 | G18: =IF('1. Stuurvariabelen'!D53="","",'1. Stuurvariabelen'!D53) ->  | H18: =IF(ISERROR(D23*G18),"",D23*G18) ->  | I18: =IF(ISERROR(H18/12*INDEX(monthdata,MATCH($C$3,month,0),2)),"",H18/12*INDEX(monthdata,MATCH($C$3,month,0),2)) ->  | K18: =IF(ISERROR(IF($M$3="Werkelijk",$D18,$H18)/IF($U18<>"",$U18,Standaard_Productiviteit)*'1. Stuurvariabelen'!E53/$L$3),0,IF($M$3="Werkelijk",$D18,$H18)/IF($U18<>"",$U18,Standaard_Productiviteit)*'1. Stuurvariabelen'!E53/$L$3) -> 0 | L18: =IF(ISERROR(IF($M$3="Werkelijk",$D18,$H18)/IF($U18<>"",$U18,Standaard_Productiviteit)*'1. Stuurvariabelen'!F53/$L$3),0,IF($M$3="Werkelijk",$D18,$H18)/IF($U18<>"",$U18,Standaard_Productiviteit)*'1. Stuurvariabelen'!F53/$L$3) -> 0 | M18: =IF(ISERROR(IF($M$3="Werkelijk",$D18,$H18)/IF($U18<>"",$U18,Standaard_Productiviteit)*'1. Stuurvariabelen'!G53/$L$3),0,IF($M$3="Werkelijk",$D18,$H18)/IF($U18<>"",$U18,Standaard_Productiviteit)*'1. Stuurvariabelen'!G53/$L$3) -> 0 | N18: =IF(ISERROR(IF($M$3="Werkelijk",$D18,$H18)/IF($U18<>"",$U18,Standaard_Productiviteit)*'1. Stuurvariabelen'!H53/$L$3),0,IF($M$3="Werkelijk",$D18,$H18)/IF($U18<>"",$U18,Standaard_Productiviteit)*'1. Stuurvariabelen'!H53/$L$3) -> 0 | O18: =IF(ISERROR(IF($M$3="Werkelijk",$D18,$H18)/IF($U18<>"",$U18,Standaard_Productiviteit)*'1. Stuurvariabelen'!I53/$L$3),0,IF($M$3="Werkelijk",$D18,$H18)/IF($U18<>"",$U18,Standaard_Productiviteit)*'1. Stuurvariabelen'!I53/$L$3) -> 0 | P18: =IF(ISERROR(IF($M$3="Werkelijk",$D18,$H18)/IF($U18<>"",$U18,Standaard_Productiviteit)*'1. Stuurvariabelen'!J53/$L$3),0,IF($M$3="Werkelijk",$D18,$H18)/IF($U18<>"",$U18,Standaard_Productiviteit)*'1. Stuurvariabelen'!J53/$L$3) -> 0 | Q18: =IF(ISERROR(IF($M$3="Werkelijk",$D18,$H18)/IF($U18<>"",$U18,Standaard_Productiviteit)*'1. Stuurvariabelen'!K53/$L$3),0,IF($M$3="Werkelijk",$D18,$H18)/IF($U18<>"",$U18,Standaard_Productiviteit)*'1. Stuurvariabelen'!K53/$L$3) -> 0 | R18: =IF(ISERROR(IF($M$3="Werkelijk",$D18,$H18)/IF($U18<>"",$U18,Standaard_Productiviteit)*'1. Stuurvariabelen'!L53/$L$3),0,IF($M$3="Werkelijk",$D18,$H18)/IF($U18<>"",$U18,Standaard_Productiviteit)*'1. Stuurvariabelen'!L53/$L$3) -> 0 | S18: =SUM(K18:R18) -> 0 | U18: =IF($U$4="",IF('1. Stuurvariabelen'!M53="","",'1. Stuurvariabelen'!M53),Standaard_Productiviteit) -> 
B19: =IF('1. Stuurvariabelen'!C54="","",'1. Stuurvariabelen'!C54) -> BGE | D19: =IF(ISERROR(C19/INDEX(monthdata,MATCH($C$3,month,0),2)*12),"",C19/INDEX(monthdata,MATCH($C$3,month,0),2)*12) -> 0 | E19: 0 | F19: =IF(ISERROR(D19/$D$23),0,D19/$D$23) -> 0 | G19: =IF('1. Stuurvariabelen'!D54="","",'1. Stuurvariabelen'!D54) ->  | H19: =IF(ISERROR(D23*G19),"",D23*G19) ->  | I19: =IF(ISERROR(H19/12*INDEX(monthdata,MATCH($C$3,month,0),2)),"",H19/12*INDEX(monthdata,MATCH($C$3,month,0),2)) ->  | K19: =IF(ISERROR(IF($M$3="Werkelijk",$D19,$H19)/IF($U19<>"",$U19,Standaard_Productiviteit)*'1. Stuurvariabelen'!E54/$L$3),0,IF($M$3="Werkelijk",$D19,$H19)/IF($U19<>"",$U19,Standaard_Productiviteit)*'1. Stuurvariabelen'!E54/$L$3) -> 0 | L19: =IF(ISERROR(IF($M$3="Werkelijk",$D19,$H19)/IF($U19<>"",$U19,Standaard_Productiviteit)*'1. Stuurvariabelen'!F54/$L$3),0,IF($M$3="Werkelijk",$D19,$H19)/IF($U19<>"",$U19,Standaard_Productiviteit)*'1. Stuurvariabelen'!F54/$L$3) -> 0 | M19: =IF(ISERROR(IF($M$3="Werkelijk",$D19,$H19)/IF($U19<>"",$U19,Standaard_Productiviteit)*'1. Stuurvariabelen'!G54/$L$3),0,IF($M$3="Werkelijk",$D19,$H19)/IF($U19<>"",$U19,Standaard_Productiviteit)*'1. Stuurvariabelen'!G54/$L$3) -> 0 | N19: =IF(ISERROR(IF($M$3="Werkelijk",$D19,$H19)/IF($U19<>"",$U19,Standaard_Productiviteit)*'1. Stuurvariabelen'!H54/$L$3),0,IF($M$3="Werkelijk",$D19,$H19)/IF($U19<>"",$U19,Standaard_Productiviteit)*'1. Stuurvariabelen'!H54/$L$3) -> 0 | O19: =IF(ISERROR(IF($M$3="Werkelijk",$D19,$H19)/IF($U19<>"",$U19,Standaard_Productiviteit)*'1. Stuurvariabelen'!I54/$L$3),0,IF($M$3="Werkelijk",$D19,$H19)/IF($U19<>"",$U19,Standaard_Productiviteit)*'1. Stuurvariabelen'!I54/$L$3) -> 0 | P19: =IF(ISERROR(IF($M$3="Werkelijk",$D19,$H19)/IF($U19<>"",$U19,Standaard_Productiviteit)*'1. Stuurvariabelen'!J54/$L$3),0,IF($M$3="Werkelijk",$D19,$H19)/IF($U19<>"",$U19,Standaard_Productiviteit)*'1. Stuurvariabelen'!J54/$L$3) -> 0 | Q19: =IF(ISERROR(IF($M$3="Werkelijk",$D19,$H19)/IF($U19<>"",$U19,Standaard_Productiviteit)*'1. Stuurvariabelen'!K54/$L$3),0,IF($M$3="Werkelijk",$D19,$H19)/IF($U19<>"",$U19,Standaard_Productiviteit)*'1. Stuurvariabelen'!K54/$L$3) -> 0 | R19: =IF(ISERROR(IF($M$3="Werkelijk",$D19,$H19)/IF($U19<>"",$U19,Standaard_Productiviteit)*'1. Stuurvariabelen'!L54/$L$3),0,IF($M$3="Werkelijk",$D19,$H19)/IF($U19<>"",$U19,Standaard_Productiviteit)*'1. Stuurvariabelen'!L54/$L$3) -> 0 | S19: =SUM(K19:R19) -> 0 | U19: =IF($U$4="",IF('1. Stuurvariabelen'!M54="","",'1. Stuurvariabelen'!M54),Standaard_Productiviteit) -> 
B20: =IF('1. Stuurvariabelen'!C55="","",'1. Stuurvariabelen'!C55) -> BGNAH | D20: =IF(ISERROR(C20/INDEX(monthdata,MATCH($C$3,month,0),2)*12),"",C20/INDEX(monthdata,MATCH($C$3,month,0),2)*12) -> 0 | E20: 0 | F20: =IF(ISERROR(D20/$D$23),0,D20/$D$23) -> 0 | G20: =IF('1. Stuurvariabelen'!D55="","",'1. Stuurvariabelen'!D55) ->  | H20: =IF(ISERROR(D23*G20),"",D23*G20) ->  | I20: =IF(ISERROR(H20/12*INDEX(monthdata,MATCH($C$3,month,0),2)),"",H20/12*INDEX(monthdata,MATCH($C$3,month,0),2)) ->  | K20: =IF(ISERROR(IF($M$3="Werkelijk",$D20,$H20)/IF($U20<>"",$U20,Standaard_Productiviteit)*'1. Stuurvariabelen'!E55/$L$3),0,IF($M$3="Werkelijk",$D20,$H20)/IF($U20<>"",$U20,Standaard_Productiviteit)*'1. Stuurvariabelen'!E55/$L$3) -> 0 | L20: =IF(ISERROR(IF($M$3="Werkelijk",$D20,$H20)/IF($U20<>"",$U20,Standaard_Productiviteit)*'1. Stuurvariabelen'!F55/$L$3),0,IF($M$3="Werkelijk",$D20,$H20)/IF($U20<>"",$U20,Standaard_Productiviteit)*'1. Stuurvariabelen'!F55/$L$3) -> 0 | M20: =IF(ISERROR(IF($M$3="Werkelijk",$D20,$H20)/IF($U20<>"",$U20,Standaard_Productiviteit)*'1. Stuurvariabelen'!G55/$L$3),0,IF($M$3="Werkelijk",$D20,$H20)/IF($U20<>"",$U20,Standaard_Productiviteit)*'1. Stuurvariabelen'!G55/$L$3) -> 0 | N20: =IF(ISERROR(IF($M$3="Werkelijk",$D20,$H20)/IF($U20<>"",$U20,Standaard_Productiviteit)*'1. Stuurvariabelen'!H55/$L$3),0,IF($M$3="Werkelijk",$D20,$H20)/IF($U20<>"",$U20,Standaard_Productiviteit)*'1. Stuurvariabelen'!H55/$L$3) -> 0 | O20: =IF(ISERROR(IF($M$3="Werkelijk",$D20,$H20)/IF($U20<>"",$U20,Standaard_Productiviteit)*'1. Stuurvariabelen'!I55/$L$3),0,IF($M$3="Werkelijk",$D20,$H20)/IF($U20<>"",$U20,Standaard_Productiviteit)*'1. Stuurvariabelen'!I55/$L$3) -> 0 | P20: =IF(ISERROR(IF($M$3="Werkelijk",$D20,$H20)/IF($U20<>"",$U20,Standaard_Productiviteit)*'1. Stuurvariabelen'!J55/$L$3),0,IF($M$3="Werkelijk",$D20,$H20)/IF($U20<>"",$U20,Standaard_Productiviteit)*'1. Stuurvariabelen'!J55/$L$3) -> 0 | Q20: =IF(ISERROR(IF($M$3="Werkelijk",$D20,$H20)/IF($U20<>"",$U20,Standaard_Productiviteit)*'1. Stuurvariabelen'!K55/$L$3),0,IF($M$3="Werkelijk",$D20,$H20)/IF($U20<>"",$U20,Standaard_Productiviteit)*'1. Stuurvariabelen'!K55/$L$3) -> 0 | R20: =IF(ISERROR(IF($M$3="Werkelijk",$D20,$H20)/IF($U20<>"",$U20,Standaard_Productiviteit)*'1. Stuurvariabelen'!L55/$L$3),0,IF($M$3="Werkelijk",$D20,$H20)/IF($U20<>"",$U20,Standaard_Productiviteit)*'1. Stuurvariabelen'!L55/$L$3) -> 0 | S20: =SUM(K20:R20) -> 0 | U20: =IF($U$4="",IF('1. Stuurvariabelen'!M55="","",'1. Stuurvariabelen'!M55),Standaard_Productiviteit) -> 
B21: =IF('1. Stuurvariabelen'!C56="","",'1. Stuurvariabelen'!C56) ->  | D21: =IF(ISERROR(C21/INDEX(monthdata,MATCH($C$3,month,0),2)*12),"",C21/INDEX(monthdata,MATCH($C$3,month,0),2)*12) -> 0 | E21: 0 | F21: =IF(ISERROR(D21/$D$23),0,D21/$D$23) -> 0 | G21: =IF('1. Stuurvariabelen'!D56="","",'1. Stuurvariabelen'!D56) ->  | H21: =IF(ISERROR(D23*G21),"",D23*G21) ->  | I21: =IF(ISERROR(H21/12*INDEX(monthdata,MATCH($C$3,month,0),2)),"",H21/12*INDEX(monthdata,MATCH($C$3,month,0),2)) ->  | K21: =IF(ISERROR(IF($M$3="Werkelijk",$D21,$H21)/IF($U21<>"",$U21,Standaard_Productiviteit)*'1. Stuurvariabelen'!E56/$L$3),0,IF($M$3="Werkelijk",$D21,$H21)/IF($U21<>"",$U21,Standaard_Productiviteit)*'1. Stuurvariabelen'!E56/$L$3) -> 0 | L21: =IF(ISERROR(IF($M$3="Werkelijk",$D21,$H21)/IF($U21<>"",$U21,Standaard_Productiviteit)*'1. Stuurvariabelen'!F56/$L$3),0,IF($M$3="Werkelijk",$D21,$H21)/IF($U21<>"",$U21,Standaard_Productiviteit)*'1. Stuurvariabelen'!F56/$L$3) -> 0 | M21: =IF(ISERROR(IF($M$3="Werkelijk",$D21,$H21)/IF($U21<>"",$U21,Standaard_Productiviteit)*'1. Stuurvariabelen'!G56/$L$3),0,IF($M$3="Werkelijk",$D21,$H21)/IF($U21<>"",$U21,Standaard_Productiviteit)*'1. Stuurvariabelen'!G56/$L$3) -> 0 | N21: =IF(ISERROR(IF($M$3="Werkelijk",$D21,$H21)/IF($U21<>"",$U21,Standaard_Productiviteit)*'1. Stuurvariabelen'!H56/$L$3),0,IF($M$3="Werkelijk",$D21,$H21)/IF($U21<>"",$U21,Standaard_Productiviteit)*'1. Stuurvariabelen'!H56/$L$3) -> 0 | O21: =IF(ISERROR(IF($M$3="Werkelijk",$D21,$H21)/IF($U21<>"",$U21,Standaard_Productiviteit)*'1. Stuurvariabelen'!I56/$L$3),0,IF($M$3="Werkelijk",$D21,$H21)/IF($U21<>"",$U21,Standaard_Productiviteit)*'1. Stuurvariabelen'!I56/$L$3) -> 0 | P21: =IF(ISERROR(IF($M$3="Werkelijk",$D21,$H21)/IF($U21<>"",$U21,Standaard_Productiviteit)*'1. Stuurvariabelen'!J56/$L$3),0,IF($M$3="Werkelijk",$D21,$H21)/IF($U21<>"",$U21,Standaard_Productiviteit)*'1. Stuurvariabelen'!J56/$L$3) -> 0 | Q21: =IF(ISERROR(IF($M$3="Werkelijk",$D21,$H21)/IF($U21<>"",$U21,Standaard_Productiviteit)*'1. Stuurvariabelen'!K56/$L$3),0,IF($M$3="Werkelijk",$D21,$H21)/IF($U21<>"",$U21,Standaard_Productiviteit)*'1. Stuurvariabelen'!K56/$L$3) -> 0 | R21: =IF(ISERROR(IF($M$3="Werkelijk",$D21,$H21)/IF($U21<>"",$U21,Standaard_Productiviteit)*'1. Stuurvariabelen'!L56/$L$3),0,IF($M$3="Werkelijk",$D21,$H21)/IF($U21<>"",$U21,Standaard_Productiviteit)*'1. Stuurvariabelen'!L56/$L$3) -> 0 | S21: =SUM(K21:R21) -> 0 | U21: =IF($U$4="",IF('1. Stuurvariabelen'!M56="","",'1. Stuurvariabelen'!M56),Standaard_Productiviteit) -> 
B22: =IF('1. Stuurvariabelen'!C57="","",'1. Stuurvariabelen'!C57) ->  | D22: =IF(ISERROR(C22/INDEX(monthdata,MATCH($C$3,month,0),2)*12),"",C22/INDEX(monthdata,MATCH($C$3,month,0),2)*12) -> 0 | E22: 0 | F22: =IF(ISERROR(D22/$D$23),0,D22/$D$23) -> 0 | G22: =IF('1. Stuurvariabelen'!D57="","",'1. Stuurvariabelen'!D57) ->  | H22: =IF(ISERROR(D23*G22),"",D23*G22) ->  | I22: =IF(ISERROR(H22/12*INDEX(monthdata,MATCH($C$3,month,0),2)),"",H22/12*INDEX(monthdata,MATCH($C$3,month,0),2)) ->  | K22: =IF(ISERROR(IF($M$3="Werkelijk",$D22,$H22)/IF($U22<>"",$U22,Standaard_Productiviteit)*'1. Stuurvariabelen'!E57/$L$3),0,IF($M$3="Werkelijk",$D22,$H22)/IF($U22<>"",$U22,Standaard_Productiviteit)*'1. Stuurvariabelen'!E57/$L$3) -> 0 | L22: =IF(ISERROR(IF($M$3="Werkelijk",$D22,$H22)/IF($U22<>"",$U22,Standaard_Productiviteit)*'1. Stuurvariabelen'!F57/$L$3),0,IF($M$3="Werkelijk",$D22,$H22)/IF($U22<>"",$U22,Standaard_Productiviteit)*'1. Stuurvariabelen'!F57/$L$3) -> 0 | M22: =IF(ISERROR(IF($M$3="Werkelijk",$D22,$H22)/IF($U22<>"",$U22,Standaard_Productiviteit)*'1. Stuurvariabelen'!G57/$L$3),0,IF($M$3="Werkelijk",$D22,$H22)/IF($U22<>"",$U22,Standaard_Productiviteit)*'1. Stuurvariabelen'!G57/$L$3) -> 0 | N22: =IF(ISERROR(IF($M$3="Werkelijk",$D22,$H22)/IF($U22<>"",$U22,Standaard_Productiviteit)*'1. Stuurvariabelen'!H57/$L$3),0,IF($M$3="Werkelijk",$D22,$H22)/IF($U22<>"",$U22,Standaard_Productiviteit)*'1. Stuurvariabelen'!H57/$L$3) -> 0 | O22: =IF(ISERROR(IF($M$3="Werkelijk",$D22,$H22)/IF($U22<>"",$U22,Standaard_Productiviteit)*'1. Stuurvariabelen'!I57/$L$3),0,IF($M$3="Werkelijk",$D22,$H22)/IF($U22<>"",$U22,Standaard_Productiviteit)*'1. Stuurvariabelen'!I57/$L$3) -> 0 | P22: =IF(ISERROR(IF($M$3="Werkelijk",$D22,$H22)/IF($U22<>"",$U22,Standaard_Productiviteit)*'1. Stuurvariabelen'!J57/$L$3),0,IF($M$3="Werkelijk",$D22,$H22)/IF($U22<>"",$U22,Standaard_Productiviteit)*'1. Stuurvariabelen'!J57/$L$3) -> 0 | Q22: =IF(ISERROR(IF($M$3="Werkelijk",$D22,$H22)/IF($U22<>"",$U22,Standaard_Productiviteit)*'1. Stuurvariabelen'!K57/$L$3),0,IF($M$3="Werkelijk",$D22,$H22)/IF($U22<>"",$U22,Standaard_Productiviteit)*'1. Stuurvariabelen'!K57/$L$3) -> 0 | R22: =IF(ISERROR(IF($M$3="Werkelijk",$D22,$H22)/IF($U22<>"",$U22,Standaard_Productiviteit)*'1. Stuurvariabelen'!L57/$L$3),0,IF($M$3="Werkelijk",$D22,$H22)/IF($U22<>"",$U22,Standaard_Productiviteit)*'1. Stuurvariabelen'!L57/$L$3) -> 0 | S22: =SUM(K22:R22) -> 0 | U22: =IF($U$4="",IF('1. Stuurvariabelen'!M57="","",'1. Stuurvariabelen'!M57),Standaard_Productiviteit) -> 
B23: =IF('1. Stuurvariabelen'!C58="","",'1. Stuurvariabelen'!C58) -> Totaal BG | C23: =SUM(C18:C22) -> 0 | D23: =SUM(D18:D22) -> 0 | E23: 0 | F23: =IF(C23>1,1,0) -> 0 | G23: =IF('1. Stuurvariabelen'!D58="","",'1. Stuurvariabelen'!D58) -> 0 | H23: =SUM(H18:H22) -> 0 | I23: =SUM(I18:I22) -> 0 | K23: =SUM(K18:K22) -> 0 | L23: 0 | M23: 0 | N23: 0 | O23: 0 | P23: 0 | Q23: 0 | R23: 0 | S23: 0
B24: =IF('1. Stuurvariabelen'!C59="","",'1. Stuurvariabelen'!C59) -> BH | D24: =IF(ISERROR(C24/INDEX(monthdata,MATCH($C$3,month,0),2)*12),"",C24/INDEX(monthdata,MATCH($C$3,month,0),2)*12) -> 0 | E24: 0 | F24: =IF(ISERROR(D24/$D$29),0,D24/$D$29) -> 0 | G24: =IF('1. Stuurvariabelen'!D59="","",'1. Stuurvariabelen'!D59) ->  | H24: =IF(ISERROR(D29*G24),"",D29*G24) ->  | I24: =IF(ISERROR(H24/12*INDEX(monthdata,MATCH($C$3,month,0),2)),"",H24/12*INDEX(monthdata,MATCH($C$3,month,0),2)) ->  | K24: =IF(ISERROR(IF($M$3="Werkelijk",$D24,$H24)/IF($U24<>"",$U24,Standaard_Productiviteit)*'1. Stuurvariabelen'!E59/$L$3),0,IF($M$3="Werkelijk",$D24,$H24)/IF($U24<>"",$U24,Standaard_Productiviteit)*'1. Stuurvariabelen'!E59/$L$3) -> 0 | L24: =IF(ISERROR(IF($M$3="Werkelijk",$D24,$H24)/IF($U24<>"",$U24,Standaard_Productiviteit)*'1. Stuurvariabelen'!F59/$L$3),0,IF($M$3="Werkelijk",$D24,$H24)/IF($U24<>"",$U24,Standaard_Productiviteit)*'1. Stuurvariabelen'!F59/$L$3) -> 0 | M24: =IF(ISERROR(IF($M$3="Werkelijk",$D24,$H24)/IF($U24<>"",$U24,Standaard_Productiviteit)*'1. Stuurvariabelen'!G59/$L$3),0,IF($M$3="Werkelijk",$D24,$H24)/IF($U24<>"",$U24,Standaard_Productiviteit)*'1. Stuurvariabelen'!G59/$L$3) -> 0 | N24: =IF(ISERROR(IF($M$3="Werkelijk",$D24,$H24)/IF($U24<>"",$U24,Standaard_Productiviteit)*'1. Stuurvariabelen'!H59/$L$3),0,IF($M$3="Werkelijk",$D24,$H24)/IF($U24<>"",$U24,Standaard_Productiviteit)*'1. Stuurvariabelen'!H59/$L$3) -> 0 | O24: =IF(ISERROR(IF($M$3="Werkelijk",$D24,$H24)/IF($U24<>"",$U24,Standaard_Productiviteit)*'1. Stuurvariabelen'!I59/$L$3),0,IF($M$3="Werkelijk",$D24,$H24)/IF($U24<>"",$U24,Standaard_Productiviteit)*'1. Stuurvariabelen'!I59/$L$3) -> 0 | P24: =IF(ISERROR(IF($M$3="Werkelijk",$D24,$H24)/IF($U24<>"",$U24,Standaard_Productiviteit)*'1. Stuurvariabelen'!J59/$L$3),0,IF($M$3="Werkelijk",$D24,$H24)/IF($U24<>"",$U24,Standaard_Productiviteit)*'1. Stuurvariabelen'!J59/$L$3) -> 0 | Q24: =IF(ISERROR(IF($M$3="Werkelijk",$D24,$H24)/IF($U24<>"",$U24,Standaard_Productiviteit)*'1. Stuurvariabelen'!K59/$L$3),0,IF($M$3="Werkelijk",$D24,$H24)/IF($U24<>"",$U24,Standaard_Productiviteit)*'1. Stuurvariabelen'!K59/$L$3) -> 0 | R24: =IF(ISERROR(IF($M$3="Werkelijk",$D24,$H24)/IF($U24<>"",$U24,Standaard_Productiviteit)*'1. Stuurvariabelen'!L59/$L$3),0,IF($M$3="Werkelijk",$D24,$H24)/IF($U24<>"",$U24,Standaard_Productiviteit)*'1. Stuurvariabelen'!L59/$L$3) -> 0 | S24: =SUM(K24:R24) -> 0 | U24: =IF($U$4="",IF('1. Stuurvariabelen'!M59="","",'1. Stuurvariabelen'!M59),Standaard_Productiviteit) -> 
B25: =IF('1. Stuurvariabelen'!C60="","",'1. Stuurvariabelen'!C60) -> DA PG | D25: =IF(ISERROR(C25/INDEX(monthdata,MATCH($C$3,month,0),2)*12),"",C25/INDEX(monthdata,MATCH($C$3,month,0),2)*12) -> 0 | E25: 0 | F25: =IF(ISERROR(D25/$D$29),0,D25/$D$29) -> 0 | G25: =IF('1. Stuurvariabelen'!D60="","",'1. Stuurvariabelen'!D60) ->  | H25: =IF(ISERROR(D29*G25),"",D29*G25) ->  | I25: =IF(ISERROR(H25/12*INDEX(monthdata,MATCH($C$3,month,0),2)),"",H25/12*INDEX(monthdata,MATCH($C$3,month,0),2)) ->  | K25: =IF(ISERROR(IF($M$3="Werkelijk",$D25,$H25)/IF($U25<>"",$U25,Standaard_Productiviteit)*'1. Stuurvariabelen'!E60/$L$3),0,IF($M$3="Werkelijk",$D25,$H25)/IF($U25<>"",$U25,Standaard_Productiviteit)*'1. Stuurvariabelen'!E60/$L$3) -> 0 | L25: =IF(ISERROR(IF($M$3="Werkelijk",$D25,$H25)/IF($U25<>"",$U25,Standaard_Productiviteit)*'1. Stuurvariabelen'!F60/$L$3),0,IF($M$3="Werkelijk",$D25,$H25)/IF($U25<>"",$U25,Standaard_Productiviteit)*'1. Stuurvariabelen'!F60/$L$3) -> 0 | M25: =IF(ISERROR(IF($M$3="Werkelijk",$D25,$H25)/IF($U25<>"",$U25,Standaard_Productiviteit)*'1. Stuurvariabelen'!G60/$L$3),0,IF($M$3="Werkelijk",$D25,$H25)/IF($U25<>"",$U25,Standaard_Productiviteit)*'1. Stuurvariabelen'!G60/$L$3) -> 0 | N25: =IF(ISERROR(IF($M$3="Werkelijk",$D25,$H25)/IF($U25<>"",$U25,Standaard_Productiviteit)*'1. Stuurvariabelen'!H60/$L$3),0,IF($M$3="Werkelijk",$D25,$H25)/IF($U25<>"",$U25,Standaard_Productiviteit)*'1. Stuurvariabelen'!H60/$L$3) -> 0 | O25: =IF(ISERROR(IF($M$3="Werkelijk",$D25,$H25)/IF($U25<>"",$U25,Standaard_Productiviteit)*'1. Stuurvariabelen'!I60/$L$3),0,IF($M$3="Werkelijk",$D25,$H25)/IF($U25<>"",$U25,Standaard_Productiviteit)*'1. Stuurvariabelen'!I60/$L$3) -> 0 | P25: =IF(ISERROR(IF($M$3="Werkelijk",$D25,$H25)/IF($U25<>"",$U25,Standaard_Productiviteit)*'1. Stuurvariabelen'!J60/$L$3),0,IF($M$3="Werkelijk",$D25,$H25)/IF($U25<>"",$U25,Standaard_Productiviteit)*'1. Stuurvariabelen'!J60/$L$3) -> 0 | Q25: =IF(ISERROR(IF($M$3="Werkelijk",$D25,$H25)/IF($U25<>"",$U25,Standaard_Productiviteit)*'1. Stuurvariabelen'!K60/$L$3),0,IF($M$3="Werkelijk",$D25,$H25)/IF($U25<>"",$U25,Standaard_Productiviteit)*'1. Stuurvariabelen'!K60/$L$3) -> 0 | R25: =IF(ISERROR(IF($M$3="Werkelijk",$D25,$H25)/IF($U25<>"",$U25,Standaard_Productiviteit)*'1. Stuurvariabelen'!L60/$L$3),0,IF($M$3="Werkelijk",$D25,$H25)/IF($U25<>"",$U25,Standaard_Productiviteit)*'1. Stuurvariabelen'!L60/$L$3) -> 0 | S25: =SUM(K25:R25) -> 0 | U25: =IF($U$4="",IF('1. Stuurvariabelen'!M60="","",'1. Stuurvariabelen'!M60),Standaard_Productiviteit) -> 
B26: =IF('1. Stuurvariabelen'!C61="","",'1. Stuurvariabelen'!C61) ->  | D26: =IF(ISERROR(C26/INDEX(monthdata,MATCH($C$3,month,0),2)*12),"",C26/INDEX(monthdata,MATCH($C$3,month,0),2)*12) -> 0 | E26: 0 | F26: =IF(ISERROR(D26/$D$29),0,D26/$D$29) -> 0 | G26: =IF('1. Stuurvariabelen'!D61="","",'1. Stuurvariabelen'!D61) ->  | H26: =IF(ISERROR(D29*G26),"",D29*G26) ->  | I26: =IF(ISERROR(H26/12*INDEX(monthdata,MATCH($C$3,month,0),2)),"",H26/12*INDEX(monthdata,MATCH($C$3,month,0),2)) ->  | K26: =IF(ISERROR(IF($M$3="Werkelijk",$D26,$H26)/IF($U26<>"",$U26,Standaard_Productiviteit)*'1. Stuurvariabelen'!E61/$L$3),0,IF($M$3="Werkelijk",$D26,$H26)/IF($U26<>"",$U26,Standaard_Productiviteit)*'1. Stuurvariabelen'!E61/$L$3) -> 0 | L26: =IF(ISERROR(IF($M$3="Werkelijk",$D26,$H26)/IF($U26<>"",$U26,Standaard_Productiviteit)*'1. Stuurvariabelen'!F61/$L$3),0,IF($M$3="Werkelijk",$D26,$H26)/IF($U26<>"",$U26,Standaard_Productiviteit)*'1. Stuurvariabelen'!F61/$L$3) -> 0 | M26: =IF(ISERROR(IF($M$3="Werkelijk",$D26,$H26)/IF($U26<>"",$U26,Standaard_Productiviteit)*'1. Stuurvariabelen'!G61/$L$3),0,IF($M$3="Werkelijk",$D26,$H26)/IF($U26<>"",$U26,Standaard_Productiviteit)*'1. Stuurvariabelen'!G61/$L$3) -> 0 | N26: =IF(ISERROR(IF($M$3="Werkelijk",$D26,$H26)/IF($U26<>"",$U26,Standaard_Productiviteit)*'1. Stuurvariabelen'!H61/$L$3),0,IF($M$3="Werkelijk",$D26,$H26)/IF($U26<>"",$U26,Standaard_Productiviteit)*'1. Stuurvariabelen'!H61/$L$3) -> 0 | O26: =IF(ISERROR(IF($M$3="Werkelijk",$D26,$H26)/IF($U26<>"",$U26,Standaard_Productiviteit)*'1. Stuurvariabelen'!I61/$L$3),0,IF($M$3="Werkelijk",$D26,$H26)/IF($U26<>"",$U26,Standaard_Productiviteit)*'1. Stuurvariabelen'!I61/$L$3) -> 0 | P26: =IF(ISERROR(IF($M$3="Werkelijk",$D26,$H26)/IF($U26<>"",$U26,Standaard_Productiviteit)*'1. Stuurvariabelen'!J61/$L$3),0,IF($M$3="Werkelijk",$D26,$H26)/IF($U26<>"",$U26,Standaard_Productiviteit)*'1. Stuurvariabelen'!J61/$L$3) -> 0 | Q26: =IF(ISERROR(IF($M$3="Werkelijk",$D26,$H26)/IF($U26<>"",$U26,Standaard_Productiviteit)*'1. Stuurvariabelen'!K61/$L$3),0,IF($M$3="Werkelijk",$D26,$H26)/IF($U26<>"",$U26,Standaard_Productiviteit)*'1. Stuurvariabelen'!K61/$L$3) -> 0 | R26: =IF(ISERROR(IF($M$3="Werkelijk",$D26,$H26)/IF($U26<>"",$U26,Standaard_Productiviteit)*'1. Stuurvariabelen'!L61/$L$3),0,IF($M$3="Werkelijk",$D26,$H26)/IF($U26<>"",$U26,Standaard_Productiviteit)*'1. Stuurvariabelen'!L61/$L$3) -> 0 | S26: =SUM(K26:R26) -> 0 | U26: =IF($U$4="",IF('1. Stuurvariabelen'!M61="","",'1. Stuurvariabelen'!M61),Standaard_Productiviteit) -> 
B27: =IF('1. Stuurvariabelen'!C62="","",'1. Stuurvariabelen'!C62) ->  | D27: =IF(ISERROR(C27/INDEX(monthdata,MATCH($C$3,month,0),2)*12),"",C27/INDEX(monthdata,MATCH($C$3,month,0),2)*12) -> 0 | E27: 0 | F27: =IF(ISERROR(D27/$D$29),0,D27/$D$29) -> 0 | G27: =IF('1. Stuurvariabelen'!D62="","",'1. Stuurvariabelen'!D62) ->  | H27: =IF(ISERROR(D29*G27),"",D29*G27) ->  | I27: =IF(ISERROR(H27/12*INDEX(monthdata,MATCH($C$3,month,0),2)),"",H27/12*INDEX(monthdata,MATCH($C$3,month,0),2)) ->  | K27: =IF(ISERROR(IF($M$3="Werkelijk",$D27,$H27)/IF($U27<>"",$U27,Standaard_Productiviteit)*'1. Stuurvariabelen'!E62/$L$3),0,IF($M$3="Werkelijk",$D27,$H27)/IF($U27<>"",$U27,Standaard_Productiviteit)*'1. Stuurvariabelen'!E62/$L$3) -> 0 | L27: =IF(ISERROR(IF($M$3="Werkelijk",$D27,$H27)/IF($U27<>"",$U27,Standaard_Productiviteit)*'1. Stuurvariabelen'!F62/$L$3),0,IF($M$3="Werkelijk",$D27,$H27)/IF($U27<>"",$U27,Standaard_Productiviteit)*'1. Stuurvariabelen'!F62/$L$3) -> 0 | M27: =IF(ISERROR(IF($M$3="Werkelijk",$D27,$H27)/IF($U27<>"",$U27,Standaard_Productiviteit)*'1. Stuurvariabelen'!G62/$L$3),0,IF($M$3="Werkelijk",$D27,$H27)/IF($U27<>"",$U27,Standaard_Productiviteit)*'1. Stuurvariabelen'!G62/$L$3) -> 0 | N27: =IF(ISERROR(IF($M$3="Werkelijk",$D27,$H27)/IF($U27<>"",$U27,Standaard_Productiviteit)*'1. Stuurvariabelen'!H62/$L$3),0,IF($M$3="Werkelijk",$D27,$H27)/IF($U27<>"",$U27,Standaard_Productiviteit)*'1. Stuurvariabelen'!H62/$L$3) -> 0 | O27: =IF(ISERROR(IF($M$3="Werkelijk",$D27,$H27)/IF($U27<>"",$U27,Standaard_Productiviteit)*'1. Stuurvariabelen'!I62/$L$3),0,IF($M$3="Werkelijk",$D27,$H27)/IF($U27<>"",$U27,Standaard_Productiviteit)*'1. Stuurvariabelen'!I62/$L$3) -> 0 | P27: =IF(ISERROR(IF($M$3="Werkelijk",$D27,$H27)/IF($U27<>"",$U27,Standaard_Productiviteit)*'1. Stuurvariabelen'!J62/$L$3),0,IF($M$3="Werkelijk",$D27,$H27)/IF($U27<>"",$U27,Standaard_Productiviteit)*'1. Stuurvariabelen'!J62/$L$3) -> 0 | Q27: =IF(ISERROR(IF($M$3="Werkelijk",$D27,$H27)/IF($U27<>"",$U27,Standaard_Productiviteit)*'1. Stuurvariabelen'!K62/$L$3),0,IF($M$3="Werkelijk",$D27,$H27)/IF($U27<>"",$U27,Standaard_Productiviteit)*'1. Stuurvariabelen'!K62/$L$3) -> 0 | R27: =IF(ISERROR(IF($M$3="Werkelijk",$D27,$H27)/IF($U27<>"",$U27,Standaard_Productiviteit)*'1. Stuurvariabelen'!L62/$L$3),0,IF($M$3="Werkelijk",$D27,$H27)/IF($U27<>"",$U27,Standaard_Productiviteit)*'1. Stuurvariabelen'!L62/$L$3) -> 0 | S27: =SUM(K27:R27) -> 0 | U27: =IF($U$4="",IF('1. Stuurvariabelen'!M62="","",'1. Stuurvariabelen'!M62),Standaard_Productiviteit) -> 
B28: =IF('1. Stuurvariabelen'!C63="","",'1. Stuurvariabelen'!C63) ->  | D28: =IF(ISERROR(C28/INDEX(monthdata,MATCH($C$3,month,0),2)*12),"",C28/INDEX(monthdata,MATCH($C$3,month,0),2)*12) -> 0 | E28: 0 | F28: =IF(ISERROR(D28/$D$29),0,D28/$D$29) -> 0 | G28: =IF('1. Stuurvariabelen'!D63="","",'1. Stuurvariabelen'!D63) ->  | H28: =IF(ISERROR(D29*G28),"",D29*G28) ->  | I28: =IF(ISERROR(H28/12*INDEX(monthdata,MATCH($C$3,month,0),2)),"",H28/12*INDEX(monthdata,MATCH($C$3,month,0),2)) ->  | K28: =IF(ISERROR(IF($M$3="Werkelijk",$D28,$H28)/IF($U28<>"",$U28,Standaard_Productiviteit)*'1. Stuurvariabelen'!E63/$L$3),0,IF($M$3="Werkelijk",$D28,$H28)/IF($U28<>"",$U28,Standaard_Productiviteit)*'1. Stuurvariabelen'!E63/$L$3) -> 0 | L28: =IF(ISERROR(IF($M$3="Werkelijk",$D28,$H28)/IF($U28<>"",$U28,Standaard_Productiviteit)*'1. Stuurvariabelen'!F63/$L$3),0,IF($M$3="Werkelijk",$D28,$H28)/IF($U28<>"",$U28,Standaard_Productiviteit)*'1. Stuurvariabelen'!F63/$L$3) -> 0 | M28: =IF(ISERROR(IF($M$3="Werkelijk",$D28,$H28)/IF($U28<>"",$U28,Standaard_Productiviteit)*'1. Stuurvariabelen'!G63/$L$3),0,IF($M$3="Werkelijk",$D28,$H28)/IF($U28<>"",$U28,Standaard_Productiviteit)*'1. Stuurvariabelen'!G63/$L$3) -> 0 | N28: =IF(ISERROR(IF($M$3="Werkelijk",$D28,$H28)/IF($U28<>"",$U28,Standaard_Productiviteit)*'1. Stuurvariabelen'!H63/$L$3),0,IF($M$3="Werkelijk",$D28,$H28)/IF($U28<>"",$U28,Standaard_Productiviteit)*'1. Stuurvariabelen'!H63/$L$3) -> 0 | O28: =IF(ISERROR(IF($M$3="Werkelijk",$D28,$H28)/IF($U28<>"",$U28,Standaard_Productiviteit)*'1. Stuurvariabelen'!I63/$L$3),0,IF($M$3="Werkelijk",$D28,$H28)/IF($U28<>"",$U28,Standaard_Productiviteit)*'1. Stuurvariabelen'!I63/$L$3) -> 0 | P28: =IF(ISERROR(IF($M$3="Werkelijk",$D28,$H28)/IF($U28<>"",$U28,Standaard_Productiviteit)*'1. Stuurvariabelen'!J63/$L$3),0,IF($M$3="Werkelijk",$D28,$H28)/IF($U28<>"",$U28,Standaard_Productiviteit)*'1. Stuurvariabelen'!J63/$L$3) -> 0 | Q28: =IF(ISERROR(IF($M$3="Werkelijk",$D28,$H28)/IF($U28<>"",$U28,Standaard_Productiviteit)*'1. Stuurvariabelen'!K63/$L$3),0,IF($M$3="Werkelijk",$D28,$H28)/IF($U28<>"",$U28,Standaard_Productiviteit)*'1. Stuurvariabelen'!K63/$L$3) -> 0 | R28: =IF(ISERROR(IF($M$3="Werkelijk",$D28,$H28)/IF($U28<>"",$U28,Standaard_Productiviteit)*'1. Stuurvariabelen'!L63/$L$3),0,IF($M$3="Werkelijk",$D28,$H28)/IF($U28<>"",$U28,Standaard_Productiviteit)*'1. Stuurvariabelen'!L63/$L$3) -> 0 | S28: =SUM(K28:R28) -> 0 | U28: =IF($U$4="",IF('1. Stuurvariabelen'!M63="","",'1. Stuurvariabelen'!M63),Standaard_Productiviteit) -> 
B29: =IF('1. Stuurvariabelen'!C64="","",'1. Stuurvariabelen'!C64) -> Totaal BH | C29: =SUM(C24:C28) -> 0 | D29: =SUM(D24:D28) -> 0 | E29: 0 | F29: =F24 -> 0 | G29: =IF('1. Stuurvariabelen'!D64="","",'1. Stuurvariabelen'!D64) -> 0 | H29: =SUM(H24:H28) -> 0 | I29: =SUM(I24:I28) -> 0 | K29: =SUM(K24:K28) -> 0 | L29: 0 | M29: 0 | N29: 0 | O29: 0 | P29: 0 | Q29: 0 | R29: 0 | S29: 0
B30: =IF('1. Stuurvariabelen'!C65="","",'1. Stuurvariabelen'!C65) -> HH1 | D30: =IF(ISERROR(C30/INDEX(monthdata,MATCH($C$3,month,0),2)*12),"",C30/INDEX(monthdata,MATCH($C$3,month,0),2)*12) -> 0 | E30: 0 | F30: =IF(ISERROR(D30/$D$35),0,D30/$D$35) -> 0 | G30: =IF('1. Stuurvariabelen'!D65="","",'1. Stuurvariabelen'!D65) ->  | H30: =IF(ISERROR(D35*G30),"",D35*G30) ->  | I30: =IF(ISERROR(H30/12*INDEX(monthdata,MATCH($C$3,month,0),2)),"",H30/12*INDEX(monthdata,MATCH($C$3,month,0),2)) ->  | K30: =IF(ISERROR(IF($M$3="Werkelijk",$D30,$H30)/IF($U30<>"",$U30,Standaard_Productiviteit)*'1. Stuurvariabelen'!E65/$L$3),0,IF($M$3="Werkelijk",$D30,$H30)/IF($U30<>"",$U30,Standaard_Productiviteit)*'1. Stuurvariabelen'!E65/$L$3) -> 0 | L30: =IF(ISERROR(IF($M$3="Werkelijk",$D30,$H30)/IF($U30<>"",$U30,Standaard_Productiviteit)*'1. Stuurvariabelen'!F65/$L$3),0,IF($M$3="Werkelijk",$D30,$H30)/IF($U30<>"",$U30,Standaard_Productiviteit)*'1. Stuurvariabelen'!F65/$L$3) -> 0 | M30: =IF(ISERROR(IF($M$3="Werkelijk",$D30,$H30)/IF($U30<>"",$U30,Standaard_Productiviteit)*'1. Stuurvariabelen'!G65/$L$3),0,IF($M$3="Werkelijk",$D30,$H30)/IF($U30<>"",$U30,Standaard_Productiviteit)*'1. Stuurvariabelen'!G65/$L$3) -> 0 | N30: =IF(ISERROR(IF($M$3="Werkelijk",$D30,$H30)/IF($U30<>"",$U30,Standaard_Productiviteit)*'1. Stuurvariabelen'!H65/$L$3),0,IF($M$3="Werkelijk",$D30,$H30)/IF($U30<>"",$U30,Standaard_Productiviteit)*'1. Stuurvariabelen'!H65/$L$3) -> 0 | O30: =IF(ISERROR(IF($M$3="Werkelijk",$D30,$H30)/IF($U30<>"",$U30,Standaard_Productiviteit)*'1. Stuurvariabelen'!I65/$L$3),0,IF($M$3="Werkelijk",$D30,$H30)/IF($U30<>"",$U30,Standaard_Productiviteit)*'1. Stuurvariabelen'!I65/$L$3) -> 0 | P30: =IF(ISERROR(IF($M$3="Werkelijk",$D30,$H30)/IF($U30<>"",$U30,Standaard_Productiviteit)*'1. Stuurvariabelen'!J65/$L$3),0,IF($M$3="Werkelijk",$D30,$H30)/IF($U30<>"",$U30,Standaard_Productiviteit)*'1. Stuurvariabelen'!J65/$L$3) -> 0 | Q30: =IF(ISERROR(IF($M$3="Werkelijk",$D30,$H30)/IF($U30<>"",$U30,Standaard_Productiviteit)*'1. Stuurvariabelen'!K65/$L$3),0,IF($M$3="Werkelijk",$D30,$H30)/IF($U30<>"",$U30,Standaard_Productiviteit)*'1. Stuurvariabelen'!K65/$L$3) -> 0 | R30: =IF(ISERROR(IF($M$3="Werkelijk",$D30,$H30)/IF($U30<>"",$U30,Standaard_Productiviteit)*'1. Stuurvariabelen'!L65/$L$3),0,IF($M$3="Werkelijk",$D30,$H30)/IF($U30<>"",$U30,Standaard_Productiviteit)*'1. Stuurvariabelen'!L65/$L$3) -> 0 | S30: =SUM(K30:R30) -> 0 | U30: =IF($U$4="",IF('1. Stuurvariabelen'!M65="","",'1. Stuurvariabelen'!M65),Standaard_Productiviteit) -> 
B31: =IF('1. Stuurvariabelen'!C66="","",'1. Stuurvariabelen'!C66) -> HH2 | D31: =IF(ISERROR(C31/INDEX(monthdata,MATCH($C$3,month,0),2)*12),"",C31/INDEX(monthdata,MATCH($C$3,month,0),2)*12) -> 0 | E31: 0 | F31: =IF(ISERROR(D31/$D$35),0,D31/$D$35) -> 0 | G31: =IF('1. Stuurvariabelen'!D66="","",'1. Stuurvariabelen'!D66) ->  | H31: =IF(ISERROR(D35*G31),"",D35*G31) ->  | I31: =IF(ISERROR(H31/12*INDEX(monthdata,MATCH($C$3,month,0),2)),"",H31/12*INDEX(monthdata,MATCH($C$3,month,0),2)) ->  | K31: =IF(ISERROR(IF($M$3="Werkelijk",$D31,$H31)/IF($U31<>"",$U31,Standaard_Productiviteit)*'1. Stuurvariabelen'!E66/$L$3),0,IF($M$3="Werkelijk",$D31,$H31)/IF($U31<>"",$U31,Standaard_Productiviteit)*'1. Stuurvariabelen'!E66/$L$3) -> 0 | L31: =IF(ISERROR(IF($M$3="Werkelijk",$D31,$H31)/IF($U31<>"",$U31,Standaard_Productiviteit)*'1. Stuurvariabelen'!F66/$L$3),0,IF($M$3="Werkelijk",$D31,$H31)/IF($U31<>"",$U31,Standaard_Productiviteit)*'1. Stuurvariabelen'!F66/$L$3) -> 0 | M31: =IF(ISERROR(IF($M$3="Werkelijk",$D31,$H31)/IF($U31<>"",$U31,Standaard_Productiviteit)*'1. Stuurvariabelen'!G66/$L$3),0,IF($M$3="Werkelijk",$D31,$H31)/IF($U31<>"",$U31,Standaard_Productiviteit)*'1. Stuurvariabelen'!G66/$L$3) -> 0 | N31: =IF(ISERROR(IF($M$3="Werkelijk",$D31,$H31)/IF($U31<>"",$U31,Standaard_Productiviteit)*'1. Stuurvariabelen'!H66/$L$3),0,IF($M$3="Werkelijk",$D31,$H31)/IF($U31<>"",$U31,Standaard_Productiviteit)*'1. Stuurvariabelen'!H66/$L$3) -> 0 | O31: =IF(ISERROR(IF($M$3="Werkelijk",$D31,$H31)/IF($U31<>"",$U31,Standaard_Productiviteit)*'1. Stuurvariabelen'!I66/$L$3),0,IF($M$3="Werkelijk",$D31,$H31)/IF($U31<>"",$U31,Standaard_Productiviteit)*'1. Stuurvariabelen'!I66/$L$3) -> 0 | P31: =IF(ISERROR(IF($M$3="Werkelijk",$D31,$H31)/IF($U31<>"",$U31,Standaard_Productiviteit)*'1. Stuurvariabelen'!J66/$L$3),0,IF($M$3="Werkelijk",$D31,$H31)/IF($U31<>"",$U31,Standaard_Productiviteit)*'1. Stuurvariabelen'!J66/$L$3) -> 0 | Q31: =IF(ISERROR(IF($M$3="Werkelijk",$D31,$H31)/IF($U31<>"",$U31,Standaard_Productiviteit)*'1. Stuurvariabelen'!K66/$L$3),0,IF($M$3="Werkelijk",$D31,$H31)/IF($U31<>"",$U31,Standaard_Productiviteit)*'1. Stuurvariabelen'!K66/$L$3) -> 0 | R31: =IF(ISERROR(IF($M$3="Werkelijk",$D31,$H31)/IF($U31<>"",$U31,Standaard_Productiviteit)*'1. Stuurvariabelen'!L66/$L$3),0,IF($M$3="Werkelijk",$D31,$H31)/IF($U31<>"",$U31,Standaard_Productiviteit)*'1. Stuurvariabelen'!L66/$L$3) -> 0 | S31: =SUM(K31:R31) -> 0 | U31: =IF($U$4="",IF('1. Stuurvariabelen'!M66="","",'1. Stuurvariabelen'!M66),Standaard_Productiviteit) -> 
B32: =IF('1. Stuurvariabelen'!C67="","",'1. Stuurvariabelen'!C67) ->  | D32: =IF(ISERROR(C32/INDEX(monthdata,MATCH($C$3,month,0),2)*12),"",C32/INDEX(monthdata,MATCH($C$3,month,0),2)*12) -> 0 | E32: 0 | F32: =IF(ISERROR(D32/$D$35),0,D32/$D$35) -> 0 | G32: =IF('1. Stuurvariabelen'!D67="","",'1. Stuurvariabelen'!D67) ->  | H32: =IF(ISERROR(D35*G32),"",D35*G32) ->  | I32: =IF(ISERROR(H32/12*INDEX(monthdata,MATCH($C$3,month,0),2)),"",H32/12*INDEX(monthdata,MATCH($C$3,month,0),2)) ->  | K32: =IF(ISERROR(IF($M$3="Werkelijk",$D32,$H32)/IF($U32<>"",$U32,Standaard_Productiviteit)*'1. Stuurvariabelen'!E67/$L$3),0,IF($M$3="Werkelijk",$D32,$H32)/IF($U32<>"",$U32,Standaard_Productiviteit)*'1. Stuurvariabelen'!E67/$L$3) -> 0 | L32: =IF(ISERROR(IF($M$3="Werkelijk",$D32,$H32)/IF($U32<>"",$U32,Standaard_Productiviteit)*'1. Stuurvariabelen'!F67/$L$3),0,IF($M$3="Werkelijk",$D32,$H32)/IF($U32<>"",$U32,Standaard_Productiviteit)*'1. Stuurvariabelen'!F67/$L$3) -> 0 | M32: =IF(ISERROR(IF($M$3="Werkelijk",$D32,$H32)/IF($U32<>"",$U32,Standaard_Productiviteit)*'1. Stuurvariabelen'!G67/$L$3),0,IF($M$3="Werkelijk",$D32,$H32)/IF($U32<>"",$U32,Standaard_Productiviteit)*'1. Stuurvariabelen'!G67/$L$3) -> 0 | N32: =IF(ISERROR(IF($M$3="Werkelijk",$D32,$H32)/IF($U32<>"",$U32,Standaard_Productiviteit)*'1. Stuurvariabelen'!H67/$L$3),0,IF($M$3="Werkelijk",$D32,$H32)/IF($U32<>"",$U32,Standaard_Productiviteit)*'1. Stuurvariabelen'!H67/$L$3) -> 0 | O32: =IF(ISERROR(IF($M$3="Werkelijk",$D32,$H32)/IF($U32<>"",$U32,Standaard_Productiviteit)*'1. Stuurvariabelen'!I67/$L$3),0,IF($M$3="Werkelijk",$D32,$H32)/IF($U32<>"",$U32,Standaard_Productiviteit)*'1. Stuurvariabelen'!I67/$L$3) -> 0 | P32: =IF(ISERROR(IF($M$3="Werkelijk",$D32,$H32)/IF($U32<>"",$U32,Standaard_Productiviteit)*'1. Stuurvariabelen'!J67/$L$3),0,IF($M$3="Werkelijk",$D32,$H32)/IF($U32<>"",$U32,Standaard_Productiviteit)*'1. Stuurvariabelen'!J67/$L$3) -> 0 | Q32: =IF(ISERROR(IF($M$3="Werkelijk",$D32,$H32)/IF($U32<>"",$U32,Standaard_Productiviteit)*'1. Stuurvariabelen'!K67/$L$3),0,IF($M$3="Werkelijk",$D32,$H32)/IF($U32<>"",$U32,Standaard_Productiviteit)*'1. Stuurvariabelen'!K67/$L$3) -> 0 | R32: =IF(ISERROR(IF($M$3="Werkelijk",$D32,$H32)/IF($U32<>"",$U32,Standaard_Productiviteit)*'1. Stuurvariabelen'!L67/$L$3),0,IF($M$3="Werkelijk",$D32,$H32)/IF($U32<>"",$U32,Standaard_Productiviteit)*'1. Stuurvariabelen'!L67/$L$3) -> 0 | S32: =SUM(K32:R32) -> 0 | U32: =IF($U$4="",IF('1. Stuurvariabelen'!M67="","",'1. Stuurvariabelen'!M67),Standaard_Productiviteit) -> 
B33: =IF('1. Stuurvariabelen'!C68="","",'1. Stuurvariabelen'!C68) ->  | D33: =IF(ISERROR(C33/INDEX(monthdata,MATCH($C$3,month,0),2)*12),"",C33/INDEX(monthdata,MATCH($C$3,month,0),2)*12) -> 0 | E33: 0 | F33: =IF(ISERROR(D33/$D$35),0,D33/$D$35) -> 0 | G33: =IF('1. Stuurvariabelen'!D68="","",'1. Stuurvariabelen'!D68) ->  | H33: =IF(ISERROR(D35*G33),"",D35*G33) ->  | I33: =IF(ISERROR(H33/12*INDEX(monthdata,MATCH($C$3,month,0),2)),"",H33/12*INDEX(monthdata,MATCH($C$3,month,0),2)) ->  | K33: =IF(ISERROR(IF($M$3="Werkelijk",$D33,$H33)/IF($U33<>"",$U33,Standaard_Productiviteit)*'1. Stuurvariabelen'!E68/$L$3),0,IF($M$3="Werkelijk",$D33,$H33)/IF($U33<>"",$U33,Standaard_Productiviteit)*'1. Stuurvariabelen'!E68/$L$3) -> 0 | L33: =IF(ISERROR(IF($M$3="Werkelijk",$D33,$H33)/IF($U33<>"",$U33,Standaard_Productiviteit)*'1. Stuurvariabelen'!F68/$L$3),0,IF($M$3="Werkelijk",$D33,$H33)/IF($U33<>"",$U33,Standaard_Productiviteit)*'1. Stuurvariabelen'!F68/$L$3) -> 0 | M33: =IF(ISERROR(IF($M$3="Werkelijk",$D33,$H33)/IF($U33<>"",$U33,Standaard_Productiviteit)*'1. Stuurvariabelen'!G68/$L$3),0,IF($M$3="Werkelijk",$D33,$H33)/IF($U33<>"",$U33,Standaard_Productiviteit)*'1. Stuurvariabelen'!G68/$L$3) -> 0 | N33: =IF(ISERROR(IF($M$3="Werkelijk",$D33,$H33)/IF($U33<>"",$U33,Standaard_Productiviteit)*'1. Stuurvariabelen'!H68/$L$3),0,IF($M$3="Werkelijk",$D33,$H33)/IF($U33<>"",$U33,Standaard_Productiviteit)*'1. Stuurvariabelen'!H68/$L$3) -> 0 | O33: =IF(ISERROR(IF($M$3="Werkelijk",$D33,$H33)/IF($U33<>"",$U33,Standaard_Productiviteit)*'1. Stuurvariabelen'!I68/$L$3),0,IF($M$3="Werkelijk",$D33,$H33)/IF($U33<>"",$U33,Standaard_Productiviteit)*'1. Stuurvariabelen'!I68/$L$3) -> 0 | P33: =IF(ISERROR(IF($M$3="Werkelijk",$D33,$H33)/IF($U33<>"",$U33,Standaard_Productiviteit)*'1. Stuurvariabelen'!J68/$L$3),0,IF($M$3="Werkelijk",$D33,$H33)/IF($U33<>"",$U33,Standaard_Productiviteit)*'1. Stuurvariabelen'!J68/$L$3) -> 0 | Q33: =IF(ISERROR(IF($M$3="Werkelijk",$D33,$H33)/IF($U33<>"",$U33,Standaard_Productiviteit)*'1. Stuurvariabelen'!K68/$L$3),0,IF($M$3="Werkelijk",$D33,$H33)/IF($U33<>"",$U33,Standaard_Productiviteit)*'1. Stuurvariabelen'!K68/$L$3) -> 0 | R33: =IF(ISERROR(IF($M$3="Werkelijk",$D33,$H33)/IF($U33<>"",$U33,Standaard_Productiviteit)*'1. Stuurvariabelen'!L68/$L$3),0,IF($M$3="Werkelijk",$D33,$H33)/IF($U33<>"",$U33,Standaard_Productiviteit)*'1. Stuurvariabelen'!L68/$L$3) -> 0 | S33: =SUM(K33:R33) -> 0 | U33: =IF($U$4="",IF('1. Stuurvariabelen'!M68="","",'1. Stuurvariabelen'!M68),Standaard_Productiviteit) -> 
B34: =IF('1. Stuurvariabelen'!C69="","",'1. Stuurvariabelen'!C69) ->  | D34: =IF(ISERROR(C34/INDEX(monthdata,MATCH($C$3,month,0),2)*12),"",C34/INDEX(monthdata,MATCH($C$3,month,0),2)*12) -> 0 | E34: 0 | F34: =IF(ISERROR(D34/$D$35),0,D34/$D$35) -> 0 | G34: =IF('1. Stuurvariabelen'!D69="","",'1. Stuurvariabelen'!D69) ->  | H34: =IF(ISERROR(D35*G34),"",D35*G34) ->  | I34: =IF(ISERROR(H34/12*INDEX(monthdata,MATCH($C$3,month,0),2)),"",H34/12*INDEX(monthdata,MATCH($C$3,month,0),2)) ->  | K34: =IF(ISERROR(IF($M$3="Werkelijk",$D34,$H34)/IF($U34<>"",$U34,Standaard_Productiviteit)*'1. Stuurvariabelen'!E69/$L$3),0,IF($M$3="Werkelijk",$D34,$H34)/IF($U34<>"",$U34,Standaard_Productiviteit)*'1. Stuurvariabelen'!E69/$L$3) -> 0 | L34: =IF(ISERROR(IF($M$3="Werkelijk",$D34,$H34)/IF($U34<>"",$U34,Standaard_Productiviteit)*'1. Stuurvariabelen'!F69/$L$3),0,IF($M$3="Werkelijk",$D34,$H34)/IF($U34<>"",$U34,Standaard_Productiviteit)*'1. Stuurvariabelen'!F69/$L$3) -> 0 | M34: =IF(ISERROR(IF($M$3="Werkelijk",$D34,$H34)/IF($U34<>"",$U34,Standaard_Productiviteit)*'1. Stuurvariabelen'!G69/$L$3),0,IF($M$3="Werkelijk",$D34,$H34)/IF($U34<>"",$U34,Standaard_Productiviteit)*'1. Stuurvariabelen'!G69/$L$3) -> 0 | N34: =IF(ISERROR(IF($M$3="Werkelijk",$D34,$H34)/IF($U34<>"",$U34,Standaard_Productiviteit)*'1. Stuurvariabelen'!H69/$L$3),0,IF($M$3="Werkelijk",$D34,$H34)/IF($U34<>"",$U34,Standaard_Productiviteit)*'1. Stuurvariabelen'!H69/$L$3) -> 0 | O34: =IF(ISERROR(IF($M$3="Werkelijk",$D34,$H34)/IF($U34<>"",$U34,Standaard_Productiviteit)*'1. Stuurvariabelen'!I69/$L$3),0,IF($M$3="Werkelijk",$D34,$H34)/IF($U34<>"",$U34,Standaard_Productiviteit)*'1. Stuurvariabelen'!I69/$L$3) -> 0 | P34: =IF(ISERROR(IF($M$3="Werkelijk",$D34,$H34)/IF($U34<>"",$U34,Standaard_Productiviteit)*'1. Stuurvariabelen'!J69/$L$3),0,IF($M$3="Werkelijk",$D34,$H34)/IF($U34<>"",$U34,Standaard_Productiviteit)*'1. Stuurvariabelen'!J69/$L$3) -> 0 | Q34: =IF(ISERROR(IF($M$3="Werkelijk",$D34,$H34)/IF($U34<>"",$U34,Standaard_Productiviteit)*'1. Stuurvariabelen'!K69/$L$3),0,IF($M$3="Werkelijk",$D34,$H34)/IF($U34<>"",$U34,Standaard_Productiviteit)*'1. Stuurvariabelen'!K69/$L$3) -> 0 | R34: =IF(ISERROR(IF($M$3="Werkelijk",$D34,$H34)/IF($U34<>"",$U34,Standaard_Productiviteit)*'1. Stuurvariabelen'!L69/$L$3),0,IF($M$3="Werkelijk",$D34,$H34)/IF($U34<>"",$U34,Standaard_Productiviteit)*'1. Stuurvariabelen'!L69/$L$3) -> 0 | S34: =SUM(K34:R34) -> 0 | U34: =IF($U$4="",IF('1. Stuurvariabelen'!M69="","",'1. Stuurvariabelen'!M69),Standaard_Productiviteit) -> 
B35: =IF('1. Stuurvariabelen'!C70="","",'1. Stuurvariabelen'!C70) -> Totaal WMO | C35: =SUM(C30:C34) -> 0 | D35: =SUM(D30:D34) -> 0 | E35: 0 | F35: =F34 -> 0 | G35: =IF('1. Stuurvariabelen'!D70="","",'1. Stuurvariabelen'!D70) -> 0 | H35: =SUM(H30:H34) -> 0 | I35: =SUM(I30:I34) -> 0 | K35: =SUM(K30:K34) -> 0 | L35: 0 | M35: 0 | N35: 0 | O35: 0 | P35: 0 | Q35: 0 | R35: 0 | S35: 0
B36: Totaal | C36: =SUM(C6:C35)/2 -> 0 | D36: =SUM(D6:D35)/2 -> 0 | E36: =SUM(E6:E35)/2 -> 0 | H36: =SUM(H6:H35)/2 -> 0 | I36: =SUM(I6:I35)/2 -> 0 | K36: =SUM(K6:K35)/2 -> 0 | L36: 0 | M36: 0 | N36: 0 | O36: 0 | P36: 0 | Q36: 0 | R36: 0 | S36: =SUM(K36:R36) -> 0

Sheet 4. Formatie
G2: =IF(RIGHT(B3,5)="(ZZP)","clienturen","clienturen2") -> clienturen2
A3: Type input | B3: Formatie vanuit Cliënturen (Zzv) | G3: Totaal BG | P3: Woonzorg | Q3: CU_1 | S3: ='1. Stuurvariabelen'!C46 -> Totaal PV | T3: CU2_1
B4: =RIGHT(B3,5) -> (Zzv) | C4: =VLOOKUP($B$3,Dropdowntotal,3,0) -> CUPW | D4: =VLOOKUP($B$3,Dropdowntotal,2,0) -> CU | G4: =IF(ISERROR(VLOOKUP($G$3,clienturenselectie,2,0)),"",VLOOKUP($G$3,clienturenselectie,2,0)) ->  | H4: =IF(ISERROR(VLOOKUP($G$3,Clienturenselectie2,2,0)),"",VLOOKUP($G$3,Clienturenselectie2,2,0)) -> CU2_3 | P4: Dagbesteding | Q4: CU_2 | S4: ='1. Stuurvariabelen'!C52 -> Totaal VP | T4: CU2_2
A5: =VLOOKUP(B3,Dropdowntotal,4,0) -> Cliënturen per week | D5: =IF(VLOOKUP($B$3,Dropdowntotal,3,0)="CUPW","Uren ingevuld volgens "&IF(RIGHT(B3,5)="(ZZP)","Zzp berekening","Zzv berekening")&", handmatig aanpassen mogelijk.","") -> Uren ingevuld volgens Zzv berekening, handmatig aanpassen mogelijk. | P5: ="Uren woonzorg excl. "&'3a. Zzp berekening'!K3 -> Uren woonzorg excl. OB | Q5: CU_6 | S5: ='1. Stuurvariabelen'!C58 -> Totaal BG | T5: CU2_3
P6: Uren woonzorg incl. dagbesteding | Q6: CU_3 | S6: ='1. Stuurvariabelen'!C64 -> Totaal BH | T6: CU2_4
A7: budget | B7: Aandeel bfte | C7: jaaruren per bfte | D7: ="% tov "&VLOOKUP(B3,Dropdowntotal,5,0) -> % tov Cliënturen | E7: BFTE | F7: Uren per jaar | G7: Uren per week | P7: Behandelaar | Q7: CU_4 | S7: ='1. Stuurvariabelen'!C70 -> Totaal WMO | T7: CU2_6
A8: bruto | B8: =IF(ISERROR((E8/$E$8)*100),0,(E8/$E$8)*100) -> 0 | C8: ='1. Stuurvariabelen'!C90 -> 1872 | D8: =(C8/INDIRECT($D$4)) -> 1 | E8: =INDEX($A$23:$M$33,MATCH($A8,$A$23:$A$33,0),MATCH($B$3,$A$23:$M$23,0)) -> 0 | F8: =INDEX($A$23:$M$33,MATCH($A8,$A$23:$A$33,0),MATCH($B$3,$A$23:$M$23,0)+1) -> 0 | G8: =INDEX($A$23:$M$33,MATCH($A8,$A$23:$A$33,0),MATCH($B$3,$A$23:$M$23,0)+2) -> 0 | H8: totaal beschikbaar aan bruto contracturen | P8: Totaal Uren | Q8: CU_5 | S8: Totaal | T8: CU2_7
A9: verlof | B9: =IF(ISERROR((E9/$E$8)*100),0,(E9/$E$8)*100) -> 0 | C9: ='1. Stuurvariabelen'!C91 -> 0 | D9: 0 | E9: 0 | F9: 0 | G9: 0 | H9: basis vakantie + leeftijdstoeslag + compensatie feestdagen
A10: ziekte | B10: =IF(ISERROR((E10/$E$8)*100),0,(E10/$E$8)*100) -> 0 | C10: ='1. Stuurvariabelen'!C92 -> 0 | D10: 0 | E10: 0 | F10: 0 | G10: 0 | H10: ziekteverzuim
A11: overig | B11: =IF(ISERROR((E11/$E$8)*100),0,(E11/$E$8)*100) -> 0 | C11: ='1. Stuurvariabelen'!C93 -> 0 | D11: 0 | E11: 0 | F11: 0 | G11: 0 | H11: overig verzuim
A12: netto | B12: =B8-B9-B10-B11 -> 0 | C12: =C8-C9-C10-C11 -> 1872 | D12: 1 | E12: 0 | F12: 0 | G12: 0 | H12: totaal beschikbaar voor werkzaamheden
A13: ontwikkelen | B13: =IF(ISERROR((E13/$E$8)*100),0,(E13/$E$8)*100) -> 0 | C13: ='1. Stuurvariabelen'!C95 -> 0 | D13: 0 | E13: 0 | F13: 0 | G13: 0 | H13: totaal beschikbaar voor scholing, projecten e.d.
A14: uren in rooster | B14: =B12-B13 -> 0 | C14: =C12-C13 -> 1872 | D14: 1 | E14: 0 | F14: 0 | G14: 0 | H14: totaal beschikbaar voor het rooster
A15: logistiek | B15: =IF(ISERROR((E15/$E$8)*100),0,(E15/$E$8)*100) -> 0 | C15: ='1. Stuurvariabelen'!C97 -> 0 | D15: 0 | E15: 0 | F15: 0 | G15: 0 | H15: totaal beschikbaar voor lopen, overleg e.d.
A16: cliënturen | B16: =B14-B15 -> 0 | C16: =C14-C15 -> 1872 | D16: 1 | E16: 0 | F16: 0 | G16: 0 | H16: totaal beschikbaar aan cliënturen (direct / indirect)
A18: =IF(OR(B4="(Zzp)",B4="(Zzv)"),1,0) -> 1 | B18: Normatieve Deskundigheidsmix
B19: =LEVEL1 -> Niveau 1 | C19: =LEVEL2 -> Niveau 2 | D19: =LEVEL3 -> Niveau 3 | E19: =LEVEL4 -> Niveau 4 | F19: =LEVEL5 -> Niveau 5 | G19: =LEVEL6 -> Niveau 6 | H19: =LEVEL7 -> Niveau 7 | I19: =LEVEL8 -> Niveau 8
A20: FTE | B20: =IF(ISERROR(IF($B$4="(Zzp)",BFTE*('3a. Zzp berekening'!D96/'3a. Zzp berekening'!$C96),IF($B$4="(Zzv)",IF('3b. Zzv berekening'!$K$3="FTE",VLOOKUP($G$3,'3b. Zzv berekening'!$B:$S,10,0),VLOOKUP($G$3,'3b. Zzv berekening'!$B:$S,10,0)/1872),""))),"",IF($B$4="(Zzp)",BFTE*('3a. Zzp berekening'!D96/'3a. Zzp berekening'!$C96),IF($B$4="(Zzv)",IF('3b. Zzv berekening'!$K$3="FTE",VLOOKUP($G$3,'3b. Zzv berekening'!$B:$S,10,0),VLOOKUP($G$3,'3b. Zzv berekening'!$B:$S,10,0)/1872),""))) -> 0 | C20: =IF(ISERROR(IF($B$4="(Zzp)",BFTE*('3a. Zzp berekening'!E96/'3a. Zzp berekening'!$C96),IF($B$4="(Zzv)",IF('3b. Zzv berekening'!$K$3="FTE",VLOOKUP($G$3,'3b. Zzv berekening'!$B:$S,11,0),VLOOKUP($G$3,'3b. Zzv berekening'!$B:$S,11,0)/1872),""))),"",IF($B$4="(Zzp)",BFTE*('3a. Zzp berekening'!E96/'3a. Zzp berekening'!$C96),IF($B$4="(Zzv)",IF('3b. Zzv berekening'!$K$3="FTE",VLOOKUP($G$3,'3b. Zzv berekening'!$B:$S,11,0),VLOOKUP($G$3,'3b. Zzv berekening'!$B:$S,11,0)/1872),""))) -> 0 | D20: =IF(ISERROR(IF($B$4="(Zzp)",BFTE*('3a. Zzp berekening'!F96/'3a. Zzp berekening'!$C96),IF($B$4="(Zzv)",IF('3b. Zzv berekening'!$K$3="FTE",VLOOKUP($G$3,'3b. Zzv berekening'!$B:$S,12,0),VLOOKUP($G$3,'3b. Zzv berekening'!$B:$S,12,0)/1872),""))),"",IF($B$4="(Zzp)",BFTE*('3a. Zzp berekening'!F96/'3a. Zzp berekening'!$C96),IF($B$4="(Zzv)",IF('3b. Zzv berekening'!$K$3="FTE",VLOOKUP($G$3,'3b. Zzv berekening'!$B:$S,12,0),VLOOKUP($G$3,'3b. Zzv berekening'!$B:$S,12,0)/1872),""))) -> 0 | E20: =IF(ISERROR(IF($B$4="(Zzp)",BFTE*('3a. Zzp berekening'!G96/'3a. Zzp berekening'!$C96),IF($B$4="(Zzv)",IF('3b. Zzv berekening'!$K$3="FTE",VLOOKUP($G$3,'3b. Zzv berekening'!$B:$S,13,0),VLOOKUP($G$3,'3b. Zzv berekening'!$B:$S,13,0)/1872),""))),"",IF($B$4="(Zzp)",BFTE*('3a. Zzp berekening'!G96/'3a. Zzp berekening'!$C96),IF($B$4="(Zzv)",IF('3b. Zzv berekening'!$K$3="FTE",VLOOKUP($G$3,'3b. Zzv berekening'!$B:$S,13,0),VLOOKUP($G$3,'3b. Zzv berekening'!$B:$S,13,0)/1872),""))) -> 0 | F20: =IF(ISERROR(IF($B$4="(Zzp)",BFTE*('3a. Zzp berekening'!H96/'3a. Zzp berekening'!$C96),IF($B$4="(Zzv)",IF('3b. Zzv berekening'!$K$3="FTE",VLOOKUP($G$3,'3b. Zzv berekening'!$B:$S,14,0),VLOOKUP($G$3,'3b. Zzv berekening'!$B:$S,14,0)/1872),""))),"",IF($B$4="(Zzp)",BFTE*('3a. Zzp berekening'!H96/'3a. Zzp berekening'!$C96),IF($B$4="(Zzv)",IF('3b. Zzv berekening'!$K$3="FTE",VLOOKUP($G$3,'3b. Zzv berekening'!$B:$S,14,0),VLOOKUP($G$3,'3b. Zzv berekening'!$B:$S,14,0)/1872),""))) -> 0 | G20: =IF(ISERROR(IF($B$4="(Zzp)",BFTE*('3a. Zzp berekening'!I96/'3a. Zzp berekening'!$C96),IF($B$4="(Zzv)",IF('3b. Zzv berekening'!$K$3="FTE",VLOOKUP($G$3,'3b. Zzv berekening'!$B:$S,15,0),VLOOKUP($G$3,'3b. Zzv berekening'!$B:$S,15,0)/1872),""))),"",IF($B$4="(Zzp)",BFTE*('3a. Zzp berekening'!I96/'3a. Zzp berekening'!$C96),IF($B$4="(Zzv)",IF('3b. Zzv berekening'!$K$3="FTE",VLOOKUP($G$3,'3b. Zzv berekening'!$B:$S,15,0),VLOOKUP($G$3,'3b. Zzv berekening'!$B:$S,15,0)/1872),""))) -> 0 | H20: =IF(ISERROR(IF($B$4="(Zzp)",BFTE*('3a. Zzp berekening'!J96/'3a. Zzp berekening'!$C96),IF($B$4="(Zzv)",IF('3b. Zzv berekening'!$K$3="FTE",VLOOKUP($G$3,'3b. Zzv berekening'!$B:$S,16,0),VLOOKUP($G$3,'3b. Zzv berekening'!$B:$S,16,0)/1872),""))),"",IF($B$4="(Zzp)",BFTE*('3a. Zzp berekening'!J96/'3a. Zzp berekening'!$C96),IF($B$4="(Zzv)",IF('3b. Zzv berekening'!$K$3="FTE",VLOOKUP($G$3,'3b. Zzv berekening'!$B:$S,16,0),VLOOKUP($G$3,'3b. Zzv berekening'!$B:$S,16,0)/1872),""))) -> 0 | I20: =IF(ISERROR(IF($B$4="(Zzp)",BFTE*('3a. Zzp berekening'!K96/'3a. Zzp berekening'!$C96),IF($B$4="(Zzv)",IF('3b. Zzv berekening'!$K$3="FTE",VLOOKUP($G$3,'3b. Zzv berekening'!$B:$S,17,0),VLOOKUP($G$3,'3b. Zzv berekening'!$B:$S,17,0)/1872),""))),"",IF($B$4="(Zzp)",BFTE*('3a. Zzp berekening'!K96/'3a. Zzp berekening'!$C96),IF($B$4="(Zzv)",IF('3b. Zzv berekening'!$K$3="FTE",VLOOKUP($G$3,'3b. Zzv berekening'!$B:$S,17,0),VLOOKUP($G$3,'3b. Zzv berekening'!$B:$S,17,0)/1872),""))) -> 0
B23: Formatie Samenstelling | E23: Formatie vanuit Roosteruren | H23: Formatie vanuit Cliënturen (Zzp) | K23: Formatie vanuit Cliënturen (Zzv)
B24: BFTE | C24: Uren per jaar | D24: Uren per week | E24: BFTE | F24: Uren per jaar | G24: Uren per week | H24: BFTE | I24: Uren per jaar | J24: Uren per week | K24: BFTE | L24: Uren per jaar | M24: Uren per week
A25: bruto | B25: =IF(ISERROR(INPUT),0,INPUT) -> 0 | C25: =IF(ISERROR(B25*1872),0,B25*1872) -> 0 | D25: =IF(ISERROR(C25/(365/7)),0,C25/(365/7)) -> 0 | E25: =IF(ISERROR(F25/1872),0,F25/1872) -> 0 | F25: =IF(ISERROR(G25*(365/7)),0,G25*(365/7)) -> 0 | G25: =IF(ISERROR(G$31/RU*C8),0,G$31/RU*C8) -> 0 | H25: =IF(ISERROR(I25/BU),0,I25/BU) -> 0 | I25: =IF(ISERROR(J25*(365/7)),0,J25*(365/7)) -> 0 | J25: =IF(ISERROR(J29+J26+J27+J28),0,J29+J26+J27+J28) -> 0 | K25: =IF(ISERROR(VLOOKUP(G3,'3b. Zzv berekening'!B:S,18,0)),0,VLOOKUP(G3,'3b. Zzv berekening'!B:S,18,0)) -> 0 | L25: =IF(ISERROR(K25*1872),0,K25*1872) -> 0 | M25: =IF(ISERROR(L25/(365/7)),0,L25/(365/7)) -> 0
A26: verlof | B26: =IF(ISERROR(B$25/BU*C9),0,B$25/BU*C9) -> 0 | C26: =IF(ISERROR(B26*1872),0,B26*1872) -> 0 | D26: =IF(ISERROR(C26/(365/7)),0,C26/(365/7)) -> 0 | E26: =IF(ISERROR(F26/1872),0,F26/1872) -> 0 | F26: =IF(ISERROR(G26*(365/7)),0,G26*(365/7)) -> 0 | G26: =IF(ISERROR(G$31/RU*C9),0,G$31/RU*C9) -> 0 | H26: 0 | I26: 0 | J26: =IF(ISERROR(J$33/CU*C9),0,J$33/CU*C9) -> 0 | K26: =IF(ISERROR(K$25/BU*C9),0,K$25/BU*C9) -> 0 | L26: =IF(ISERROR(K26*1872),0,K26*1872) -> 0 | M26: =IF(ISERROR(L26/(365/7)),0,L26/(365/7)) -> 0
A27: ziekte | B27: =IF(ISERROR(B$25/BU*C10),0,B$25/BU*C10) -> 0 | C27: =IF(ISERROR(B27*1872),0,B27*1872) -> 0 | D27: =IF(ISERROR(C27/(365/7)),0,C27/(365/7)) -> 0 | E27: =IF(ISERROR(F27/1872),0,F27/1872) -> 0 | F27: =IF(ISERROR(G27*(365/7)),0,G27*(365/7)) -> 0 | G27: =IF(ISERROR(G$31/RU*C10),0,G$31/RU*C10) -> 0 | H27: 0 | I27: 0 | J27: =IF(ISERROR(J$33/CU*C10),0,J$33/CU*C10) -> 0 | K27: =IF(ISERROR(K$25/BU*C10),0,K$25/BU*C10) -> 0 | L27: =IF(ISERROR(K27*1872),0,K27*1872) -> 0 | M27: =IF(ISERROR(L27/(365/7)),0,L27/(365/7)) -> 0
A28: overig | B28: =IF(ISERROR(B$25/BU*C11),0,B$25/BU*C11) -> 0 | C28: =IF(ISERROR(B28*1872),0,B28*1872) -> 0 | D28: =IF(ISERROR(C28/(365/7)),0,C28/(365/7)) -> 0 | E28: =IF(ISERROR(F28/1872),0,F28/1872) -> 0 | F28: =IF(ISERROR(G28*(365/7)),0,G28*(365/7)) -> 0 | G28: =IF(ISERROR(G$31/RU*C11),0,G$31/RU*C11) -> 0 | H28: 0 | I28: 0 | J28: =IF(ISERROR(J$33/CU*C11),0,J$33/CU*C11) -> 0 | K28: =IF(ISERROR(K$25/BU*C11),0,K$25/BU*C11) -> 0 | L28: =IF(ISERROR(K28*1872),0,K28*1872) -> 0 | M28: =IF(ISERROR(L28/(365/7)),0,L28/(365/7)) -> 0
A29: netto | B29: =IF(ISERROR(B25-B26-B27-B28),0,B25-B26-B27-B28) -> 0 | C29: 0 | D29: 0 | E29: 0 | F29: 0 | G29: 0 | H29: 0 | I29: 0 | J29: =IF(ISERROR(J31+J30),0,J31+J30) -> 0 | K29: =IF(ISERROR(K25-K26-K27-K28),0,K25-K26-K27-K28) -> 0 | L29: =IF(ISERROR(L25-L26-L27-L28),0,L25-L26-L27-L28) -> 0 | M29: =IF(ISERROR(M25-M26-M27-M28),0,M25-M26-M27-M28) -> 0
A30: ontwikkelen | B30: =IF(ISERROR(B$25/BU*C13),0,B$25/BU*C13) -> 0 | C30: =IF(ISERROR(B30*1872),0,B30*1872) -> 0 | D30: =IF(ISERROR(C30/(365/7)),0,C30/(365/7)) -> 0 | E30: =IF(ISERROR(F30/1872),0,F30/1872) -> 0 | F30: =IF(ISERROR(G30*(365/7)),0,G30*(365/7)) -> 0 | G30: =IF(ISERROR(G$31/RU*C13),0,G$31/RU*C13) -> 0 | H30: 0 | I30: 0 | J30: =IF(ISERROR(J$33/CU*C13),0,J$33/CU*C13) -> 0 | K30: =IF(ISERROR(K$25/BU*C13),0,K$25/BU*C13) -> 0 | L30: =IF(ISERROR(K30*1872),0,K30*1872) -> 0 | M30: =IF(ISERROR(L30/(365/7)),0,L30/(365/7)) -> 0
A31: uren in rooster | B31: =IF(ISERROR(IF(ISERROR(B29-B30),0,B29-B30)),0,IF(ISERROR(B29-B30),0,B29-B30)) -> 0 | C31: =IF(ISERROR(B31*1872),0,B31*1872) -> 0 | D31: =IF(ISERROR(C31/(365/7)),0,C31/(365/7)) -> 0 | E31: =IF(ISERROR(F31/1872),0,F31/1872) -> 0 | F31: =IF(ISERROR(G31*(365/7)),0,G31*(365/7)) -> 0 | G31: =IF(ISERROR(INPUT),0,INPUT) -> 0 | H31: 0 | I31: 0 | J31: =IF(ISERROR(J33+J32),0,J33+J32) -> 0 | K31: =IF(ISERROR(IF(ISERROR(K29-K30),0,K29-K30)),0,IF(ISERROR(K29-K30),0,K29-K30)) -> 0 | L31: =IF(ISERROR(K31*1872),0,K31*1872) -> 0 | M31: =IF(ISERROR(L31/(365/7)),0,L31/(365/7)) -> 0
A32: logistiek | B32: =IF(ISERROR(B$25/BU*C15),0,B$25/BU*C15) -> 0 | C32: =IF(ISERROR(B32*1872),0,B32*1872) -> 0 | D32: =IF(ISERROR(C32/(365/7)),0,C32/(365/7)) -> 0 | E32: =IF(ISERROR(F32/1872),0,F32/1872) -> 0 | F32: =IF(ISERROR(G32*(365/7)),0,G32*(365/7)) -> 0 | G32: =IF(ISERROR(G$31/RU*C15),0,G$31/RU*C15) -> 0 | H32: 0 | I32: 0 | J32: =IF(ISERROR(J$33/CU*C15),0,J$33/CU*C15) -> 0 | K32: =IF(ISERROR(K31-K33),0,K31-K33) -> 0 | L32: =IF(ISERROR(L31-L33),0,L31-L33) -> 0 | M32: =IF(ISERROR(M31-M33),0,M31-M33) -> 0
A33: cliënturen | B33: =IF(ISERROR(B31-B32),0,B31-B32) -> 0 | C33: 0 | D33: 0 | E33: 0 | F33: 0 | G33: 0 | H33: 0 | I33: 0 | J33: =IF(ISERROR(IF(INPUT<>"",INPUT,INDIRECT($G$4)*24)),0,IF(INPUT<>"",INPUT,INDIRECT($G$4)*24)) -> 0 | K33: =IF(ISERROR(L33/1872),0,L33/1872) -> 0 | L33: =IF(ISERROR(VLOOKUP(G3,'3b. Zzv berekening'!B:S,3,0)),0,VLOOKUP(G3,'3b. Zzv berekening'!B:S,3,0)) -> 0 | M33: =IF(ISERROR(L33/(365/7)),0,L33/(365/7)) -> 0

Sheet 5. Formatie Correctie
A3: Totaal beschikbaar aan bruto contracturen | B3: ='4. Formatie'!G8 -> 0
A4: Totaal beschikbaar voor het rooster | B4: =RUPW -> 0
A5: Verlofuren | B5: ='4. Formatie'!$G$9 -> 0
A7: Aanpassingen op beschikbare roosteruren per week:
B8: +/+ | D8: -/-
D11: 0
A15: Totaal beschikbaar aan bruto contracturen na correcties | B15: =(B3/B4)*B16 -> 
A16: Totaal beschikbaar voor het rooster na correcties | B16: =RUPW+Roosterurenaanpassing -> 0
A17: Verlofuren na correctie | B17: =IF(ISERROR(B5/B4*RUPWcor),0,B5/B4*RUPWcor) -> 0

Sheet 6a. Bezettingseis
M3: Aantal diensten of routes
B4: Minimum Deskundigheids niveau | C4: Dienstnaam | D4: Actieve (A) / Bijzondere (B) dienst | E4: Uren Bijzondere Dienst | F4: % van dienst voor uw rekening | G4: Begintijd | H4: Eindtijd | I4: Onbetaalde Pauze | J4: Netto Arbeidsuren Per Dienst | K4: Grafiek input | L4: CHECK | M4: ma | N4: Arbeidstijd | O4: Arbeidsuren | P4: di | Q4: Arbeidstijd | R4: Arbeidsuren | S4: wo | T4: Arbeidstijd | U4: Arbeidsuren | V4: do | W4: Arbeidstijd | X4: Arbeidsuren | Y4: vr | Z4: Arbeidstijd | AA4: Arbeidsuren | AB4: za | AC4: Arbeidstijd | AD4: Arbeidsuren | AE4: zo | AF4: Arbeidstijd | AG4: Arbeidsuren | AH4: Totaal per week | AI4: Deelfactor Gedeelde diensten | AJ4: Arbeidstijd Bijzondere Dienst | AK4: Totaal aantal arbeidsuren per dienst | AL4: Totaal aantal arbeidstijd per dienst | AN4: 00:15:00 | AO4: 00:30:00 | AP4: 00:45:00 | AQ4: 01:00:00 | AR4: 01:15:00 | AS4: 01:30:00 | AT4: 01:45:00 | AU4: 02:00:00 | AV4: 02:15:00 | AW4: 02:30:00 | AX4: 02:45:00 | AY4: 03:00:00 | AZ4: 03:15:00 | BA4: 03:30:00 | BB4: 03:45:00 | BC4: 04:00:00 | BD4: 04:15:00 | BE4: 04:30:00 | BF4: 04:45:00 | BG4: 05:00:00 | BH4: 05:15:00 | BI4: 05:30:00 | BJ4: 05:45:00 | BK4: 06:00:00 | BL4: 06:15:00 | BM4: 06:30:00 | BN4: 06:45:00 | BO4: 07:00:00 | BP4: 07:15:00 | BQ4: 07:30:00 | BR4: 07:45:00 | BS4: 08:00:00 | BT4: 08:15:00 | BU4: 08:30:00 | BV4: 08:45:00 | BW4: 09:00:00 | BX4: 09:15:00 | BY4: 09:30:00 | BZ4: 09:45:00 | CA4: 10:00:00 | CB4: 10:15:00 | CC4: 10:30:00 | CD4: 10:45:00 | CE4: 11:00:00 | CF4: 11:15:00 | CG4: 11:30:00 | CH4: 11:45:00 | CI4: 12:00:00 | CJ4: 12:15:00 | CK4: 12:30:00 | CL4: 12:45:00 | CM4: 13:00:00 | CN4: 13:15:00 | CO4: 13:30:00 | CP4: 13:45:00 | CQ4: 14:00:00 | CR4: 14:15:00 | CS4: 14:30:00 | CT4: 14:45:00 | CU4: 15:00:00 | CV4: 15:15:00 | CW4: 15:30:00 | CX4: 15:45:00 | CY4: 16:00:00 | CZ4: 16:15:00 | DA4: 16:30:00 | DB4: 16:45:00 | DC4: 17:00:00 | DD4: 17:15:00 | DE4: 17:30:00 | DF4: 17:45:00 | DG4: 18:00:00 | DH4: 18:15:00 | DI4: 18:30:00 | DJ4: 18:45:00 | DK4: 19:00:00 | DL4: 19:15:00 | DM4: 19:30:00 | DN4: 19:45:00 | DO4: 20:00:00 | DP4: 20:15:00 | DQ4: 20:30:00 | DR4: 20:45:00 | DS4: 21:00:00 | DT4: 21:15:00 | DU4: 21:30:00 | DV4: 21:45:00 | DW4: 22:00:00 | DX4: 22:15:00 | DY4: 22:30:00 | DZ4: 22:45:00 | EA4: 23:00:00 | EB4: 23:15:00 | EC4: 23:30:00 | ED4: 23:45:00 | EE4: 1
F5: Uren en tijden invullen met dubbele punt! (bijvoorbeeld 15:30)
J6: =IF(ISERROR(IF(ISERROR(IF(D6="a",H6-G6-I6+IF(G6>H6,1),E6)),0,IF(D6="a",H6-G6-I6+IF(G6>H6,1),E6))),0,IF(ISERROR(IF(D6="a",H6-G6-I6+IF(G6>H6,1),E6)),0,IF(D6="a",H6-G6-I6+IF(G6>H6,1),E6))) -> 00:00:00 | K6: =IF(ISERROR(IF(J6*24>7,"vanaf 7 uur",IF(J6*24<4,"tot 4 uur","4 tot 7 uur"))&B6),0,IF(J6*24>7,"vanaf 7 uur",IF(J6*24<4,"tot 4 uur","4 tot 7 uur"))&B6) -> tot 4 uur | L6: =IF(ISERROR(IF((J6*24)>6.99,J6*24*AH6,0)*IF(F6<>"",F6,1)),0,IF((J6*24)>6.99,J6*24*AH6,0)*IF(F6<>"",F6,1)) -> 0 | N6: =M6*$J6*IF($F6<>"",$F6,1) -> 0 | O6: =($H6-$G6-$I6+IF($G6>$H6,1))*M6 -> 0 | Q6: =P6*$J6*IF($F6<>"",$F6,1) -> 0 | R6: =($H6-$G6-$I6+IF($G6>$H6,1))*P6 -> 0 | T6: =S6*$J6*IF($F6<>"",$F6,1) -> 0 | U6: =($H6-$G6-$I6+IF($G6>$H6,1))*S6 -> 0 | W6: =V6*$J6*IF($F6<>"",$F6,1) -> 0 | X6: =($H6-$G6-$I6+IF($G6>$H6,1))*V6 -> 0 | Z6: =Y6*$J6*IF($F6<>"",$F6,1) -> 0 | AA6: =($H6-$G6-$I6+IF($G6>$H6,1))*Y6 -> 0 | AC6: =AB6*$J6*IF($F6<>"",$F6,1) -> 0 | AD6: =($H6-$G6-$I6+IF($G6>$H6,1))*AB6 -> 0 | AF6: =AE6*$J6*IF(F6<>"",F6,1) -> 0 | AG6: =($H6-$G6-$I6+IF($G6>$H6,1))*AE6 -> 0 | AH6: =M6+P6+S6+V6+Y6+AB6+AE6 -> 0 | AI6: =IF(F6>0,F6,100%) -> 1 | AJ6: =E6*AI6*AH6 -> 0 | AK6: =IF(D6="a", J6*AH6*AI6, AJ6) -> 0 | AL6: =($H6-$G6-$I6+IF($G6>$H6,1))*AH6*IF(F6<>"",F6,1) -> 0 | AN6: =IF($G6>$H6,IF(OR(AND(AN$4>$G6,AN$4<="23:59:00"),AN$4<=$H6),INDEX($M$6:$AE$55,(ROW()-5),MATCH(VLOOKUP('6b. Bezettingseis Grafiek'!$C$3,data!$N$3:$O$9,2,0),'6a. Bezettingseis'!$M$4:$AE$4,0)),""),IF(AND($G6<=AN$4,AN$4<=$H6),INDEX($M$6:$AE$55,(ROW()-5),MATCH(VLOOKUP('6b. Bezettingseis Grafiek'!$C$3,data!$N$3:$O$9,2,0),'6a. Bezettingseis'!$M$4:$AE$4,0)),"")) ->  | AO6: =IF($G6>$H6,IF(OR(AND(AO$4>$G6,AO$4<="23:59:00"),AO$4<=$H6),INDEX($M$6:$AE$55,(ROW()-5),MATCH(VLOOKUP('6b. Bezettingseis Grafiek'!$C$3,data!$N$3:$O$9,2,0),'6a. Bezettingseis'!$M$4:$AE$4,0)),""),IF(AND($G6<=AO$4,AO$4<=$H6),INDEX($M$6:$AE$55,(ROW()-5),MATCH(VLOOKUP('6b. Bezettingseis Grafiek'!$C$3,data!$N$3:$O$9,2,0),'6a. Bezettingseis'!$M$4:$AE$4,0)),"")) ->  | AP6: =IF($G6>$H6,IF(OR(AND(AP$4>$G6,AP$4<="23:59:00"),AP$4<=$H6),INDEX($M$6:$AE$55,(ROW()-5),MATCH(VLOOKUP('6b. Bezettingseis Grafiek'!$C$3,data!$N$3:$O$9,2,0),'6a. Bezettingseis'!$M$4:$AE$4,0)),""),IF(AND($G6<=AP$4,AP$4<=$H6),INDEX($M$6:$AE$55,(ROW()-5),MATCH(VLOOKUP('6b. Bezettingseis Grafiek'!$C$3,data!$N$3:$O$9,2,0),'6a. Bezettingseis'!$M$4:$AE$4,0)),"")) ->  | AQ6: =IF($G6>$H6,IF(OR(AND(AQ$4>$G6,AQ$4<="23:59:00"),AQ$4<=$H6),INDEX($M$6:$AE$55,(ROW()-5),MATCH(VLOOKUP('6b. Bezettingseis Grafiek'!$C$3,data!$N$3:$O$9,2,0),'6a. Bezettingseis'!$M$4:$AE$4,0)),""),IF(AND($G6<=AQ$4,AQ$4<=$H6),INDEX($M$6:$AE$55,(ROW()-5),MATCH(VLOOKUP('6b. Bezettingseis Grafiek'!$C$3,data!$N$3:$O$9,2,0),'6a. Bezettingseis'!$M$4:$AE$4,0)),"")) ->  | AR6: =IF($G6>$H6,IF(OR(AND(AR$4>$G6,AR$4<="23:59:00"),AR$4<=$H6),INDEX($M$6:$AE$55,(ROW()-5),MATCH(VLOOKUP('6b. Bezettingseis Grafiek'!$C$3,data!$N$3:$O$9,2,0),'6a. Bezettingseis'!$M$4:$AE$4,0)),""),IF(AND($G6<=AR$4,AR$4<=$H6),INDEX($M$6:$AE$55,(ROW()-5),MATCH(VLOOKUP('6b. Bezettingseis Grafiek'!$C$3,data!$N$3:$O$9,2,0),'6a. Bezettingseis'!$M$4:$AE$4,0)),"")) ->  | AS6: =IF($G6>$H6,IF(OR(AND(AS$4>$G6,AS$4<="23:59:00"),AS$4<=$H6),INDEX($M$6:$AE$55,(ROW()-5),MATCH(VLOOKUP('6b. Bezettingseis Grafiek'!$C$3,data!$N$3:$O$9,2,0),'6a. Bezettingseis'!$M$4:$AE$4,0)),""),IF(AND($G6<=AS$4,AS$4<=$H6),INDEX($M$6:$AE$55,(ROW()-5),MATCH(VLOOKUP('6b. Bezettingseis Grafiek'!$C$3,data!$N$3:$O$9,2,0),'6a. Bezettingseis'!$M$4:$AE$4,0)),"")) ->  | AT6: =IF($G6>$H6,IF(OR(AND(AT$4>$G6,AT$4<="23:59:00"),AT$4<=$H6),INDEX($M$6:$AE$55,(ROW()-5),MATCH(VLOOKUP('6b. Bezettingseis Grafiek'!$C$3,data!$N$3:$O$9,2,0),'6a. Bezettingseis'!$M$4:$AE$4,0)),""),IF(AND($G6<=AT$4,AT$4<=$H6),INDEX($M$6:$AE$55,(ROW()-5),MATCH(VLOOKUP('6b. Bezettingseis Grafiek'!$C$3,data!$N$3:$O$9,2,0),'6a. Bezettingseis'!$M$4:$AE$4,0)),"")) ->  | AU6: =IF($G6>$H6,IF(OR(AND(AU$4>$G6,AU$4<="23:59:00"),AU$4<=$H6),INDEX($M$6:$AE$55,(ROW()-5),MATCH(VLOOKUP('6b. Bezettingseis Grafiek'!$C$3,data!$N$3:$O$9,2,0),'6a. Bezettingseis'!$M$4:$AE$4,0)),""),IF(AND($G6<=AU$4,AU$4<=$H6),INDEX($M$6:$AE$55,(ROW()-5),MATCH(VLOOKUP('6b. Bezettingseis Grafiek'!$C$3,data!$N$3:$O$9,2,0),'6a. Bezettingseis'!$M$4:$AE$4,0)),"")) ->  | AV6: =IF($G6>$H6,IF(OR(AND(AV$4>$G6,AV$4<="23:59:00"),AV$4<=$H6),INDEX($M$6:$AE$55,(ROW()-5),MATCH(VLOOKUP('6b. Bezettingseis Grafiek'!$C$3,data!$N$3:$O$9,2,0),'6a. Bezettingseis'!$M$4:$AE$4,0)),""),IF(AND($G6<=AV$4,AV$4<=$H6),INDEX($M$6:$AE$55,(ROW()-5),MATCH(VLOOKUP('6b. Bezettingseis Grafiek'!$C$3,data!$N$3:$O$9,2,0),'6a. Bezettingseis'!$M$4:$AE$4,0)),"")) ->  | AW6: =IF($G6>$H6,IF(OR(AND(AW$4>$G6,AW$4<="23:59:00"),AW$4<=$H6),INDEX($M$6:$AE$55,(ROW()-5),MATCH(VLOOKUP('6b. Bezettingseis Grafiek'!$C$3,data!$N$3:$O$9,2,0),'6a. Bezettingseis'!$M$4:$AE$4,0)),""),IF(AND($G6<=AW$4,AW$4<=$H6),INDEX($M$6:$AE$55,(ROW()-5),MATCH(VLOOKUP('6b. Bezettingseis Grafiek'!$C$3,data!$N$3:$O$9,2,0),'6a. Bezettingseis'!$M$4:$AE$4,0)),"")) ->  | AX6: =IF($G6>$H6,IF(OR(AND(AX$4>$G6,AX$4<="23:59:00"),AX$4<=$H6),INDEX($M$6:$AE$55,(ROW()-5),MATCH(VLOOKUP('6b. Bezettingseis Grafiek'!$C$3,data!$N$3:$O$9,2,0),'6a. Bezettingseis'!$M$4:$AE$4,0)),""),IF(AND($G6<=AX$4,AX$4<=$H6),INDEX($M$6:$AE$55,(ROW()-5),MATCH(VLOOKUP('6b. Bezettingseis Grafiek'!$C$3,data!$N$3:$O$9,2,0),'6a. Bezettingseis'!$M$4:$AE$4,0)),"")) ->  | AY6: =IF($G6>$H6,IF(OR(AND(AY$4>$G6,AY$4<="23:59:00"),AY$4<=$H6),INDEX($M$6:$AE$55,(ROW()-5),MATCH(VLOOKUP('6b. Bezettingseis Grafiek'!$C$3,data!$N$3:$O$9,2,0),'6a. Bezettingseis'!$M$4:$AE$4,0)),""),IF(AND($G6<=AY$4,AY$4<=$H6),INDEX($M$6:$AE$55,(ROW()-5),MATCH(VLOOKUP('6b. Bezettingseis Grafiek'!$C$3,data!$N$3:$O$9,2,0),'6a. Bezettingseis'!$M$4:$AE$4,0)),"")) ->  | AZ6: =IF($G6>$H6,IF(OR(AND(AZ$4>$G6,AZ$4<="23:59:00"),AZ$4<=$H6),INDEX($M$6:$AE$55,(ROW()-5),MATCH(VLOOKUP('6b. Bezettingseis Grafiek'!$C$3,data!$N$3:$O$9,2,0),'6a. Bezettingseis'!$M$4:$AE$4,0)),""),IF(AND($G6<=AZ$4,AZ$4<=$H6),INDEX($M$6:$AE$55,(ROW()-5),MATCH(VLOOKUP('6b. Bezettingseis Grafiek'!$C$3,data!$N$3:$O$9,2,0),'6a. Bezettingseis'!$M$4:$AE$4,0)),"")) ->  | BA6: =IF($G6>$H6,IF(OR(AND(BA$4>$G6,BA$4<="23:59:00"),BA$4<=$H6),INDEX($M$6:$AE$55,(ROW()-5),MATCH(VLOOKUP('6b. Bezettingseis Grafiek'!$C$3,data!$N$3:$O$9,2,0),'6a. Bezettingseis'!$M$4:$AE$4,0)),""),IF(AND($G6<=BA$4,BA$4<=$H6),INDEX($M$6:$AE$55,(ROW()-5),MATCH(VLOOKUP('6b. Bezettingseis Grafiek'!$C$3,data!$N$3:$O$9,2,0),'6a. Bezettingseis'!$M$4:$AE$4,0)),"")) ->  | BB6: =IF($G6>$H6,IF(OR(AND(BB$4>$G6,BB$4<="23:59:00"),BB$4<=$H6),INDEX($M$6:$AE$55,(ROW()-5),MATCH(VLOOKUP('6b. Bezettingseis Grafiek'!$C$3,data!$N$3:$O$9,2,0),'6a. Bezettingseis'!$M$4:$AE$4,0)),""),IF(AND($G6<=BB$4,BB$4<=$H6),INDEX($M$6:$AE$55,(ROW()-5),MATCH(VLOOKUP('6b. Bezettingseis Grafiek'!$C$3,data!$N$3:$O$9,2,0),'6a. Bezettingseis'!$M$4:$AE$4,0)),"")) ->  | BC6: =IF($G6>$H6,IF(OR(AND(BC$4>$G6,BC$4<="23:59:00"),BC$4<=$H6),INDEX($M$6:$AE$55,(ROW()-5),MATCH(VLOOKUP('6b. Bezettingseis Grafiek'!$C$3,data!$N$3:$O$9,2,0),'6a. Bezettingseis'!$M$4:$AE$4,0)),""),IF(AND($G6<=BC$4,BC$4<=$H6),INDEX($M$6:$AE$55,(ROW()-5),MATCH(VLOOKUP('6b. Bezettingseis Grafiek'!$C$3,data!$N$3:$O$9,2,0),'6a. Bezettingseis'!$M$4:$AE$4,0)),"")) ->  | BD6: =IF($G6>$H6,IF(OR(AND(BD$4>$G6,BD$4<="23:59:00"),BD$4<=$H6),INDEX($M$6:$AE$55,(ROW()-5),MATCH(VLOOKUP('6b. Bezettingseis Grafiek'!$C$3,data!$N$3:$O$9,2,0),'6a. Bezettingseis'!$M$4:$AE$4,0)),""),IF(AND($G6<=BD$4,BD$4<=$H6),INDEX($M$6:$AE$55,(ROW()-5),MATCH(VLOOKUP('6b. Bezettingseis Grafiek'!$C$3,data!$N$3:$O$9,2,0),'6a. Bezettingseis'!$M$4:$AE$4,0)),"")) ->  | BE6: =IF($G6>$H6,IF(OR(AND(BE$4>$G6,BE$4<="23:59:00"),BE$4<=$H6),INDEX($M$6:$AE$55,(ROW()-5),MATCH(VLOOKUP('6b. Bezettingseis Grafiek'!$C$3,data!$N$3:$O$9,2,0),'6a. Bezettingseis'!$M$4:$AE$4,0)),""),IF(AND($G6<=BE$4,BE$4<=$H6),INDEX($M$6:$AE$55,(ROW()-5),MATCH(VLOOKUP('6b. Bezettingseis Grafiek'!$C$3,data!$N$3:$O$9,2,0),'6a. Bezettingseis'!$M$4:$AE$4,0)),"")) ->  | BF6: =IF($G6>$H6,IF(OR(AND(BF$4>$G6,BF$4<="23:59:00"),BF$4<=$H6),INDEX($M$6:$AE$55,(ROW()-5),MATCH(VLOOKUP('6b. Bezettingseis Grafiek'!$C$3,data!$N$3:$O$9,2,0),'6a. Bezettingseis'!$M$4:$AE$4,0)),""),IF(AND($G6<=BF$4,BF$4<=$H6),INDEX($M$6:$AE$55,(ROW()-5),MATCH(VLOOKUP('6b. Bezettingseis Grafiek'!$C$3,data!$N$3:$O$9,2,0),'6a. Bezettingseis'!$M$4:$AE$4,0)),"")) ->  | BG6: =IF($G6>$H6,IF(OR(AND(BG$4>$G6,BG$4<="23:59:00"),BG$4<=$H6),INDEX($M$6:$AE$55,(ROW()-5),MATCH(VLOOKUP('6b. Bezettingseis Grafiek'!$C$3,data!$N$3:$O$9,2,0),'6a. Bezettingseis'!$M$4:$AE$4,0)),""),IF(AND($G6<=BG$4,BG$4<=$H6),INDEX($M$6:$AE$55,(ROW()-5),MATCH(VLOOKUP('6b. Bezettingseis Grafiek'!$C$3,data!$N$3:$O$9,2,0),'6a. Bezettingseis'!$M$4:$AE$4,0)),"")) ->  | BH6: =IF($G6>$H6,IF(OR(AND(BH$4>$G6,BH$4<="23:59:00"),BH$4<=$H6),INDEX($M$6:$AE$55,(ROW()-5),MATCH(VLOOKUP('6b. Bezettingseis Grafiek'!$C$3,data!$N$3:$O$9,2,0),'6a. Bezettingseis'!$M$4:$AE$4,0)),""),IF(AND($G6<=BH$4,BH$4<=$H6),INDEX($M$6:$AE$55,(ROW()-5),MATCH(VLOOKUP('6b. Bezettingseis Grafiek'!$C$3,data!$N$3:$O$9,2,0),'6a. Bezettingseis'!$M$4:$AE$4,0)),"")) ->  | BI6: =IF($G6>$H6,IF(OR(AND(BI$4>$G6,BI$4<="23:59:00"),BI$4<=$H6),INDEX($M$6:$AE$55,(ROW()-5),MATCH(VLOOKUP('6b. Bezettingseis Grafiek'!$C$3,data!$N$3:$O$9,2,0),'6a. Bezettingseis'!$M$4:$AE$4,0)),""),IF(AND($G6<=BI$4,BI$4<=$H6),INDEX($M$6:$AE$55,(ROW()-5),MATCH(VLOOKUP('6b. Bezettingseis Grafiek'!$C$3,data!$N$3:$O$9,2,0),'6a. Bezettingseis'!$M$4:$AE$4,0)),"")) ->  | BJ6: =IF($G6>$H6,IF(OR(AND(BJ$4>$G6,BJ$4<="23:59:00"),BJ$4<=$H6),INDEX($M$6:$AE$55,(ROW()-5),MATCH(VLOOKUP('6b. Bezettingseis Grafiek'!$C$3,data!$N$3:$O$9,2,0),'6a. Bezettingseis'!$M$4:$AE$4,0)),""),IF(AND($G6<=BJ$4,BJ$4<=$H6),INDEX($M$6:$AE$55,(ROW()-5),MATCH(VLOOKUP('6b. Bezettingseis Grafiek'!$C$3,data!$N$3:$O$9,2,0),'6a. Bezettingseis'!$M$4:$AE$4,0)),"")) ->  | BK6: =IF($G6>$H6,IF(OR(AND(BK$4>$G6,BK$4<="23:59:00"),BK$4<=$H6),INDEX($M$6:$AE$55,(ROW()-5),MATCH(VLOOKUP('6b. Bezettingseis Grafiek'!$C$3,data!$N$3:$O$9,2,0),'6a. Bezettingseis'!$M$4:$AE$4,0)),""),IF(AND($G6<=BK$4,BK$4<=$H6),INDEX($M$6:$AE$55,(ROW()-5),MATCH(VLOOKUP('6b. Bezettingseis Grafiek'!$C$3,data!$N$3:$O$9,2,0),'6a. Bezettingseis'!$M$4:$AE$4,0)),"")) ->  | BL6: =IF($G6>$H6,IF(OR(AND(BL$4>$G6,BL$4<="23:59:00"),BL$4<=$H6),INDEX($M$6:$AE$55,(ROW()-5),MATCH(VLOOKUP('6b. Bezettingseis Grafiek'!$C$3,data!$N$3:$O$9,2,0),'6a. Bezettingseis'!$M$4:$AE$4,0)),""),IF(AND($G6<=BL$4,BL$4<=$H6),INDEX($M$6:$AE$55,(ROW()-5),MATCH(VLOOKUP('6b. Bezettingseis Grafiek'!$C$3,data!$N$3:$O$9,2,0),'6a. Bezettingseis'!$M$4:$AE$4,0)),"")) ->  | BM6: =IF($G6>$H6,IF(OR(AND(BM$4>$G6,BM$4<="23:59:00"),BM$4<=$H6),INDEX($M$6:$AE$55,(ROW()-5),MATCH(VLOOKUP('6b. Bezettingseis Grafiek'!$C$3,data!$N$3:$O$9,2,0),'6a. Bezettingseis'!$M$4:$AE$4,0)),""),IF(AND($G6<=BM$4,BM$4<=$H6),INDEX($M$6:$AE$55,(ROW()-5),MATCH(VLOOKUP('6b. Bezettingseis Grafiek'!$C$3,data!$N$3:$O$9,2,0),'6a. Bezettingseis'!$M$4:$AE$4,0)),"")) ->  | BN6: =IF($G6>$H6,IF(OR(AND(BN$4>$G6,BN$4<="23:59:00"),BN$4<=$H6),INDEX($M$6:$AE$55,(ROW()-5),MATCH(VLOOKUP('6b. Bezettingseis Grafiek'!$C$3,data!$N$3:$O$9,2,0),'6a. Bezettingseis'!$M$4:$AE$4,0)),""),IF(AND($G6<=BN$4,BN$4<=$H6),INDEX($M$6:$AE$55,(ROW()-5),MATCH(VLOOKUP('6b. Bezettingseis Grafiek'!$C$3,data!$N$3:$O$9,2,0),'6a. Bezettingseis'!$M$4:$AE$4,0)),"")) ->  | BO6: =IF($G6>$H6,IF(OR(AND(BO$4>$G6,BO$4<="23:59:00"),BO$4<=$H6),INDEX($M$6:$AE$55,(ROW()-5),MATCH(VLOOKUP('6b. Bezettingseis Grafiek'!$C$3,data!$N$3:$O$9,2,0),'6a. Bezettingseis'!$M$4:$AE$4,0)),""),IF(AND($G6<=BO$4,BO$4<=$H6),INDEX($M$6:$AE$55,(ROW()-5),MATCH(VLOOKUP('6b. Bezettingseis Grafiek'!$C$3,data!$N$3:$O$9,2,0),'6a. Bezettingseis'!$M$4:$AE$4,0)),"")) ->  | BP6: =IF($G6>$H6,IF(OR(AND(BP$4>$G6,BP$4<="23:59:00"),BP$4<=$H6),INDEX($M$6:$AE$55,(ROW()-5),MATCH(VLOOKUP('6b. Bezettingseis Grafiek'!$C$3,data!$N$3:$O$9,2,0),'6a. Bezettingseis'!$M$4:$AE$4,0)),""),IF(AND($G6<=BP$4,BP$4<=$H6),INDEX($M$6:$AE$55,(ROW()-5),MATCH(VLOOKUP('6b. Bezettingseis Grafiek'!$C$3,data!$N$3:$O$9,2,0),'6a. Bezettingseis'!$M$4:$AE$4,0)),"")) ->  | BQ6: =IF($G6>$H6,IF(OR(AND(BQ$4>$G6,BQ$4<="23:59:00"),BQ$4<=$H6),INDEX($M$6:$AE$55,(ROW()-5),MATCH(VLOOKUP('6b. Bezettingseis Grafiek'!$C$3,data!$N$3:$O$9,2,0),'6a. Bezettingseis'!$M$4:$AE$4,0)),""),IF(AND($G6<=BQ$4,BQ$4<=$H6),INDEX($M$6:$AE$55,(ROW()-5),MATCH(VLOOKUP('6b. Bezettingseis Grafiek'!$C$3,data!$N$3:$O$9,2,0),'6a. Bezettingseis'!$M$4:$AE$4,0)),"")) ->  | BR6: =IF($G6>$H6,IF(OR(AND(BR$4>$G6,BR$4<="23:59:00"),BR$4<=$H6),INDEX($M$6:$AE$55,(ROW()-5),MATCH(VLOOKUP('6b. Bezettingseis Grafiek'!$C$3,data!$N$3:$O$9,2,0),'6a. Bezettingseis'!$M$4:$AE$4,0)),""),IF(AND($G6<=BR$4,BR$4<=$H6),INDEX($M$6:$AE$55,(ROW()-5),MATCH(VLOOKUP('6b. Bezettingseis Grafiek'!$C$3,data!$N$3:$O$9,2,0),'6a. Bezettingseis'!$M$4:$AE$4,0)),"")) ->  | BS6: =IF($G6>$H6,IF(OR(AND(BS$4>$G6,BS$4<="23:59:00"),BS$4<=$H6),INDEX($M$6:$AE$55,(ROW()-5),MATCH(VLOOKUP('6b. Bezettingseis Grafiek'!$C$3,data!$N$3:$O$9,2,0),'6a. Bezettingseis'!$M$4:$AE$4,0)),""),IF(AND($G6<=BS$4,BS$4<=$H6),INDEX($M$6:$AE$55,(ROW()-5),MATCH(VLOOKUP('6b. Bezettingseis Grafiek'!$C$3,data!$N$3:$O$9,2,0),'6a. Bezettingseis'!$M$4:$AE$4,0)),"")) ->  | BT6: =IF($G6>$H6,IF(OR(AND(BT$4>$G6,BT$4<="23:59:00"),BT$4<=$H6),INDEX($M$6:$AE$55,(ROW()-5),MATCH(VLOOKUP('6b. Bezettingseis Grafiek'!$C$3,data!$N$3:$O$9,2,0),'6a. Bezettingseis'!$M$4:$AE$4,0)),""),IF(AND($G6<=BT$4,BT$4<=$H6),INDEX($M$6:$AE$55,(ROW()-5),MATCH(VLOOKUP('6b. Bezettingseis Grafiek'!$C$3,data!$N$3:$O$9,2,0),'6a. Bezettingseis'!$M$4:$AE$4,0)),"")) ->  | BU6: =IF($G6>$H6,IF(OR(AND(BU$4>$G6,BU$4<="23:59:00"),BU$4<=$H6),INDEX($M$6:$AE$55,(ROW()-5),MATCH(VLOOKUP('6b. Bezettingseis Grafiek'!$C$3,data!$N$3:$O$9,2,0),'6a. Bezettingseis'!$M$4:$AE$4,0)),""),IF(AND($G6<=BU$4,BU$4<=$H6),INDEX($M$6:$AE$55,(ROW()-5),MATCH(VLOOKUP('6b. Bezettingseis Grafiek'!$C$3,data!$N$3:$O$9,2,0),'6a. Bezettingseis'!$M$4:$AE$4,0)),"")) ->  | BV6: =IF($G6>$H6,IF(OR(AND(BV$4>$G6,BV$4<="23:59:00"),BV$4<=$H6),INDEX($M$6:$AE$55,(ROW()-5),MATCH(VLOOKUP('6b. Bezettingseis Grafiek'!$C$3,data!$N$3:$O$9,2,0),'6a. Bezettingseis'!$M$4:$AE$4,0)),""),IF(AND($G6<=BV$4,BV$4<=$H6),INDEX($M$6:$AE$55,(ROW()-5),MATCH(VLOOKUP('6b. Bezettingseis Grafiek'!$C$3,data!$N$3:$O$9,2,0),'6a. Bezettingseis'!$M$4:$AE$4,0)),"")) ->  | BW6: =IF($G6>$H6,IF(OR(AND(BW$4>$G6,BW$4<="23:59:00"),BW$4<=$H6),INDEX($M$6:$AE$55,(ROW()-5),MATCH(VLOOKUP('6b. Bezettingseis Grafiek'!$C$3,data!$N$3:$O$9,2,0),'6a. Bezettingseis'!$M$4:$AE$4,0)),""),IF(AND($G6<=BW$4,BW$4<=$H6),INDEX($M$6:$AE$55,(ROW()-5),MATCH(VLOOKUP('6b. Bezettingseis Grafiek'!$C$3,data!$N$3:$O$9,2,0),'6a. Bezettingseis'!$M$4:$AE$4,0)),"")) ->  | BX6: =IF($G6>$H6,IF(OR(AND(BX$4>$G6,BX$4<="23:59:00"),BX$4<=$H6),INDEX($M$6:$AE$55,(ROW()-5),MATCH(VLOOKUP('6b. Bezettingseis Grafiek'!$C$3,data!$N$3:$O$9,2,0),'6a. Bezettingseis'!$M$4:$AE$4,0)),""),IF(AND($G6<=BX$4,BX$4<=$H6),INDEX($M$6:$AE$55,(ROW()-5),MATCH(VLOOKUP('6b. Bezettingseis Grafiek'!$C$3,data!$N$3:$O$9,2,0),'6a. Bezettingseis'!$M$4:$AE$4,0)),"")) ->  | BY6: =IF($G6>$H6,IF(OR(AND(BY$4>$G6,BY$4<="23:59:00"),BY$4<=$H6),INDEX($M$6:$AE$55,(ROW()-5),MATCH(VLOOKUP('6b. Bezettingseis Grafiek'!$C$3,data!$N$3:$O$9,2,0),'6a. Bezettingseis'!$M$4:$AE$4,0)),""),IF(AND($G6<=BY$4,BY$4<=$H6),INDEX($M$6:$AE$55,(ROW()-5),MATCH(VLOOKUP('6b. Bezettingseis Grafiek'!$C$3,data!$N$3:$O$9,2,0),'6a. Bezettingseis'!$M$4:$AE$4,0)),"")) ->  | BZ6: =IF($G6>$H6,IF(OR(AND(BZ$4>$G6,BZ$4<="23:59:00"),BZ$4<=$H6),INDEX($M$6:$AE$55,(ROW()-5),MATCH(VLOOKUP('6b. Bezettingseis Grafiek'!$C$3,data!$N$3:$O$9,2,0),'6a. Bezettingseis'!$M$4:$AE$4,0)),""),IF(AND($G6<=BZ$4,BZ$4<=$H6),INDEX($M$6:$AE$55,(ROW()-5),MATCH(VLOOKUP('6b. Bezettingseis Grafiek'!$C$3,data!$N$3:$O$9,2,0),'6a. Bezettingseis'!$M$4:$AE$4,0)),"")) ->  | CA6: =IF($G6>$H6,IF(OR(AND(CA$4>$G6,CA$4<="23:59:00"),CA$4<=$H6),INDEX($M$6:$AE$55,(ROW()-5),MATCH(VLOOKUP('6b. Bezettingseis Grafiek'!$C$3,data!$N$3:$O$9,2,0),'6a. Bezettingseis'!$M$4:$AE$4,0)),""),IF(AND($G6<=CA$4,CA$4<=$H6),INDEX($M$6:$AE$55,(ROW()-5),MATCH(VLOOKUP('6b. Bezettingseis Grafiek'!$C$3,data!$N$3:$O$9,2,0),'6a. Bezettingseis'!$M$4:$AE$4,0)),"")) ->  | CB6: =IF($G6>$H6,IF(OR(AND(CB$4>$G6,CB$4<="23:59:00"),CB$4<=$H6),INDEX($M$6:$AE$55,(ROW()-5),MATCH(VLOOKUP('6b. Bezettingseis Grafiek'!$C$3,data!$N$3:$O$9,2,0),'6a. Bezettingseis'!$M$4:$AE$4,0)),""),IF(AND($G6<=CB$4,CB$4<=$H6),INDEX($M$6:$AE$55,(ROW()-5),MATCH(VLOOKUP('6b. Bezettingseis Grafiek'!$C$3,data!$N$3:$O$9,2,0),'6a. Bezettingseis'!$M$4:$AE$4,0)),"")) ->  | CC6: =IF($G6>$H6,IF(OR(AND(CC$4>$G6,CC$4<="23:59:00"),CC$4<=$H6),INDEX($M$6:$AE$55,(ROW()-5),MATCH(VLOOKUP('6b. Bezettingseis Grafiek'!$C$3,data!$N$3:$O$9,2,0),'6a. Bezettingseis'!$M$4:$AE$4,0)),""),IF(AND($G6<=CC$4,CC$4<=$H6),INDEX($M$6:$AE$55,(ROW()-5),MATCH(VLOOKUP('6b. Bezettingseis Grafiek'!$C$3,data!$N$3:$O$9,2,0),'6a. Bezettingseis'!$M$4:$AE$4,0)),"")) ->  | CD6: =IF($G6>$H6,IF(OR(AND(CD$4>$G6,CD$4<="23:59:00"),CD$4<=$H6),INDEX($M$6:$AE$55,(ROW()-5),MATCH(VLOOKUP('6b. Bezettingseis Grafiek'!$C$3,data!$N$3:$O$9,2,0),'6a. Bezettingseis'!$M$4:$AE$4,0)),""),IF(AND($G6<=CD$4,CD$4<=$H6),INDEX($M$6:$AE$55,(ROW()-5),MATCH(VLOOKUP('6b. Bezettingseis Grafiek'!$C$3,data!$N$3:$O$9,2,0),'6a. Bezettingseis'!$M$4:$AE$4,0)),"")) ->  | CE6: =IF($G6>$H6,IF(OR(AND(CE$4>$G6,CE$4<="23:59:00"),CE$4<=$H6),INDEX($M$6:$AE$55,(ROW()-5),MATCH(VLOOKUP('6b. Bezettingseis Grafiek'!$C$3,data!$N$3:$O$9,2,0),'6a. Bezettingseis'!$M$4:$AE$4,0)),""),IF(AND($G6<=CE$4,CE$4<=$H6),INDEX($M$6:$AE$55,(ROW()-5),MATCH(VLOOKUP('6b. Bezettingseis Grafiek'!$C$3,data!$N$3:$O$9,2,0),'6a. Bezettingseis'!$M$4:$AE$4,0)),"")) ->  | CF6: =IF($G6>$H6,IF(OR(AND(CF$4>$G6,CF$4<="23:59:00"),CF$4<=$H6),INDEX($M$6:$AE$55,(ROW()-5),MATCH(VLOOKUP('6b. Bezettingseis Grafiek'!$C$3,data!$N$3:$O$9,2,0),'6a. Bezettingseis'!$M$4:$AE$4,0)),""),IF(AND($G6<=CF$4,CF$4<=$H6),INDEX($M$6:$AE$55,(ROW()-5),MATCH(VLOOKUP('6b. Bezettingseis Grafiek'!$C$3,data!$N$3:$O$9,2,0),'6a. Bezettingseis'!$M$4:$AE$4,0)),"")) ->  | CG6: =IF($G6>$H6,IF(OR(AND(CG$4>$G6,CG$4<="23:59:00"),CG$4<=$H6),INDEX($M$6:$AE$55,(ROW()-5),MATCH(VLOOKUP('6b. Bezettingseis Grafiek'!$C$3,data!$N$3:$O$9,2,0),'6a. Bezettingseis'!$M$4:$AE$4,0)),""),IF(AND($G6<=CG$4,CG$4<=$H6),INDEX($M$6:$AE$55,(ROW()-5),MATCH(VLOOKUP('6b. Bezettingseis Grafiek'!$C$3,data!$N$3:$O$9,2,0),'6a. Bezettingseis'!$M$4:$AE$4,0)),"")) ->  | CH6: =IF($G6>$H6,IF(OR(AND(CH$4>$G6,CH$4<="23:59:00"),CH$4<=$H6),INDEX($M$6:$AE$55,(ROW()-5),MATCH(VLOOKUP('6b. Bezettingseis Grafiek'!$C$3,data!$N$3:$O$9,2,0),'6a. Bezettingseis'!$M$4:$AE$4,0)),""),IF(AND($G6<=CH$4,CH$4<=$H6),INDEX($M$6:$AE$55,(ROW()-5),MATCH(VLOOKUP('6b. Bezettingseis Grafiek'!$C$3,data!$N$3:$O$9,2,0),'6a. Bezettingseis'!$M$4:$AE$4,0)),"")) ->  | CI6: =IF($G6>$H6,IF(OR(AND(CI$4>$G6,CI$4<="23:59:00"),CI$4<=$H6),INDEX($M$6:$AE$55,(ROW()-5),MATCH(VLOOKUP('6b. Bezettingseis Grafiek'!$C$3,data!$N$3:$O$9,2,0),'6a. Bezettingseis'!$M$4:$AE$4,0)),""),IF(AND($G6<=CI$4,CI$4<=$H6),INDEX($M$6:$AE$55,(ROW()-5),MATCH(VLOOKUP('6b. Bezettingseis Grafiek'!$C$3,data!$N$3:$O$9,2,0),'6a. Bezettingseis'!$M$4:$AE$4,0)),"")) ->  | CJ6: =IF($G6>$H6,IF(OR(AND(CJ$4>$G6,CJ$4<="23:59:00"),CJ$4<=$H6),INDEX($M$6:$AE$55,(ROW()-5),MATCH(VLOOKUP('6b. Bezettingseis Grafiek'!$C$3,data!$N$3:$O$9,2,0),'6a. Bezettingseis'!$M$4:$AE$4,0)),""),IF(AND($G6<=CJ$4,CJ$4<=$H6),INDEX($M$6:$AE$55,(ROW()-5),MATCH(VLOOKUP('6b. Bezettingseis Grafiek'!$C$3,data!$N$3:$O$9,2,0),'6a. Bezettingseis'!$M$4:$AE$4,0)),"")) ->  | CK6: =IF($G6>$H6,IF(OR(AND(CK$4>$G6,CK$4<="23:59:00"),CK$4<=$H6),INDEX($M$6:$AE$55,(ROW()-5),MATCH(VLOOKUP('6b. Bezettingseis Grafiek'!$C$3,data!$N$3:$O$9,2,0),'6a. Bezettingseis'!$M$4:$AE$4,0)),""),IF(AND($G6<=CK$4,CK$4<=$H6),INDEX($M$6:$AE$55,(ROW()-5),MATCH(VLOOKUP('6b. Bezettingseis Grafiek'!$C$3,data!$N$3:$O$9,2,0),'6a. Bezettingseis'!$M$4:$AE$4,0)),"")) ->  | CL6: =IF($G6>$H6,IF(OR(AND(CL$4>$G6,CL$4<="23:59:00"),CL$4<=$H6),INDEX($M$6:$AE$55,(ROW()-5),MATCH(VLOOKUP('6b. Bezettingseis Grafiek'!$C$3,data!$N$3:$O$9,2,0),'6a. Bezettingseis'!$M$4:$AE$4,0)),""),IF(AND($G6<=CL$4,CL$4<=$H6),INDEX($M$6:$AE$55,(ROW()-5),MATCH(VLOOKUP('6b. Bezettingseis Grafiek'!$C$3,data!$N$3:$O$9,2,0),'6a. Bezettingseis'!$M$4:$AE$4,0)),"")) ->  | CM6: =IF($G6>$H6,IF(OR(AND(CM$4>$G6,CM$4<="23:59:00"),CM$4<=$H6),INDEX($M$6:$AE$55,(ROW()-5),MATCH(VLOOKUP('6b. Bezettingseis Grafiek'!$C$3,data!$N$3:$O$9,2,0),'6a. Bezettingseis'!$M$4:$AE$4,0)),""),IF(AND($G6<=CM$4,CM$4<=$H6),INDEX($M$6:$AE$55,(ROW()-5),MATCH(VLOOKUP('6b. Bezettingseis Grafiek'!$C$3,data!$N$3:$O$9,2,0),'6a. Bezettingseis'!$M$4:$AE$4,0)),"")) ->  | CN6: =IF($G6>$H6,IF(OR(AND(CN$4>$G6,CN$4<="23:59:00"),CN$4<=$H6),INDEX($M$6:$AE$55,(ROW()-5),MATCH(VLOOKUP('6b. Bezettingseis Grafiek'!$C$3,data!$N$3:$O$9,2,0),'6a. Bezettingseis'!$M$4:$AE$4,0)),""),IF(AND($G6<=CN$4,CN$4<=$H6),INDEX($M$6:$AE$55,(ROW()-5),MATCH(VLOOKUP('6b. Bezettingseis Grafiek'!$C$3,data!$N$3:$O$9,2,0),'6a. Bezettingseis'!$M$4:$AE$4,0)),"")) ->  | CO6: =IF($G6>$H6,IF(OR(AND(CO$4>$G6,CO$4<="23:59:00"),CO$4<=$H6),INDEX($M$6:$AE$55,(ROW()-5),MATCH(VLOOKUP('6b. Bezettingseis Grafiek'!$C$3,data!$N$3:$O$9,2,0),'6a. Bezettingseis'!$M$4:$AE$4,0)),""),IF(AND($G6<=CO$4,CO$4<=$H6),INDEX($M$6:$AE$55,(ROW()-5),MATCH(VLOOKUP('6b. Bezettingseis Grafiek'!$C$3,data!$N$3:$O$9,2,0),'6a. Bezettingseis'!$M$4:$AE$4,0)),"")) ->  | CP6: =IF($G6>$H6,IF(OR(AND(CP$4>$G6,CP$4<="23:59:00"),CP$4<=$H6),INDEX($M$6:$AE$55,(ROW()-5),MATCH(VLOOKUP('6b. Bezettingseis Grafiek'!$C$3,data!$N$3:$O$9,2,0),'6a. Bezettingseis'!$M$4:$AE$4,0)),""),IF(AND($G6<=CP$4,CP$4<=$H6),INDEX($M$6:$AE$55,(ROW()-5),MATCH(VLOOKUP('6b. Bezettingseis Grafiek'!$C$3,data!$N$3:$O$9,2,0),'6a. Bezettingseis'!$M$4:$AE$4,0)),"")) ->  | CQ6: =IF($G6>$H6,IF(OR(AND(CQ$4>$G6,CQ$4<="23:59:00"),CQ$4<=$H6),INDEX($M$6:$AE$55,(ROW()-5),MATCH(VLOOKUP('6b. Bezettingseis Grafiek'!$C$3,data!$N$3:$O$9,2,0),'6a. Bezettingseis'!$M$4:$AE$4,0)),""),IF(AND($G6<=CQ$4,CQ$4<=$H6),INDEX($M$6:$AE$55,(ROW()-5),MATCH(VLOOKUP('6b. Bezettingseis Grafiek'!$C$3,data!$N$3:$O$9,2,0),'6a. Bezettingseis'!$M$4:$AE$4,0)),"")) ->  | CR6: =IF($G6>$H6,IF(OR(AND(CR$4>$G6,CR$4<="23:59:00"),CR$4<=$H6),INDEX($M$6:$AE$55,(ROW()-5),MATCH(VLOOKUP('6b. Bezettingseis Grafiek'!$C$3,data!$N$3:$O$9,2,0),'6a. Bezettingseis'!$M$4:$AE$4,0)),""),IF(AND($G6<=CR$4,CR$4<=$H6),INDEX($M$6:$AE$55,(ROW()-5),MATCH(VLOOKUP('6b. Bezettingseis Grafiek'!$C$3,data!$N$3:$O$9,2,0),'6a. Bezettingseis'!$M$4:$AE$4,0)),"")) ->  | CS6: =IF($G6>$H6,IF(OR(AND(CS$4>$G6,CS$4<="23:59:00"),CS$4<=$H6),INDEX($M$6:$AE$55,(ROW()-5),MATCH(VLOOKUP('6b. Bezettingseis Grafiek'!$C$3,data!$N$3:$O$9,2,0),'6a. Bezettingseis'!$M$4:$AE$4,0)),""),IF(AND($G6<=CS$4,CS$4<=$H6),INDEX($M$6:$AE$55,(ROW()-5),MATCH(VLOOKUP('6b. Bezettingseis Grafiek'!$C$3,data!$N$3:$O$9,2,0),'6a. Bezettingseis'!$M$4:$AE$4,0)),"")) ->  | CT6: =IF($G6>$H6,IF(OR(AND(CT$4>$G6,CT$4<="23:59:00"),CT$4<=$H6),INDEX($M$6:$AE$55,(ROW()-5),MATCH(VLOOKUP('6b. Bezettingseis Grafiek'!$C$3,data!$N$3:$O$9,2,0),'6a. Bezettingseis'!$M$4:$AE$4,0)),""),IF(AND($G6<=CT$4,CT$4<=$H6),INDEX($M$6:$AE$55,(ROW()-5),MATCH(VLOOKUP('6b. Bezettingseis Grafiek'!$C$3,data!$N$3:$O$9,2,0),'6a. Bezettingseis'!$M$4:$AE$4,0)),"")) ->  | CU6: =IF($G6>$H6,IF(OR(AND(CU$4>$G6,CU$4<="23:59:00"),CU$4<=$H6),INDEX($M$6:$AE$55,(ROW()-5),MATCH(VLOOKUP('6b. Bezettingseis Grafiek'!$C$3,data!$N$3:$O$9,2,0),'6a. Bezettingseis'!$M$4:$AE$4,0)),""),IF(AND($G6<=CU$4,CU$4<=$H6),INDEX($M$6:$AE$55,(ROW()-5),MATCH(VLOOKUP('6b. Bezettingseis Grafiek'!$C$3,data!$N$3:$O$9,2,0),'6a. Bezettingseis'!$M$4:$AE$4,0)),"")) ->  | CV6: =IF($G6>$H6,IF(OR(AND(CV$4>$G6,CV$4<="23:59:00"),CV$4<=$H6),INDEX($M$6:$AE$55,(ROW()-5),MATCH(VLOOKUP('6b. Bezettingseis Grafiek'!$C$3,data!$N$3:$O$9,2,0),'6a. Bezettingseis'!$M$4:$AE$4,0)),""),IF(AND($G6<=CV$4,CV$4<=$H6),INDEX($M$6:$AE$55,(ROW()-5),MATCH(VLOOKUP('6b. Bezettingseis Grafiek'!$C$3,data!$N$3:$O$9,2,0),'6a. Bezettingseis'!$M$4:$AE$4,0)),"")) ->  | CW6: =IF($G6>$H6,IF(OR(AND(CW$4>$G6,CW$4<="23:59:00"),CW$4<=$H6),INDEX($M$6:$AE$55,(ROW()-5),MATCH(VLOOKUP('6b. Bezettingseis Grafiek'!$C$3,data!$N$3:$O$9,2,0),'6a. Bezettingseis'!$M$4:$AE$4,0)),""),IF(AND($G6<=CW$4,CW$4<=$H6),INDEX($M$6:$AE$55,(ROW()-5),MATCH(VLOOKUP('6b. Bezettingseis Grafiek'!$C$3,data!$N$3:$O$9,2,0),'6a. Bezettingseis'!$M$4:$AE$4,0)),"")) ->  | CX6: =IF($G6>$H6,IF(OR(AND(CX$4>$G6,CX$4<="23:59:00"),CX$4<=$H6),INDEX($M$6:$AE$55,(ROW()-5),MATCH(VLOOKUP('6b. Bezettingseis Grafiek'!$C$3,data!$N$3:$O$9,2,0),'6a. Bezettingseis'!$M$4:$AE$4,0)),""),IF(AND($G6<=CX$4,CX$4<=$H6),INDEX($M$6:$AE$55,(ROW()-5),MATCH(VLOOKUP('6b. Bezettingseis Grafiek'!$C$3,data!$N$3:$O$9,2,0),'6a. Bezettingseis'!$M$4:$AE$4,0)),"")) ->  | CY6: =IF($G6>$H6,IF(OR(AND(CY$4>$G6,CY$4<="23:59:00"),CY$4<=$H6),INDEX($M$6:$AE$55,(ROW()-5),MATCH(VLOOKUP('6b. Bezettingseis Grafiek'!$C$3,data!$N$3:$O$9,2,0),'6a. Bezettingseis'!$M$4:$AE$4,0)),""),IF(AND($G6<=CY$4,CY$4<=$H6),INDEX($M$6:$AE$55,(ROW()-5),MATCH(VLOOKUP('6b. Bezettingseis Grafiek'!$C$3,data!$N$3:$O$9,2,0),'6a. Bezettingseis'!$M$4:$AE$4,0)),"")) ->  | CZ6: =IF($G6>$H6,IF(OR(AND(CZ$4>$G6,CZ$4<="23:59:00"),CZ$4<=$H6),INDEX($M$6:$AE$55,(ROW()-5),MATCH(VLOOKUP('6b. Bezettingseis Grafiek'!$C$3,data!$N$3:$O$9,2,0),'6a. Bezettingseis'!$M$4:$AE$4,0)),""),IF(AND($G6<=CZ$4,CZ$4<=$H6),INDEX($M$6:$AE$55,(ROW()-5),MATCH(VLOOKUP('6b. Bezettingseis Grafiek'!$C$3,data!$N$3:$O$9,2,0),'6a. Bezettingseis'!$M$4:$AE$4,0)),"")) ->  | DA6: =IF($G6>$H6,IF(OR(AND(DA$4>$G6,DA$4<="23:59:00"),DA$4<=$H6),INDEX($M$6:$AE$55,(ROW()-5),MATCH(VLOOKUP('6b. Bezettingseis Grafiek'!$C$3,data!$N$3:$O$9,2,0),'6a. Bezettingseis'!$M$4:$AE$4,0)),""),IF(AND($G6<=DA$4,DA$4<=$H6),INDEX($M$6:$AE$55,(ROW()-5),MATCH(VLOOKUP('6b. Bezettingseis Grafiek'!$C$3,data!$N$3:$O$9,2,0),'6a. Bezettingseis'!$M$4:$AE$4,0)),"")) ->  | DB6: =IF($G6>$H6,IF(OR(AND(DB$4>$G6,DB$4<="23:59:00"),DB$4<=$H6),INDEX($M$6:$AE$55,(ROW()-5),MATCH(VLOOKUP('6b. Bezettingseis Grafiek'!$C$3,data!$N$3:$O$9,2,0),'6a. Bezettingseis'!$M$4:$AE$4,0)),""),IF(AND($G6<=DB$4,DB$4<=$H6),INDEX($M$6:$AE$55,(ROW()-5),MATCH(VLOOKUP('6b. Bezettingseis Grafiek'!$C$3,data!$N$3:$O$9,2,0),'6a. Bezettingseis'!$M$4:$AE$4,0)),"")) ->  | DC6: =IF($G6>$H6,IF(OR(AND(DC$4>$G6,DC$4<="23:59:00"),DC$4<=$H6),INDEX($M$6:$AE$55,(ROW()-5),MATCH(VLOOKUP('6b. Bezettingseis Grafiek'!$C$3,data!$N$3:$O$9,2,0),'6a. Bezettingseis'!$M$4:$AE$4,0)),""),IF(AND($G6<=DC$4,DC$4<=$H6),INDEX($M$6:$AE$55,(ROW()-5),MATCH(VLOOKUP('6b. Bezettingseis Grafiek'!$C$3,data!$N$3:$O$9,2,0),'6a. Bezettingseis'!$M$4:$AE$4,0)),"")) ->  | DD6: =IF($G6>$H6,IF(OR(AND(DD$4>$G6,DD$4<="23:59:00"),DD$4<=$H6),INDEX($M$6:$AE$55,(ROW()-5),MATCH(VLOOKUP('6b. Bezettingseis Grafiek'!$C$3,data!$N$3:$O$9,2,0),'6a. Bezettingseis'!$M$4:$AE$4,0)),""),IF(AND($G6<=DD$4,DD$4<=$H6),INDEX($M$6:$AE$55,(ROW()-5),MATCH(VLOOKUP('6b. Bezettingseis Grafiek'!$C$3,data!$N$3:$O$9,2,0),'6a. Bezettingseis'!$M$4:$AE$4,0)),"")) ->  | DE6: =IF($G6>$H6,IF(OR(AND(DE$4>$G6,DE$4<="23:59:00"),DE$4<=$H6),INDEX($M$6:$AE$55,(ROW()-5),MATCH(VLOOKUP('6b. Bezettingseis Grafiek'!$C$3,data!$N$3:$O$9,2,0),'6a. Bezettingseis'!$M$4:$AE$4,0)),""),IF(AND($G6<=DE$4,DE$4<=$H6),INDEX($M$6:$AE$55,(ROW()-5),MATCH(VLOOKUP('6b. Bezettingseis Grafiek'!$C$3,data!$N$3:$O$9,2,0),'6a. Bezettingseis'!$M$4:$AE$4,0)),"")) ->  | DF6: =IF($G6>$H6,IF(OR(AND(DF$4>$G6,DF$4<="23:59:00"),DF$4<=$H6),INDEX($M$6:$AE$55,(ROW()-5),MATCH(VLOOKUP('6b. Bezettingseis Grafiek'!$C$3,data!$N$3:$O$9,2,0),'6a. Bezettingseis'!$M$4:$AE$4,0)),""),IF(AND($G6<=DF$4,DF$4<=$H6),INDEX($M$6:$AE$55,(ROW()-5),MATCH(VLOOKUP('6b. Bezettingseis Grafiek'!$C$3,data!$N$3:$O$9,2,0),'6a. Bezettingseis'!$M$4:$AE$4,0)),"")) ->  | DG6: =IF($G6>$H6,IF(OR(AND(DG$4>$G6,DG$4<="23:59:00"),DG$4<=$H6),INDEX($M$6:$AE$55,(ROW()-5),MATCH(VLOOKUP('6b. Bezettingseis Grafiek'!$C$3,data!$N$3:$O$9,2,0),'6a. Bezettingseis'!$M$4:$AE$4,0)),""),IF(AND($G6<=DG$4,DG$4<=$H6),INDEX($M$6:$AE$55,(ROW()-5),MATCH(VLOOKUP('6b. Bezettingseis Grafiek'!$C$3,data!$N$3:$O$9,2,0),'6a. Bezettingseis'!$M$4:$AE$4,0)),"")) ->  | DH6: =IF($G6>$H6,IF(OR(AND(DH$4>$G6,DH$4<="23:59:00"),DH$4<=$H6),INDEX($M$6:$AE$55,(ROW()-5),MATCH(VLOOKUP('6b. Bezettingseis Grafiek'!$C$3,data!$N$3:$O$9,2,0),'6a. Bezettingseis'!$M$4:$AE$4,0)),""),IF(AND($G6<=DH$4,DH$4<=$H6),INDEX($M$6:$AE$55,(ROW()-5),MATCH(VLOOKUP('6b. Bezettingseis Grafiek'!$C$3,data!$N$3:$O$9,2,0),'6a. Bezettingseis'!$M$4:$AE$4,0)),"")) ->  | DI6: =IF($G6>$H6,IF(OR(AND(DI$4>$G6,DI$4<="23:59:00"),DI$4<=$H6),INDEX($M$6:$AE$55,(ROW()-5),MATCH(VLOOKUP('6b. Bezettingseis Grafiek'!$C$3,data!$N$3:$O$9,2,0),'6a. Bezettingseis'!$M$4:$AE$4,0)),""),IF(AND($G6<=DI$4,DI$4<=$H6),INDEX($M$6:$AE$55,(ROW()-5),MATCH(VLOOKUP('6b. Bezettingseis Grafiek'!$C$3,data!$N$3:$O$9,2,0),'6a. Bezettingseis'!$M$4:$AE$4,0)),"")) ->  | DJ6: =IF($G6>$H6,IF(OR(AND(DJ$4>$G6,DJ$4<="23:59:00"),DJ$4<=$H6),INDEX($M$6:$AE$55,(ROW()-5),MATCH(VLOOKUP('6b. Bezettingseis Grafiek'!$C$3,data!$N$3:$O$9,2,0),'6a. Bezettingseis'!$M$4:$AE$4,0)),""),IF(AND($G6<=DJ$4,DJ$4<=$H6),INDEX($M$6:$AE$55,(ROW()-5),MATCH(VLOOKUP('6b. Bezettingseis Grafiek'!$C$3,data!$N$3:$O$9,2,0),'6a. Bezettingseis'!$M$4:$AE$4,0)),"")) ->  | DK6: =IF($G6>$H6,IF(OR(AND(DK$4>$G6,DK$4<="23:59:00"),DK$4<=$H6),INDEX($M$6:$AE$55,(ROW()-5),MATCH(VLOOKUP('6b. Bezettingseis Grafiek'!$C$3,data!$N$3:$O$9,2,0),'6a. Bezettingseis'!$M$4:$AE$4,0)),""),IF(AND($G6<=DK$4,DK$4<=$H6),INDEX($M$6:$AE$55,(ROW()-5),MATCH(VLOOKUP('6b. Bezettingseis Grafiek'!$C$3,data!$N$3:$O$9,2,0),'6a. Bezettingseis'!$M$4:$AE$4,0)),"")) ->  | DL6: =IF($G6>$H6,IF(OR(AND(DL$4>$G6,DL$4<="23:59:00"),DL$4<=$H6),INDEX($M$6:$AE$55,(ROW()-5),MATCH(VLOOKUP('6b. Bezettingseis Grafiek'!$C$3,data!$N$3:$O$9,2,0),'6a. Bezettingseis'!$M$4:$AE$4,0)),""),IF(AND($G6<=DL$4,DL$4<=$H6),INDEX($M$6:$AE$55,(ROW()-5),MATCH(VLOOKUP('6b. Bezettingseis Grafiek'!$C$3,data!$N$3:$O$9,2,0),'6a. Bezettingseis'!$M$4:$AE$4,0)),"")) ->  | DM6: =IF($G6>$H6,IF(OR(AND(DM$4>$G6,DM$4<="23:59:00"),DM$4<=$H6),INDEX($M$6:$AE$55,(ROW()-5),MATCH(VLOOKUP('6b. Bezettingseis Grafiek'!$C$3,data!$N$3:$O$9,2,0),'6a. Bezettingseis'!$M$4:$AE$4,0)),""),IF(AND($G6<=DM$4,DM$4<=$H6),INDEX($M$6:$AE$55,(ROW()-5),MATCH(VLOOKUP('6b. Bezettingseis Grafiek'!$C$3,data!$N$3:$O$9,2,0),'6a. Bezettingseis'!$M$4:$AE$4,0)),"")) ->  | DN6: =IF($G6>$H6,IF(OR(AND(DN$4>$G6,DN$4<="23:59:00"),DN$4<=$H6),INDEX($M$6:$AE$55,(ROW()-5),MATCH(VLOOKUP('6b. Bezettingseis Grafiek'!$C$3,data!$N$3:$O$9,2,0),'6a. Bezettingseis'!$M$4:$AE$4,0)),""),IF(AND($G6<=DN$4,DN$4<=$H6),INDEX($M$6:$AE$55,(ROW()-5),MATCH(VLOOKUP('6b. Bezettingseis Grafiek'!$C$3,data!$N$3:$O$9,2,0),'6a. Bezettingseis'!$M$4:$AE$4,0)),"")) ->  | DO6: =IF($G6>$H6,IF(OR(AND(DO$4>$G6,DO$4<="23:59:00"),DO$4<=$H6),INDEX($M$6:$AE$55,(ROW()-5),MATCH(VLOOKUP('6b. Bezettingseis Grafiek'!$C$3,data!$N$3:$O$9,2,0),'6a. Bezettingseis'!$M$4:$AE$4,0)),""),IF(AND($G6<=DO$4,DO$4<=$H6),INDEX($M$6:$AE$55,(ROW()-5),MATCH(VLOOKUP('6b. Bezettingseis Grafiek'!$C$3,data!$N$3:$O$9,2,0),'6a. Bezettingseis'!$M$4:$AE$4,0)),"")) ->  | DP6: =IF($G6>$H6,IF(OR(AND(DP$4>$G6,DP$4<="23:59:00"),DP$4<=$H6),INDEX($M$6:$AE$55,(ROW()-5),MATCH(VLOOKUP('6b. Bezettingseis Grafiek'!$C$3,data!$N$3:$O$9,2,0),'6a. Bezettingseis'!$M$4:$AE$4,0)),""),IF(AND($G6<=DP$4,DP$4<=$H6),INDEX($M$6:$AE$55,(ROW()-5),MATCH(VLOOKUP('6b. Bezettingseis Grafiek'!$C$3,data!$N$3:$O$9,2,0),'6a. Bezettingseis'!$M$4:$AE$4,0)),"")) ->  | DQ6: =IF($G6>$H6,IF(OR(AND(DQ$4>$G6,DQ$4<="23:59:00"),DQ$4<=$H6),INDEX($M$6:$AE$55,(ROW()-5),MATCH(VLOOKUP('6b. Bezettingseis Grafiek'!$C$3,data!$N$3:$O$9,2,0),'6a. Bezettingseis'!$M$4:$AE$4,0)),""),IF(AND($G6<=DQ$4,DQ$4<=$H6),INDEX($M$6:$AE$55,(ROW()-5),MATCH(VLOOKUP('6b. Bezettingseis Grafiek'!$C$3,data!$N$3:$O$9,2,0),'6a. Bezettingseis'!$M$4:$AE$4,0)),"")) ->  | DR6: =IF($G6>$H6,IF(OR(AND(DR$4>$G6,DR$4<="23:59:00"),DR$4<=$H6),INDEX($M$6:$AE$55,(ROW()-5),MATCH(VLOOKUP('6b. Bezettingseis Grafiek'!$C$3,data!$N$3:$O$9,2,0),'6a. Bezettingseis'!$M$4:$AE$4,0)),""),IF(AND($G6<=DR$4,DR$4<=$H6),INDEX($M$6:$AE$55,(ROW()-5),MATCH(VLOOKUP('6b. Bezettingseis Grafiek'!$C$3,data!$N$3:$O$9,2,0),'6a. Bezettingseis'!$M$4:$AE$4,0)),"")) ->  | DS6: =IF($G6>$H6,IF(OR(AND(DS$4>$G6,DS$4<="23:59:00"),DS$4<=$H6),INDEX($M$6:$AE$55,(ROW()-5),MATCH(VLOOKUP('6b. Bezettingseis Grafiek'!$C$3,data!$N$3:$O$9,2,0),'6a. Bezettingseis'!$M$4:$AE$4,0)),""),IF(AND($G6<=DS$4,DS$4<=$H6),INDEX($M$6:$AE$55,(ROW()-5),MATCH(VLOOKUP('6b. Bezettingseis Grafiek'!$C$3,data!$N$3:$O$9,2,0),'6a. Bezettingseis'!$M$4:$AE$4,0)),"")) ->  | DT6: =IF($G6>$H6,IF(OR(AND(DT$4>$G6,DT$4<="23:59:00"),DT$4<=$H6),INDEX($M$6:$AE$55,(ROW()-5),MATCH(VLOOKUP('6b. Bezettingseis Grafiek'!$C$3,data!$N$3:$O$9,2,0),'6a. Bezettingseis'!$M$4:$AE$4,0)),""),IF(AND($G6<=DT$4,DT$4<=$H6),INDEX($M$6:$AE$55,(ROW()-5),MATCH(VLOOKUP('6b. Bezettingseis Grafiek'!$C$3,data!$N$3:$O$9,2,0),'6a. Bezettingseis'!$M$4:$AE$4,0)),"")) ->  | DU6: =IF($G6>$H6,IF(OR(AND(DU$4>$G6,DU$4<="23:59:00"),DU$4<=$H6),INDEX($M$6:$AE$55,(ROW()-5),MATCH(VLOOKUP('6b. Bezettingseis Grafiek'!$C$3,data!$N$3:$O$9,2,0),'6a. Bezettingseis'!$M$4:$AE$4,0)),""),IF(AND($G6<=DU$4,DU$4<=$H6),INDEX($M$6:$AE$55,(ROW()-5),MATCH(VLOOKUP('6b. Bezettingseis Grafiek'!$C$3,data!$N$3:$O$9,2,0),'6a. Bezettingseis'!$M$4:$AE$4,0)),"")) ->  | DV6: =IF($G6>$H6,IF(OR(AND(DV$4>$G6,DV$4<="23:59:00"),DV$4<=$H6),INDEX($M$6:$AE$55,(ROW()-5),MATCH(VLOOKUP('6b. Bezettingseis Grafiek'!$C$3,data!$N$3:$O$9,2,0),'6a. Bezettingseis'!$M$4:$AE$4,0)),""),IF(AND($G6<=DV$4,DV$4<=$H6),INDEX($M$6:$AE$55,(ROW()-5),MATCH(VLOOKUP('6b. Bezettingseis Grafiek'!$C$3,data!$N$3:$O$9,2,0),'6a. Bezettingseis'!$M$4:$AE$4,0)),"")) ->  | DW6: =IF($G6>$H6,IF(OR(AND(DW$4>$G6,DW$4<="23:59:00"),DW$4<=$H6),INDEX($M$6:$AE$55,(ROW()-5),MATCH(VLOOKUP('6b. Bezettingseis Grafiek'!$C$3,data!$N$3:$O$9,2,0),'6a. Bezettingseis'!$M$4:$AE$4,0)),""),IF(AND($G6<=DW$4,DW$4<=$H6),INDEX($M$6:$AE$55,(ROW()-5),MATCH(VLOOKUP('6b. Bezettingseis Grafiek'!$C$3,data!$N$3:$O$9,2,0),'6a. Bezettingseis'!$M$4:$AE$4,0)),"")) ->  | DX6: =IF($G6>$H6,IF(OR(AND(DX$4>$G6,DX$4<="23:59:00"),DX$4<=$H6),INDEX($M$6:$AE$55,(ROW()-5),MATCH(VLOOKUP('6b. Bezettingseis Grafiek'!$C$3,data!$N$3:$O$9,2,0),'6a. Bezettingseis'!$M$4:$AE$4,0)),""),IF(AND($G6<=DX$4,DX$4<=$H6),INDEX($M$6:$AE$55,(ROW()-5),MATCH(VLOOKUP('6b. Bezettingseis Grafiek'!$C$3,data!$N$3:$O$9,2,0),'6a. Bezettingseis'!$M$4:$AE$4,0)),"")) ->  | DY6: =IF($G6>$H6,IF(OR(AND(DY$4>$G6,DY$4<="23:59:00"),DY$4<=$H6),INDEX($M$6:$AE$55,(ROW()-5),MATCH(VLOOKUP('6b. Bezettingseis Grafiek'!$C$3,data!$N$3:$O$9,2,0),'6a. Bezettingseis'!$M$4:$AE$4,0)),""),IF(AND($G6<=DY$4,DY$4<=$H6),INDEX($M$6:$AE$55,(ROW()-5),MATCH(VLOOKUP('6b. Bezettingseis Grafiek'!$C$3,data!$N$3:$O$9,2,0),'6a. Bezettingseis'!$M$4:$AE$4,0)),"")) ->  | DZ6: =IF($G6>$H6,IF(OR(AND(DZ$4>$G6,DZ$4<="23:59:00"),DZ$4<=$H6),INDEX($M$6:$AE$55,(ROW()-5),MATCH(VLOOKUP('6b. Bezettingseis Grafiek'!$C$3,data!$N$3:$O$9,2,0),'6a. Bezettingseis'!$M$4:$AE$4,0)),""),IF(AND($G6<=DZ$4,DZ$4<=$H6),INDEX($M$6:$AE$55,(ROW()-5),MATCH(VLOOKUP('6b. Bezettingseis Grafiek'!$C$3,data!$N$3:$O$9,2,0),'6a. Bezettingseis'!$M$4:$AE$4,0)),"")) ->  | EA6: =IF($G6>$H6,IF(OR(AND(EA$4>$G6,EA$4<="23:59:00"),EA$4<=$H6),INDEX($M$6:$AE$55,(ROW()-5),MATCH(VLOOKUP('6b. Bezettingseis Grafiek'!$C$3,data!$N$3:$O$9,2,0),'6a. Bezettingseis'!$M$4:$AE$4,0)),""),IF(AND($G6<=EA$4,EA$4<=$H6),INDEX($M$6:$AE$55,(ROW()-5),MATCH(VLOOKUP('6b. Bezettingseis Grafiek'!$C$3,data!$N$3:$O$9,2,0),'6a. Bezettingseis'!$M$4:$AE$4,0)),"")) ->  | EB6: =IF($G6>$H6,IF(OR(AND(EB$4>$G6,EB$4<="23:59:00"),EB$4<=$H6),INDEX($M$6:$AE$55,(ROW()-5),MATCH(VLOOKUP('6b. Bezettingseis Grafiek'!$C$3,data!$N$3:$O$9,2,0),'6a. Bezettingseis'!$M$4:$AE$4,0)),""),IF(AND($G6<=EB$4,EB$4<=$H6),INDEX($M$6:$AE$55,(ROW()-5),MATCH(VLOOKUP('6b. Bezettingseis Grafiek'!$C$3,data!$N$3:$O$9,2,0),'6a. Bezettingseis'!$M$4:$AE$4,0)),"")) ->  | EC6: =IF($G6>$H6,IF(OR(AND(EC$4>$G6,EC$4<="23:59:00"),EC$4<=$H6),INDEX($M$6:$AE$55,(ROW()-5),MATCH(VLOOKUP('6b. Bezettingseis Grafiek'!$C$3,data!$N$3:$O$9,2,0),'6a. Bezettingseis'!$M$4:$AE$4,0)),""),IF(AND($G6<=EC$4,EC$4<=$H6),INDEX($M$6:$AE$55,(ROW()-5),MATCH(VLOOKUP('6b. Bezettingseis Grafiek'!$C$3,data!$N$3:$O$9,2,0),'6a. Bezettingseis'!$M$4:$AE$4,0)),"")) ->  | ED6: =IF($G6>$H6,IF(OR(AND(ED$4>$G6,ED$4<="23:59:00"),ED$4<=$H6),INDEX($M$6:$AE$55,(ROW()-5),MATCH(VLOOKUP('6b. Bezettingseis Grafiek'!$C$3,data!$N$3:$O$9,2,0),'6a. Bezettingseis'!$M$4:$AE$4,0)),""),IF(AND($G6<=ED$4,ED$4<=$H6),INDEX($M$6:$AE$55,(ROW()-5),MATCH(VLOOKUP('6b. Bezettingseis Grafiek'!$C$3,data!$N$3:$O$9,2,0),'6a. Bezettingseis'!$M$4:$AE$4,0)),"")) ->  | EE6: =IF($G6>$H6,IF(OR(AND(EE$4>$G6,EE$4<="23:59:00"),EE$4<=$H6),INDEX($M$6:$AE$55,(ROW()-5),MATCH(VLOOKUP('6b. Bezettingseis Grafiek'!$C$3,data!$N$3:$O$9,2,0),'6a. Bezettingseis'!$M$4:$AE$4,0)),""),IF(AND($G6<=EE$4,EE$4<=$H6),INDEX($M$6:$AE$55,(ROW()-5),MATCH(VLOOKUP('6b. Bezettingseis Grafiek'!$C$3,data!$N$3:$O$9,2,0),'6a. Bezettingseis'!$M$4:$AE$4,0)),"")) -> 
J7: =IF(ISERROR(IF(D7="a",H7-G7-I7+IF(G7>H7,1),E7)),0,IF(D7="a",H7-G7-I7+IF(G7>H7,1),E7)) -> 00:00:00 | K7: tot 4 uur | L7: 0 | N7: =M7*$J7*IF($F7<>"",$F7,1) -> 0 | O7: 0 | Q7: 0 | R7: 0 | T7: 0 | U7: 0 | W7: 0 | X7: 0 | Z7: 0 | AA7: 0 | AC7: 0 | AD7: 0 | AF7: =AE7*$J7*IF(F7<>"",F7,1) -> 0 | AG7: =($H7-$G7-$I7+IF($G7>$H7,1))*AE7 -> 0 | AH7: 0 | AI7: 1 | AJ7: 0 | AK7: 0 | AL7: 0 | AN7: =IF($G7>$H7,IF(OR(AND(AN$4>$G7,AN$4<="23:59:00"),AN$4<=$H7),INDEX($M$6:$AE$55,(ROW()-5),MATCH(VLOOKUP('6b. Bezettingseis Grafiek'!$C$3,data!$N$3:$O$9,2,0),'6a. Bezettingseis'!$M$4:$AE$4,0)),""),IF(AND($G7<=AN$4,AN$4<=$H7),INDEX($M$6:$AE$55,(ROW()-5),MATCH(VLOOKUP('6b. Bezettingseis Grafiek'!$C$3,data!$N$3:$O$9,2,0),'6a. Bezettingseis'!$M$4:$AE$4,0)),"")) ->  | AO7: =IF($G7>$H7,IF(OR(AND(AO$4>$G7,AO$4<="23:59:00"),AO$4<=$H7),INDEX($M$6:$AE$55,(ROW()-5),MATCH(VLOOKUP('6b. Bezettingseis Grafiek'!$C$3,data!$N$3:$O$9,2,0),'6a. Bezettingseis'!$M$4:$AE$4,0)),""),IF(AND($G7<=AO$4,AO$4<=$H7),INDEX($M$6:$AE$55,(ROW()-5),MATCH(VLOOKUP('6b. Bezettingseis Grafiek'!$C$3,data!$N$3:$O$9,2,0),'6a. Bezettingseis'!$M$4:$AE$4,0)),"")) ->  | AP7: =IF($G7>$H7,IF(OR(AND(AP$4>$G7,AP$4<="23:59:00"),AP$4<=$H7),INDEX($M$6:$AE$55,(ROW()-5),MATCH(VLOOKUP('6b. Bezettingseis Grafiek'!$C$3,data!$N$3:$O$9,2,0),'6a. Bezettingseis'!$M$4:$AE$4,0)),""),IF(AND($G7<=AP$4,AP$4<=$H7),INDEX($M$6:$AE$55,(ROW()-5),MATCH(VLOOKUP('6b. Bezettingseis Grafiek'!$C$3,data!$N$3:$O$9,2,0),'6a. Bezettingseis'!$M$4:$AE$4,0)),"")) ->  | AQ7: =IF($G7>$H7,IF(OR(AND(AQ$4>$G7,AQ$4<="23:59:00"),AQ$4<=$H7),INDEX($M$6:$AE$55,(ROW()-5),MATCH(VLOOKUP('6b. Bezettingseis Grafiek'!$C$3,data!$N$3:$O$9,2,0),'6a. Bezettingseis'!$M$4:$AE$4,0)),""),IF(AND($G7<=AQ$4,AQ$4<=$H7),INDEX($M$6:$AE$55,(ROW()-5),MATCH(VLOOKUP('6b. Bezettingseis Grafiek'!$C$3,data!$N$3:$O$9,2,0),'6a. Bezettingseis'!$M$4:$AE$4,0)),"")) ->  | AR7: =IF($G7>$H7,IF(OR(AND(AR$4>$G7,AR$4<="23:59:00"),AR$4<=$H7),INDEX($M$6:$AE$55,(ROW()-5),MATCH(VLOOKUP('6b. Bezettingseis Grafiek'!$C$3,data!$N$3:$O$9,2,0),'6a. Bezettingseis'!$M$4:$AE$4,0)),""),IF(AND($G7<=AR$4,AR$4<=$H7),INDEX($M$6:$AE$55,(ROW()-5),MATCH(VLOOKUP('6b. Bezettingseis Grafiek'!$C$3,data!$N$3:$O$9,2,0),'6a. Bezettingseis'!$M$4:$AE$4,0)),"")) ->  | AS7: =IF($G7>$H7,IF(OR(AND(AS$4>$G7,AS$4<="23:59:00"),AS$4<=$H7),INDEX($M$6:$AE$55,(ROW()-5),MATCH(VLOOKUP('6b. Bezettingseis Grafiek'!$C$3,data!$N$3:$O$9,2,0),'6a. Bezettingseis'!$M$4:$AE$4,0)),""),IF(AND($G7<=AS$4,AS$4<=$H7),INDEX($M$6:$AE$55,(ROW()-5),MATCH(VLOOKUP('6b. Bezettingseis Grafiek'!$C$3,data!$N$3:$O$9,2,0),'6a. Bezettingseis'!$M$4:$AE$4,0)),"")) ->  | AT7: =IF($G7>$H7,IF(OR(AND(AT$4>$G7,AT$4<="23:59:00"),AT$4<=$H7),INDEX($M$6:$AE$55,(ROW()-5),MATCH(VLOOKUP('6b. Bezettingseis Grafiek'!$C$3,data!$N$3:$O$9,2,0),'6a. Bezettingseis'!$M$4:$AE$4,0)),""),IF(AND($G7<=AT$4,AT$4<=$H7),INDEX($M$6:$AE$55,(ROW()-5),MATCH(VLOOKUP('6b. Bezettingseis Grafiek'!$C$3,data!$N$3:$O$9,2,0),'6a. Bezettingseis'!$M$4:$AE$4,0)),"")) ->  | AU7: =IF($G7>$H7,IF(OR(AND(AU$4>$G7,AU$4<="23:59:00"),AU$4<=$H7),INDEX($M$6:$AE$55,(ROW()-5),MATCH(VLOOKUP('6b. Bezettingseis Grafiek'!$C$3,data!$N$3:$O$9,2,0),'6a. Bezettingseis'!$M$4:$AE$4,0)),""),IF(AND($G7<=AU$4,AU$4<=$H7),INDEX($M$6:$AE$55,(ROW()-5),MATCH(VLOOKUP('6b. Bezettingseis Grafiek'!$C$3,data!$N$3:$O$9,2,0),'6a. Bezettingseis'!$M$4:$AE$4,0)),"")) ->  | AV7: =IF($G7>$H7,IF(OR(AND(AV$4>$G7,AV$4<="23:59:00"),AV$4<=$H7),INDEX($M$6:$AE$55,(ROW()-5),MATCH(VLOOKUP('6b. Bezettingseis Grafiek'!$C$3,data!$N$3:$O$9,2,0),'6a. Bezettingseis'!$M$4:$AE$4,0)),""),IF(AND($G7<=AV$4,AV$4<=$H7),INDEX($M$6:$AE$55,(ROW()-5),MATCH(VLOOKUP('6b. Bezettingseis Grafiek'!$C$3,data!$N$3:$O$9,2,0),'6a. Bezettingseis'!$M$4:$AE$4,0)),"")) ->  | AW7: =IF($G7>$H7,IF(OR(AND(AW$4>$G7,AW$4<="23:59:00"),AW$4<=$H7),INDEX($M$6:$AE$55,(ROW()-5),MATCH(VLOOKUP('6b. Bezettingseis Grafiek'!$C$3,data!$N$3:$O$9,2,0),'6a. Bezettingseis'!$M$4:$AE$4,0)),""),IF(AND($G7<=AW$4,AW$4<=$H7),INDEX($M$6:$AE$55,(ROW()-5),MATCH(VLOOKUP('6b. Bezettingseis Grafiek'!$C$3,data!$N$3:$O$9,2,0),'6a. Bezettingseis'!$M$4:$AE$4,0)),"")) ->  | AX7: =IF($G7>$H7,IF(OR(AND(AX$4>$G7,AX$4<="23:59:00"),AX$4<=$H7),INDEX($M$6:$AE$55,(ROW()-5),MATCH(VLOOKUP('6b. Bezettingseis Grafiek'!$C$3,data!$N$3:$O$9,2,0),'6a. Bezettingseis'!$M$4:$AE$4,0)),""),IF(AND($G7<=AX$4,AX$4<=$H7),INDEX($M$6:$AE$55,(ROW()-5),MATCH(VLOOKUP('6b. Bezettingseis Grafiek'!$C$3,data!$N$3:$O$9,2,0),'6a. Bezettingseis'!$M$4:$AE$4,0)),"")) ->  | AY7: =IF($G7>$H7,IF(OR(AND(AY$4>$G7,AY$4<="23:59:00"),AY$4<=$H7),INDEX($M$6:$AE$55,(ROW()-5),MATCH(VLOOKUP('6b. Bezettingseis Grafiek'!$C$3,data!$N$3:$O$9,2,0),'6a. Bezettingseis'!$M$4:$AE$4,0)),""),IF(AND($G7<=AY$4,AY$4<=$H7),INDEX($M$6:$AE$55,(ROW()-5),MATCH(VLOOKUP('6b. Bezettingseis Grafiek'!$C$3,data!$N$3:$O$9,2,0),'6a. Bezettingseis'!$M$4:$AE$4,0)),"")) ->  | AZ7: =IF($G7>$H7,IF(OR(AND(AZ$4>$G7,AZ$4<="23:59:00"),AZ$4<=$H7),INDEX($M$6:$AE$55,(ROW()-5),MATCH(VLOOKUP('6b. Bezettingseis Grafiek'!$C$3,data!$N$3:$O$9,2,0),'6a. Bezettingseis'!$M$4:$AE$4,0)),""),IF(AND($G7<=AZ$4,AZ$4<=$H7),INDEX($M$6:$AE$55,(ROW()-5),MATCH(VLOOKUP('6b. Bezettingseis Grafiek'!$C$3,data!$N$3:$O$9,2,0),'6a. Bezettingseis'!$M$4:$AE$4,0)),"")) ->  | BA7: =IF($G7>$H7,IF(OR(AND(BA$4>$G7,BA$4<="23:59:00"),BA$4<=$H7),INDEX($M$6:$AE$55,(ROW()-5),MATCH(VLOOKUP('6b. Bezettingseis Grafiek'!$C$3,data!$N$3:$O$9,2,0),'6a. Bezettingseis'!$M$4:$AE$4,0)),""),IF(AND($G7<=BA$4,BA$4<=$H7),INDEX($M$6:$AE$55,(ROW()-5),MATCH(VLOOKUP('6b. Bezettingseis Grafiek'!$C$3,data!$N$3:$O$9,2,0),'6a. Bezettingseis'!$M$4:$AE$4,0)),"")) ->  | BB7: =IF($G7>$H7,IF(OR(AND(BB$4>$G7,BB$4<="23:59:00"),BB$4<=$H7),INDEX($M$6:$AE$55,(ROW()-5),MATCH(VLOOKUP('6b. Bezettingseis Grafiek'!$C$3,data!$N$3:$O$9,2,0),'6a. Bezettingseis'!$M$4:$AE$4,0)),""),IF(AND($G7<=BB$4,BB$4<=$H7),INDEX($M$6:$AE$55,(ROW()-5),MATCH(VLOOKUP('6b. Bezettingseis Grafiek'!$C$3,data!$N$3:$O$9,2,0),'6a. Bezettingseis'!$M$4:$AE$4,0)),"")) ->  | BC7: =IF($G7>$H7,IF(OR(AND(BC$4>$G7,BC$4<="23:59:00"),BC$4<=$H7),INDEX($M$6:$AE$55,(ROW()-5),MATCH(VLOOKUP('6b. Bezettingseis Grafiek'!$C$3,data!$N$3:$O$9,2,0),'6a. Bezettingseis'!$M$4:$AE$4,0)),""),IF(AND($G7<=BC$4,BC$4<=$H7),INDEX($M$6:$AE$55,(ROW()-5),MATCH(VLOOKUP('6b. Bezettingseis Grafiek'!$C$3,data!$N$3:$O$9,2,0),'6a. Bezettingseis'!$M$4:$AE$4,0)),"")) ->  | BD7: =IF($G7>$H7,IF(OR(AND(BD$4>$G7,BD$4<="23:59:00"),BD$4<=$H7),INDEX($M$6:$AE$55,(ROW()-5),MATCH(VLOOKUP('6b. Bezettingseis Grafiek'!$C$3,data!$N$3:$O$9,2,0),'6a. Bezettingseis'!$M$4:$AE$4,0)),""),IF(AND($G7<=BD$4,BD$4<=$H7),INDEX($M$6:$AE$55,(ROW()-5),MATCH(VLOOKUP('6b. Bezettingseis Grafiek'!$C$3,data!$N$3:$O$9,2,0),'6a. Bezettingseis'!$M$4:$AE$4,0)),"")) ->  | BE7: =IF($G7>$H7,IF(OR(AND(BE$4>$G7,BE$4<="23:59:00"),BE$4<=$H7),INDEX($M$6:$AE$55,(ROW()-5),MATCH(VLOOKUP('6b. Bezettingseis Grafiek'!$C$3,data!$N$3:$O$9,2,0),'6a. Bezettingseis'!$M$4:$AE$4,0)),""),IF(AND($G7<=BE$4,BE$4<=$H7),INDEX($M$6:$AE$55,(ROW()-5),MATCH(VLOOKUP('6b. Bezettingseis Grafiek'!$C$3,data!$N$3:$O$9,2,0),'6a. Bezettingseis'!$M$4:$AE$4,0)),"")) ->  | BF7: =IF($G7>$H7,IF(OR(AND(BF$4>$G7,BF$4<="23:59:00"),BF$4<=$H7),INDEX($M$6:$AE$55,(ROW()-5),MATCH(VLOOKUP('6b. Bezettingseis Grafiek'!$C$3,data!$N$3:$O$9,2,0),'6a. Bezettingseis'!$M$4:$AE$4,0)),""),IF(AND($G7<=BF$4,BF$4<=$H7),INDEX($M$6:$AE$55,(ROW()-5),MATCH(VLOOKUP('6b. Bezettingseis Grafiek'!$C$3,data!$N$3:$O$9,2,0),'6a. Bezettingseis'!$M$4:$AE$4,0)),"")) ->  | BG7: =IF($G7>$H7,IF(OR(AND(BG$4>$G7,BG$4<="23:59:00"),BG$4<=$H7),INDEX($M$6:$AE$55,(ROW()-5),MATCH(VLOOKUP('6b. Bezettingseis Grafiek'!$C$3,data!$N$3:$O$9,2,0),'6a. Bezettingseis'!$M$4:$AE$4,0)),""),IF(AND($G7<=BG$4,BG$4<=$H7),INDEX($M$6:$AE$55,(ROW()-5),MATCH(VLOOKUP('6b. Bezettingseis Grafiek'!$C$3,data!$N$3:$O$9,2,0),'6a. Bezettingseis'!$M$4:$AE$4,0)),"")) ->  | BH7: =IF($G7>$H7,IF(OR(AND(BH$4>$G7,BH$4<="23:59:00"),BH$4<=$H7),INDEX($M$6:$AE$55,(ROW()-5),MATCH(VLOOKUP('6b. Bezettingseis Grafiek'!$C$3,data!$N$3:$O$9,2,0),'6a. Bezettingseis'!$M$4:$AE$4,0)),""),IF(AND($G7<=BH$4,BH$4<=$H7),INDEX($M$6:$AE$55,(ROW()-5),MATCH(VLOOKUP('6b. Bezettingseis Grafiek'!$C$3,data!$N$3:$O$9,2,0),'6a. Bezettingseis'!$M$4:$AE$4,0)),"")) ->  | BI7: =IF($G7>$H7,IF(OR(AND(BI$4>$G7,BI$4<="23:59:00"),BI$4<=$H7),INDEX($M$6:$AE$55,(ROW()-5),MATCH(VLOOKUP('6b. Bezettingseis Grafiek'!$C$3,data!$N$3:$O$9,2,0),'6a. Bezettingseis'!$M$4:$AE$4,0)),""),IF(AND($G7<=BI$4,BI$4<=$H7),INDEX($M$6:$AE$55,(ROW()-5),MATCH(VLOOKUP('6b. Bezettingseis Grafiek'!$C$3,data!$N$3:$O$9,2,0),'6a. Bezettingseis'!$M$4:$AE$4,0)),"")) ->  | BJ7: =IF($G7>$H7,IF(OR(AND(BJ$4>$G7,BJ$4<="23:59:00"),BJ$4<=$H7),INDEX($M$6:$AE$55,(ROW()-5),MATCH(VLOOKUP('6b. Bezettingseis Grafiek'!$C$3,data!$N$3:$O$9,2,0),'6a. Bezettingseis'!$M$4:$AE$4,0)),""),IF(AND($G7<=BJ$4,BJ$4<=$H7),INDEX($M$6:$AE$55,(ROW()-5),MATCH(VLOOKUP('6b. Bezettingseis Grafiek'!$C$3,data!$N$3:$O$9,2,0),'6a. Bezettingseis'!$M$4:$AE$4,0)),"")) ->  | BK7: =IF($G7>$H7,IF(OR(AND(BK$4>$G7,BK$4<="23:59:00"),BK$4<=$H7),INDEX($M$6:$AE$55,(ROW()-5),MATCH(VLOOKUP('6b. Bezettingseis Grafiek'!$C$3,data!$N$3:$O$9,2,0),'6a. Bezettingseis'!$M$4:$AE$4,0)),""),IF(AND($G7<=BK$4,BK$4<=$H7),INDEX($M$6:$AE$55,(ROW()-5),MATCH(VLOOKUP('6b. Bezettingseis Grafiek'!$C$3,data!$N$3:$O$9,2,0),'6a. Bezettingseis'!$M$4:$AE$4,0)),"")) ->  | BL7: =IF($G7>$H7,IF(OR(AND(BL$4>$G7,BL$4<="23:59:00"),BL$4<=$H7),INDEX($M$6:$AE$55,(ROW()-5),MATCH(VLOOKUP('6b. Bezettingseis Grafiek'!$C$3,data!$N$3:$O$9,2,0),'6a. Bezettingseis'!$M$4:$AE$4,0)),""),IF(AND($G7<=BL$4,BL$4<=$H7),INDEX($M$6:$AE$55,(ROW()-5),MATCH(VLOOKUP('6b. Bezettingseis Grafiek'!$C$3,data!$N$3:$O$9,2,0),'6a. Bezettingseis'!$M$4:$AE$4,0)),"")) ->  | BM7: =IF($G7>$H7,IF(OR(AND(BM$4>$G7,BM$4<="23:59:00"),BM$4<=$H7),INDEX($M$6:$AE$55,(ROW()-5),MATCH(VLOOKUP('6b. Bezettingseis Grafiek'!$C$3,data!$N$3:$O$9,2,0),'6a. Bezettingseis'!$M$4:$AE$4,0)),""),IF(AND($G7<=BM$4,BM$4<=$H7),INDEX($M$6:$AE$55,(ROW()-5),MATCH(VLOOKUP('6b. Bezettingseis Grafiek'!$C$3,data!$N$3:$O$9,2,0),'6a. Bezettingseis'!$M$4:$AE$4,0)),"")) ->  | BN7: =IF($G7>$H7,IF(OR(AND(BN$4>$G7,BN$4<="23:59:00"),BN$4<=$H7),INDEX($M$6:$AE$55,(ROW()-5),MATCH(VLOOKUP('6b. Bezettingseis Grafiek'!$C$3,data!$N$3:$O$9,2,0),'6a. Bezettingseis'!$M$4:$AE$4,0)),""),IF(AND($G7<=BN$4,BN$4<=$H7),INDEX($M$6:$AE$55,(ROW()-5),MATCH(VLOOKUP('6b. Bezettingseis Grafiek'!$C$3,data!$N$3:$O$9,2,0),'6a. Bezettingseis'!$M$4:$AE$4,0)),"")) ->  | BO7: =IF($G7>$H7,IF(OR(AND(BO$4>$G7,BO$4<="23:59:00"),BO$4<=$H7),INDEX($M$6:$AE$55,(ROW()-5),MATCH(VLOOKUP('6b. Bezettingseis Grafiek'!$C$3,data!$N$3:$O$9,2,0),'6a. Bezettingseis'!$M$4:$AE$4,0)),""),IF(AND($G7<=BO$4,BO$4<=$H7),INDEX($M$6:$AE$55,(ROW()-5),MATCH(VLOOKUP('6b. Bezettingseis Grafiek'!$C$3,data!$N$3:$O$9,2,0),'6a. Bezettingseis'!$M$4:$AE$4,0)),"")) ->  | BP7: =IF($G7>$H7,IF(OR(AND(BP$4>$G7,BP$4<="23:59:00"),BP$4<=$H7),INDEX($M$6:$AE$55,(ROW()-5),MATCH(VLOOKUP('6b. Bezettingseis Grafiek'!$C$3,data!$N$3:$O$9,2,0),'6a. Bezettingseis'!$M$4:$AE$4,0)),""),IF(AND($G7<=BP$4,BP$4<=$H7),INDEX($M$6:$AE$55,(ROW()-5),MATCH(VLOOKUP('6b. Bezettingseis Grafiek'!$C$3,data!$N$3:$O$9,2,0),'6a. Bezettingseis'!$M$4:$AE$4,0)),"")) ->  | BQ7: =IF($G7>$H7,IF(OR(AND(BQ$4>$G7,BQ$4<="23:59:00"),BQ$4<=$H7),INDEX($M$6:$AE$55,(ROW()-5),MATCH(VLOOKUP('6b. Bezettingseis Grafiek'!$C$3,data!$N$3:$O$9,2,0),'6a. Bezettingseis'!$M$4:$AE$4,0)),""),IF(AND($G7<=BQ$4,BQ$4<=$H7),INDEX($M$6:$AE$55,(ROW()-5),MATCH(VLOOKUP('6b. Bezettingseis Grafiek'!$C$3,data!$N$3:$O$9,2,0),'6a. Bezettingseis'!$M$4:$AE$4,0)),"")) ->  | BR7: =IF($G7>$H7,IF(OR(AND(BR$4>$G7,BR$4<="23:59:00"),BR$4<=$H7),INDEX($M$6:$AE$55,(ROW()-5),MATCH(VLOOKUP('6b. Bezettingseis Grafiek'!$C$3,data!$N$3:$O$9,2,0),'6a. Bezettingseis'!$M$4:$AE$4,0)),""),IF(AND($G7<=BR$4,BR$4<=$H7),INDEX($M$6:$AE$55,(ROW()-5),MATCH(VLOOKUP('6b. Bezettingseis Grafiek'!$C$3,data!$N$3:$O$9,2,0),'6a. Bezettingseis'!$M$4:$AE$4,0)),"")) ->  | BS7: =IF($G7>$H7,IF(OR(AND(BS$4>$G7,BS$4<="23:59:00"),BS$4<=$H7),INDEX($M$6:$AE$55,(ROW()-5),MATCH(VLOOKUP('6b. Bezettingseis Grafiek'!$C$3,data!$N$3:$O$9,2,0),'6a. Bezettingseis'!$M$4:$AE$4,0)),""),IF(AND($G7<=BS$4,BS$4<=$H7),INDEX($M$6:$AE$55,(ROW()-5),MATCH(VLOOKUP('6b. Bezettingseis Grafiek'!$C$3,data!$N$3:$O$9,2,0),'6a. Bezettingseis'!$M$4:$AE$4,0)),"")) ->  | BT7: =IF($G7>$H7,IF(OR(AND(BT$4>$G7,BT$4<="23:59:00"),BT$4<=$H7),INDEX($M$6:$AE$55,(ROW()-5),MATCH(VLOOKUP('6b. Bezettingseis Grafiek'!$C$3,data!$N$3:$O$9,2,0),'6a. Bezettingseis'!$M$4:$AE$4,0)),""),IF(AND($G7<=BT$4,BT$4<=$H7),INDEX($M$6:$AE$55,(ROW()-5),MATCH(VLOOKUP('6b. Bezettingseis Grafiek'!$C$3,data!$N$3:$O$9,2,0),'6a. Bezettingseis'!$M$4:$AE$4,0)),"")) ->  | BU7: =IF($G7>$H7,IF(OR(AND(BU$4>$G7,BU$4<="23:59:00"),BU$4<=$H7),INDEX($M$6:$AE$55,(ROW()-5),MATCH(VLOOKUP('6b. Bezettingseis Grafiek'!$C$3,data!$N$3:$O$9,2,0),'6a. Bezettingseis'!$M$4:$AE$4,0)),""),IF(AND($G7<=BU$4,BU$4<=$H7),INDEX($M$6:$AE$55,(ROW()-5),MATCH(VLOOKUP('6b. Bezettingseis Grafiek'!$C$3,data!$N$3:$O$9,2,0),'6a. Bezettingseis'!$M$4:$AE$4,0)),"")) ->  | BV7: =IF($G7>$H7,IF(OR(AND(BV$4>$G7,BV$4<="23:59:00"),BV$4<=$H7),INDEX($M$6:$AE$55,(ROW()-5),MATCH(VLOOKUP('6b. Bezettingseis Grafiek'!$C$3,data!$N$3:$O$9,2,0),'6a. Bezettingseis'!$M$4:$AE$4,0)),""),IF(AND($G7<=BV$4,BV$4<=$H7),INDEX($M$6:$AE$55,(ROW()-5),MATCH(VLOOKUP('6b. Bezettingseis Grafiek'!$C$3,data!$N$3:$O$9,2,0),'6a. Bezettingseis'!$M$4:$AE$4,0)),"")) ->  | BW7: =IF($G7>$H7,IF(OR(AND(BW$4>$G7,BW$4<="23:59:00"),BW$4<=$H7),INDEX($M$6:$AE$55,(ROW()-5),MATCH(VLOOKUP('6b. Bezettingseis Grafiek'!$C$3,data!$N$3:$O$9,2,0),'6a. Bezettingseis'!$M$4:$AE$4,0)),""),IF(AND($G7<=BW$4,BW$4<=$H7),INDEX($M$6:$AE$55,(ROW()-5),MATCH(VLOOKUP('6b. Bezettingseis Grafiek'!$C$3,data!$N$3:$O$9,2,0),'6a. Bezettingseis'!$M$4:$AE$4,0)),"")) ->  | BX7: =IF($G7>$H7,IF(OR(AND(BX$4>$G7,BX$4<="23:59:00"),BX$4<=$H7),INDEX($M$6:$AE$55,(ROW()-5),MATCH(VLOOKUP('6b. Bezettingseis Grafiek'!$C$3,data!$N$3:$O$9,2,0),'6a. Bezettingseis'!$M$4:$AE$4,0)),""),IF(AND($G7<=BX$4,BX$4<=$H7),INDEX($M$6:$AE$55,(ROW()-5),MATCH(VLOOKUP('6b. Bezettingseis Grafiek'!$C$3,data!$N$3:$O$9,2,0),'6a. Bezettingseis'!$M$4:$AE$4,0)),"")) ->  | BY7: =IF($G7>$H7,IF(OR(AND(BY$4>$G7,BY$4<="23:59:00"),BY$4<=$H7),INDEX($M$6:$AE$55,(ROW()-5),MATCH(VLOOKUP('6b. Bezettingseis Grafiek'!$C$3,data!$N$3:$O$9,2,0),'6a. Bezettingseis'!$M$4:$AE$4,0)),""),IF(AND($G7<=BY$4,BY$4<=$H7),INDEX($M$6:$AE$55,(ROW()-5),MATCH(VLOOKUP('6b. Bezettingseis Grafiek'!$C$3,data!$N$3:$O$9,2,0),'6a. Bezettingseis'!$M$4:$AE$4,0)),"")) ->  | BZ7: =IF($G7>$H7,IF(OR(AND(BZ$4>$G7,BZ$4<="23:59:00"),BZ$4<=$H7),INDEX($M$6:$AE$55,(ROW()-5),MATCH(VLOOKUP('6b. Bezettingseis Grafiek'!$C$3,data!$N$3:$O$9,2,0),'6a. Bezettingseis'!$M$4:$AE$4,0)),""),IF(AND($G7<=BZ$4,BZ$4<=$H7),INDEX($M$6:$AE$55,(ROW()-5),MATCH(VLOOKUP('6b. Bezettingseis Grafiek'!$C$3,data!$N$3:$O$9,2,0),'6a. Bezettingseis'!$M$4:$AE$4,0)),"")) ->  | CA7: =IF($G7>$H7,IF(OR(AND(CA$4>$G7,CA$4<="23:59:00"),CA$4<=$H7),INDEX($M$6:$AE$55,(ROW()-5),MATCH(VLOOKUP('6b. Bezettingseis Grafiek'!$C$3,data!$N$3:$O$9,2,0),'6a. Bezettingseis'!$M$4:$AE$4,0)),""),IF(AND($G7<=CA$4,CA$4<=$H7),INDEX($M$6:$AE$55,(ROW()-5),MATCH(VLOOKUP('6b. Bezettingseis Grafiek'!$C$3,data!$N$3:$O$9,2,0),'6a. Bezettingseis'!$M$4:$AE$4,0)),"")) ->  | CB7: =IF($G7>$H7,IF(OR(AND(CB$4>$G7,CB$4<="23:59:00"),CB$4<=$H7),INDEX($M$6:$AE$55,(ROW()-5),MATCH(VLOOKUP('6b. Bezettingseis Grafiek'!$C$3,data!$N$3:$O$9,2,0),'6a. Bezettingseis'!$M$4:$AE$4,0)),""),IF(AND($G7<=CB$4,CB$4<=$H7),INDEX($M$6:$AE$55,(ROW()-5),MATCH(VLOOKUP('6b. Bezettingseis Grafiek'!$C$3,data!$N$3:$O$9,2,0),'6a. Bezettingseis'!$M$4:$AE$4,0)),"")) ->  | CC7: =IF($G7>$H7,IF(OR(AND(CC$4>$G7,CC$4<="23:59:00"),CC$4<=$H7),INDEX($M$6:$AE$55,(ROW()-5),MATCH(VLOOKUP('6b. Bezettingseis Grafiek'!$C$3,data!$N$3:$O$9,2,0),'6a. Bezettingseis'!$M$4:$AE$4,0)),""),IF(AND($G7<=CC$4,CC$4<=$H7),INDEX($M$6:$AE$55,(ROW()-5),MATCH(VLOOKUP('6b. Bezettingseis Grafiek'!$C$3,data!$N$3:$O$9,2,0),'6a. Bezettingseis'!$M$4:$AE$4,0)),"")) ->  | CD7: =IF($G7>$H7,IF(OR(AND(CD$4>$G7,CD$4<="23:59:00"),CD$4<=$H7),INDEX($M$6:$AE$55,(ROW()-5),MATCH(VLOOKUP('6b. Bezettingseis Grafiek'!$C$3,data!$N$3:$O$9,2,0),'6a. Bezettingseis'!$M$4:$AE$4,0)),""),IF(AND($G7<=CD$4,CD$4<=$H7),INDEX($M$6:$AE$55,(ROW()-5),MATCH(VLOOKUP('6b. Bezettingseis Grafiek'!$C$3,data!$N$3:$O$9,2,0),'6a. Bezettingseis'!$M$4:$AE$4,0)),"")) ->  | CE7: =IF($G7>$H7,IF(OR(AND(CE$4>$G7,CE$4<="23:59:00"),CE$4<=$H7),INDEX($M$6:$AE$55,(ROW()-5),MATCH(VLOOKUP('6b. Bezettingseis Grafiek'!$C$3,data!$N$3:$O$9,2,0),'6a. Bezettingseis'!$M$4:$AE$4,0)),""),IF(AND($G7<=CE$4,CE$4<=$H7),INDEX($M$6:$AE$55,(ROW()-5),MATCH(VLOOKUP('6b. Bezettingseis Grafiek'!$C$3,data!$N$3:$O$9,2,0),'6a. Bezettingseis'!$M$4:$AE$4,0)),"")) ->  | CF7: =IF($G7>$H7,IF(OR(AND(CF$4>$G7,CF$4<="23:59:00"),CF$4<=$H7),INDEX($M$6:$AE$55,(ROW()-5),MATCH(VLOOKUP('6b. Bezettingseis Grafiek'!$C$3,data!$N$3:$O$9,2,0),'6a. Bezettingseis'!$M$4:$AE$4,0)),""),IF(AND($G7<=CF$4,CF$4<=$H7),INDEX($M$6:$AE$55,(ROW()-5),MATCH(VLOOKUP('6b. Bezettingseis Grafiek'!$C$3,data!$N$3:$O$9,2,0),'6a. Bezettingseis'!$M$4:$AE$4,0)),"")) ->  | CG7: =IF($G7>$H7,IF(OR(AND(CG$4>$G7,CG$4<="23:59:00"),CG$4<=$H7),INDEX($M$6:$AE$55,(ROW()-5),MATCH(VLOOKUP('6b. Bezettingseis Grafiek'!$C$3,data!$N$3:$O$9,2,0),'6a. Bezettingseis'!$M$4:$AE$4,0)),""),IF(AND($G7<=CG$4,CG$4<=$H7),INDEX($M$6:$AE$55,(ROW()-5),MATCH(VLOOKUP('6b. Bezettingseis Grafiek'!$C$3,data!$N$3:$O$9,2,0),'6a. Bezettingseis'!$M$4:$AE$4,0)),"")) ->  | CH7: =IF($G7>$H7,IF(OR(AND(CH$4>$G7,CH$4<="23:59:00"),CH$4<=$H7),INDEX($M$6:$AE$55,(ROW()-5),MATCH(VLOOKUP('6b. Bezettingseis Grafiek'!$C$3,data!$N$3:$O$9,2,0),'6a. Bezettingseis'!$M$4:$AE$4,0)),""),IF(AND($G7<=CH$4,CH$4<=$H7),INDEX($M$6:$AE$55,(ROW()-5),MATCH(VLOOKUP('6b. Bezettingseis Grafiek'!$C$3,data!$N$3:$O$9,2,0),'6a. Bezettingseis'!$M$4:$AE$4,0)),"")) ->  | CI7: =IF($G7>$H7,IF(OR(AND(CI$4>$G7,CI$4<="23:59:00"),CI$4<=$H7),INDEX($M$6:$AE$55,(ROW()-5),MATCH(VLOOKUP('6b. Bezettingseis Grafiek'!$C$3,data!$N$3:$O$9,2,0),'6a. Bezettingseis'!$M$4:$AE$4,0)),""),IF(AND($G7<=CI$4,CI$4<=$H7),INDEX($M$6:$AE$55,(ROW()-5),MATCH(VLOOKUP('6b. Bezettingseis Grafiek'!$C$3,data!$N$3:$O$9,2,0),'6a. Bezettingseis'!$M$4:$AE$4,0)),"")) ->  | CJ7: =IF($G7>$H7,IF(OR(AND(CJ$4>$G7,CJ$4<="23:59:00"),CJ$4<=$H7),INDEX($M$6:$AE$55,(ROW()-5),MATCH(VLOOKUP('6b. Bezettingseis Grafiek'!$C$3,data!$N$3:$O$9,2,0),'6a. Bezettingseis'!$M$4:$AE$4,0)),""),IF(AND($G7<=CJ$4,CJ$4<=$H7),INDEX($M$6:$AE$55,(ROW()-5),MATCH(VLOOKUP('6b. Bezettingseis Grafiek'!$C$3,data!$N$3:$O$9,2,0),'6a. Bezettingseis'!$M$4:$AE$4,0)),"")) ->  | CK7: =IF($G7>$H7,IF(OR(AND(CK$4>$G7,CK$4<="23:59:00"),CK$4<=$H7),INDEX($M$6:$AE$55,(ROW()-5),MATCH(VLOOKUP('6b. Bezettingseis Grafiek'!$C$3,data!$N$3:$O$9,2,0),'6a. Bezettingseis'!$M$4:$AE$4,0)),""),IF(AND($G7<=CK$4,CK$4<=$H7),INDEX($M$6:$AE$55,(ROW()-5),MATCH(VLOOKUP('6b. Bezettingseis Grafiek'!$C$3,data!$N$3:$O$9,2,0),'6a. Bezettingseis'!$M$4:$AE$4,0)),"")) ->  | CL7: =IF($G7>$H7,IF(OR(AND(CL$4>$G7,CL$4<="23:59:00"),CL$4<=$H7),INDEX($M$6:$AE$55,(ROW()-5),MATCH(VLOOKUP('6b. Bezettingseis Grafiek'!$C$3,data!$N$3:$O$9,2,0),'6a. Bezettingseis'!$M$4:$AE$4,0)),""),IF(AND($G7<=CL$4,CL$4<=$H7),INDEX($M$6:$AE$55,(ROW()-5),MATCH(VLOOKUP('6b. Bezettingseis Grafiek'!$C$3,data!$N$3:$O$9,2,0),'6a. Bezettingseis'!$M$4:$AE$4,0)),"")) ->  | CM7: =IF($G7>$H7,IF(OR(AND(CM$4>$G7,CM$4<="23:59:00"),CM$4<=$H7),INDEX($M$6:$AE$55,(ROW()-5),MATCH(VLOOKUP('6b. Bezettingseis Grafiek'!$C$3,data!$N$3:$O$9,2,0),'6a. Bezettingseis'!$M$4:$AE$4,0)),""),IF(AND($G7<=CM$4,CM$4<=$H7),INDEX($M$6:$AE$55,(ROW()-5),MATCH(VLOOKUP('6b. Bezettingseis Grafiek'!$C$3,data!$N$3:$O$9,2,0),'6a. Bezettingseis'!$M$4:$AE$4,0)),"")) ->  | CN7: =IF($G7>$H7,IF(OR(AND(CN$4>$G7,CN$4<="23:59:00"),CN$4<=$H7),INDEX($M$6:$AE$55,(ROW()-5),MATCH(VLOOKUP('6b. Bezettingseis Grafiek'!$C$3,data!$N$3:$O$9,2,0),'6a. Bezettingseis'!$M$4:$AE$4,0)),""),IF(AND($G7<=CN$4,CN$4<=$H7),INDEX($M$6:$AE$55,(ROW()-5),MATCH(VLOOKUP('6b. Bezettingseis Grafiek'!$C$3,data!$N$3:$O$9,2,0),'6a. Bezettingseis'!$M$4:$AE$4,0)),"")) ->  | CO7: =IF($G7>$H7,IF(OR(AND(CO$4>$G7,CO$4<="23:59:00"),CO$4<=$H7),INDEX($M$6:$AE$55,(ROW()-5),MATCH(VLOOKUP('6b. Bezettingseis Grafiek'!$C$3,data!$N$3:$O$9,2,0),'6a. Bezettingseis'!$M$4:$AE$4,0)),""),IF(AND($G7<=CO$4,CO$4<=$H7),INDEX($M$6:$AE$55,(ROW()-5),MATCH(VLOOKUP('6b. Bezettingseis Grafiek'!$C$3,data!$N$3:$O$9,2,0),'6a. Bezettingseis'!$M$4:$AE$4,0)),"")) ->  | CP7: =IF($G7>$H7,IF(OR(AND(CP$4>$G7,CP$4<="23:59:00"),CP$4<=$H7),INDEX($M$6:$AE$55,(ROW()-5),MATCH(VLOOKUP('6b. Bezettingseis Grafiek'!$C$3,data!$N$3:$O$9,2,0),'6a. Bezettingseis'!$M$4:$AE$4,0)),""),IF(AND($G7<=CP$4,CP$4<=$H7),INDEX($M$6:$AE$55,(ROW()-5),MATCH(VLOOKUP('6b. Bezettingseis Grafiek'!$C$3,data!$N$3:$O$9,2,0),'6a. Bezettingseis'!$M$4:$AE$4,0)),"")) ->  | CQ7: =IF($G7>$H7,IF(OR(AND(CQ$4>$G7,CQ$4<="23:59:00"),CQ$4<=$H7),INDEX($M$6:$AE$55,(ROW()-5),MATCH(VLOOKUP('6b. Bezettingseis Grafiek'!$C$3,data!$N$3:$O$9,2,0),'6a. Bezettingseis'!$M$4:$AE$4,0)),""),IF(AND($G7<=CQ$4,CQ$4<=$H7),INDEX($M$6:$AE$55,(ROW()-5),MATCH(VLOOKUP('6b. Bezettingseis Grafiek'!$C$3,data!$N$3:$O$9,2,0),'6a. Bezettingseis'!$M$4:$AE$4,0)),"")) ->  | CR7: =IF($G7>$H7,IF(OR(AND(CR$4>$G7,CR$4<="23:59:00"),CR$4<=$H7),INDEX($M$6:$AE$55,(ROW()-5),MATCH(VLOOKUP('6b. Bezettingseis Grafiek'!$C$3,data!$N$3:$O$9,2,0),'6a. Bezettingseis'!$M$4:$AE$4,0)),""),IF(AND($G7<=CR$4,CR$4<=$H7),INDEX($M$6:$AE$55,(ROW()-5),MATCH(VLOOKUP('6b. Bezettingseis Grafiek'!$C$3,data!$N$3:$O$9,2,0),'6a. Bezettingseis'!$M$4:$AE$4,0)),"")) ->  | CS7: =IF($G7>$H7,IF(OR(AND(CS$4>$G7,CS$4<="23:59:00"),CS$4<=$H7),INDEX($M$6:$AE$55,(ROW()-5),MATCH(VLOOKUP('6b. Bezettingseis Grafiek'!$C$3,data!$N$3:$O$9,2,0),'6a. Bezettingseis'!$M$4:$AE$4,0)),""),IF(AND($G7<=CS$4,CS$4<=$H7),INDEX($M$6:$AE$55,(ROW()-5),MATCH(VLOOKUP('6b. Bezettingseis Grafiek'!$C$3,data!$N$3:$O$9,2,0),'6a. Bezettingseis'!$M$4:$AE$4,0)),"")) ->  | CT7: =IF($G7>$H7,IF(OR(AND(CT$4>$G7,CT$4<="23:59:00"),CT$4<=$H7),INDEX($M$6:$AE$55,(ROW()-5),MATCH(VLOOKUP('6b. Bezettingseis Grafiek'!$C$3,data!$N$3:$O$9,2,0),'6a. Bezettingseis'!$M$4:$AE$4,0)),""),IF(AND($G7<=CT$4,CT$4<=$H7),INDEX($M$6:$AE$55,(ROW()-5),MATCH(VLOOKUP('6b. Bezettingseis Grafiek'!$C$3,data!$N$3:$O$9,2,0),'6a. Bezettingseis'!$M$4:$AE$4,0)),"")) ->  | CU7: =IF($G7>$H7,IF(OR(AND(CU$4>$G7,CU$4<="23:59:00"),CU$4<=$H7),INDEX($M$6:$AE$55,(ROW()-5),MATCH(VLOOKUP('6b. Bezettingseis Grafiek'!$C$3,data!$N$3:$O$9,2,0),'6a. Bezettingseis'!$M$4:$AE$4,0)),""),IF(AND($G7<=CU$4,CU$4<=$H7),INDEX($M$6:$AE$55,(ROW()-5),MATCH(VLOOKUP('6b. Bezettingseis Grafiek'!$C$3,data!$N$3:$O$9,2,0),'6a. Bezettingseis'!$M$4:$AE$4,0)),"")) ->  | CV7: =IF($G7>$H7,IF(OR(AND(CV$4>$G7,CV$4<="23:59:00"),CV$4<=$H7),INDEX($M$6:$AE$55,(ROW()-5),MATCH(VLOOKUP('6b. Bezettingseis Grafiek'!$C$3,data!$N$3:$O$9,2,0),'6a. Bezettingseis'!$M$4:$AE$4,0)),""),IF(AND($G7<=CV$4,CV$4<=$H7),INDEX($M$6:$AE$55,(ROW()-5),MATCH(VLOOKUP('6b. Bezettingseis Grafiek'!$C$3,data!$N$3:$O$9,2,0),'6a. Bezettingseis'!$M$4:$AE$4,0)),"")) ->  | CW7: =IF($G7>$H7,IF(OR(AND(CW$4>$G7,CW$4<="23:59:00"),CW$4<=$H7),INDEX($M$6:$AE$55,(ROW()-5),MATCH(VLOOKUP('6b. Bezettingseis Grafiek'!$C$3,data!$N$3:$O$9,2,0),'6a. Bezettingseis'!$M$4:$AE$4,0)),""),IF(AND($G7<=CW$4,CW$4<=$H7),INDEX($M$6:$AE$55,(ROW()-5),MATCH(VLOOKUP('6b. Bezettingseis Grafiek'!$C$3,data!$N$3:$O$9,2,0),'6a. Bezettingseis'!$M$4:$AE$4,0)),"")) ->  | CX7: =IF($G7>$H7,IF(OR(AND(CX$4>$G7,CX$4<="23:59:00"),CX$4<=$H7),INDEX($M$6:$AE$55,(ROW()-5),MATCH(VLOOKUP('6b. Bezettingseis Grafiek'!$C$3,data!$N$3:$O$9,2,0),'6a. Bezettingseis'!$M$4:$AE$4,0)),""),IF(AND($G7<=CX$4,CX$4<=$H7),INDEX($M$6:$AE$55,(ROW()-5),MATCH(VLOOKUP('6b. Bezettingseis Grafiek'!$C$3,data!$N$3:$O$9,2,0),'6a. Bezettingseis'!$M$4:$AE$4,0)),"")) ->  | CY7: =IF($G7>$H7,IF(OR(AND(CY$4>$G7,CY$4<="23:59:00"),CY$4<=$H7),INDEX($M$6:$AE$55,(ROW()-5),MATCH(VLOOKUP('6b. Bezettingseis Grafiek'!$C$3,data!$N$3:$O$9,2,0),'6a. Bezettingseis'!$M$4:$AE$4,0)),""),IF(AND($G7<=CY$4,CY$4<=$H7),INDEX($M$6:$AE$55,(ROW()-5),MATCH(VLOOKUP('6b. Bezettingseis Grafiek'!$C$3,data!$N$3:$O$9,2,0),'6a. Bezettingseis'!$M$4:$AE$4,0)),"")) ->  | CZ7: =IF($G7>$H7,IF(OR(AND(CZ$4>$G7,CZ$4<="23:59:00"),CZ$4<=$H7),INDEX($M$6:$AE$55,(ROW()-5),MATCH(VLOOKUP('6b. Bezettingseis Grafiek'!$C$3,data!$N$3:$O$9,2,0),'6a. Bezettingseis'!$M$4:$AE$4,0)),""),IF(AND($G7<=CZ$4,CZ$4<=$H7),INDEX($M$6:$AE$55,(ROW()-5),MATCH(VLOOKUP('6b. Bezettingseis Grafiek'!$C$3,data!$N$3:$O$9,2,0),'6a. Bezettingseis'!$M$4:$AE$4,0)),"")) ->  | DA7: =IF($G7>$H7,IF(OR(AND(DA$4>$G7,DA$4<="23:59:00"),DA$4<=$H7),INDEX($M$6:$AE$55,(ROW()-5),MATCH(VLOOKUP('6b. Bezettingseis Grafiek'!$C$3,data!$N$3:$O$9,2,0),'6a. Bezettingseis'!$M$4:$AE$4,0)),""),IF(AND($G7<=DA$4,DA$4<=$H7),INDEX($M$6:$AE$55,(ROW()-5),MATCH(VLOOKUP('6b. Bezettingseis Grafiek'!$C$3,data!$N$3:$O$9,2,0),'6a. Bezettingseis'!$M$4:$AE$4,0)),"")) ->  | DB7: =IF($G7>$H7,IF(OR(AND(DB$4>$G7,DB$4<="23:59:00"),DB$4<=$H7),INDEX($M$6:$AE$55,(ROW()-5),MATCH(VLOOKUP('6b. Bezettingseis Grafiek'!$C$3,data!$N$3:$O$9,2,0),'6a. Bezettingseis'!$M$4:$AE$4,0)),""),IF(AND($G7<=DB$4,DB$4<=$H7),INDEX($M$6:$AE$55,(ROW()-5),MATCH(VLOOKUP('6b. Bezettingseis Grafiek'!$C$3,data!$N$3:$O$9,2,0),'6a. Bezettingseis'!$M$4:$AE$4,0)),"")) ->  | DC7: =IF($G7>$H7,IF(OR(AND(DC$4>$G7,DC$4<="23:59:00"),DC$4<=$H7),INDEX($M$6:$AE$55,(ROW()-5),MATCH(VLOOKUP('6b. Bezettingseis Grafiek'!$C$3,data!$N$3:$O$9,2,0),'6a. Bezettingseis'!$M$4:$AE$4,0)),""),IF(AND($G7<=DC$4,DC$4<=$H7),INDEX($M$6:$AE$55,(ROW()-5),MATCH(VLOOKUP('6b. Bezettingseis Grafiek'!$C$3,data!$N$3:$O$9,2,0),'6a. Bezettingseis'!$M$4:$AE$4,0)),"")) ->  | DD7: =IF($G7>$H7,IF(OR(AND(DD$4>$G7,DD$4<="23:59:00"),DD$4<=$H7),INDEX($M$6:$AE$55,(ROW()-5),MATCH(VLOOKUP('6b. Bezettingseis Grafiek'!$C$3,data!$N$3:$O$9,2,0),'6a. Bezettingseis'!$M$4:$AE$4,0)),""),IF(AND($G7<=DD$4,DD$4<=$H7),INDEX($M$6:$AE$55,(ROW()-5),MATCH(VLOOKUP('6b. Bezettingseis Grafiek'!$C$3,data!$N$3:$O$9,2,0),'6a. Bezettingseis'!$M$4:$AE$4,0)),"")) ->  | DE7: =IF($G7>$H7,IF(OR(AND(DE$4>$G7,DE$4<="23:59:00"),DE$4<=$H7),INDEX($M$6:$AE$55,(ROW()-5),MATCH(VLOOKUP('6b. Bezettingseis Grafiek'!$C$3,data!$N$3:$O$9,2,0),'6a. Bezettingseis'!$M$4:$AE$4,0)),""),IF(AND($G7<=DE$4,DE$4<=$H7),INDEX($M$6:$AE$55,(ROW()-5),MATCH(VLOOKUP('6b. Bezettingseis Grafiek'!$C$3,data!$N$3:$O$9,2,0),'6a. Bezettingseis'!$M$4:$AE$4,0)),"")) ->  | DF7: =IF($G7>$H7,IF(OR(AND(DF$4>$G7,DF$4<="23:59:00"),DF$4<=$H7),INDEX($M$6:$AE$55,(ROW()-5),MATCH(VLOOKUP('6b. Bezettingseis Grafiek'!$C$3,data!$N$3:$O$9,2,0),'6a. Bezettingseis'!$M$4:$AE$4,0)),""),IF(AND($G7<=DF$4,DF$4<=$H7),INDEX($M$6:$AE$55,(ROW()-5),MATCH(VLOOKUP('6b. Bezettingseis Grafiek'!$C$3,data!$N$3:$O$9,2,0),'6a. Bezettingseis'!$M$4:$AE$4,0)),"")) ->  | DG7: =IF($G7>$H7,IF(OR(AND(DG$4>$G7,DG$4<="23:59:00"),DG$4<=$H7),INDEX($M$6:$AE$55,(ROW()-5),MATCH(VLOOKUP('6b. Bezettingseis Grafiek'!$C$3,data!$N$3:$O$9,2,0),'6a. Bezettingseis'!$M$4:$AE$4,0)),""),IF(AND($G7<=DG$4,DG$4<=$H7),INDEX($M$6:$AE$55,(ROW()-5),MATCH(VLOOKUP('6b. Bezettingseis Grafiek'!$C$3,data!$N$3:$O$9,2,0),'6a. Bezettingseis'!$M$4:$AE$4,0)),"")) ->  | DH7: =IF($G7>$H7,IF(OR(AND(DH$4>$G7,DH$4<="23:59:00"),DH$4<=$H7),INDEX($M$6:$AE$55,(ROW()-5),MATCH(VLOOKUP('6b. Bezettingseis Grafiek'!$C$3,data!$N$3:$O$9,2,0),'6a. Bezettingseis'!$M$4:$AE$4,0)),""),IF(AND($G7<=DH$4,DH$4<=$H7),INDEX($M$6:$AE$55,(ROW()-5),MATCH(VLOOKUP('6b. Bezettingseis Grafiek'!$C$3,data!$N$3:$O$9,2,0),'6a. Bezettingseis'!$M$4:$AE$4,0)),"")) ->  | DI7: =IF($G7>$H7,IF(OR(AND(DI$4>$G7,DI$4<="23:59:00"),DI$4<=$H7),INDEX($M$6:$AE$55,(ROW()-5),MATCH(VLOOKUP('6b. Bezettingseis Grafiek'!$C$3,data!$N$3:$O$9,2,0),'6a. Bezettingseis'!$M$4:$AE$4,0)),""),IF(AND($G7<=DI$4,DI$4<=$H7),INDEX($M$6:$AE$55,(ROW()-5),MATCH(VLOOKUP('6b. Bezettingseis Grafiek'!$C$3,data!$N$3:$O$9,2,0),'6a. Bezettingseis'!$M$4:$AE$4,0)),"")) ->  | DJ7: =IF($G7>$H7,IF(OR(AND(DJ$4>$G7,DJ$4<="23:59:00"),DJ$4<=$H7),INDEX($M$6:$AE$55,(ROW()-5),MATCH(VLOOKUP('6b. Bezettingseis Grafiek'!$C$3,data!$N$3:$O$9,2,0),'6a. Bezettingseis'!$M$4:$AE$4,0)),""),IF(AND($G7<=DJ$4,DJ$4<=$H7),INDEX($M$6:$AE$55,(ROW()-5),MATCH(VLOOKUP('6b. Bezettingseis Grafiek'!$C$3,data!$N$3:$O$9,2,0),'6a. Bezettingseis'!$M$4:$AE$4,0)),"")) ->  | DK7: =IF($G7>$H7,IF(OR(AND(DK$4>$G7,DK$4<="23:59:00"),DK$4<=$H7),INDEX($M$6:$AE$55,(ROW()-5),MATCH(VLOOKUP('6b. Bezettingseis Grafiek'!$C$3,data!$N$3:$O$9,2,0),'6a. Bezettingseis'!$M$4:$AE$4,0)),""),IF(AND($G7<=DK$4,DK$4<=$H7),INDEX($M$6:$AE$55,(ROW()-5),MATCH(VLOOKUP('6b. Bezettingseis Grafiek'!$C$3,data!$N$3:$O$9,2,0),'6a. Bezettingseis'!$M$4:$AE$4,0)),"")) ->  | DL7: =IF($G7>$H7,IF(OR(AND(DL$4>$G7,DL$4<="23:59:00"),DL$4<=$H7),INDEX($M$6:$AE$55,(ROW()-5),MATCH(VLOOKUP('6b. Bezettingseis Grafiek'!$C$3,data!$N$3:$O$9,2,0),'6a. Bezettingseis'!$M$4:$AE$4,0)),""),IF(AND($G7<=DL$4,DL$4<=$H7),INDEX($M$6:$AE$55,(ROW()-5),MATCH(VLOOKUP('6b. Bezettingseis Grafiek'!$C$3,data!$N$3:$O$9,2,0),'6a. Bezettingseis'!$M$4:$AE$4,0)),"")) ->  | DM7: =IF($G7>$H7,IF(OR(AND(DM$4>$G7,DM$4<="23:59:00"),DM$4<=$H7),INDEX($M$6:$AE$55,(ROW()-5),MATCH(VLOOKUP('6b. Bezettingseis Grafiek'!$C$3,data!$N$3:$O$9,2,0),'6a. Bezettingseis'!$M$4:$AE$4,0)),""),IF(AND($G7<=DM$4,DM$4<=$H7),INDEX($M$6:$AE$55,(ROW()-5),MATCH(VLOOKUP('6b. Bezettingseis Grafiek'!$C$3,data!$N$3:$O$9,2,0),'6a. Bezettingseis'!$M$4:$AE$4,0)),"")) ->  | DN7: =IF($G7>$H7,IF(OR(AND(DN$4>$G7,DN$4<="23:59:00"),DN$4<=$H7),INDEX($M$6:$AE$55,(ROW()-5),MATCH(VLOOKUP('6b. Bezettingseis Grafiek'!$C$3,data!$N$3:$O$9,2,0),'6a. Bezettingseis'!$M$4:$AE$4,0)),""),IF(AND($G7<=DN$4,DN$4<=$H7),INDEX($M$6:$AE$55,(ROW()-5),MATCH(VLOOKUP('6b. Bezettingseis Grafiek'!$C$3,data!$N$3:$O$9,2,0),'6a. Bezettingseis'!$M$4:$AE$4,0)),"")) ->  | DO7: =IF($G7>$H7,IF(OR(AND(DO$4>$G7,DO$4<="23:59:00"),DO$4<=$H7),INDEX($M$6:$AE$55,(ROW()-5),MATCH(VLOOKUP('6b. Bezettingseis Grafiek'!$C$3,data!$N$3:$O$9,2,0),'6a. Bezettingseis'!$M$4:$AE$4,0)),""),IF(AND($G7<=DO$4,DO$4<=$H7),INDEX($M$6:$AE$55,(ROW()-5),MATCH(VLOOKUP('6b. Bezettingseis Grafiek'!$C$3,data!$N$3:$O$9,2,0),'6a. Bezettingseis'!$M$4:$AE$4,0)),"")) ->  | DP7: =IF($G7>$H7,IF(OR(AND(DP$4>$G7,DP$4<="23:59:00"),DP$4<=$H7),INDEX($M$6:$AE$55,(ROW()-5),MATCH(VLOOKUP('6b. Bezettingseis Grafiek'!$C$3,data!$N$3:$O$9,2,0),'6a. Bezettingseis'!$M$4:$AE$4,0)),""),IF(AND($G7<=DP$4,DP$4<=$H7),INDEX($M$6:$AE$55,(ROW()-5),MATCH(VLOOKUP('6b. Bezettingseis Grafiek'!$C$3,data!$N$3:$O$9,2,0),'6a. Bezettingseis'!$M$4:$AE$4,0)),"")) ->  | DQ7: =IF($G7>$H7,IF(OR(AND(DQ$4>$G7,DQ$4<="23:59:00"),DQ$4<=$H7),INDEX($M$6:$AE$55,(ROW()-5),MATCH(VLOOKUP('6b. Bezettingseis Grafiek'!$C$3,data!$N$3:$O$9,2,0),'6a. Bezettingseis'!$M$4:$AE$4,0)),""),IF(AND($G7<=DQ$4,DQ$4<=$H7),INDEX($M$6:$AE$55,(ROW()-5),MATCH(VLOOKUP('6b. Bezettingseis Grafiek'!$C$3,data!$N$3:$O$9,2,0),'6a. Bezettingseis'!$M$4:$AE$4,0)),"")) ->  | DR7: =IF($G7>$H7,IF(OR(AND(DR$4>$G7,DR$4<="23:59:00"),DR$4<=$H7),INDEX($M$6:$AE$55,(ROW()-5),MATCH(VLOOKUP('6b. Bezettingseis Grafiek'!$C$3,data!$N$3:$O$9,2,0),'6a. Bezettingseis'!$M$4:$AE$4,0)),""),IF(AND($G7<=DR$4,DR$4<=$H7),INDEX($M$6:$AE$55,(ROW()-5),MATCH(VLOOKUP('6b. Bezettingseis Grafiek'!$C$3,data!$N$3:$O$9,2,0),'6a. Bezettingseis'!$M$4:$AE$4,0)),"")) ->  | DS7: =IF($G7>$H7,IF(OR(AND(DS$4>$G7,DS$4<="23:59:00"),DS$4<=$H7),INDEX($M$6:$AE$55,(ROW()-5),MATCH(VLOOKUP('6b. Bezettingseis Grafiek'!$C$3,data!$N$3:$O$9,2,0),'6a. Bezettingseis'!$M$4:$AE$4,0)),""),IF(AND($G7<=DS$4,DS$4<=$H7),INDEX($M$6:$AE$55,(ROW()-5),MATCH(VLOOKUP('6b. Bezettingseis Grafiek'!$C$3,data!$N$3:$O$9,2,0),'6a. Bezettingseis'!$M$4:$AE$4,0)),"")) ->  | DT7: =IF($G7>$H7,IF(OR(AND(DT$4>$G7,DT$4<="23:59:00"),DT$4<=$H7),INDEX($M$6:$AE$55,(ROW()-5),MATCH(VLOOKUP('6b. Bezettingseis Grafiek'!$C$3,data!$N$3:$O$9,2,0),'6a. Bezettingseis'!$M$4:$AE$4,0)),""),IF(AND($G7<=DT$4,DT$4<=$H7),INDEX($M$6:$AE$55,(ROW()-5),MATCH(VLOOKUP('6b. Bezettingseis Grafiek'!$C$3,data!$N$3:$O$9,2,0),'6a. Bezettingseis'!$M$4:$AE$4,0)),"")) ->  | DU7: =IF($G7>$H7,IF(OR(AND(DU$4>$G7,DU$4<="23:59:00"),DU$4<=$H7),INDEX($M$6:$AE$55,(ROW()-5),MATCH(VLOOKUP('6b. Bezettingseis Grafiek'!$C$3,data!$N$3:$O$9,2,0),'6a. Bezettingseis'!$M$4:$AE$4,0)),""),IF(AND($G7<=DU$4,DU$4<=$H7),INDEX($M$6:$AE$55,(ROW()-5),MATCH(VLOOKUP('6b. Bezettingseis Grafiek'!$C$3,data!$N$3:$O$9,2,0),'6a. Bezettingseis'!$M$4:$AE$4,0)),"")) ->  | DV7: =IF($G7>$H7,IF(OR(AND(DV$4>$G7,DV$4<="23:59:00"),DV$4<=$H7),INDEX($M$6:$AE$55,(ROW()-5),MATCH(VLOOKUP('6b. Bezettingseis Grafiek'!$C$3,data!$N$3:$O$9,2,0),'6a. Bezettingseis'!$M$4:$AE$4,0)),""),IF(AND($G7<=DV$4,DV$4<=$H7),INDEX($M$6:$AE$55,(ROW()-5),MATCH(VLOOKUP('6b. Bezettingseis Grafiek'!$C$3,data!$N$3:$O$9,2,0),'6a. Bezettingseis'!$M$4:$AE$4,0)),"")) ->  | DW7: =IF($G7>$H7,IF(OR(AND(DW$4>$G7,DW$4<="23:59:00"),DW$4<=$H7),INDEX($M$6:$AE$55,(ROW()-5),MATCH(VLOOKUP('6b. Bezettingseis Grafiek'!$C$3,data!$N$3:$O$9,2,0),'6a. Bezettingseis'!$M$4:$AE$4,0)),""),IF(AND($G7<=DW$4,DW$4<=$H7),INDEX($M$6:$AE$55,(ROW()-5),MATCH(VLOOKUP('6b. Bezettingseis Grafiek'!$C$3,data!$N$3:$O$9,2,0),'6a. Bezettingseis'!$M$4:$AE$4,0)),"")) ->  | DX7: =IF($G7>$H7,IF(OR(AND(DX$4>$G7,DX$4<="23:59:00"),DX$4<=$H7),INDEX($M$6:$AE$55,(ROW()-5),MATCH(VLOOKUP('6b. Bezettingseis Grafiek'!$C$3,data!$N$3:$O$9,2,0),'6a. Bezettingseis'!$M$4:$AE$4,0)),""),IF(AND($G7<=DX$4,DX$4<=$H7),INDEX($M$6:$AE$55,(ROW()-5),MATCH(VLOOKUP('6b. Bezettingseis Grafiek'!$C$3,data!$N$3:$O$9,2,0),'6a. Bezettingseis'!$M$4:$AE$4,0)),"")) ->  | DY7: =IF($G7>$H7,IF(OR(AND(DY$4>$G7,DY$4<="23:59:00"),DY$4<=$H7),INDEX($M$6:$AE$55,(ROW()-5),MATCH(VLOOKUP('6b. Bezettingseis Grafiek'!$C$3,data!$N$3:$O$9,2,0),'6a. Bezettingseis'!$M$4:$AE$4,0)),""),IF(AND($G7<=DY$4,DY$4<=$H7),INDEX($M$6:$AE$55,(ROW()-5),MATCH(VLOOKUP('6b. Bezettingseis Grafiek'!$C$3,data!$N$3:$O$9,2,0),'6a. Bezettingseis'!$M$4:$AE$4,0)),"")) ->  | DZ7: =IF($G7>$H7,IF(OR(AND(DZ$4>$G7,DZ$4<="23:59:00"),DZ$4<=$H7),INDEX($M$6:$AE$55,(ROW()-5),MATCH(VLOOKUP('6b. Bezettingseis Grafiek'!$C$3,data!$N$3:$O$9,2,0),'6a. Bezettingseis'!$M$4:$AE$4,0)),""),IF(AND($G7<=DZ$4,DZ$4<=$H7),INDEX($M$6:$AE$55,(ROW()-5),MATCH(VLOOKUP('6b. Bezettingseis Grafiek'!$C$3,data!$N$3:$O$9,2,0),'6a. Bezettingseis'!$M$4:$AE$4,0)),"")) ->  | EA7: =IF($G7>$H7,IF(OR(AND(EA$4>$G7,EA$4<="23:59:00"),EA$4<=$H7),INDEX($M$6:$AE$55,(ROW()-5),MATCH(VLOOKUP('6b. Bezettingseis Grafiek'!$C$3,data!$N$3:$O$9,2,0),'6a. Bezettingseis'!$M$4:$AE$4,0)),""),IF(AND($G7<=EA$4,EA$4<=$H7),INDEX($M$6:$AE$55,(ROW()-5),MATCH(VLOOKUP('6b. Bezettingseis Grafiek'!$C$3,data!$N$3:$O$9,2,0),'6a. Bezettingseis'!$M$4:$AE$4,0)),"")) ->  | EB7: =IF($G7>$H7,IF(OR(AND(EB$4>$G7,EB$4<="23:59:00"),EB$4<=$H7),INDEX($M$6:$AE$55,(ROW()-5),MATCH(VLOOKUP('6b. Bezettingseis Grafiek'!$C$3,data!$N$3:$O$9,2,0),'6a. Bezettingseis'!$M$4:$AE$4,0)),""),IF(AND($G7<=EB$4,EB$4<=$H7),INDEX($M$6:$AE$55,(ROW()-5),MATCH(VLOOKUP('6b. Bezettingseis Grafiek'!$C$3,data!$N$3:$O$9,2,0),'6a. Bezettingseis'!$M$4:$AE$4,0)),"")) ->  | EC7: =IF($G7>$H7,IF(OR(AND(EC$4>$G7,EC$4<="23:59:00"),EC$4<=$H7),INDEX($M$6:$AE$55,(ROW()-5),MATCH(VLOOKUP('6b. Bezettingseis Grafiek'!$C$3,data!$N$3:$O$9,2,0),'6a. Bezettingseis'!$M$4:$AE$4,0)),""),IF(AND($G7<=EC$4,EC$4<=$H7),INDEX($M$6:$AE$55,(ROW()-5),MATCH(VLOOKUP('6b. Bezettingseis Grafiek'!$C$3,data!$N$3:$O$9,2,0),'6a. Bezettingseis'!$M$4:$AE$4,0)),"")) ->  | ED7: =IF($G7>$H7,IF(OR(AND(ED$4>$G7,ED$4<="23:59:00"),ED$4<=$H7),INDEX($M$6:$AE$55,(ROW()-5),MATCH(VLOOKUP('6b. Bezettingseis Grafiek'!$C$3,data!$N$3:$O$9,2,0),'6a. Bezettingseis'!$M$4:$AE$4,0)),""),IF(AND($G7<=ED$4,ED$4<=$H7),INDEX($M$6:$AE$55,(ROW()-5),MATCH(VLOOKUP('6b. Bezettingseis Grafiek'!$C$3,data!$N$3:$O$9,2,0),'6a. Bezettingseis'!$M$4:$AE$4,0)),"")) ->  | EE7: =IF($G7>$H7,IF(OR(AND(EE$4>$G7,EE$4<="23:59:00"),EE$4<=$H7),INDEX($M$6:$AE$55,(ROW()-5),MATCH(VLOOKUP('6b. Bezettingseis Grafiek'!$C$3,data!$N$3:$O$9,2,0),'6a. Bezettingseis'!$M$4:$AE$4,0)),""),IF(AND($G7<=EE$4,EE$4<=$H7),INDEX($M$6:$AE$55,(ROW()-5),MATCH(VLOOKUP('6b. Bezettingseis Grafiek'!$C$3,data!$N$3:$O$9,2,0),'6a. Bezettingseis'!$M$4:$AE$4,0)),"")) -> 
J8: 00:00:00 | K8: tot 4 uur | L8: 0 | N8: 0 | O8: 0 | Q8: 0 | R8: 0 | T8: 0 | U8: 0 | W8: 0 | X8: 0 | Z8: 0 | AA8: 0 | AC8: 0 | AD8: 0 | AF8: 0 | AG8: 0 | AH8: 0 | AI8: 1 | AJ8: 0 | AK8: 0 | AL8: 0 | AN8: =IF($G8>$H8,IF(OR(AND(AN$4>$G8,AN$4<="23:59:00"),AN$4<=$H8),INDEX($M$6:$AE$55,(ROW()-5),MATCH(VLOOKUP('6b. Bezettingseis Grafiek'!$C$3,data!$N$3:$O$9,2,0),'6a. Bezettingseis'!$M$4:$AE$4,0)),""),IF(AND($G8<=AN$4,AN$4<=$H8),INDEX($M$6:$AE$55,(ROW()-5),MATCH(VLOOKUP('6b. Bezettingseis Grafiek'!$C$3,data!$N$3:$O$9,2,0),'6a. Bezettingseis'!$M$4:$AE$4,0)),"")) ->  | AO8: =IF($G8>$H8,IF(OR(AND(AO$4>$G8,AO$4<="23:59:00"),AO$4<=$H8),INDEX($M$6:$AE$55,(ROW()-5),MATCH(VLOOKUP('6b. Bezettingseis Grafiek'!$C$3,data!$N$3:$O$9,2,0),'6a. Bezettingseis'!$M$4:$AE$4,0)),""),IF(AND($G8<=AO$4,AO$4<=$H8),INDEX($M$6:$AE$55,(ROW()-5),MATCH(VLOOKUP('6b. Bezettingseis Grafiek'!$C$3,data!$N$3:$O$9,2,0),'6a. Bezettingseis'!$M$4:$AE$4,0)),"")) ->  | AP8: =IF($G8>$H8,IF(OR(AND(AP$4>$G8,AP$4<="23:59:00"),AP$4<=$H8),INDEX($M$6:$AE$55,(ROW()-5),MATCH(VLOOKUP('6b. Bezettingseis Grafiek'!$C$3,data!$N$3:$O$9,2,0),'6a. Bezettingseis'!$M$4:$AE$4,0)),""),IF(AND($G8<=AP$4,AP$4<=$H8),INDEX($M$6:$AE$55,(ROW()-5),MATCH(VLOOKUP('6b. Bezettingseis Grafiek'!$C$3,data!$N$3:$O$9,2,0),'6a. Bezettingseis'!$M$4:$AE$4,0)),"")) ->  | AQ8: =IF($G8>$H8,IF(OR(AND(AQ$4>$G8,AQ$4<="23:59:00"),AQ$4<=$H8),INDEX($M$6:$AE$55,(ROW()-5),MATCH(VLOOKUP('6b. Bezettingseis Grafiek'!$C$3,data!$N$3:$O$9,2,0),'6a. Bezettingseis'!$M$4:$AE$4,0)),""),IF(AND($G8<=AQ$4,AQ$4<=$H8),INDEX($M$6:$AE$55,(ROW()-5),MATCH(VLOOKUP('6b. Bezettingseis Grafiek'!$C$3,data!$N$3:$O$9,2,0),'6a. Bezettingseis'!$M$4:$AE$4,0)),"")) ->  | AR8: =IF($G8>$H8,IF(OR(AND(AR$4>$G8,AR$4<="23:59:00"),AR$4<=$H8),INDEX($M$6:$AE$55,(ROW()-5),MATCH(VLOOKUP('6b. Bezettingseis Grafiek'!$C$3,data!$N$3:$O$9,2,0),'6a. Bezettingseis'!$M$4:$AE$4,0)),""),IF(AND($G8<=AR$4,AR$4<=$H8),INDEX($M$6:$AE$55,(ROW()-5),MATCH(VLOOKUP('6b. Bezettingseis Grafiek'!$C$3,data!$N$3:$O$9,2,0),'6a. Bezettingseis'!$M$4:$AE$4,0)),"")) ->  | AS8: =IF($G8>$H8,IF(OR(AND(AS$4>$G8,AS$4<="23:59:00"),AS$4<=$H8),INDEX($M$6:$AE$55,(ROW()-5),MATCH(VLOOKUP('6b. Bezettingseis Grafiek'!$C$3,data!$N$3:$O$9,2,0),'6a. Bezettingseis'!$M$4:$AE$4,0)),""),IF(AND($G8<=AS$4,AS$4<=$H8),INDEX($M$6:$AE$55,(ROW()-5),MATCH(VLOOKUP('6b. Bezettingseis Grafiek'!$C$3,data!$N$3:$O$9,2,0),'6a. Bezettingseis'!$M$4:$AE$4,0)),"")) ->  | AT8: =IF($G8>$H8,IF(OR(AND(AT$4>$G8,AT$4<="23:59:00"),AT$4<=$H8),INDEX($M$6:$AE$55,(ROW()-5),MATCH(VLOOKUP('6b. Bezettingseis Grafiek'!$C$3,data!$N$3:$O$9,2,0),'6a. Bezettingseis'!$M$4:$AE$4,0)),""),IF(AND($G8<=AT$4,AT$4<=$H8),INDEX($M$6:$AE$55,(ROW()-5),MATCH(VLOOKUP('6b. Bezettingseis Grafiek'!$C$3,data!$N$3:$O$9,2,0),'6a. Bezettingseis'!$M$4:$AE$4,0)),"")) ->  | AU8: =IF($G8>$H8,IF(OR(AND(AU$4>$G8,AU$4<="23:59:00"),AU$4<=$H8),INDEX($M$6:$AE$55,(ROW()-5),MATCH(VLOOKUP('6b. Bezettingseis Grafiek'!$C$3,data!$N$3:$O$9,2,0),'6a. Bezettingseis'!$M$4:$AE$4,0)),""),IF(AND($G8<=AU$4,AU$4<=$H8),INDEX($M$6:$AE$55,(ROW()-5),MATCH(VLOOKUP('6b. Bezettingseis Grafiek'!$C$3,data!$N$3:$O$9,2,0),'6a. Bezettingseis'!$M$4:$AE$4,0)),"")) ->  | AV8: =IF($G8>$H8,IF(OR(AND(AV$4>$G8,AV$4<="23:59:00"),AV$4<=$H8),INDEX($M$6:$AE$55,(ROW()-5),MATCH(VLOOKUP('6b. Bezettingseis Grafiek'!$C$3,data!$N$3:$O$9,2,0),'6a. Bezettingseis'!$M$4:$AE$4,0)),""),IF(AND($G8<=AV$4,AV$4<=$H8),INDEX($M$6:$AE$55,(ROW()-5),MATCH(VLOOKUP('6b. Bezettingseis Grafiek'!$C$3,data!$N$3:$O$9,2,0),'6a. Bezettingseis'!$M$4:$AE$4,0)),"")) ->  | AW8: =IF($G8>$H8,IF(OR(AND(AW$4>$G8,AW$4<="23:59:00"),AW$4<=$H8),INDEX($M$6:$AE$55,(ROW()-5),MATCH(VLOOKUP('6b. Bezettingseis Grafiek'!$C$3,data!$N$3:$O$9,2,0),'6a. Bezettingseis'!$M$4:$AE$4,0)),""),IF(AND($G8<=AW$4,AW$4<=$H8),INDEX($M$6:$AE$55,(ROW()-5),MATCH(VLOOKUP('6b. Bezettingseis Grafiek'!$C$3,data!$N$3:$O$9,2,0),'6a. Bezettingseis'!$M$4:$AE$4,0)),"")) ->  | AX8: =IF($G8>$H8,IF(OR(AND(AX$4>$G8,AX$4<="23:59:00"),AX$4<=$H8),INDEX($M$6:$AE$55,(ROW()-5),MATCH(VLOOKUP('6b. Bezettingseis Grafiek'!$C$3,data!$N$3:$O$9,2,0),'6a. Bezettingseis'!$M$4:$AE$4,0)),""),IF(AND($G8<=AX$4,AX$4<=$H8),INDEX($M$6:$AE$55,(ROW()-5),MATCH(VLOOKUP('6b. Bezettingseis Grafiek'!$C$3,data!$N$3:$O$9,2,0),'6a. Bezettingseis'!$M$4:$AE$4,0)),"")) ->  | AY8: =IF($G8>$H8,IF(OR(AND(AY$4>$G8,AY$4<="23:59:00"),AY$4<=$H8),INDEX($M$6:$AE$55,(ROW()-5),MATCH(VLOOKUP('6b. Bezettingseis Grafiek'!$C$3,data!$N$3:$O$9,2,0),'6a. Bezettingseis'!$M$4:$AE$4,0)),""),IF(AND($G8<=AY$4,AY$4<=$H8),INDEX($M$6:$AE$55,(ROW()-5),MATCH(VLOOKUP('6b. Bezettingseis Grafiek'!$C$3,data!$N$3:$O$9,2,0),'6a. Bezettingseis'!$M$4:$AE$4,0)),"")) ->  | AZ8: =IF($G8>$H8,IF(OR(AND(AZ$4>$G8,AZ$4<="23:59:00"),AZ$4<=$H8),INDEX($M$6:$AE$55,(ROW()-5),MATCH(VLOOKUP('6b. Bezettingseis Grafiek'!$C$3,data!$N$3:$O$9,2,0),'6a. Bezettingseis'!$M$4:$AE$4,0)),""),IF(AND($G8<=AZ$4,AZ$4<=$H8),INDEX($M$6:$AE$55,(ROW()-5),MATCH(VLOOKUP('6b. Bezettingseis Grafiek'!$C$3,data!$N$3:$O$9,2,0),'6a. Bezettingseis'!$M$4:$AE$4,0)),"")) ->  | BA8: =IF($G8>$H8,IF(OR(AND(BA$4>$G8,BA$4<="23:59:00"),BA$4<=$H8),INDEX($M$6:$AE$55,(ROW()-5),MATCH(VLOOKUP('6b. Bezettingseis Grafiek'!$C$3,data!$N$3:$O$9,2,0),'6a. Bezettingseis'!$M$4:$AE$4,0)),""),IF(AND($G8<=BA$4,BA$4<=$H8),INDEX($M$6:$AE$55,(ROW()-5),MATCH(VLOOKUP('6b. Bezettingseis Grafiek'!$C$3,data!$N$3:$O$9,2,0),'6a. Bezettingseis'!$M$4:$AE$4,0)),"")) ->  | BB8: =IF($G8>$H8,IF(OR(AND(BB$4>$G8,BB$4<="23:59:00"),BB$4<=$H8),INDEX($M$6:$AE$55,(ROW()-5),MATCH(VLOOKUP('6b. Bezettingseis Grafiek'!$C$3,data!$N$3:$O$9,2,0),'6a. Bezettingseis'!$M$4:$AE$4,0)),""),IF(AND($G8<=BB$4,BB$4<=$H8),INDEX($M$6:$AE$55,(ROW()-5),MATCH(VLOOKUP('6b. Bezettingseis Grafiek'!$C$3,data!$N$3:$O$9,2,0),'6a. Bezettingseis'!$M$4:$AE$4,0)),"")) ->  | BC8: =IF($G8>$H8,IF(OR(AND(BC$4>$G8,BC$4<="23:59:00"),BC$4<=$H8),INDEX($M$6:$AE$55,(ROW()-5),MATCH(VLOOKUP('6b. Bezettingseis Grafiek'!$C$3,data!$N$3:$O$9,2,0),'6a. Bezettingseis'!$M$4:$AE$4,0)),""),IF(AND($G8<=BC$4,BC$4<=$H8),INDEX($M$6:$AE$55,(ROW()-5),MATCH(VLOOKUP('6b. Bezettingseis Grafiek'!$C$3,data!$N$3:$O$9,2,0),'6a. Bezettingseis'!$M$4:$AE$4,0)),"")) ->  | BD8: =IF($G8>$H8,IF(OR(AND(BD$4>$G8,BD$4<="23:59:00"),BD$4<=$H8),INDEX($M$6:$AE$55,(ROW()-5),MATCH(VLOOKUP('6b. Bezettingseis Grafiek'!$C$3,data!$N$3:$O$9,2,0),'6a. Bezettingseis'!$M$4:$AE$4,0)),""),IF(AND($G8<=BD$4,BD$4<=$H8),INDEX($M$6:$AE$55,(ROW()-5),MATCH(VLOOKUP('6b. Bezettingseis Grafiek'!$C$3,data!$N$3:$O$9,2,0),'6a. Bezettingseis'!$M$4:$AE$4,0)),"")) ->  | BE8: =IF($G8>$H8,IF(OR(AND(BE$4>$G8,BE$4<="23:59:00"),BE$4<=$H8),INDEX($M$6:$AE$55,(ROW()-5),MATCH(VLOOKUP('6b. Bezettingseis Grafiek'!$C$3,data!$N$3:$O$9,2,0),'6a. Bezettingseis'!$M$4:$AE$4,0)),""),IF(AND($G8<=BE$4,BE$4<=$H8),INDEX($M$6:$AE$55,(ROW()-5),MATCH(VLOOKUP('6b. Bezettingseis Grafiek'!$C$3,data!$N$3:$O$9,2,0),'6a. Bezettingseis'!$M$4:$AE$4,0)),"")) ->  | BF8: =IF($G8>$H8,IF(OR(AND(BF$4>$G8,BF$4<="23:59:00"),BF$4<=$H8),INDEX($M$6:$AE$55,(ROW()-5),MATCH(VLOOKUP('6b. Bezettingseis Grafiek'!$C$3,data!$N$3:$O$9,2,0),'6a. Bezettingseis'!$M$4:$AE$4,0)),""),IF(AND($G8<=BF$4,BF$4<=$H8),INDEX($M$6:$AE$55,(ROW()-5),MATCH(VLOOKUP('6b. Bezettingseis Grafiek'!$C$3,data!$N$3:$O$9,2,0),'6a. Bezettingseis'!$M$4:$AE$4,0)),"")) ->  | BG8: =IF($G8>$H8,IF(OR(AND(BG$4>$G8,BG$4<="23:59:00"),BG$4<=$H8),INDEX($M$6:$AE$55,(ROW()-5),MATCH(VLOOKUP('6b. Bezettingseis Grafiek'!$C$3,data!$N$3:$O$9,2,0),'6a. Bezettingseis'!$M$4:$AE$4,0)),""),IF(AND($G8<=BG$4,BG$4<=$H8),INDEX($M$6:$AE$55,(ROW()-5),MATCH(VLOOKUP('6b. Bezettingseis Grafiek'!$C$3,data!$N$3:$O$9,2,0),'6a. Bezettingseis'!$M$4:$AE$4,0)),"")) ->  | BH8: =IF($G8>$H8,IF(OR(AND(BH$4>$G8,BH$4<="23:59:00"),BH$4<=$H8),INDEX($M$6:$AE$55,(ROW()-5),MATCH(VLOOKUP('6b. Bezettingseis Grafiek'!$C$3,data!$N$3:$O$9,2,0),'6a. Bezettingseis'!$M$4:$AE$4,0)),""),IF(AND($G8<=BH$4,BH$4<=$H8),INDEX($M$6:$AE$55,(ROW()-5),MATCH(VLOOKUP('6b. Bezettingseis Grafiek'!$C$3,data!$N$3:$O$9,2,0),'6a. Bezettingseis'!$M$4:$AE$4,0)),"")) ->  | BI8: =IF($G8>$H8,IF(OR(AND(BI$4>$G8,BI$4<="23:59:00"),BI$4<=$H8),INDEX($M$6:$AE$55,(ROW()-5),MATCH(VLOOKUP('6b. Bezettingseis Grafiek'!$C$3,data!$N$3:$O$9,2,0),'6a. Bezettingseis'!$M$4:$AE$4,0)),""),IF(AND($G8<=BI$4,BI$4<=$H8),INDEX($M$6:$AE$55,(ROW()-5),MATCH(VLOOKUP('6b. Bezettingseis Grafiek'!$C$3,data!$N$3:$O$9,2,0),'6a. Bezettingseis'!$M$4:$AE$4,0)),"")) ->  | BJ8: =IF($G8>$H8,IF(OR(AND(BJ$4>$G8,BJ$4<="23:59:00"),BJ$4<=$H8),INDEX($M$6:$AE$55,(ROW()-5),MATCH(VLOOKUP('6b. Bezettingseis Grafiek'!$C$3,data!$N$3:$O$9,2,0),'6a. Bezettingseis'!$M$4:$AE$4,0)),""),IF(AND($G8<=BJ$4,BJ$4<=$H8),INDEX($M$6:$AE$55,(ROW()-5),MATCH(VLOOKUP('6b. Bezettingseis Grafiek'!$C$3,data!$N$3:$O$9,2,0),'6a. Bezettingseis'!$M$4:$AE$4,0)),"")) ->  | BK8: =IF($G8>$H8,IF(OR(AND(BK$4>$G8,BK$4<="23:59:00"),BK$4<=$H8),INDEX($M$6:$AE$55,(ROW()-5),MATCH(VLOOKUP('6b. Bezettingseis Grafiek'!$C$3,data!$N$3:$O$9,2,0),'6a. Bezettingseis'!$M$4:$AE$4,0)),""),IF(AND($G8<=BK$4,BK$4<=$H8),INDEX($M$6:$AE$55,(ROW()-5),MATCH(VLOOKUP('6b. Bezettingseis Grafiek'!$C$3,data!$N$3:$O$9,2,0),'6a. Bezettingseis'!$M$4:$AE$4,0)),"")) ->  | BL8: =IF($G8>$H8,IF(OR(AND(BL$4>$G8,BL$4<="23:59:00"),BL$4<=$H8),INDEX($M$6:$AE$55,(ROW()-5),MATCH(VLOOKUP('6b. Bezettingseis Grafiek'!$C$3,data!$N$3:$O$9,2,0),'6a. Bezettingseis'!$M$4:$AE$4,0)),""),IF(AND($G8<=BL$4,BL$4<=$H8),INDEX($M$6:$AE$55,(ROW()-5),MATCH(VLOOKUP('6b. Bezettingseis Grafiek'!$C$3,data!$N$3:$O$9,2,0),'6a. Bezettingseis'!$M$4:$AE$4,0)),"")) ->  | BM8: =IF($G8>$H8,IF(OR(AND(BM$4>$G8,BM$4<="23:59:00"),BM$4<=$H8),INDEX($M$6:$AE$55,(ROW()-5),MATCH(VLOOKUP('6b. Bezettingseis Grafiek'!$C$3,data!$N$3:$O$9,2,0),'6a. Bezettingseis'!$M$4:$AE$4,0)),""),IF(AND($G8<=BM$4,BM$4<=$H8),INDEX($M$6:$AE$55,(ROW()-5),MATCH(VLOOKUP('6b. Bezettingseis Grafiek'!$C$3,data!$N$3:$O$9,2,0),'6a. Bezettingseis'!$M$4:$AE$4,0)),"")) ->  | BN8: =IF($G8>$H8,IF(OR(AND(BN$4>$G8,BN$4<="23:59:00"),BN$4<=$H8),INDEX($M$6:$AE$55,(ROW()-5),MATCH(VLOOKUP('6b. Bezettingseis Grafiek'!$C$3,data!$N$3:$O$9,2,0),'6a. Bezettingseis'!$M$4:$AE$4,0)),""),IF(AND($G8<=BN$4,BN$4<=$H8),INDEX($M$6:$AE$55,(ROW()-5),MATCH(VLOOKUP('6b. Bezettingseis Grafiek'!$C$3,data!$N$3:$O$9,2,0),'6a. Bezettingseis'!$M$4:$AE$4,0)),"")) ->  | BO8: =IF($G8>$H8,IF(OR(AND(BO$4>$G8,BO$4<="23:59:00"),BO$4<=$H8),INDEX($M$6:$AE$55,(ROW()-5),MATCH(VLOOKUP('6b. Bezettingseis Grafiek'!$C$3,data!$N$3:$O$9,2,0),'6a. Bezettingseis'!$M$4:$AE$4,0)),""),IF(AND($G8<=BO$4,BO$4<=$H8),INDEX($M$6:$AE$55,(ROW()-5),MATCH(VLOOKUP('6b. Bezettingseis Grafiek'!$C$3,data!$N$3:$O$9,2,0),'6a. Bezettingseis'!$M$4:$AE$4,0)),"")) ->  | BP8: =IF($G8>$H8,IF(OR(AND(BP$4>$G8,BP$4<="23:59:00"),BP$4<=$H8),INDEX($M$6:$AE$55,(ROW()-5),MATCH(VLOOKUP('6b. Bezettingseis Grafiek'!$C$3,data!$N$3:$O$9,2,0),'6a. Bezettingseis'!$M$4:$AE$4,0)),""),IF(AND($G8<=BP$4,BP$4<=$H8),INDEX($M$6:$AE$55,(ROW()-5),MATCH(VLOOKUP('6b. Bezettingseis Grafiek'!$C$3,data!$N$3:$O$9,2,0),'6a. Bezettingseis'!$M$4:$AE$4,0)),"")) ->  | BQ8: =IF($G8>$H8,IF(OR(AND(BQ$4>$G8,BQ$4<="23:59:00"),BQ$4<=$H8),INDEX($M$6:$AE$55,(ROW()-5),MATCH(VLOOKUP('6b. Bezettingseis Grafiek'!$C$3,data!$N$3:$O$9,2,0),'6a. Bezettingseis'!$M$4:$AE$4,0)),""),IF(AND($G8<=BQ$4,BQ$4<=$H8),INDEX($M$6:$AE$55,(ROW()-5),MATCH(VLOOKUP('6b. Bezettingseis Grafiek'!$C$3,data!$N$3:$O$9,2,0),'6a. Bezettingseis'!$M$4:$AE$4,0)),"")) ->  | BR8: =IF($G8>$H8,IF(OR(AND(BR$4>$G8,BR$4<="23:59:00"),BR$4<=$H8),INDEX($M$6:$AE$55,(ROW()-5),MATCH(VLOOKUP('6b. Bezettingseis Grafiek'!$C$3,data!$N$3:$O$9,2,0),'6a. Bezettingseis'!$M$4:$AE$4,0)),""),IF(AND($G8<=BR$4,BR$4<=$H8),INDEX($M$6:$AE$55,(ROW()-5),MATCH(VLOOKUP('6b. Bezettingseis Grafiek'!$C$3,data!$N$3:$O$9,2,0),'6a. Bezettingseis'!$M$4:$AE$4,0)),"")) ->  | BS8: =IF($G8>$H8,IF(OR(AND(BS$4>$G8,BS$4<="23:59:00"),BS$4<=$H8),INDEX($M$6:$AE$55,(ROW()-5),MATCH(VLOOKUP('6b. Bezettingseis Grafiek'!$C$3,data!$N$3:$O$9,2,0),'6a. Bezettingseis'!$M$4:$AE$4,0)),""),IF(AND($G8<=BS$4,BS$4<=$H8),INDEX($M$6:$AE$55,(ROW()-5),MATCH(VLOOKUP('6b. Bezettingseis Grafiek'!$C$3,data!$N$3:$O$9,2,0),'6a. Bezettingseis'!$M$4:$AE$4,0)),"")) ->  | BT8: =IF($G8>$H8,IF(OR(AND(BT$4>$G8,BT$4<="23:59:00"),BT$4<=$H8),INDEX($M$6:$AE$55,(ROW()-5),MATCH(VLOOKUP('6b. Bezettingseis Grafiek'!$C$3,data!$N$3:$O$9,2,0),'6a. Bezettingseis'!$M$4:$AE$4,0)),""),IF(AND($G8<=BT$4,BT$4<=$H8),INDEX($M$6:$AE$55,(ROW()-5),MATCH(VLOOKUP('6b. Bezettingseis Grafiek'!$C$3,data!$N$3:$O$9,2,0),'6a. Bezettingseis'!$M$4:$AE$4,0)),"")) ->  | BU8: =IF($G8>$H8,IF(OR(AND(BU$4>$G8,BU$4<="23:59:00"),BU$4<=$H8),INDEX($M$6:$AE$55,(ROW()-5),MATCH(VLOOKUP('6b. Bezettingseis Grafiek'!$C$3,data!$N$3:$O$9,2,0),'6a. Bezettingseis'!$M$4:$AE$4,0)),""),IF(AND($G8<=BU$4,BU$4<=$H8),INDEX($M$6:$AE$55,(ROW()-5),MATCH(VLOOKUP('6b. Bezettingseis Grafiek'!$C$3,data!$N$3:$O$9,2,0),'6a. Bezettingseis'!$M$4:$AE$4,0)),"")) ->  | BV8: =IF($G8>$H8,IF(OR(AND(BV$4>$G8,BV$4<="23:59:00"),BV$4<=$H8),INDEX($M$6:$AE$55,(ROW()-5),MATCH(VLOOKUP('6b. Bezettingseis Grafiek'!$C$3,data!$N$3:$O$9,2,0),'6a. Bezettingseis'!$M$4:$AE$4,0)),""),IF(AND($G8<=BV$4,BV$4<=$H8),INDEX($M$6:$AE$55,(ROW()-5),MATCH(VLOOKUP('6b. Bezettingseis Grafiek'!$C$3,data!$N$3:$O$9,2,0),'6a. Bezettingseis'!$M$4:$AE$4,0)),"")) ->  | BW8: =IF($G8>$H8,IF(OR(AND(BW$4>$G8,BW$4<="23:59:00"),BW$4<=$H8),INDEX($M$6:$AE$55,(ROW()-5),MATCH(VLOOKUP('6b. Bezettingseis Grafiek'!$C$3,data!$N$3:$O$9,2,0),'6a. Bezettingseis'!$M$4:$AE$4,0)),""),IF(AND($G8<=BW$4,BW$4<=$H8),INDEX($M$6:$AE$55,(ROW()-5),MATCH(VLOOKUP('6b. Bezettingseis Grafiek'!$C$3,data!$N$3:$O$9,2,0),'6a. Bezettingseis'!$M$4:$AE$4,0)),"")) ->  | BX8: =IF($G8>$H8,IF(OR(AND(BX$4>$G8,BX$4<="23:59:00"),BX$4<=$H8),INDEX($M$6:$AE$55,(ROW()-5),MATCH(VLOOKUP('6b. Bezettingseis Grafiek'!$C$3,data!$N$3:$O$9,2,0),'6a. Bezettingseis'!$M$4:$AE$4,0)),""),IF(AND($G8<=BX$4,BX$4<=$H8),INDEX($M$6:$AE$55,(ROW()-5),MATCH(VLOOKUP('6b. Bezettingseis Grafiek'!$C$3,data!$N$3:$O$9,2,0),'6a. Bezettingseis'!$M$4:$AE$4,0)),"")) ->  | BY8: =IF($G8>$H8,IF(OR(AND(BY$4>$G8,BY$4<="23:59:00"),BY$4<=$H8),INDEX($M$6:$AE$55,(ROW()-5),MATCH(VLOOKUP('6b. Bezettingseis Grafiek'!$C$3,data!$N$3:$O$9,2,0),'6a. Bezettingseis'!$M$4:$AE$4,0)),""),IF(AND($G8<=BY$4,BY$4<=$H8),INDEX($M$6:$AE$55,(ROW()-5),MATCH(VLOOKUP('6b. Bezettingseis Grafiek'!$C$3,data!$N$3:$O$9,2,0),'6a. Bezettingseis'!$M$4:$AE$4,0)),"")) ->  | BZ8: =IF($G8>$H8,IF(OR(AND(BZ$4>$G8,BZ$4<="23:59:00"),BZ$4<=$H8),INDEX($M$6:$AE$55,(ROW()-5),MATCH(VLOOKUP('6b. Bezettingseis Grafiek'!$C$3,data!$N$3:$O$9,2,0),'6a. Bezettingseis'!$M$4:$AE$4,0)),""),IF(AND($G8<=BZ$4,BZ$4<=$H8),INDEX($M$6:$AE$55,(ROW()-5),MATCH(VLOOKUP('6b. Bezettingseis Grafiek'!$C$3,data!$N$3:$O$9,2,0),'6a. Bezettingseis'!$M$4:$AE$4,0)),"")) ->  | CA8: =IF($G8>$H8,IF(OR(AND(CA$4>$G8,CA$4<="23:59:00"),CA$4<=$H8),INDEX($M$6:$AE$55,(ROW()-5),MATCH(VLOOKUP('6b. Bezettingseis Grafiek'!$C$3,data!$N$3:$O$9,2,0),'6a. Bezettingseis'!$M$4:$AE$4,0)),""),IF(AND($G8<=CA$4,CA$4<=$H8),INDEX($M$6:$AE$55,(ROW()-5),MATCH(VLOOKUP('6b. Bezettingseis Grafiek'!$C$3,data!$N$3:$O$9,2,0),'6a. Bezettingseis'!$M$4:$AE$4,0)),"")) ->  | CB8: =IF($G8>$H8,IF(OR(AND(CB$4>$G8,CB$4<="23:59:00"),CB$4<=$H8),INDEX($M$6:$AE$55,(ROW()-5),MATCH(VLOOKUP('6b. Bezettingseis Grafiek'!$C$3,data!$N$3:$O$9,2,0),'6a. Bezettingseis'!$M$4:$AE$4,0)),""),IF(AND($G8<=CB$4,CB$4<=$H8),INDEX($M$6:$AE$55,(ROW()-5),MATCH(VLOOKUP('6b. Bezettingseis Grafiek'!$C$3,data!$N$3:$O$9,2,0),'6a. Bezettingseis'!$M$4:$AE$4,0)),"")) ->  | CC8: =IF($G8>$H8,IF(OR(AND(CC$4>$G8,CC$4<="23:59:00"),CC$4<=$H8),INDEX($M$6:$AE$55,(ROW()-5),MATCH(VLOOKUP('6b. Bezettingseis Grafiek'!$C$3,data!$N$3:$O$9,2,0),'6a. Bezettingseis'!$M$4:$AE$4,0)),""),IF(AND($G8<=CC$4,CC$4<=$H8),INDEX($M$6:$AE$55,(ROW()-5),MATCH(VLOOKUP('6b. Bezettingseis Grafiek'!$C$3,data!$N$3:$O$9,2,0),'6a. Bezettingseis'!$M$4:$AE$4,0)),"")) ->  | CD8: =IF($G8>$H8,IF(OR(AND(CD$4>$G8,CD$4<="23:59:00"),CD$4<=$H8),INDEX($M$6:$AE$55,(ROW()-5),MATCH(VLOOKUP('6b. Bezettingseis Grafiek'!$C$3,data!$N$3:$O$9,2,0),'6a. Bezettingseis'!$M$4:$AE$4,0)),""),IF(AND($G8<=CD$4,CD$4<=$H8),INDEX($M$6:$AE$55,(ROW()-5),MATCH(VLOOKUP('6b. Bezettingseis Grafiek'!$C$3,data!$N$3:$O$9,2,0),'6a. Bezettingseis'!$M$4:$AE$4,0)),"")) ->  | CE8: =IF($G8>$H8,IF(OR(AND(CE$4>$G8,CE$4<="23:59:00"),CE$4<=$H8),INDEX($M$6:$AE$55,(ROW()-5),MATCH(VLOOKUP('6b. Bezettingseis Grafiek'!$C$3,data!$N$3:$O$9,2,0),'6a. Bezettingseis'!$M$4:$AE$4,0)),""),IF(AND($G8<=CE$4,CE$4<=$H8),INDEX($M$6:$AE$55,(ROW()-5),MATCH(VLOOKUP('6b. Bezettingseis Grafiek'!$C$3,data!$N$3:$O$9,2,0),'6a. Bezettingseis'!$M$4:$AE$4,0)),"")) ->  | CF8: =IF($G8>$H8,IF(OR(AND(CF$4>$G8,CF$4<="23:59:00"),CF$4<=$H8),INDEX($M$6:$AE$55,(ROW()-5),MATCH(VLOOKUP('6b. Bezettingseis Grafiek'!$C$3,data!$N$3:$O$9,2,0),'6a. Bezettingseis'!$M$4:$AE$4,0)),""),IF(AND($G8<=CF$4,CF$4<=$H8),INDEX($M$6:$AE$55,(ROW()-5),MATCH(VLOOKUP('6b. Bezettingseis Grafiek'!$C$3,data!$N$3:$O$9,2,0),'6a. Bezettingseis'!$M$4:$AE$4,0)),"")) ->  | CG8: =IF($G8>$H8,IF(OR(AND(CG$4>$G8,CG$4<="23:59:00"),CG$4<=$H8),INDEX($M$6:$AE$55,(ROW()-5),MATCH(VLOOKUP('6b. Bezettingseis Grafiek'!$C$3,data!$N$3:$O$9,2,0),'6a. Bezettingseis'!$M$4:$AE$4,0)),""),IF(AND($G8<=CG$4,CG$4<=$H8),INDEX($M$6:$AE$55,(ROW()-5),MATCH(VLOOKUP('6b. Bezettingseis Grafiek'!$C$3,data!$N$3:$O$9,2,0),'6a. Bezettingseis'!$M$4:$AE$4,0)),"")) ->  | CH8: =IF($G8>$H8,IF(OR(AND(CH$4>$G8,CH$4<="23:59:00"),CH$4<=$H8),INDEX($M$6:$AE$55,(ROW()-5),MATCH(VLOOKUP('6b. Bezettingseis Grafiek'!$C$3,data!$N$3:$O$9,2,0),'6a. Bezettingseis'!$M$4:$AE$4,0)),""),IF(AND($G8<=CH$4,CH$4<=$H8),INDEX($M$6:$AE$55,(ROW()-5),MATCH(VLOOKUP('6b. Bezettingseis Grafiek'!$C$3,data!$N$3:$O$9,2,0),'6a. Bezettingseis'!$M$4:$AE$4,0)),"")) ->  | CI8: =IF($G8>$H8,IF(OR(AND(CI$4>$G8,CI$4<="23:59:00"),CI$4<=$H8),INDEX($M$6:$AE$55,(ROW()-5),MATCH(VLOOKUP('6b. Bezettingseis Grafiek'!$C$3,data!$N$3:$O$9,2,0),'6a. Bezettingseis'!$M$4:$AE$4,0)),""),IF(AND($G8<=CI$4,CI$4<=$H8),INDEX($M$6:$AE$55,(ROW()-5),MATCH(VLOOKUP('6b. Bezettingseis Grafiek'!$C$3,data!$N$3:$O$9,2,0),'6a. Bezettingseis'!$M$4:$AE$4,0)),"")) ->  | CJ8: =IF($G8>$H8,IF(OR(AND(CJ$4>$G8,CJ$4<="23:59:00"),CJ$4<=$H8),INDEX($M$6:$AE$55,(ROW()-5),MATCH(VLOOKUP('6b. Bezettingseis Grafiek'!$C$3,data!$N$3:$O$9,2,0),'6a. Bezettingseis'!$M$4:$AE$4,0)),""),IF(AND($G8<=CJ$4,CJ$4<=$H8),INDEX($M$6:$AE$55,(ROW()-5),MATCH(VLOOKUP('6b. Bezettingseis Grafiek'!$C$3,data!$N$3:$O$9,2,0),'6a. Bezettingseis'!$M$4:$AE$4,0)),"")) ->  | CK8: =IF($G8>$H8,IF(OR(AND(CK$4>$G8,CK$4<="23:59:00"),CK$4<=$H8),INDEX($M$6:$AE$55,(ROW()-5),MATCH(VLOOKUP('6b. Bezettingseis Grafiek'!$C$3,data!$N$3:$O$9,2,0),'6a. Bezettingseis'!$M$4:$AE$4,0)),""),IF(AND($G8<=CK$4,CK$4<=$H8),INDEX($M$6:$AE$55,(ROW()-5),MATCH(VLOOKUP('6b. Bezettingseis Grafiek'!$C$3,data!$N$3:$O$9,2,0),'6a. Bezettingseis'!$M$4:$AE$4,0)),"")) ->  | CL8: =IF($G8>$H8,IF(OR(AND(CL$4>$G8,CL$4<="23:59:00"),CL$4<=$H8),INDEX($M$6:$AE$55,(ROW()-5),MATCH(VLOOKUP('6b. Bezettingseis Grafiek'!$C$3,data!$N$3:$O$9,2,0),'6a. Bezettingseis'!$M$4:$AE$4,0)),""),IF(AND($G8<=CL$4,CL$4<=$H8),INDEX($M$6:$AE$55,(ROW()-5),MATCH(VLOOKUP('6b. Bezettingseis Grafiek'!$C$3,data!$N$3:$O$9,2,0),'6a. Bezettingseis'!$M$4:$AE$4,0)),"")) ->  | CM8: =IF($G8>$H8,IF(OR(AND(CM$4>$G8,CM$4<="23:59:00"),CM$4<=$H8),INDEX($M$6:$AE$55,(ROW()-5),MATCH(VLOOKUP('6b. Bezettingseis Grafiek'!$C$3,data!$N$3:$O$9,2,0),'6a. Bezettingseis'!$M$4:$AE$4,0)),""),IF(AND($G8<=CM$4,CM$4<=$H8),INDEX($M$6:$AE$55,(ROW()-5),MATCH(VLOOKUP('6b. Bezettingseis Grafiek'!$C$3,data!$N$3:$O$9,2,0),'6a. Bezettingseis'!$M$4:$AE$4,0)),"")) ->  | CN8: =IF($G8>$H8,IF(OR(AND(CN$4>$G8,CN$4<="23:59:00"),CN$4<=$H8),INDEX($M$6:$AE$55,(ROW()-5),MATCH(VLOOKUP('6b. Bezettingseis Grafiek'!$C$3,data!$N$3:$O$9,2,0),'6a. Bezettingseis'!$M$4:$AE$4,0)),""),IF(AND($G8<=CN$4,CN$4<=$H8),INDEX($M$6:$AE$55,(ROW()-5),MATCH(VLOOKUP('6b. Bezettingseis Grafiek'!$C$3,data!$N$3:$O$9,2,0),'6a. Bezettingseis'!$M$4:$AE$4,0)),"")) ->  | CO8: =IF($G8>$H8,IF(OR(AND(CO$4>$G8,CO$4<="23:59:00"),CO$4<=$H8),INDEX($M$6:$AE$55,(ROW()-5),MATCH(VLOOKUP('6b. Bezettingseis Grafiek'!$C$3,data!$N$3:$O$9,2,0),'6a. Bezettingseis'!$M$4:$AE$4,0)),""),IF(AND($G8<=CO$4,CO$4<=$H8),INDEX($M$6:$AE$55,(ROW()-5),MATCH(VLOOKUP('6b. Bezettingseis Grafiek'!$C$3,data!$N$3:$O$9,2,0),'6a. Bezettingseis'!$M$4:$AE$4,0)),"")) ->  | CP8: =IF($G8>$H8,IF(OR(AND(CP$4>$G8,CP$4<="23:59:00"),CP$4<=$H8),INDEX($M$6:$AE$55,(ROW()-5),MATCH(VLOOKUP('6b. Bezettingseis Grafiek'!$C$3,data!$N$3:$O$9,2,0),'6a. Bezettingseis'!$M$4:$AE$4,0)),""),IF(AND($G8<=CP$4,CP$4<=$H8),INDEX($M$6:$AE$55,(ROW()-5),MATCH(VLOOKUP('6b. Bezettingseis Grafiek'!$C$3,data!$N$3:$O$9,2,0),'6a. Bezettingseis'!$M$4:$AE$4,0)),"")) ->  | CQ8: =IF($G8>$H8,IF(OR(AND(CQ$4>$G8,CQ$4<="23:59:00"),CQ$4<=$H8),INDEX($M$6:$AE$55,(ROW()-5),MATCH(VLOOKUP('6b. Bezettingseis Grafiek'!$C$3,data!$N$3:$O$9,2,0),'6a. Bezettingseis'!$M$4:$AE$4,0)),""),IF(AND($G8<=CQ$4,CQ$4<=$H8),INDEX($M$6:$AE$55,(ROW()-5),MATCH(VLOOKUP('6b. Bezettingseis Grafiek'!$C$3,data!$N$3:$O$9,2,0),'6a. Bezettingseis'!$M$4:$AE$4,0)),"")) ->  | CR8: =IF($G8>$H8,IF(OR(AND(CR$4>$G8,CR$4<="23:59:00"),CR$4<=$H8),INDEX($M$6:$AE$55,(ROW()-5),MATCH(VLOOKUP('6b. Bezettingseis Grafiek'!$C$3,data!$N$3:$O$9,2,0),'6a. Bezettingseis'!$M$4:$AE$4,0)),""),IF(AND($G8<=CR$4,CR$4<=$H8),INDEX($M$6:$AE$55,(ROW()-5),MATCH(VLOOKUP('6b. Bezettingseis Grafiek'!$C$3,data!$N$3:$O$9,2,0),'6a. Bezettingseis'!$M$4:$AE$4,0)),"")) ->  | CS8: =IF($G8>$H8,IF(OR(AND(CS$4>$G8,CS$4<="23:59:00"),CS$4<=$H8),INDEX($M$6:$AE$55,(ROW()-5),MATCH(VLOOKUP('6b. Bezettingseis Grafiek'!$C$3,data!$N$3:$O$9,2,0),'6a. Bezettingseis'!$M$4:$AE$4,0)),""),IF(AND($G8<=CS$4,CS$4<=$H8),INDEX($M$6:$AE$55,(ROW()-5),MATCH(VLOOKUP('6b. Bezettingseis Grafiek'!$C$3,data!$N$3:$O$9,2,0),'6a. Bezettingseis'!$M$4:$AE$4,0)),"")) ->  | CT8: =IF($G8>$H8,IF(OR(AND(CT$4>$G8,CT$4<="23:59:00"),CT$4<=$H8),INDEX($M$6:$AE$55,(ROW()-5),MATCH(VLOOKUP('6b. Bezettingseis Grafiek'!$C$3,data!$N$3:$O$9,2,0),'6a. Bezettingseis'!$M$4:$AE$4,0)),""),IF(AND($G8<=CT$4,CT$4<=$H8),INDEX($M$6:$AE$55,(ROW()-5),MATCH(VLOOKUP('6b. Bezettingseis Grafiek'!$C$3,data!$N$3:$O$9,2,0),'6a. Bezettingseis'!$M$4:$AE$4,0)),"")) ->  | CU8: =IF($G8>$H8,IF(OR(AND(CU$4>$G8,CU$4<="23:59:00"),CU$4<=$H8),INDEX($M$6:$AE$55,(ROW()-5),MATCH(VLOOKUP('6b. Bezettingseis Grafiek'!$C$3,data!$N$3:$O$9,2,0),'6a. Bezettingseis'!$M$4:$AE$4,0)),""),IF(AND($G8<=CU$4,CU$4<=$H8),INDEX($M$6:$AE$55,(ROW()-5),MATCH(VLOOKUP('6b. Bezettingseis Grafiek'!$C$3,data!$N$3:$O$9,2,0),'6a. Bezettingseis'!$M$4:$AE$4,0)),"")) ->  | CV8: =IF($G8>$H8,IF(OR(AND(CV$4>$G8,CV$4<="23:59:00"),CV$4<=$H8),INDEX($M$6:$AE$55,(ROW()-5),MATCH(VLOOKUP('6b. Bezettingseis Grafiek'!$C$3,data!$N$3:$O$9,2,0),'6a. Bezettingseis'!$M$4:$AE$4,0)),""),IF(AND($G8<=CV$4,CV$4<=$H8),INDEX($M$6:$AE$55,(ROW()-5),MATCH(VLOOKUP('6b. Bezettingseis Grafiek'!$C$3,data!$N$3:$O$9,2,0),'6a. Bezettingseis'!$M$4:$AE$4,0)),"")) ->  | CW8: =IF($G8>$H8,IF(OR(AND(CW$4>$G8,CW$4<="23:59:00"),CW$4<=$H8),INDEX($M$6:$AE$55,(ROW()-5),MATCH(VLOOKUP('6b. Bezettingseis Grafiek'!$C$3,data!$N$3:$O$9,2,0),'6a. Bezettingseis'!$M$4:$AE$4,0)),""),IF(AND($G8<=CW$4,CW$4<=$H8),INDEX($M$6:$AE$55,(ROW()-5),MATCH(VLOOKUP('6b. Bezettingseis Grafiek'!$C$3,data!$N$3:$O$9,2,0),'6a. Bezettingseis'!$M$4:$AE$4,0)),"")) ->  | CX8: =IF($G8>$H8,IF(OR(AND(CX$4>$G8,CX$4<="23:59:00"),CX$4<=$H8),INDEX($M$6:$AE$55,(ROW()-5),MATCH(VLOOKUP('6b. Bezettingseis Grafiek'!$C$3,data!$N$3:$O$9,2,0),'6a. Bezettingseis'!$M$4:$AE$4,0)),""),IF(AND($G8<=CX$4,CX$4<=$H8),INDEX($M$6:$AE$55,(ROW()-5),MATCH(VLOOKUP('6b. Bezettingseis Grafiek'!$C$3,data!$N$3:$O$9,2,0),'6a. Bezettingseis'!$M$4:$AE$4,0)),"")) ->  | CY8: =IF($G8>$H8,IF(OR(AND(CY$4>$G8,CY$4<="23:59:00"),CY$4<=$H8),INDEX($M$6:$AE$55,(ROW()-5),MATCH(VLOOKUP('6b. Bezettingseis Grafiek'!$C$3,data!$N$3:$O$9,2,0),'6a. Bezettingseis'!$M$4:$AE$4,0)),""),IF(AND($G8<=CY$4,CY$4<=$H8),INDEX($M$6:$AE$55,(ROW()-5),MATCH(VLOOKUP('6b. Bezettingseis Grafiek'!$C$3,data!$N$3:$O$9,2,0),'6a. Bezettingseis'!$M$4:$AE$4,0)),"")) ->  | CZ8: =IF($G8>$H8,IF(OR(AND(CZ$4>$G8,CZ$4<="23:59:00"),CZ$4<=$H8),INDEX($M$6:$AE$55,(ROW()-5),MATCH(VLOOKUP('6b. Bezettingseis Grafiek'!$C$3,data!$N$3:$O$9,2,0),'6a. Bezettingseis'!$M$4:$AE$4,0)),""),IF(AND($G8<=CZ$4,CZ$4<=$H8),INDEX($M$6:$AE$55,(ROW()-5),MATCH(VLOOKUP('6b. Bezettingseis Grafiek'!$C$3,data!$N$3:$O$9,2,0),'6a. Bezettingseis'!$M$4:$AE$4,0)),"")) ->  | DA8: =IF($G8>$H8,IF(OR(AND(DA$4>$G8,DA$4<="23:59:00"),DA$4<=$H8),INDEX($M$6:$AE$55,(ROW()-5),MATCH(VLOOKUP('6b. Bezettingseis Grafiek'!$C$3,data!$N$3:$O$9,2,0),'6a. Bezettingseis'!$M$4:$AE$4,0)),""),IF(AND($G8<=DA$4,DA$4<=$H8),INDEX($M$6:$AE$55,(ROW()-5),MATCH(VLOOKUP('6b. Bezettingseis Grafiek'!$C$3,data!$N$3:$O$9,2,0),'6a. Bezettingseis'!$M$4:$AE$4,0)),"")) ->  | DB8: =IF($G8>$H8,IF(OR(AND(DB$4>$G8,DB$4<="23:59:00"),DB$4<=$H8),INDEX($M$6:$AE$55,(ROW()-5),MATCH(VLOOKUP('6b. Bezettingseis Grafiek'!$C$3,data!$N$3:$O$9,2,0),'6a. Bezettingseis'!$M$4:$AE$4,0)),""),IF(AND($G8<=DB$4,DB$4<=$H8),INDEX($M$6:$AE$55,(ROW()-5),MATCH(VLOOKUP('6b. Bezettingseis Grafiek'!$C$3,data!$N$3:$O$9,2,0),'6a. Bezettingseis'!$M$4:$AE$4,0)),"")) ->  | DC8: =IF($G8>$H8,IF(OR(AND(DC$4>$G8,DC$4<="23:59:00"),DC$4<=$H8),INDEX($M$6:$AE$55,(ROW()-5),MATCH(VLOOKUP('6b. Bezettingseis Grafiek'!$C$3,data!$N$3:$O$9,2,0),'6a. Bezettingseis'!$M$4:$AE$4,0)),""),IF(AND($G8<=DC$4,DC$4<=$H8),INDEX($M$6:$AE$55,(ROW()-5),MATCH(VLOOKUP('6b. Bezettingseis Grafiek'!$C$3,data!$N$3:$O$9,2,0),'6a. Bezettingseis'!$M$4:$AE$4,0)),"")) ->  | DD8: =IF($G8>$H8,IF(OR(AND(DD$4>$G8,DD$4<="23:59:00"),DD$4<=$H8),INDEX($M$6:$AE$55,(ROW()-5),MATCH(VLOOKUP('6b. Bezettingseis Grafiek'!$C$3,data!$N$3:$O$9,2,0),'6a. Bezettingseis'!$M$4:$AE$4,0)),""),IF(AND($G8<=DD$4,DD$4<=$H8),INDEX($M$6:$AE$55,(ROW()-5),MATCH(VLOOKUP('6b. Bezettingseis Grafiek'!$C$3,data!$N$3:$O$9,2,0),'6a. Bezettingseis'!$M$4:$AE$4,0)),"")) ->  | DE8: =IF($G8>$H8,IF(OR(AND(DE$4>$G8,DE$4<="23:59:00"),DE$4<=$H8),INDEX($M$6:$AE$55,(ROW()-5),MATCH(VLOOKUP('6b. Bezettingseis Grafiek'!$C$3,data!$N$3:$O$9,2,0),'6a. Bezettingseis'!$M$4:$AE$4,0)),""),IF(AND($G8<=DE$4,DE$4<=$H8),INDEX($M$6:$AE$55,(ROW()-5),MATCH(VLOOKUP('6b. Bezettingseis Grafiek'!$C$3,data!$N$3:$O$9,2,0),'6a. Bezettingseis'!$M$4:$AE$4,0)),"")) ->  | DF8: =IF($G8>$H8,IF(OR(AND(DF$4>$G8,DF$4<="23:59:00"),DF$4<=$H8),INDEX($M$6:$AE$55,(ROW()-5),MATCH(VLOOKUP('6b. Bezettingseis Grafiek'!$C$3,data!$N$3:$O$9,2,0),'6a. Bezettingseis'!$M$4:$AE$4,0)),""),IF(AND($G8<=DF$4,DF$4<=$H8),INDEX($M$6:$AE$55,(ROW()-5),MATCH(VLOOKUP('6b. Bezettingseis Grafiek'!$C$3,data!$N$3:$O$9,2,0),'6a. Bezettingseis'!$M$4:$AE$4,0)),"")) ->  | DG8: =IF($G8>$H8,IF(OR(AND(DG$4>$G8,DG$4<="23:59:00"),DG$4<=$H8),INDEX($M$6:$AE$55,(ROW()-5),MATCH(VLOOKUP('6b. Bezettingseis Grafiek'!$C$3,data!$N$3:$O$9,2,0),'6a. Bezettingseis'!$M$4:$AE$4,0)),""),IF(AND($G8<=DG$4,DG$4<=$H8),INDEX($M$6:$AE$55,(ROW()-5),MATCH(VLOOKUP('6b. Bezettingseis Grafiek'!$C$3,data!$N$3:$O$9,2,0),'6a. Bezettingseis'!$M$4:$AE$4,0)),"")) ->  | DH8: =IF($G8>$H8,IF(OR(AND(DH$4>$G8,DH$4<="23:59:00"),DH$4<=$H8),INDEX($M$6:$AE$55,(ROW()-5),MATCH(VLOOKUP('6b. Bezettingseis Grafiek'!$C$3,data!$N$3:$O$9,2,0),'6a. Bezettingseis'!$M$4:$AE$4,0)),""),IF(AND($G8<=DH$4,DH$4<=$H8),INDEX($M$6:$AE$55,(ROW()-5),MATCH(VLOOKUP('6b. Bezettingseis Grafiek'!$C$3,data!$N$3:$O$9,2,0),'6a. Bezettingseis'!$M$4:$AE$4,0)),"")) ->  | DI8: =IF($G8>$H8,IF(OR(AND(DI$4>$G8,DI$4<="23:59:00"),DI$4<=$H8),INDEX($M$6:$AE$55,(ROW()-5),MATCH(VLOOKUP('6b. Bezettingseis Grafiek'!$C$3,data!$N$3:$O$9,2,0),'6a. Bezettingseis'!$M$4:$AE$4,0)),""),IF(AND($G8<=DI$4,DI$4<=$H8),INDEX($M$6:$AE$55,(ROW()-5),MATCH(VLOOKUP('6b. Bezettingseis Grafiek'!$C$3,data!$N$3:$O$9,2,0),'6a. Bezettingseis'!$M$4:$AE$4,0)),"")) ->  | DJ8: =IF($G8>$H8,IF(OR(AND(DJ$4>$G8,DJ$4<="23:59:00"),DJ$4<=$H8),INDEX($M$6:$AE$55,(ROW()-5),MATCH(VLOOKUP('6b. Bezettingseis Grafiek'!$C$3,data!$N$3:$O$9,2,0),'6a. Bezettingseis'!$M$4:$AE$4,0)),""),IF(AND($G8<=DJ$4,DJ$4<=$H8),INDEX($M$6:$AE$55,(ROW()-5),MATCH(VLOOKUP('6b. Bezettingseis Grafiek'!$C$3,data!$N$3:$O$9,2,0),'6a. Bezettingseis'!$M$4:$AE$4,0)),"")) ->  | DK8: =IF($G8>$H8,IF(OR(AND(DK$4>$G8,DK$4<="23:59:00"),DK$4<=$H8),INDEX($M$6:$AE$55,(ROW()-5),MATCH(VLOOKUP('6b. Bezettingseis Grafiek'!$C$3,data!$N$3:$O$9,2,0),'6a. Bezettingseis'!$M$4:$AE$4,0)),""),IF(AND($G8<=DK$4,DK$4<=$H8),INDEX($M$6:$AE$55,(ROW()-5),MATCH(VLOOKUP('6b. Bezettingseis Grafiek'!$C$3,data!$N$3:$O$9,2,0),'6a. Bezettingseis'!$M$4:$AE$4,0)),"")) ->  | DL8: =IF($G8>$H8,IF(OR(AND(DL$4>$G8,DL$4<="23:59:00"),DL$4<=$H8),INDEX($M$6:$AE$55,(ROW()-5),MATCH(VLOOKUP('6b. Bezettingseis Grafiek'!$C$3,data!$N$3:$O$9,2,0),'6a. Bezettingseis'!$M$4:$AE$4,0)),""),IF(AND($G8<=DL$4,DL$4<=$H8),INDEX($M$6:$AE$55,(ROW()-5),MATCH(VLOOKUP('6b. Bezettingseis Grafiek'!$C$3,data!$N$3:$O$9,2,0),'6a. Bezettingseis'!$M$4:$AE$4,0)),"")) ->  | DM8: =IF($G8>$H8,IF(OR(AND(DM$4>$G8,DM$4<="23:59:00"),DM$4<=$H8),INDEX($M$6:$AE$55,(ROW()-5),MATCH(VLOOKUP('6b. Bezettingseis Grafiek'!$C$3,data!$N$3:$O$9,2,0),'6a. Bezettingseis'!$M$4:$AE$4,0)),""),IF(AND($G8<=DM$4,DM$4<=$H8),INDEX($M$6:$AE$55,(ROW()-5),MATCH(VLOOKUP('6b. Bezettingseis Grafiek'!$C$3,data!$N$3:$O$9,2,0),'6a. Bezettingseis'!$M$4:$AE$4,0)),"")) ->  | DN8: =IF($G8>$H8,IF(OR(AND(DN$4>$G8,DN$4<="23:59:00"),DN$4<=$H8),INDEX($M$6:$AE$55,(ROW()-5),MATCH(VLOOKUP('6b. Bezettingseis Grafiek'!$C$3,data!$N$3:$O$9,2,0),'6a. Bezettingseis'!$M$4:$AE$4,0)),""),IF(AND($G8<=DN$4,DN$4<=$H8),INDEX($M$6:$AE$55,(ROW()-5),MATCH(VLOOKUP('6b. Bezettingseis Grafiek'!$C$3,data!$N$3:$O$9,2,0),'6a. Bezettingseis'!$M$4:$AE$4,0)),"")) ->  | DO8: =IF($G8>$H8,IF(OR(AND(DO$4>$G8,DO$4<="23:59:00"),DO$4<=$H8),INDEX($M$6:$AE$55,(ROW()-5),MATCH(VLOOKUP('6b. Bezettingseis Grafiek'!$C$3,data!$N$3:$O$9,2,0),'6a. Bezettingseis'!$M$4:$AE$4,0)),""),IF(AND($G8<=DO$4,DO$4<=$H8),INDEX($M$6:$AE$55,(ROW()-5),MATCH(VLOOKUP('6b. Bezettingseis Grafiek'!$C$3,data!$N$3:$O$9,2,0),'6a. Bezettingseis'!$M$4:$AE$4,0)),"")) ->  | DP8: =IF($G8>$H8,IF(OR(AND(DP$4>$G8,DP$4<="23:59:00"),DP$4<=$H8),INDEX($M$6:$AE$55,(ROW()-5),MATCH(VLOOKUP('6b. Bezettingseis Grafiek'!$C$3,data!$N$3:$O$9,2,0),'6a. Bezettingseis'!$M$4:$AE$4,0)),""),IF(AND($G8<=DP$4,DP$4<=$H8),INDEX($M$6:$AE$55,(ROW()-5),MATCH(VLOOKUP('6b. Bezettingseis Grafiek'!$C$3,data!$N$3:$O$9,2,0),'6a. Bezettingseis'!$M$4:$AE$4,0)),"")) ->  | DQ8: =IF($G8>$H8,IF(OR(AND(DQ$4>$G8,DQ$4<="23:59:00"),DQ$4<=$H8),INDEX($M$6:$AE$55,(ROW()-5),MATCH(VLOOKUP('6b. Bezettingseis Grafiek'!$C$3,data!$N$3:$O$9,2,0),'6a. Bezettingseis'!$M$4:$AE$4,0)),""),IF(AND($G8<=DQ$4,DQ$4<=$H8),INDEX($M$6:$AE$55,(ROW()-5),MATCH(VLOOKUP('6b. Bezettingseis Grafiek'!$C$3,data!$N$3:$O$9,2,0),'6a. Bezettingseis'!$M$4:$AE$4,0)),"")) ->  | DR8: =IF($G8>$H8,IF(OR(AND(DR$4>$G8,DR$4<="23:59:00"),DR$4<=$H8),INDEX($M$6:$AE$55,(ROW()-5),MATCH(VLOOKUP('6b. Bezettingseis Grafiek'!$C$3,data!$N$3:$O$9,2,0),'6a. Bezettingseis'!$M$4:$AE$4,0)),""),IF(AND($G8<=DR$4,DR$4<=$H8),INDEX($M$6:$AE$55,(ROW()-5),MATCH(VLOOKUP('6b. Bezettingseis Grafiek'!$C$3,data!$N$3:$O$9,2,0),'6a. Bezettingseis'!$M$4:$AE$4,0)),"")) ->  | DS8: =IF($G8>$H8,IF(OR(AND(DS$4>$G8,DS$4<="23:59:00"),DS$4<=$H8),INDEX($M$6:$AE$55,(ROW()-5),MATCH(VLOOKUP('6b. Bezettingseis Grafiek'!$C$3,data!$N$3:$O$9,2,0),'6a. Bezettingseis'!$M$4:$AE$4,0)),""),IF(AND($G8<=DS$4,DS$4<=$H8),INDEX($M$6:$AE$55,(ROW()-5),MATCH(VLOOKUP('6b. Bezettingseis Grafiek'!$C$3,data!$N$3:$O$9,2,0),'6a. Bezettingseis'!$M$4:$AE$4,0)),"")) ->  | DT8: =IF($G8>$H8,IF(OR(AND(DT$4>$G8,DT$4<="23:59:00"),DT$4<=$H8),INDEX($M$6:$AE$55,(ROW()-5),MATCH(VLOOKUP('6b. Bezettingseis Grafiek'!$C$3,data!$N$3:$O$9,2,0),'6a. Bezettingseis'!$M$4:$AE$4,0)),""),IF(AND($G8<=DT$4,DT$4<=$H8),INDEX($M$6:$AE$55,(ROW()-5),MATCH(VLOOKUP('6b. Bezettingseis Grafiek'!$C$3,data!$N$3:$O$9,2,0),'6a. Bezettingseis'!$M$4:$AE$4,0)),"")) ->  | DU8: =IF($G8>$H8,IF(OR(AND(DU$4>$G8,DU$4<="23:59:00"),DU$4<=$H8),INDEX($M$6:$AE$55,(ROW()-5),MATCH(VLOOKUP('6b. Bezettingseis Grafiek'!$C$3,data!$N$3:$O$9,2,0),'6a. Bezettingseis'!$M$4:$AE$4,0)),""),IF(AND($G8<=DU$4,DU$4<=$H8),INDEX($M$6:$AE$55,(ROW()-5),MATCH(VLOOKUP('6b. Bezettingseis Grafiek'!$C$3,data!$N$3:$O$9,2,0),'6a. Bezettingseis'!$M$4:$AE$4,0)),"")) ->  | DV8: =IF($G8>$H8,IF(OR(AND(DV$4>$G8,DV$4<="23:59:00"),DV$4<=$H8),INDEX($M$6:$AE$55,(ROW()-5),MATCH(VLOOKUP('6b. Bezettingseis Grafiek'!$C$3,data!$N$3:$O$9,2,0),'6a. Bezettingseis'!$M$4:$AE$4,0)),""),IF(AND($G8<=DV$4,DV$4<=$H8),INDEX($M$6:$AE$55,(ROW()-5),MATCH(VLOOKUP('6b. Bezettingseis Grafiek'!$C$3,data!$N$3:$O$9,2,0),'6a. Bezettingseis'!$M$4:$AE$4,0)),"")) ->  | DW8: =IF($G8>$H8,IF(OR(AND(DW$4>$G8,DW$4<="23:59:00"),DW$4<=$H8),INDEX($M$6:$AE$55,(ROW()-5),MATCH(VLOOKUP('6b. Bezettingseis Grafiek'!$C$3,data!$N$3:$O$9,2,0),'6a. Bezettingseis'!$M$4:$AE$4,0)),""),IF(AND($G8<=DW$4,DW$4<=$H8),INDEX($M$6:$AE$55,(ROW()-5),MATCH(VLOOKUP('6b. Bezettingseis Grafiek'!$C$3,data!$N$3:$O$9,2,0),'6a. Bezettingseis'!$M$4:$AE$4,0)),"")) ->  | DX8: =IF($G8>$H8,IF(OR(AND(DX$4>$G8,DX$4<="23:59:00"),DX$4<=$H8),INDEX($M$6:$AE$55,(ROW()-5),MATCH(VLOOKUP('6b. Bezettingseis Grafiek'!$C$3,data!$N$3:$O$9,2,0),'6a. Bezettingseis'!$M$4:$AE$4,0)),""),IF(AND($G8<=DX$4,DX$4<=$H8),INDEX($M$6:$AE$55,(ROW()-5),MATCH(VLOOKUP('6b. Bezettingseis Grafiek'!$C$3,data!$N$3:$O$9,2,0),'6a. Bezettingseis'!$M$4:$AE$4,0)),"")) ->  | DY8: =IF($G8>$H8,IF(OR(AND(DY$4>$G8,DY$4<="23:59:00"),DY$4<=$H8),INDEX($M$6:$AE$55,(ROW()-5),MATCH(VLOOKUP('6b. Bezettingseis Grafiek'!$C$3,data!$N$3:$O$9,2,0),'6a. Bezettingseis'!$M$4:$AE$4,0)),""),IF(AND($G8<=DY$4,DY$4<=$H8),INDEX($M$6:$AE$55,(ROW()-5),MATCH(VLOOKUP('6b. Bezettingseis Grafiek'!$C$3,data!$N$3:$O$9,2,0),'6a. Bezettingseis'!$M$4:$AE$4,0)),"")) ->  | DZ8: =IF($G8>$H8,IF(OR(AND(DZ$4>$G8,DZ$4<="23:59:00"),DZ$4<=$H8),INDEX($M$6:$AE$55,(ROW()-5),MATCH(VLOOKUP('6b. Bezettingseis Grafiek'!$C$3,data!$N$3:$O$9,2,0),'6a. Bezettingseis'!$M$4:$AE$4,0)),""),IF(AND($G8<=DZ$4,DZ$4<=$H8),INDEX($M$6:$AE$55,(ROW()-5),MATCH(VLOOKUP('6b. Bezettingseis Grafiek'!$C$3,data!$N$3:$O$9,2,0),'6a. Bezettingseis'!$M$4:$AE$4,0)),"")) ->  | EA8: =IF($G8>$H8,IF(OR(AND(EA$4>$G8,EA$4<="23:59:00"),EA$4<=$H8),INDEX($M$6:$AE$55,(ROW()-5),MATCH(VLOOKUP('6b. Bezettingseis Grafiek'!$C$3,data!$N$3:$O$9,2,0),'6a. Bezettingseis'!$M$4:$AE$4,0)),""),IF(AND($G8<=EA$4,EA$4<=$H8),INDEX($M$6:$AE$55,(ROW()-5),MATCH(VLOOKUP('6b. Bezettingseis Grafiek'!$C$3,data!$N$3:$O$9,2,0),'6a. Bezettingseis'!$M$4:$AE$4,0)),"")) ->  | EB8: =IF($G8>$H8,IF(OR(AND(EB$4>$G8,EB$4<="23:59:00"),EB$4<=$H8),INDEX($M$6:$AE$55,(ROW()-5),MATCH(VLOOKUP('6b. Bezettingseis Grafiek'!$C$3,data!$N$3:$O$9,2,0),'6a. Bezettingseis'!$M$4:$AE$4,0)),""),IF(AND($G8<=EB$4,EB$4<=$H8),INDEX($M$6:$AE$55,(ROW()-5),MATCH(VLOOKUP('6b. Bezettingseis Grafiek'!$C$3,data!$N$3:$O$9,2,0),'6a. Bezettingseis'!$M$4:$AE$4,0)),"")) ->  | EC8: =IF($G8>$H8,IF(OR(AND(EC$4>$G8,EC$4<="23:59:00"),EC$4<=$H8),INDEX($M$6:$AE$55,(ROW()-5),MATCH(VLOOKUP('6b. Bezettingseis Grafiek'!$C$3,data!$N$3:$O$9,2,0),'6a. Bezettingseis'!$M$4:$AE$4,0)),""),IF(AND($G8<=EC$4,EC$4<=$H8),INDEX($M$6:$AE$55,(ROW()-5),MATCH(VLOOKUP('6b. Bezettingseis Grafiek'!$C$3,data!$N$3:$O$9,2,0),'6a. Bezettingseis'!$M$4:$AE$4,0)),"")) ->  | ED8: =IF($G8>$H8,IF(OR(AND(ED$4>$G8,ED$4<="23:59:00"),ED$4<=$H8),INDEX($M$6:$AE$55,(ROW()-5),MATCH(VLOOKUP('6b. Bezettingseis Grafiek'!$C$3,data!$N$3:$O$9,2,0),'6a. Bezettingseis'!$M$4:$AE$4,0)),""),IF(AND($G8<=ED$4,ED$4<=$H8),INDEX($M$6:$AE$55,(ROW()-5),MATCH(VLOOKUP('6b. Bezettingseis Grafiek'!$C$3,data!$N$3:$O$9,2,0),'6a. Bezettingseis'!$M$4:$AE$4,0)),"")) ->  | EE8: =IF($G8>$H8,IF(OR(AND(EE$4>$G8,EE$4<="23:59:00"),EE$4<=$H8),INDEX($M$6:$AE$55,(ROW()-5),MATCH(VLOOKUP('6b. Bezettingseis Grafiek'!$C$3,data!$N$3:$O$9,2,0),'6a. Bezettingseis'!$M$4:$AE$4,0)),""),IF(AND($G8<=EE$4,EE$4<=$H8),INDEX($M$6:$AE$55,(ROW()-5),MATCH(VLOOKUP('6b. Bezettingseis Grafiek'!$C$3,data!$N$3:$O$9,2,0),'6a. Bezettingseis'!$M$4:$AE$4,0)),"")) -> 
J9: =IF(ISERROR(IF(D9="a",H9-G9-I9+IF(G9>H9,1),E9)),0,IF(D9="a",H9-G9-I9+IF(G9>H9,1),E9)) -> 00:00:00 | K9: =IF(ISERROR(IF(J9*24>7,"vanaf 7 uur",IF(J9*24<4,"tot 4 uur","4 tot 7 uur"))&B9),0,IF(J9*24>7,"vanaf 7 uur",IF(J9*24<4,"tot 4 uur","4 tot 7 uur"))&B9) -> tot 4 uur | L9: =IF(ISERROR(IF((J9*24)>6.99,J9*24*AH9,0)*IF(F9<>"",F9,1)),0,IF((J9*24)>6.99,J9*24*AH9,0)*IF(F9<>"",F9,1)) -> 0 | N9: 0 | O9: 0 | Q9: 0 | R9: 0 | T9: 0 | U9: 0 | W9: 0 | X9: 0 | Z9: 0 | AA9: 0 | AC9: 0 | AD9: 0 | AF9: =AE9*$J9*IF(F9<>"",F9,1) -> 0 | AG9: =($H9-$G9-$I9+IF($G9>$H9,1))*AE9 -> 0 | AH9: =M9+P9+S9+V9+Y9+AB9+AE9 -> 0 | AI9: =IF(F9>0,F9,100%) -> 1 | AJ9: =E9*AI9*AH9 -> 0 | AK9: =IF(D9="a", J9*AH9*AI9, AJ9) -> 0 | AL9: =($H9-$G9-$I9+IF($G9>$H9,1))*AH9*IF(F9<>"",F9,1) -> 0 | AN9: =IF($G9>$H9,IF(OR(AND(AN$4>$G9,AN$4<="23:59:00"),AN$4<=$H9),INDEX($M$6:$AE$55,(ROW()-5),MATCH(VLOOKUP('6b. Bezettingseis Grafiek'!$C$3,data!$N$3:$O$9,2,0),'6a. Bezettingseis'!$M$4:$AE$4,0)),""),IF(AND($G9<=AN$4,AN$4<=$H9),INDEX($M$6:$AE$55,(ROW()-5),MATCH(VLOOKUP('6b. Bezettingseis Grafiek'!$C$3,data!$N$3:$O$9,2,0),'6a. Bezettingseis'!$M$4:$AE$4,0)),"")) ->  | AO9: =IF($G9>$H9,IF(OR(AND(AO$4>$G9,AO$4<="23:59:00"),AO$4<=$H9),INDEX($M$6:$AE$55,(ROW()-5),MATCH(VLOOKUP('6b. Bezettingseis Grafiek'!$C$3,data!$N$3:$O$9,2,0),'6a. Bezettingseis'!$M$4:$AE$4,0)),""),IF(AND($G9<=AO$4,AO$4<=$H9),INDEX($M$6:$AE$55,(ROW()-5),MATCH(VLOOKUP('6b. Bezettingseis Grafiek'!$C$3,data!$N$3:$O$9,2,0),'6a. Bezettingseis'!$M$4:$AE$4,0)),"")) ->  | AP9: =IF($G9>$H9,IF(OR(AND(AP$4>$G9,AP$4<="23:59:00"),AP$4<=$H9),INDEX($M$6:$AE$55,(ROW()-5),MATCH(VLOOKUP('6b. Bezettingseis Grafiek'!$C$3,data!$N$3:$O$9,2,0),'6a. Bezettingseis'!$M$4:$AE$4,0)),""),IF(AND($G9<=AP$4,AP$4<=$H9),INDEX($M$6:$AE$55,(ROW()-5),MATCH(VLOOKUP('6b. Bezettingseis Grafiek'!$C$3,data!$N$3:$O$9,2,0),'6a. Bezettingseis'!$M$4:$AE$4,0)),"")) ->  | AQ9: =IF($G9>$H9,IF(OR(AND(AQ$4>$G9,AQ$4<="23:59:00"),AQ$4<=$H9),INDEX($M$6:$AE$55,(ROW()-5),MATCH(VLOOKUP('6b. Bezettingseis Grafiek'!$C$3,data!$N$3:$O$9,2,0),'6a. Bezettingseis'!$M$4:$AE$4,0)),""),IF(AND($G9<=AQ$4,AQ$4<=$H9),INDEX($M$6:$AE$55,(ROW()-5),MATCH(VLOOKUP('6b. Bezettingseis Grafiek'!$C$3,data!$N$3:$O$9,2,0),'6a. Bezettingseis'!$M$4:$AE$4,0)),"")) ->  | AR9: =IF($G9>$H9,IF(OR(AND(AR$4>$G9,AR$4<="23:59:00"),AR$4<=$H9),INDEX($M$6:$AE$55,(ROW()-5),MATCH(VLOOKUP('6b. Bezettingseis Grafiek'!$C$3,data!$N$3:$O$9,2,0),'6a. Bezettingseis'!$M$4:$AE$4,0)),""),IF(AND($G9<=AR$4,AR$4<=$H9),INDEX($M$6:$AE$55,(ROW()-5),MATCH(VLOOKUP('6b. Bezettingseis Grafiek'!$C$3,data!$N$3:$O$9,2,0),'6a. Bezettingseis'!$M$4:$AE$4,0)),"")) ->  | AS9: =IF($G9>$H9,IF(OR(AND(AS$4>$G9,AS$4<="23:59:00"),AS$4<=$H9),INDEX($M$6:$AE$55,(ROW()-5),MATCH(VLOOKUP('6b. Bezettingseis Grafiek'!$C$3,data!$N$3:$O$9,2,0),'6a. Bezettingseis'!$M$4:$AE$4,0)),""),IF(AND($G9<=AS$4,AS$4<=$H9),INDEX($M$6:$AE$55,(ROW()-5),MATCH(VLOOKUP('6b. Bezettingseis Grafiek'!$C$3,data!$N$3:$O$9,2,0),'6a. Bezettingseis'!$M$4:$AE$4,0)),"")) ->  | AT9: =IF($G9>$H9,IF(OR(AND(AT$4>$G9,AT$4<="23:59:00"),AT$4<=$H9),INDEX($M$6:$AE$55,(ROW()-5),MATCH(VLOOKUP('6b. Bezettingseis Grafiek'!$C$3,data!$N$3:$O$9,2,0),'6a. Bezettingseis'!$M$4:$AE$4,0)),""),IF(AND($G9<=AT$4,AT$4<=$H9),INDEX($M$6:$AE$55,(ROW()-5),MATCH(VLOOKUP('6b. Bezettingseis Grafiek'!$C$3,data!$N$3:$O$9,2,0),'6a. Bezettingseis'!$M$4:$AE$4,0)),"")) ->  | AU9: =IF($G9>$H9,IF(OR(AND(AU$4>$G9,AU$4<="23:59:00"),AU$4<=$H9),INDEX($M$6:$AE$55,(ROW()-5),MATCH(VLOOKUP('6b. Bezettingseis Grafiek'!$C$3,data!$N$3:$O$9,2,0),'6a. Bezettingseis'!$M$4:$AE$4,0)),""),IF(AND($G9<=AU$4,AU$4<=$H9),INDEX($M$6:$AE$55,(ROW()-5),MATCH(VLOOKUP('6b. Bezettingseis Grafiek'!$C$3,data!$N$3:$O$9,2,0),'6a. Bezettingseis'!$M$4:$AE$4,0)),"")) ->  | AV9: =IF($G9>$H9,IF(OR(AND(AV$4>$G9,AV$4<="23:59:00"),AV$4<=$H9),INDEX($M$6:$AE$55,(ROW()-5),MATCH(VLOOKUP('6b. Bezettingseis Grafiek'!$C$3,data!$N$3:$O$9,2,0),'6a. Bezettingseis'!$M$4:$AE$4,0)),""),IF(AND($G9<=AV$4,AV$4<=$H9),INDEX($M$6:$AE$55,(ROW()-5),MATCH(VLOOKUP('6b. Bezettingseis Grafiek'!$C$3,data!$N$3:$O$9,2,0),'6a. Bezettingseis'!$M$4:$AE$4,0)),"")) ->  | AW9: =IF($G9>$H9,IF(OR(AND(AW$4>$G9,AW$4<="23:59:00"),AW$4<=$H9),INDEX($M$6:$AE$55,(ROW()-5),MATCH(VLOOKUP('6b. Bezettingseis Grafiek'!$C$3,data!$N$3:$O$9,2,0),'6a. Bezettingseis'!$M$4:$AE$4,0)),""),IF(AND($G9<=AW$4,AW$4<=$H9),INDEX($M$6:$AE$55,(ROW()-5),MATCH(VLOOKUP('6b. Bezettingseis Grafiek'!$C$3,data!$N$3:$O$9,2,0),'6a. Bezettingseis'!$M$4:$AE$4,0)),"")) ->  | AX9: =IF($G9>$H9,IF(OR(AND(AX$4>$G9,AX$4<="23:59:00"),AX$4<=$H9),INDEX($M$6:$AE$55,(ROW()-5),MATCH(VLOOKUP('6b. Bezettingseis Grafiek'!$C$3,data!$N$3:$O$9,2,0),'6a. Bezettingseis'!$M$4:$AE$4,0)),""),IF(AND($G9<=AX$4,AX$4<=$H9),INDEX($M$6:$AE$55,(ROW()-5),MATCH(VLOOKUP('6b. Bezettingseis Grafiek'!$C$3,data!$N$3:$O$9,2,0),'6a. Bezettingseis'!$M$4:$AE$4,0)),"")) ->  | AY9: =IF($G9>$H9,IF(OR(AND(AY$4>$G9,AY$4<="23:59:00"),AY$4<=$H9),INDEX($M$6:$AE$55,(ROW()-5),MATCH(VLOOKUP('6b. Bezettingseis Grafiek'!$C$3,data!$N$3:$O$9,2,0),'6a. Bezettingseis'!$M$4:$AE$4,0)),""),IF(AND($G9<=AY$4,AY$4<=$H9),INDEX($M$6:$AE$55,(ROW()-5),MATCH(VLOOKUP('6b. Bezettingseis Grafiek'!$C$3,data!$N$3:$O$9,2,0),'6a. Bezettingseis'!$M$4:$AE$4,0)),"")) ->  | AZ9: =IF($G9>$H9,IF(OR(AND(AZ$4>$G9,AZ$4<="23:59:00"),AZ$4<=$H9),INDEX($M$6:$AE$55,(ROW()-5),MATCH(VLOOKUP('6b. Bezettingseis Grafiek'!$C$3,data!$N$3:$O$9,2,0),'6a. Bezettingseis'!$M$4:$AE$4,0)),""),IF(AND($G9<=AZ$4,AZ$4<=$H9),INDEX($M$6:$AE$55,(ROW()-5),MATCH(VLOOKUP('6b. Bezettingseis Grafiek'!$C$3,data!$N$3:$O$9,2,0),'6a. Bezettingseis'!$M$4:$AE$4,0)),"")) ->  | BA9: =IF($G9>$H9,IF(OR(AND(BA$4>$G9,BA$4<="23:59:00"),BA$4<=$H9),INDEX($M$6:$AE$55,(ROW()-5),MATCH(VLOOKUP('6b. Bezettingseis Grafiek'!$C$3,data!$N$3:$O$9,2,0),'6a. Bezettingseis'!$M$4:$AE$4,0)),""),IF(AND($G9<=BA$4,BA$4<=$H9),INDEX($M$6:$AE$55,(ROW()-5),MATCH(VLOOKUP('6b. Bezettingseis Grafiek'!$C$3,data!$N$3:$O$9,2,0),'6a. Bezettingseis'!$M$4:$AE$4,0)),"")) ->  | BB9: =IF($G9>$H9,IF(OR(AND(BB$4>$G9,BB$4<="23:59:00"),BB$4<=$H9),INDEX($M$6:$AE$55,(ROW()-5),MATCH(VLOOKUP('6b. Bezettingseis Grafiek'!$C$3,data!$N$3:$O$9,2,0),'6a. Bezettingseis'!$M$4:$AE$4,0)),""),IF(AND($G9<=BB$4,BB$4<=$H9),INDEX($M$6:$AE$55,(ROW()-5),MATCH(VLOOKUP('6b. Bezettingseis Grafiek'!$C$3,data!$N$3:$O$9,2,0),'6a. Bezettingseis'!$M$4:$AE$4,0)),"")) ->  | BC9: =IF($G9>$H9,IF(OR(AND(BC$4>$G9,BC$4<="23:59:00"),BC$4<=$H9),INDEX($M$6:$AE$55,(ROW()-5),MATCH(VLOOKUP('6b. Bezettingseis Grafiek'!$C$3,data!$N$3:$O$9,2,0),'6a. Bezettingseis'!$M$4:$AE$4,0)),""),IF(AND($G9<=BC$4,BC$4<=$H9),INDEX($M$6:$AE$55,(ROW()-5),MATCH(VLOOKUP('6b. Bezettingseis Grafiek'!$C$3,data!$N$3:$O$9,2,0),'6a. Bezettingseis'!$M$4:$AE$4,0)),"")) ->  | BD9: =IF($G9>$H9,IF(OR(AND(BD$4>$G9,BD$4<="23:59:00"),BD$4<=$H9),INDEX($M$6:$AE$55,(ROW()-5),MATCH(VLOOKUP('6b. Bezettingseis Grafiek'!$C$3,data!$N$3:$O$9,2,0),'6a. Bezettingseis'!$M$4:$AE$4,0)),""),IF(AND($G9<=BD$4,BD$4<=$H9),INDEX($M$6:$AE$55,(ROW()-5),MATCH(VLOOKUP('6b. Bezettingseis Grafiek'!$C$3,data!$N$3:$O$9,2,0),'6a. Bezettingseis'!$M$4:$AE$4,0)),"")) ->  | BE9: =IF($G9>$H9,IF(OR(AND(BE$4>$G9,BE$4<="23:59:00"),BE$4<=$H9),INDEX($M$6:$AE$55,(ROW()-5),MATCH(VLOOKUP('6b. Bezettingseis Grafiek'!$C$3,data!$N$3:$O$9,2,0),'6a. Bezettingseis'!$M$4:$AE$4,0)),""),IF(AND($G9<=BE$4,BE$4<=$H9),INDEX($M$6:$AE$55,(ROW()-5),MATCH(VLOOKUP('6b. Bezettingseis Grafiek'!$C$3,data!$N$3:$O$9,2,0),'6a. Bezettingseis'!$M$4:$AE$4,0)),"")) ->  | BF9: =IF($G9>$H9,IF(OR(AND(BF$4>$G9,BF$4<="23:59:00"),BF$4<=$H9),INDEX($M$6:$AE$55,(ROW()-5),MATCH(VLOOKUP('6b. Bezettingseis Grafiek'!$C$3,data!$N$3:$O$9,2,0),'6a. Bezettingseis'!$M$4:$AE$4,0)),""),IF(AND($G9<=BF$4,BF$4<=$H9),INDEX($M$6:$AE$55,(ROW()-5),MATCH(VLOOKUP('6b. Bezettingseis Grafiek'!$C$3,data!$N$3:$O$9,2,0),'6a. Bezettingseis'!$M$4:$AE$4,0)),"")) ->  | BG9: =IF($G9>$H9,IF(OR(AND(BG$4>$G9,BG$4<="23:59:00"),BG$4<=$H9),INDEX($M$6:$AE$55,(ROW()-5),MATCH(VLOOKUP('6b. Bezettingseis Grafiek'!$C$3,data!$N$3:$O$9,2,0),'6a. Bezettingseis'!$M$4:$AE$4,0)),""),IF(AND($G9<=BG$4,BG$4<=$H9),INDEX($M$6:$AE$55,(ROW()-5),MATCH(VLOOKUP('6b. Bezettingseis Grafiek'!$C$3,data!$N$3:$O$9,2,0),'6a. Bezettingseis'!$M$4:$AE$4,0)),"")) ->  | BH9: =IF($G9>$H9,IF(OR(AND(BH$4>$G9,BH$4<="23:59:00"),BH$4<=$H9),INDEX($M$6:$AE$55,(ROW()-5),MATCH(VLOOKUP('6b. Bezettingseis Grafiek'!$C$3,data!$N$3:$O$9,2,0),'6a. Bezettingseis'!$M$4:$AE$4,0)),""),IF(AND($G9<=BH$4,BH$4<=$H9),INDEX($M$6:$AE$55,(ROW()-5),MATCH(VLOOKUP('6b. Bezettingseis Grafiek'!$C$3,data!$N$3:$O$9,2,0),'6a. Bezettingseis'!$M$4:$AE$4,0)),"")) ->  | BI9: =IF($G9>$H9,IF(OR(AND(BI$4>$G9,BI$4<="23:59:00"),BI$4<=$H9),INDEX($M$6:$AE$55,(ROW()-5),MATCH(VLOOKUP('6b. Bezettingseis Grafiek'!$C$3,data!$N$3:$O$9,2,0),'6a. Bezettingseis'!$M$4:$AE$4,0)),""),IF(AND($G9<=BI$4,BI$4<=$H9),INDEX($M$6:$AE$55,(ROW()-5),MATCH(VLOOKUP('6b. Bezettingseis Grafiek'!$C$3,data!$N$3:$O$9,2,0),'6a. Bezettingseis'!$M$4:$AE$4,0)),"")) ->  | BJ9: =IF($G9>$H9,IF(OR(AND(BJ$4>$G9,BJ$4<="23:59:00"),BJ$4<=$H9),INDEX($M$6:$AE$55,(ROW()-5),MATCH(VLOOKUP('6b. Bezettingseis Grafiek'!$C$3,data!$N$3:$O$9,2,0),'6a. Bezettingseis'!$M$4:$AE$4,0)),""),IF(AND($G9<=BJ$4,BJ$4<=$H9),INDEX($M$6:$AE$55,(ROW()-5),MATCH(VLOOKUP('6b. Bezettingseis Grafiek'!$C$3,data!$N$3:$O$9,2,0),'6a. Bezettingseis'!$M$4:$AE$4,0)),"")) ->  | BK9: =IF($G9>$H9,IF(OR(AND(BK$4>$G9,BK$4<="23:59:00"),BK$4<=$H9),INDEX($M$6:$AE$55,(ROW()-5),MATCH(VLOOKUP('6b. Bezettingseis Grafiek'!$C$3,data!$N$3:$O$9,2,0),'6a. Bezettingseis'!$M$4:$AE$4,0)),""),IF(AND($G9<=BK$4,BK$4<=$H9),INDEX($M$6:$AE$55,(ROW()-5),MATCH(VLOOKUP('6b. Bezettingseis Grafiek'!$C$3,data!$N$3:$O$9,2,0),'6a. Bezettingseis'!$M$4:$AE$4,0)),"")) ->  | BL9: =IF($G9>$H9,IF(OR(AND(BL$4>$G9,BL$4<="23:59:00"),BL$4<=$H9),INDEX($M$6:$AE$55,(ROW()-5),MATCH(VLOOKUP('6b. Bezettingseis Grafiek'!$C$3,data!$N$3:$O$9,2,0),'6a. Bezettingseis'!$M$4:$AE$4,0)),""),IF(AND($G9<=BL$4,BL$4<=$H9),INDEX($M$6:$AE$55,(ROW()-5),MATCH(VLOOKUP('6b. Bezettingseis Grafiek'!$C$3,data!$N$3:$O$9,2,0),'6a. Bezettingseis'!$M$4:$AE$4,0)),"")) ->  | BM9: =IF($G9>$H9,IF(OR(AND(BM$4>$G9,BM$4<="23:59:00"),BM$4<=$H9),INDEX($M$6:$AE$55,(ROW()-5),MATCH(VLOOKUP('6b. Bezettingseis Grafiek'!$C$3,data!$N$3:$O$9,2,0),'6a. Bezettingseis'!$M$4:$AE$4,0)),""),IF(AND($G9<=BM$4,BM$4<=$H9),INDEX($M$6:$AE$55,(ROW()-5),MATCH(VLOOKUP('6b. Bezettingseis Grafiek'!$C$3,data!$N$3:$O$9,2,0),'6a. Bezettingseis'!$M$4:$AE$4,0)),"")) ->  | BN9: =IF($G9>$H9,IF(OR(AND(BN$4>$G9,BN$4<="23:59:00"),BN$4<=$H9),INDEX($M$6:$AE$55,(ROW()-5),MATCH(VLOOKUP('6b. Bezettingseis Grafiek'!$C$3,data!$N$3:$O$9,2,0),'6a. Bezettingseis'!$M$4:$AE$4,0)),""),IF(AND($G9<=BN$4,BN$4<=$H9),INDEX($M$6:$AE$55,(ROW()-5),MATCH(VLOOKUP('6b. Bezettingseis Grafiek'!$C$3,data!$N$3:$O$9,2,0),'6a. Bezettingseis'!$M$4:$AE$4,0)),"")) ->  | BO9: =IF($G9>$H9,IF(OR(AND(BO$4>$G9,BO$4<="23:59:00"),BO$4<=$H9),INDEX($M$6:$AE$55,(ROW()-5),MATCH(VLOOKUP('6b. Bezettingseis Grafiek'!$C$3,data!$N$3:$O$9,2,0),'6a. Bezettingseis'!$M$4:$AE$4,0)),""),IF(AND($G9<=BO$4,BO$4<=$H9),INDEX($M$6:$AE$55,(ROW()-5),MATCH(VLOOKUP('6b. Bezettingseis Grafiek'!$C$3,data!$N$3:$O$9,2,0),'6a. Bezettingseis'!$M$4:$AE$4,0)),"")) ->  | BP9: =IF($G9>$H9,IF(OR(AND(BP$4>$G9,BP$4<="23:59:00"),BP$4<=$H9),INDEX($M$6:$AE$55,(ROW()-5),MATCH(VLOOKUP('6b. Bezettingseis Grafiek'!$C$3,data!$N$3:$O$9,2,0),'6a. Bezettingseis'!$M$4:$AE$4,0)),""),IF(AND($G9<=BP$4,BP$4<=$H9),INDEX($M$6:$AE$55,(ROW()-5),MATCH(VLOOKUP('6b. Bezettingseis Grafiek'!$C$3,data!$N$3:$O$9,2,0),'6a. Bezettingseis'!$M$4:$AE$4,0)),"")) ->  | BQ9: =IF($G9>$H9,IF(OR(AND(BQ$4>$G9,BQ$4<="23:59:00"),BQ$4<=$H9),INDEX($M$6:$AE$55,(ROW()-5),MATCH(VLOOKUP('6b. Bezettingseis Grafiek'!$C$3,data!$N$3:$O$9,2,0),'6a. Bezettingseis'!$M$4:$AE$4,0)),""),IF(AND($G9<=BQ$4,BQ$4<=$H9),INDEX($M$6:$AE$55,(ROW()-5),MATCH(VLOOKUP('6b. Bezettingseis Grafiek'!$C$3,data!$N$3:$O$9,2,0),'6a. Bezettingseis'!$M$4:$AE$4,0)),"")) ->  | BR9: =IF($G9>$H9,IF(OR(AND(BR$4>$G9,BR$4<="23:59:00"),BR$4<=$H9),INDEX($M$6:$AE$55,(ROW()-5),MATCH(VLOOKUP('6b. Bezettingseis Grafiek'!$C$3,data!$N$3:$O$9,2,0),'6a. Bezettingseis'!$M$4:$AE$4,0)),""),IF(AND($G9<=BR$4,BR$4<=$H9),INDEX($M$6:$AE$55,(ROW()-5),MATCH(VLOOKUP('6b. Bezettingseis Grafiek'!$C$3,data!$N$3:$O$9,2,0),'6a. Bezettingseis'!$M$4:$AE$4,0)),"")) ->  | BS9: =IF($G9>$H9,IF(OR(AND(BS$4>$G9,BS$4<="23:59:00"),BS$4<=$H9),INDEX($M$6:$AE$55,(ROW()-5),MATCH(VLOOKUP('6b. Bezettingseis Grafiek'!$C$3,data!$N$3:$O$9,2,0),'6a. Bezettingseis'!$M$4:$AE$4,0)),""),IF(AND($G9<=BS$4,BS$4<=$H9),INDEX($M$6:$AE$55,(ROW()-5),MATCH(VLOOKUP('6b. Bezettingseis Grafiek'!$C$3,data!$N$3:$O$9,2,0),'6a. Bezettingseis'!$M$4:$AE$4,0)),"")) ->  | BT9: =IF($G9>$H9,IF(OR(AND(BT$4>$G9,BT$4<="23:59:00"),BT$4<=$H9),INDEX($M$6:$AE$55,(ROW()-5),MATCH(VLOOKUP('6b. Bezettingseis Grafiek'!$C$3,data!$N$3:$O$9,2,0),'6a. Bezettingseis'!$M$4:$AE$4,0)),""),IF(AND($G9<=BT$4,BT$4<=$H9),INDEX($M$6:$AE$55,(ROW()-5),MATCH(VLOOKUP('6b. Bezettingseis Grafiek'!$C$3,data!$N$3:$O$9,2,0),'6a. Bezettingseis'!$M$4:$AE$4,0)),"")) ->  | BU9: =IF($G9>$H9,IF(OR(AND(BU$4>$G9,BU$4<="23:59:00"),BU$4<=$H9),INDEX($M$6:$AE$55,(ROW()-5),MATCH(VLOOKUP('6b. Bezettingseis Grafiek'!$C$3,data!$N$3:$O$9,2,0),'6a. Bezettingseis'!$M$4:$AE$4,0)),""),IF(AND($G9<=BU$4,BU$4<=$H9),INDEX($M$6:$AE$55,(ROW()-5),MATCH(VLOOKUP('6b. Bezettingseis Grafiek'!$C$3,data!$N$3:$O$9,2,0),'6a. Bezettingseis'!$M$4:$AE$4,0)),"")) ->  | BV9: =IF($G9>$H9,IF(OR(AND(BV$4>$G9,BV$4<="23:59:00"),BV$4<=$H9),INDEX($M$6:$AE$55,(ROW()-5),MATCH(VLOOKUP('6b. Bezettingseis Grafiek'!$C$3,data!$N$3:$O$9,2,0),'6a. Bezettingseis'!$M$4:$AE$4,0)),""),IF(AND($G9<=BV$4,BV$4<=$H9),INDEX($M$6:$AE$55,(ROW()-5),MATCH(VLOOKUP('6b. Bezettingseis Grafiek'!$C$3,data!$N$3:$O$9,2,0),'6a. Bezettingseis'!$M$4:$AE$4,0)),"")) ->  | BW9: =IF($G9>$H9,IF(OR(AND(BW$4>$G9,BW$4<="23:59:00"),BW$4<=$H9),INDEX($M$6:$AE$55,(ROW()-5),MATCH(VLOOKUP('6b. Bezettingseis Grafiek'!$C$3,data!$N$3:$O$9,2,0),'6a. Bezettingseis'!$M$4:$AE$4,0)),""),IF(AND($G9<=BW$4,BW$4<=$H9),INDEX($M$6:$AE$55,(ROW()-5),MATCH(VLOOKUP('6b. Bezettingseis Grafiek'!$C$3,data!$N$3:$O$9,2,0),'6a. Bezettingseis'!$M$4:$AE$4,0)),"")) ->  | BX9: =IF($G9>$H9,IF(OR(AND(BX$4>$G9,BX$4<="23:59:00"),BX$4<=$H9),INDEX($M$6:$AE$55,(ROW()-5),MATCH(VLOOKUP('6b. Bezettingseis Grafiek'!$C$3,data!$N$3:$O$9,2,0),'6a. Bezettingseis'!$M$4:$AE$4,0)),""),IF(AND($G9<=BX$4,BX$4<=$H9),INDEX($M$6:$AE$55,(ROW()-5),MATCH(VLOOKUP('6b. Bezettingseis Grafiek'!$C$3,data!$N$3:$O$9,2,0),'6a. Bezettingseis'!$M$4:$AE$4,0)),"")) ->  | BY9: =IF($G9>$H9,IF(OR(AND(BY$4>$G9,BY$4<="23:59:00"),BY$4<=$H9),INDEX($M$6:$AE$55,(ROW()-5),MATCH(VLOOKUP('6b. Bezettingseis Grafiek'!$C$3,data!$N$3:$O$9,2,0),'6a. Bezettingseis'!$M$4:$AE$4,0)),""),IF(AND($G9<=BY$4,BY$4<=$H9),INDEX($M$6:$AE$55,(ROW()-5),MATCH(VLOOKUP('6b. Bezettingseis Grafiek'!$C$3,data!$N$3:$O$9,2,0),'6a. Bezettingseis'!$M$4:$AE$4,0)),"")) ->  | BZ9: =IF($G9>$H9,IF(OR(AND(BZ$4>$G9,BZ$4<="23:59:00"),BZ$4<=$H9),INDEX($M$6:$AE$55,(ROW()-5),MATCH(VLOOKUP('6b. Bezettingseis Grafiek'!$C$3,data!$N$3:$O$9,2,0),'6a. Bezettingseis'!$M$4:$AE$4,0)),""),IF(AND($G9<=BZ$4,BZ$4<=$H9),INDEX($M$6:$AE$55,(ROW()-5),MATCH(VLOOKUP('6b. Bezettingseis Grafiek'!$C$3,data!$N$3:$O$9,2,0),'6a. Bezettingseis'!$M$4:$AE$4,0)),"")) ->  | CA9: =IF($G9>$H9,IF(OR(AND(CA$4>$G9,CA$4<="23:59:00"),CA$4<=$H9),INDEX($M$6:$AE$55,(ROW()-5),MATCH(VLOOKUP('6b. Bezettingseis Grafiek'!$C$3,data!$N$3:$O$9,2,0),'6a. Bezettingseis'!$M$4:$AE$4,0)),""),IF(AND($G9<=CA$4,CA$4<=$H9),INDEX($M$6:$AE$55,(ROW()-5),MATCH(VLOOKUP('6b. Bezettingseis Grafiek'!$C$3,data!$N$3:$O$9,2,0),'6a. Bezettingseis'!$M$4:$AE$4,0)),"")) ->  | CB9: =IF($G9>$H9,IF(OR(AND(CB$4>$G9,CB$4<="23:59:00"),CB$4<=$H9),INDEX($M$6:$AE$55,(ROW()-5),MATCH(VLOOKUP('6b. Bezettingseis Grafiek'!$C$3,data!$N$3:$O$9,2,0),'6a. Bezettingseis'!$M$4:$AE$4,0)),""),IF(AND($G9<=CB$4,CB$4<=$H9),INDEX($M$6:$AE$55,(ROW()-5),MATCH(VLOOKUP('6b. Bezettingseis Grafiek'!$C$3,data!$N$3:$O$9,2,0),'6a. Bezettingseis'!$M$4:$AE$4,0)),"")) ->  | CC9: =IF($G9>$H9,IF(OR(AND(CC$4>$G9,CC$4<="23:59:00"),CC$4<=$H9),INDEX($M$6:$AE$55,(ROW()-5),MATCH(VLOOKUP('6b. Bezettingseis Grafiek'!$C$3,data!$N$3:$O$9,2,0),'6a. Bezettingseis'!$M$4:$AE$4,0)),""),IF(AND($G9<=CC$4,CC$4<=$H9),INDEX($M$6:$AE$55,(ROW()-5),MATCH(VLOOKUP('6b. Bezettingseis Grafiek'!$C$3,data!$N$3:$O$9,2,0),'6a. Bezettingseis'!$M$4:$AE$4,0)),"")) ->  | CD9: =IF($G9>$H9,IF(OR(AND(CD$4>$G9,CD$4<="23:59:00"),CD$4<=$H9),INDEX($M$6:$AE$55,(ROW()-5),MATCH(VLOOKUP('6b. Bezettingseis Grafiek'!$C$3,data!$N$3:$O$9,2,0),'6a. Bezettingseis'!$M$4:$AE$4,0)),""),IF(AND($G9<=CD$4,CD$4<=$H9),INDEX($M$6:$AE$55,(ROW()-5),MATCH(VLOOKUP('6b. Bezettingseis Grafiek'!$C$3,data!$N$3:$O$9,2,0),'6a. Bezettingseis'!$M$4:$AE$4,0)),"")) ->  | CE9: =IF($G9>$H9,IF(OR(AND(CE$4>$G9,CE$4<="23:59:00"),CE$4<=$H9),INDEX($M$6:$AE$55,(ROW()-5),MATCH(VLOOKUP('6b. Bezettingseis Grafiek'!$C$3,data!$N$3:$O$9,2,0),'6a. Bezettingseis'!$M$4:$AE$4,0)),""),IF(AND($G9<=CE$4,CE$4<=$H9),INDEX($M$6:$AE$55,(ROW()-5),MATCH(VLOOKUP('6b. Bezettingseis Grafiek'!$C$3,data!$N$3:$O$9,2,0),'6a. Bezettingseis'!$M$4:$AE$4,0)),"")) ->  | CF9: =IF($G9>$H9,IF(OR(AND(CF$4>$G9,CF$4<="23:59:00"),CF$4<=$H9),INDEX($M$6:$AE$55,(ROW()-5),MATCH(VLOOKUP('6b. Bezettingseis Grafiek'!$C$3,data!$N$3:$O$9,2,0),'6a. Bezettingseis'!$M$4:$AE$4,0)),""),IF(AND($G9<=CF$4,CF$4<=$H9),INDEX($M$6:$AE$55,(ROW()-5),MATCH(VLOOKUP('6b. Bezettingseis Grafiek'!$C$3,data!$N$3:$O$9,2,0),'6a. Bezettingseis'!$M$4:$AE$4,0)),"")) ->  | CG9: =IF($G9>$H9,IF(OR(AND(CG$4>$G9,CG$4<="23:59:00"),CG$4<=$H9),INDEX($M$6:$AE$55,(ROW()-5),MATCH(VLOOKUP('6b. Bezettingseis Grafiek'!$C$3,data!$N$3:$O$9,2,0),'6a. Bezettingseis'!$M$4:$AE$4,0)),""),IF(AND($G9<=CG$4,CG$4<=$H9),INDEX($M$6:$AE$55,(ROW()-5),MATCH(VLOOKUP('6b. Bezettingseis Grafiek'!$C$3,data!$N$3:$O$9,2,0),'6a. Bezettingseis'!$M$4:$AE$4,0)),"")) ->  | CH9: =IF($G9>$H9,IF(OR(AND(CH$4>$G9,CH$4<="23:59:00"),CH$4<=$H9),INDEX($M$6:$AE$55,(ROW()-5),MATCH(VLOOKUP('6b. Bezettingseis Grafiek'!$C$3,data!$N$3:$O$9,2,0),'6a. Bezettingseis'!$M$4:$AE$4,0)),""),IF(AND($G9<=CH$4,CH$4<=$H9),INDEX($M$6:$AE$55,(ROW()-5),MATCH(VLOOKUP('6b. Bezettingseis Grafiek'!$C$3,data!$N$3:$O$9,2,0),'6a. Bezettingseis'!$M$4:$AE$4,0)),"")) ->  | CI9: =IF($G9>$H9,IF(OR(AND(CI$4>$G9,CI$4<="23:59:00"),CI$4<=$H9),INDEX($M$6:$AE$55,(ROW()-5),MATCH(VLOOKUP('6b. Bezettingseis Grafiek'!$C$3,data!$N$3:$O$9,2,0),'6a. Bezettingseis'!$M$4:$AE$4,0)),""),IF(AND($G9<=CI$4,CI$4<=$H9),INDEX($M$6:$AE$55,(ROW()-5),MATCH(VLOOKUP('6b. Bezettingseis Grafiek'!$C$3,data!$N$3:$O$9,2,0),'6a. Bezettingseis'!$M$4:$AE$4,0)),"")) ->  | CJ9: =IF($G9>$H9,IF(OR(AND(CJ$4>$G9,CJ$4<="23:59:00"),CJ$4<=$H9),INDEX($M$6:$AE$55,(ROW()-5),MATCH(VLOOKUP('6b. Bezettingseis Grafiek'!$C$3,data!$N$3:$O$9,2,0),'6a. Bezettingseis'!$M$4:$AE$4,0)),""),IF(AND($G9<=CJ$4,CJ$4<=$H9),INDEX($M$6:$AE$55,(ROW()-5),MATCH(VLOOKUP('6b. Bezettingseis Grafiek'!$C$3,data!$N$3:$O$9,2,0),'6a. Bezettingseis'!$M$4:$AE$4,0)),"")) ->  | CK9: =IF($G9>$H9,IF(OR(AND(CK$4>$G9,CK$4<="23:59:00"),CK$4<=$H9),INDEX($M$6:$AE$55,(ROW()-5),MATCH(VLOOKUP('6b. Bezettingseis Grafiek'!$C$3,data!$N$3:$O$9,2,0),'6a. Bezettingseis'!$M$4:$AE$4,0)),""),IF(AND($G9<=CK$4,CK$4<=$H9),INDEX($M$6:$AE$55,(ROW()-5),MATCH(VLOOKUP('6b. Bezettingseis Grafiek'!$C$3,data!$N$3:$O$9,2,0),'6a. Bezettingseis'!$M$4:$AE$4,0)),"")) ->  | CL9: =IF($G9>$H9,IF(OR(AND(CL$4>$G9,CL$4<="23:59:00"),CL$4<=$H9),INDEX($M$6:$AE$55,(ROW()-5),MATCH(VLOOKUP('6b. Bezettingseis Grafiek'!$C$3,data!$N$3:$O$9,2,0),'6a. Bezettingseis'!$M$4:$AE$4,0)),""),IF(AND($G9<=CL$4,CL$4<=$H9),INDEX($M$6:$AE$55,(ROW()-5),MATCH(VLOOKUP('6b. Bezettingseis Grafiek'!$C$3,data!$N$3:$O$9,2,0),'6a. Bezettingseis'!$M$4:$AE$4,0)),"")) ->  | CM9: =IF($G9>$H9,IF(OR(AND(CM$4>$G9,CM$4<="23:59:00"),CM$4<=$H9),INDEX($M$6:$AE$55,(ROW()-5),MATCH(VLOOKUP('6b. Bezettingseis Grafiek'!$C$3,data!$N$3:$O$9,2,0),'6a. Bezettingseis'!$M$4:$AE$4,0)),""),IF(AND($G9<=CM$4,CM$4<=$H9),INDEX($M$6:$AE$55,(ROW()-5),MATCH(VLOOKUP('6b. Bezettingseis Grafiek'!$C$3,data!$N$3:$O$9,2,0),'6a. Bezettingseis'!$M$4:$AE$4,0)),"")) ->  | CN9: =IF($G9>$H9,IF(OR(AND(CN$4>$G9,CN$4<="23:59:00"),CN$4<=$H9),INDEX($M$6:$AE$55,(ROW()-5),MATCH(VLOOKUP('6b. Bezettingseis Grafiek'!$C$3,data!$N$3:$O$9,2,0),'6a. Bezettingseis'!$M$4:$AE$4,0)),""),IF(AND($G9<=CN$4,CN$4<=$H9),INDEX($M$6:$AE$55,(ROW()-5),MATCH(VLOOKUP('6b. Bezettingseis Grafiek'!$C$3,data!$N$3:$O$9,2,0),'6a. Bezettingseis'!$M$4:$AE$4,0)),"")) ->  | CO9: =IF($G9>$H9,IF(OR(AND(CO$4>$G9,CO$4<="23:59:00"),CO$4<=$H9),INDEX($M$6:$AE$55,(ROW()-5),MATCH(VLOOKUP('6b. Bezettingseis Grafiek'!$C$3,data!$N$3:$O$9,2,0),'6a. Bezettingseis'!$M$4:$AE$4,0)),""),IF(AND($G9<=CO$4,CO$4<=$H9),INDEX($M$6:$AE$55,(ROW()-5),MATCH(VLOOKUP('6b. Bezettingseis Grafiek'!$C$3,data!$N$3:$O$9,2,0),'6a. Bezettingseis'!$M$4:$AE$4,0)),"")) ->  | CP9: =IF($G9>$H9,IF(OR(AND(CP$4>$G9,CP$4<="23:59:00"),CP$4<=$H9),INDEX($M$6:$AE$55,(ROW()-5),MATCH(VLOOKUP('6b. Bezettingseis Grafiek'!$C$3,data!$N$3:$O$9,2,0),'6a. Bezettingseis'!$M$4:$AE$4,0)),""),IF(AND($G9<=CP$4,CP$4<=$H9),INDEX($M$6:$AE$55,(ROW()-5),MATCH(VLOOKUP('6b. Bezettingseis Grafiek'!$C$3,data!$N$3:$O$9,2,0),'6a. Bezettingseis'!$M$4:$AE$4,0)),"")) ->  | CQ9: =IF($G9>$H9,IF(OR(AND(CQ$4>$G9,CQ$4<="23:59:00"),CQ$4<=$H9),INDEX($M$6:$AE$55,(ROW()-5),MATCH(VLOOKUP('6b. Bezettingseis Grafiek'!$C$3,data!$N$3:$O$9,2,0),'6a. Bezettingseis'!$M$4:$AE$4,0)),""),IF(AND($G9<=CQ$4,CQ$4<=$H9),INDEX($M$6:$AE$55,(ROW()-5),MATCH(VLOOKUP('6b. Bezettingseis Grafiek'!$C$3,data!$N$3:$O$9,2,0),'6a. Bezettingseis'!$M$4:$AE$4,0)),"")) ->  | CR9: =IF($G9>$H9,IF(OR(AND(CR$4>$G9,CR$4<="23:59:00"),CR$4<=$H9),INDEX($M$6:$AE$55,(ROW()-5),MATCH(VLOOKUP('6b. Bezettingseis Grafiek'!$C$3,data!$N$3:$O$9,2,0),'6a. Bezettingseis'!$M$4:$AE$4,0)),""),IF(AND($G9<=CR$4,CR$4<=$H9),INDEX($M$6:$AE$55,(ROW()-5),MATCH(VLOOKUP('6b. Bezettingseis Grafiek'!$C$3,data!$N$3:$O$9,2,0),'6a. Bezettingseis'!$M$4:$AE$4,0)),"")) ->  | CS9: =IF($G9>$H9,IF(OR(AND(CS$4>$G9,CS$4<="23:59:00"),CS$4<=$H9),INDEX($M$6:$AE$55,(ROW()-5),MATCH(VLOOKUP('6b. Bezettingseis Grafiek'!$C$3,data!$N$3:$O$9,2,0),'6a. Bezettingseis'!$M$4:$AE$4,0)),""),IF(AND($G9<=CS$4,CS$4<=$H9),INDEX($M$6:$AE$55,(ROW()-5),MATCH(VLOOKUP('6b. Bezettingseis Grafiek'!$C$3,data!$N$3:$O$9,2,0),'6a. Bezettingseis'!$M$4:$AE$4,0)),"")) ->  | CT9: =IF($G9>$H9,IF(OR(AND(CT$4>$G9,CT$4<="23:59:00"),CT$4<=$H9),INDEX($M$6:$AE$55,(ROW()-5),MATCH(VLOOKUP('6b. Bezettingseis Grafiek'!$C$3,data!$N$3:$O$9,2,0),'6a. Bezettingseis'!$M$4:$AE$4,0)),""),IF(AND($G9<=CT$4,CT$4<=$H9),INDEX($M$6:$AE$55,(ROW()-5),MATCH(VLOOKUP('6b. Bezettingseis Grafiek'!$C$3,data!$N$3:$O$9,2,0),'6a. Bezettingseis'!$M$4:$AE$4,0)),"")) ->  | CU9: =IF($G9>$H9,IF(OR(AND(CU$4>$G9,CU$4<="23:59:00"),CU$4<=$H9),INDEX($M$6:$AE$55,(ROW()-5),MATCH(VLOOKUP('6b. Bezettingseis Grafiek'!$C$3,data!$N$3:$O$9,2,0),'6a. Bezettingseis'!$M$4:$AE$4,0)),""),IF(AND($G9<=CU$4,CU$4<=$H9),INDEX($M$6:$AE$55,(ROW()-5),MATCH(VLOOKUP('6b. Bezettingseis Grafiek'!$C$3,data!$N$3:$O$9,2,0),'6a. Bezettingseis'!$M$4:$AE$4,0)),"")) ->  | CV9: =IF($G9>$H9,IF(OR(AND(CV$4>$G9,CV$4<="23:59:00"),CV$4<=$H9),INDEX($M$6:$AE$55,(ROW()-5),MATCH(VLOOKUP('6b. Bezettingseis Grafiek'!$C$3,data!$N$3:$O$9,2,0),'6a. Bezettingseis'!$M$4:$AE$4,0)),""),IF(AND($G9<=CV$4,CV$4<=$H9),INDEX($M$6:$AE$55,(ROW()-5),MATCH(VLOOKUP('6b. Bezettingseis Grafiek'!$C$3,data!$N$3:$O$9,2,0),'6a. Bezettingseis'!$M$4:$AE$4,0)),"")) ->  | CW9: =IF($G9>$H9,IF(OR(AND(CW$4>$G9,CW$4<="23:59:00"),CW$4<=$H9),INDEX($M$6:$AE$55,(ROW()-5),MATCH(VLOOKUP('6b. Bezettingseis Grafiek'!$C$3,data!$N$3:$O$9,2,0),'6a. Bezettingseis'!$M$4:$AE$4,0)),""),IF(AND($G9<=CW$4,CW$4<=$H9),INDEX($M$6:$AE$55,(ROW()-5),MATCH(VLOOKUP('6b. Bezettingseis Grafiek'!$C$3,data!$N$3:$O$9,2,0),'6a. Bezettingseis'!$M$4:$AE$4,0)),"")) ->  | CX9: =IF($G9>$H9,IF(OR(AND(CX$4>$G9,CX$4<="23:59:00"),CX$4<=$H9),INDEX($M$6:$AE$55,(ROW()-5),MATCH(VLOOKUP('6b. Bezettingseis Grafiek'!$C$3,data!$N$3:$O$9,2,0),'6a. Bezettingseis'!$M$4:$AE$4,0)),""),IF(AND($G9<=CX$4,CX$4<=$H9),INDEX($M$6:$AE$55,(ROW()-5),MATCH(VLOOKUP('6b. Bezettingseis Grafiek'!$C$3,data!$N$3:$O$9,2,0),'6a. Bezettingseis'!$M$4:$AE$4,0)),"")) ->  | CY9: =IF($G9>$H9,IF(OR(AND(CY$4>$G9,CY$4<="23:59:00"),CY$4<=$H9),INDEX($M$6:$AE$55,(ROW()-5),MATCH(VLOOKUP('6b. Bezettingseis Grafiek'!$C$3,data!$N$3:$O$9,2,0),'6a. Bezettingseis'!$M$4:$AE$4,0)),""),IF(AND($G9<=CY$4,CY$4<=$H9),INDEX($M$6:$AE$55,(ROW()-5),MATCH(VLOOKUP('6b. Bezettingseis Grafiek'!$C$3,data!$N$3:$O$9,2,0),'6a. Bezettingseis'!$M$4:$AE$4,0)),"")) ->  | CZ9: =IF($G9>$H9,IF(OR(AND(CZ$4>$G9,CZ$4<="23:59:00"),CZ$4<=$H9),INDEX($M$6:$AE$55,(ROW()-5),MATCH(VLOOKUP('6b. Bezettingseis Grafiek'!$C$3,data!$N$3:$O$9,2,0),'6a. Bezettingseis'!$M$4:$AE$4,0)),""),IF(AND($G9<=CZ$4,CZ$4<=$H9),INDEX($M$6:$AE$55,(ROW()-5),MATCH(VLOOKUP('6b. Bezettingseis Grafiek'!$C$3,data!$N$3:$O$9,2,0),'6a. Bezettingseis'!$M$4:$AE$4,0)),"")) ->  | DA9: =IF($G9>$H9,IF(OR(AND(DA$4>$G9,DA$4<="23:59:00"),DA$4<=$H9),INDEX($M$6:$AE$55,(ROW()-5),MATCH(VLOOKUP('6b. Bezettingseis Grafiek'!$C$3,data!$N$3:$O$9,2,0),'6a. Bezettingseis'!$M$4:$AE$4,0)),""),IF(AND($G9<=DA$4,DA$4<=$H9),INDEX($M$6:$AE$55,(ROW()-5),MATCH(VLOOKUP('6b. Bezettingseis Grafiek'!$C$3,data!$N$3:$O$9,2,0),'6a. Bezettingseis'!$M$4:$AE$4,0)),"")) ->  | DB9: =IF($G9>$H9,IF(OR(AND(DB$4>$G9,DB$4<="23:59:00"),DB$4<=$H9),INDEX($M$6:$AE$55,(ROW()-5),MATCH(VLOOKUP('6b. Bezettingseis Grafiek'!$C$3,data!$N$3:$O$9,2,0),'6a. Bezettingseis'!$M$4:$AE$4,0)),""),IF(AND($G9<=DB$4,DB$4<=$H9),INDEX($M$6:$AE$55,(ROW()-5),MATCH(VLOOKUP('6b. Bezettingseis Grafiek'!$C$3,data!$N$3:$O$9,2,0),'6a. Bezettingseis'!$M$4:$AE$4,0)),"")) ->  | DC9: =IF($G9>$H9,IF(OR(AND(DC$4>$G9,DC$4<="23:59:00"),DC$4<=$H9),INDEX($M$6:$AE$55,(ROW()-5),MATCH(VLOOKUP('6b. Bezettingseis Grafiek'!$C$3,data!$N$3:$O$9,2,0),'6a. Bezettingseis'!$M$4:$AE$4,0)),""),IF(AND($G9<=DC$4,DC$4<=$H9),INDEX($M$6:$AE$55,(ROW()-5),MATCH(VLOOKUP('6b. Bezettingseis Grafiek'!$C$3,data!$N$3:$O$9,2,0),'6a. Bezettingseis'!$M$4:$AE$4,0)),"")) ->  | DD9: =IF($G9>$H9,IF(OR(AND(DD$4>$G9,DD$4<="23:59:00"),DD$4<=$H9),INDEX($M$6:$AE$55,(ROW()-5),MATCH(VLOOKUP('6b. Bezettingseis Grafiek'!$C$3,data!$N$3:$O$9,2,0),'6a. Bezettingseis'!$M$4:$AE$4,0)),""),IF(AND($G9<=DD$4,DD$4<=$H9),INDEX($M$6:$AE$55,(ROW()-5),MATCH(VLOOKUP('6b. Bezettingseis Grafiek'!$C$3,data!$N$3:$O$9,2,0),'6a. Bezettingseis'!$M$4:$AE$4,0)),"")) ->  | DE9: =IF($G9>$H9,IF(OR(AND(DE$4>$G9,DE$4<="23:59:00"),DE$4<=$H9),INDEX($M$6:$AE$55,(ROW()-5),MATCH(VLOOKUP('6b. Bezettingseis Grafiek'!$C$3,data!$N$3:$O$9,2,0),'6a. Bezettingseis'!$M$4:$AE$4,0)),""),IF(AND($G9<=DE$4,DE$4<=$H9),INDEX($M$6:$AE$55,(ROW()-5),MATCH(VLOOKUP('6b. Bezettingseis Grafiek'!$C$3,data!$N$3:$O$9,2,0),'6a. Bezettingseis'!$M$4:$AE$4,0)),"")) ->  | DF9: =IF($G9>$H9,IF(OR(AND(DF$4>$G9,DF$4<="23:59:00"),DF$4<=$H9),INDEX($M$6:$AE$55,(ROW()-5),MATCH(VLOOKUP('6b. Bezettingseis Grafiek'!$C$3,data!$N$3:$O$9,2,0),'6a. Bezettingseis'!$M$4:$AE$4,0)),""),IF(AND($G9<=DF$4,DF$4<=$H9),INDEX($M$6:$AE$55,(ROW()-5),MATCH(VLOOKUP('6b. Bezettingseis Grafiek'!$C$3,data!$N$3:$O$9,2,0),'6a. Bezettingseis'!$M$4:$AE$4,0)),"")) ->  | DG9: =IF($G9>$H9,IF(OR(AND(DG$4>$G9,DG$4<="23:59:00"),DG$4<=$H9),INDEX($M$6:$AE$55,(ROW()-5),MATCH(VLOOKUP('6b. Bezettingseis Grafiek'!$C$3,data!$N$3:$O$9,2,0),'6a. Bezettingseis'!$M$4:$AE$4,0)),""),IF(AND($G9<=DG$4,DG$4<=$H9),INDEX($M$6:$AE$55,(ROW()-5),MATCH(VLOOKUP('6b. Bezettingseis Grafiek'!$C$3,data!$N$3:$O$9,2,0),'6a. Bezettingseis'!$M$4:$AE$4,0)),"")) ->  | DH9: =IF($G9>$H9,IF(OR(AND(DH$4>$G9,DH$4<="23:59:00"),DH$4<=$H9),INDEX($M$6:$AE$55,(ROW()-5),MATCH(VLOOKUP('6b. Bezettingseis Grafiek'!$C$3,data!$N$3:$O$9,2,0),'6a. Bezettingseis'!$M$4:$AE$4,0)),""),IF(AND($G9<=DH$4,DH$4<=$H9),INDEX($M$6:$AE$55,(ROW()-5),MATCH(VLOOKUP('6b. Bezettingseis Grafiek'!$C$3,data!$N$3:$O$9,2,0),'6a. Bezettingseis'!$M$4:$AE$4,0)),"")) ->  | DI9: =IF($G9>$H9,IF(OR(AND(DI$4>$G9,DI$4<="23:59:00"),DI$4<=$H9),INDEX($M$6:$AE$55,(ROW()-5),MATCH(VLOOKUP('6b. Bezettingseis Grafiek'!$C$3,data!$N$3:$O$9,2,0),'6a. Bezettingseis'!$M$4:$AE$4,0)),""),IF(AND($G9<=DI$4,DI$4<=$H9),INDEX($M$6:$AE$55,(ROW()-5),MATCH(VLOOKUP('6b. Bezettingseis Grafiek'!$C$3,data!$N$3:$O$9,2,0),'6a. Bezettingseis'!$M$4:$AE$4,0)),"")) ->  | DJ9: =IF($G9>$H9,IF(OR(AND(DJ$4>$G9,DJ$4<="23:59:00"),DJ$4<=$H9),INDEX($M$6:$AE$55,(ROW()-5),MATCH(VLOOKUP('6b. Bezettingseis Grafiek'!$C$3,data!$N$3:$O$9,2,0),'6a. Bezettingseis'!$M$4:$AE$4,0)),""),IF(AND($G9<=DJ$4,DJ$4<=$H9),INDEX($M$6:$AE$55,(ROW()-5),MATCH(VLOOKUP('6b. Bezettingseis Grafiek'!$C$3,data!$N$3:$O$9,2,0),'6a. Bezettingseis'!$M$4:$AE$4,0)),"")) ->  | DK9: =IF($G9>$H9,IF(OR(AND(DK$4>$G9,DK$4<="23:59:00"),DK$4<=$H9),INDEX($M$6:$AE$55,(ROW()-5),MATCH(VLOOKUP('6b. Bezettingseis Grafiek'!$C$3,data!$N$3:$O$9,2,0),'6a. Bezettingseis'!$M$4:$AE$4,0)),""),IF(AND($G9<=DK$4,DK$4<=$H9),INDEX($M$6:$AE$55,(ROW()-5),MATCH(VLOOKUP('6b. Bezettingseis Grafiek'!$C$3,data!$N$3:$O$9,2,0),'6a. Bezettingseis'!$M$4:$AE$4,0)),"")) ->  | DL9: =IF($G9>$H9,IF(OR(AND(DL$4>$G9,DL$4<="23:59:00"),DL$4<=$H9),INDEX($M$6:$AE$55,(ROW()-5),MATCH(VLOOKUP('6b. Bezettingseis Grafiek'!$C$3,data!$N$3:$O$9,2,0),'6a. Bezettingseis'!$M$4:$AE$4,0)),""),IF(AND($G9<=DL$4,DL$4<=$H9),INDEX($M$6:$AE$55,(ROW()-5),MATCH(VLOOKUP('6b. Bezettingseis Grafiek'!$C$3,data!$N$3:$O$9,2,0),'6a. Bezettingseis'!$M$4:$AE$4,0)),"")) ->  | DM9: =IF($G9>$H9,IF(OR(AND(DM$4>$G9,DM$4<="23:59:00"),DM$4<=$H9),INDEX($M$6:$AE$55,(ROW()-5),MATCH(VLOOKUP('6b. Bezettingseis Grafiek'!$C$3,data!$N$3:$O$9,2,0),'6a. Bezettingseis'!$M$4:$AE$4,0)),""),IF(AND($G9<=DM$4,DM$4<=$H9),INDEX($M$6:$AE$55,(ROW()-5),MATCH(VLOOKUP('6b. Bezettingseis Grafiek'!$C$3,data!$N$3:$O$9,2,0),'6a. Bezettingseis'!$M$4:$AE$4,0)),"")) ->  | DN9: =IF($G9>$H9,IF(OR(AND(DN$4>$G9,DN$4<="23:59:00"),DN$4<=$H9),INDEX($M$6:$AE$55,(ROW()-5),MATCH(VLOOKUP('6b. Bezettingseis Grafiek'!$C$3,data!$N$3:$O$9,2,0),'6a. Bezettingseis'!$M$4:$AE$4,0)),""),IF(AND($G9<=DN$4,DN$4<=$H9),INDEX($M$6:$AE$55,(ROW()-5),MATCH(VLOOKUP('6b. Bezettingseis Grafiek'!$C$3,data!$N$3:$O$9,2,0),'6a. Bezettingseis'!$M$4:$AE$4,0)),"")) ->  | DO9: =IF($G9>$H9,IF(OR(AND(DO$4>$G9,DO$4<="23:59:00"),DO$4<=$H9),INDEX($M$6:$AE$55,(ROW()-5),MATCH(VLOOKUP('6b. Bezettingseis Grafiek'!$C$3,data!$N$3:$O$9,2,0),'6a. Bezettingseis'!$M$4:$AE$4,0)),""),IF(AND($G9<=DO$4,DO$4<=$H9),INDEX($M$6:$AE$55,(ROW()-5),MATCH(VLOOKUP('6b. Bezettingseis Grafiek'!$C$3,data!$N$3:$O$9,2,0),'6a. Bezettingseis'!$M$4:$AE$4,0)),"")) ->  | DP9: =IF($G9>$H9,IF(OR(AND(DP$4>$G9,DP$4<="23:59:00"),DP$4<=$H9),INDEX($M$6:$AE$55,(ROW()-5),MATCH(VLOOKUP('6b. Bezettingseis Grafiek'!$C$3,data!$N$3:$O$9,2,0),'6a. Bezettingseis'!$M$4:$AE$4,0)),""),IF(AND($G9<=DP$4,DP$4<=$H9),INDEX($M$6:$AE$55,(ROW()-5),MATCH(VLOOKUP('6b. Bezettingseis Grafiek'!$C$3,data!$N$3:$O$9,2,0),'6a. Bezettingseis'!$M$4:$AE$4,0)),"")) ->  | DQ9: =IF($G9>$H9,IF(OR(AND(DQ$4>$G9,DQ$4<="23:59:00"),DQ$4<=$H9),INDEX($M$6:$AE$55,(ROW()-5),MATCH(VLOOKUP('6b. Bezettingseis Grafiek'!$C$3,data!$N$3:$O$9,2,0),'6a. Bezettingseis'!$M$4:$AE$4,0)),""),IF(AND($G9<=DQ$4,DQ$4<=$H9),INDEX($M$6:$AE$55,(ROW()-5),MATCH(VLOOKUP('6b. Bezettingseis Grafiek'!$C$3,data!$N$3:$O$9,2,0),'6a. Bezettingseis'!$M$4:$AE$4,0)),"")) ->  | DR9: =IF($G9>$H9,IF(OR(AND(DR$4>$G9,DR$4<="23:59:00"),DR$4<=$H9),INDEX($M$6:$AE$55,(ROW()-5),MATCH(VLOOKUP('6b. Bezettingseis Grafiek'!$C$3,data!$N$3:$O$9,2,0),'6a. Bezettingseis'!$M$4:$AE$4,0)),""),IF(AND($G9<=DR$4,DR$4<=$H9),INDEX($M$6:$AE$55,(ROW()-5),MATCH(VLOOKUP('6b. Bezettingseis Grafiek'!$C$3,data!$N$3:$O$9,2,0),'6a. Bezettingseis'!$M$4:$AE$4,0)),"")) ->  | DS9: =IF($G9>$H9,IF(OR(AND(DS$4>$G9,DS$4<="23:59:00"),DS$4<=$H9),INDEX($M$6:$AE$55,(ROW()-5),MATCH(VLOOKUP('6b. Bezettingseis Grafiek'!$C$3,data!$N$3:$O$9,2,0),'6a. Bezettingseis'!$M$4:$AE$4,0)),""),IF(AND($G9<=DS$4,DS$4<=$H9),INDEX($M$6:$AE$55,(ROW()-5),MATCH(VLOOKUP('6b. Bezettingseis Grafiek'!$C$3,data!$N$3:$O$9,2,0),'6a. Bezettingseis'!$M$4:$AE$4,0)),"")) ->  | DT9: =IF($G9>$H9,IF(OR(AND(DT$4>$G9,DT$4<="23:59:00"),DT$4<=$H9),INDEX($M$6:$AE$55,(ROW()-5),MATCH(VLOOKUP('6b. Bezettingseis Grafiek'!$C$3,data!$N$3:$O$9,2,0),'6a. Bezettingseis'!$M$4:$AE$4,0)),""),IF(AND($G9<=DT$4,DT$4<=$H9),INDEX($M$6:$AE$55,(ROW()-5),MATCH(VLOOKUP('6b. Bezettingseis Grafiek'!$C$3,data!$N$3:$O$9,2,0),'6a. Bezettingseis'!$M$4:$AE$4,0)),"")) ->  | DU9: =IF($G9>$H9,IF(OR(AND(DU$4>$G9,DU$4<="23:59:00"),DU$4<=$H9),INDEX($M$6:$AE$55,(ROW()-5),MATCH(VLOOKUP('6b. Bezettingseis Grafiek'!$C$3,data!$N$3:$O$9,2,0),'6a. Bezettingseis'!$M$4:$AE$4,0)),""),IF(AND($G9<=DU$4,DU$4<=$H9),INDEX($M$6:$AE$55,(ROW()-5),MATCH(VLOOKUP('6b. Bezettingseis Grafiek'!$C$3,data!$N$3:$O$9,2,0),'6a. Bezettingseis'!$M$4:$AE$4,0)),"")) ->  | DV9: =IF($G9>$H9,IF(OR(AND(DV$4>$G9,DV$4<="23:59:00"),DV$4<=$H9),INDEX($M$6:$AE$55,(ROW()-5),MATCH(VLOOKUP('6b. Bezettingseis Grafiek'!$C$3,data!$N$3:$O$9,2,0),'6a. Bezettingseis'!$M$4:$AE$4,0)),""),IF(AND($G9<=DV$4,DV$4<=$H9),INDEX($M$6:$AE$55,(ROW()-5),MATCH(VLOOKUP('6b. Bezettingseis Grafiek'!$C$3,data!$N$3:$O$9,2,0),'6a. Bezettingseis'!$M$4:$AE$4,0)),"")) ->  | DW9: =IF($G9>$H9,IF(OR(AND(DW$4>$G9,DW$4<="23:59:00"),DW$4<=$H9),INDEX($M$6:$AE$55,(ROW()-5),MATCH(VLOOKUP('6b. Bezettingseis Grafiek'!$C$3,data!$N$3:$O$9,2,0),'6a. Bezettingseis'!$M$4:$AE$4,0)),""),IF(AND($G9<=DW$4,DW$4<=$H9),INDEX($M$6:$AE$55,(ROW()-5),MATCH(VLOOKUP('6b. Bezettingseis Grafiek'!$C$3,data!$N$3:$O$9,2,0),'6a. Bezettingseis'!$M$4:$AE$4,0)),"")) ->  | DX9: =IF($G9>$H9,IF(OR(AND(DX$4>$G9,DX$4<="23:59:00"),DX$4<=$H9),INDEX($M$6:$AE$55,(ROW()-5),MATCH(VLOOKUP('6b. Bezettingseis Grafiek'!$C$3,data!$N$3:$O$9,2,0),'6a. Bezettingseis'!$M$4:$AE$4,0)),""),IF(AND($G9<=DX$4,DX$4<=$H9),INDEX($M$6:$AE$55,(ROW()-5),MATCH(VLOOKUP('6b. Bezettingseis Grafiek'!$C$3,data!$N$3:$O$9,2,0),'6a. Bezettingseis'!$M$4:$AE$4,0)),"")) ->  | DY9: =IF($G9>$H9,IF(OR(AND(DY$4>$G9,DY$4<="23:59:00"),DY$4<=$H9),INDEX($M$6:$AE$55,(ROW()-5),MATCH(VLOOKUP('6b. Bezettingseis Grafiek'!$C$3,data!$N$3:$O$9,2,0),'6a. Bezettingseis'!$M$4:$AE$4,0)),""),IF(AND($G9<=DY$4,DY$4<=$H9),INDEX($M$6:$AE$55,(ROW()-5),MATCH(VLOOKUP('6b. Bezettingseis Grafiek'!$C$3,data!$N$3:$O$9,2,0),'6a. Bezettingseis'!$M$4:$AE$4,0)),"")) ->  | DZ9: =IF($G9>$H9,IF(OR(AND(DZ$4>$G9,DZ$4<="23:59:00"),DZ$4<=$H9),INDEX($M$6:$AE$55,(ROW()-5),MATCH(VLOOKUP('6b. Bezettingseis Grafiek'!$C$3,data!$N$3:$O$9,2,0),'6a. Bezettingseis'!$M$4:$AE$4,0)),""),IF(AND($G9<=DZ$4,DZ$4<=$H9),INDEX($M$6:$AE$55,(ROW()-5),MATCH(VLOOKUP('6b. Bezettingseis Grafiek'!$C$3,data!$N$3:$O$9,2,0),'6a. Bezettingseis'!$M$4:$AE$4,0)),"")) ->  | EA9: =IF($G9>$H9,IF(OR(AND(EA$4>$G9,EA$4<="23:59:00"),EA$4<=$H9),INDEX($M$6:$AE$55,(ROW()-5),MATCH(VLOOKUP('6b. Bezettingseis Grafiek'!$C$3,data!$N$3:$O$9,2,0),'6a. Bezettingseis'!$M$4:$AE$4,0)),""),IF(AND($G9<=EA$4,EA$4<=$H9),INDEX($M$6:$AE$55,(ROW()-5),MATCH(VLOOKUP('6b. Bezettingseis Grafiek'!$C$3,data!$N$3:$O$9,2,0),'6a. Bezettingseis'!$M$4:$AE$4,0)),"")) ->  | EB9: =IF($G9>$H9,IF(OR(AND(EB$4>$G9,EB$4<="23:59:00"),EB$4<=$H9),INDEX($M$6:$AE$55,(ROW()-5),MATCH(VLOOKUP('6b. Bezettingseis Grafiek'!$C$3,data!$N$3:$O$9,2,0),'6a. Bezettingseis'!$M$4:$AE$4,0)),""),IF(AND($G9<=EB$4,EB$4<=$H9),INDEX($M$6:$AE$55,(ROW()-5),MATCH(VLOOKUP('6b. Bezettingseis Grafiek'!$C$3,data!$N$3:$O$9,2,0),'6a. Bezettingseis'!$M$4:$AE$4,0)),"")) ->  | EC9: =IF($G9>$H9,IF(OR(AND(EC$4>$G9,EC$4<="23:59:00"),EC$4<=$H9),INDEX($M$6:$AE$55,(ROW()-5),MATCH(VLOOKUP('6b. Bezettingseis Grafiek'!$C$3,data!$N$3:$O$9,2,0),'6a. Bezettingseis'!$M$4:$AE$4,0)),""),IF(AND($G9<=EC$4,EC$4<=$H9),INDEX($M$6:$AE$55,(ROW()-5),MATCH(VLOOKUP('6b. Bezettingseis Grafiek'!$C$3,data!$N$3:$O$9,2,0),'6a. Bezettingseis'!$M$4:$AE$4,0)),"")) ->  | ED9: =IF($G9>$H9,IF(OR(AND(ED$4>$G9,ED$4<="23:59:00"),ED$4<=$H9),INDEX($M$6:$AE$55,(ROW()-5),MATCH(VLOOKUP('6b. Bezettingseis Grafiek'!$C$3,data!$N$3:$O$9,2,0),'6a. Bezettingseis'!$M$4:$AE$4,0)),""),IF(AND($G9<=ED$4,ED$4<=$H9),INDEX($M$6:$AE$55,(ROW()-5),MATCH(VLOOKUP('6b. Bezettingseis Grafiek'!$C$3,data!$N$3:$O$9,2,0),'6a. Bezettingseis'!$M$4:$AE$4,0)),"")) ->  | EE9: =IF($G9>$H9,IF(OR(AND(EE$4>$G9,EE$4<="23:59:00"),EE$4<=$H9),INDEX($M$6:$AE$55,(ROW()-5),MATCH(VLOOKUP('6b. Bezettingseis Grafiek'!$C$3,data!$N$3:$O$9,2,0),'6a. Bezettingseis'!$M$4:$AE$4,0)),""),IF(AND($G9<=EE$4,EE$4<=$H9),INDEX($M$6:$AE$55,(ROW()-5),MATCH(VLOOKUP('6b. Bezettingseis Grafiek'!$C$3,data!$N$3:$O$9,2,0),'6a. Bezettingseis'!$M$4:$AE$4,0)),"")) -> 
